Workbook

Sheet Init
A1: Rate Discount Model 3.0 | E1: YYYY | F1: FYMonthID | G1: CalYr | H1: MM | I1: DT | J1: TotalHours | K1: HLH | L1: LLH | N1: year | O1: days | P1: hours | R1: Yes | V1: BESID | W1: AccountName | X1: Slice Block or Block | Y1: JOE | Z1: Initial Slice% | AA1: PLVS Election
E2: 2022 | F2: 1 | G2: 2021 | H2: 10 | I2: 2021-10-01 | J2: 744 | K2: 416 | L2: 328 | N2: 2022 | O2: 365 | P2: 8760 | R2: No | T2: Load Following
A3: Start Year | B3: 2026 | E3: 2022 | F3: 2 | G3: 2021 | H3: 11 | I3: 2021-11-01 | J3: 721 | K3: 400 | L3: 321 | N3: 2023 | O3: 365 | P3: 8760 | T3: Block only | V3: 10005 | W3: Alder Mutual | X3: 0 | Y3: 0 | Z3: 0 | AA3: Yes
E4: 2022 | F4: 3 | G4: 2021 | H4: 12 | I4: 2021-12-01 | J4: 744 | K4: 416 | L4: 328 | N4: 2024 | O4: 366 | P4: 8784 | T4: Block with Shaping | V4: 10015 | W4: Asotin County PUD #1 | X4: 0 | Y4: 0 | Z4: 0 | AA4: Yes
A5: Block Shaping Option | B5: Flat | C5: =+IF(AND(BlockShape="Yes",B5="60percentHLH"),"Error, Block must be Flat","") ->  | E5: 2022 | F5: 4 | G5: 2022 | H5: 1 | I5: 2022-01-01 | J5: 744 | K5: 400 | L5: 344 | N5: 2025 | O5: 365 | P5: 8760 | T5: Slice Block | V5: 10024 | W5: Benton County PUD #1 | X5: 0 | Y5: 0 | Z5: 0 | AA5: Yes
A6: Include Block Shaping Capacity? | B6: Yes | E6: 2022 | F6: 5 | G6: 2022 | H6: 2 | I6: 2022-02-01 | J6: 672 | K6: 384 | L6: 288 | N6: 2026 | O6: 365 | P6: 8760 | V6: 10025 | W6: Benton REA | X6: 0 | Y6: 0 | Z6: 0 | AA6: Yes
A7: Set the Block Shaping Capacity % of Energy --> | B7: 0.1 | E7: 2022 | F7: 6 | G7: 2022 | H7: 3 | I7: 2022-03-01 | J7: 743 | K7: 432 | L7: 311 | N7: 2027 | O7: 365 | P7: 8760 | V7: 10027 | W7: Big Bend Elec Coop | X7: 0 | Y7: 0 | Z7: 0 | AA7: Yes
E8: 2022 | F8: 7 | G8: 2022 | H8: 4 | I8: 2022-04-01 | J8: 720 | K8: 416 | L8: 304 | N8: 2028 | O8: 366 | P8: 8784 | V8: 10029 | W8: Blachly Lane Elec Coop | X8: 0 | Y8: 1 | Z8: 0 | AA8: Yes
A9: Scenario Selection | E9: 2022 | F9: 8 | G9: 2022 | H9: 5 | I9: 2022-05-01 | J9: 744 | K9: 400 | L9: 344 | N9: 2029 | O9: 365 | P9: 8760 | V9: 10044 | W9: Canby, City of | X9: 0 | Y9: 0 | Z9: 0 | AA9: Yes
A10: Status Quo Demand Revenues | B10: Peak-CDQ-aHLH | E10: 2022 | F10: 9 | G10: 2022 | H10: 6 | I10: 2022-06-01 | J10: 720 | K10: 416 | L10: 304 | N10: 2030 | O10: 365 | P10: 8760 | T10: Peak-CDQ-aHLH | V10: 10046 | W10: Central Electric Coop | X10: 0 | Y10: 1 | Z10: 0 | AA10: Yes
A11: Alternative 1 Demand Revenues | B11: Peak-aMW | E11: 2022 | F11: 10 | G11: 2022 | H11: 7 | I11: 2022-07-01 | J11: 744 | K11: 400 | L11: 344 | N11: 2031 | O11: 365 | P11: 8760 | T11: Peak-aMW | V11: 10047 | W11: Central Lincoln PUD | X11: 0 | Y11: 0 | Z11: 0 | AA11: Yes
A12: Alternative 2 Demand Revenues | B12: Peak-aHLH | E12: 2022 | F12: 11 | G12: 2022 | H12: 8 | I12: 2022-08-01 | J12: 744 | K12: 432 | L12: 312 | N12: 2032 | O12: 366 | P12: 8784 | T12: Peak-aHLH | V12: 10055 | W12: Albion, City of | X12: 0 | Y12: 0 | Z12: 0 | AA12: Yes
A13: Alternative 3 Demand Revenues | B13: TTSL | E13: 2022 | F13: 12 | G13: 2022 | H13: 9 | I13: 2022-09-01 | J13: 720 | K13: 400 | L13: 320 | N13: 2033 | O13: 365 | P13: 8760 | T13: TTSL | V13: 10057 | W13: Ashland, City of | X13: 0 | Y13: 0 | Z13: 0 | AA13: Yes
A14: Alternative 4 Demand Revenues | B14: Peak-aMW | E14: 2023 | F14: 1 | G14: 2022 | H14: 10 | I14: 2022-10-01 | J14: 744 | K14: 416 | L14: 328 | N14: 2034 | O14: 365 | P14: 8760 | T14: Peak-aMW | V14: 10059 | W14: Bandon, City of | X14: 0 | Y14: 0 | Z14: 0 | AA14: Yes
E15: 2023 | F15: 2 | G15: 2022 | H15: 11 | I15: 2022-11-01 | J15: 721 | K15: 400 | L15: 321 | N15: 2035 | O15: 365 | P15: 8760 | V15: 10061 | W15: Blaine, City of | X15: 0 | Y15: 0 | Z15: 0 | AA15: Yes
A16: Include NLSLs in TRL for PLVS? | E16: 2023 | F16: 3 | G16: 2022 | H16: 12 | I16: 2022-12-01 | J16: 744 | K16: 416 | L16: 328 | N16: 2036 | O16: 366 | P16: 8784 | V16: 10062 | W16: Bonners Ferry, City of | X16: 0 | Y16: 0 | Z16: 0 | AA16: Yes
B17: No | E17: 2023 | F17: 4 | G17: 2023 | H17: 1 | I17: 2023-01-01 | J17: 744 | K17: 400 | L17: 344 | N17: 2037 | O17: 365 | P17: 8760 | V17: 10064 | W17: Burley, City of | X17: 0 | Y17: 0 | Z17: 0 | AA17: Yes
A18: Apply Diversification Adjustment | E18: 2023 | F18: 5 | G18: 2023 | H18: 2 | I18: 2023-02-01 | J18: 672 | K18: 384 | L18: 288 | N18: 2038 | O18: 365 | P18: 8760 | V18: 10065 | W18: Cascade Locks, City of | X18: 0 | Y18: 0 | Z18: 0 | AA18: Yes
B19: No | E19: 2023 | F19: 6 | G19: 2023 | H19: 3 | I19: 2023-03-01 | J19: 743 | K19: 432 | L19: 311 | N19: 2039 | O19: 365 | P19: 8760 | V19: 10066 | W19: Centralia, City of | X19: 0 | Y19: 0 | Z19: 0 | AA19: Yes
A20: Diversification Adjustment for Load Following | E20: 2023 | F20: 7 | G20: 2023 | H20: 4 | I20: 2023-04-01 | J20: 720 | K20: 400 | L20: 320 | N20: 2040 | O20: 366 | P20: 8784 | V20: 10067 | W20: Cheney, City of | X20: 0 | Y20: 0 | Z20: 0 | AA20: Yes
B21: 0.85 | E21: 2023 | F21: 8 | G21: 2023 | H21: 5 | I21: 2023-05-01 | J21: 744 | K21: 416 | L21: 328 | N21: 2041 | O21: 365 | P21: 8760 | V21: 10068 | W21: Chewelah, City of | X21: 0 | Y21: 0 | Z21: 0 | AA21: Yes
E22: 2023 | F22: 9 | G22: 2023 | H22: 6 | I22: 2023-06-01 | J22: 720 | K22: 416 | L22: 304 | N22: 2042 | O22: 365 | P22: 8760 | V22: 10070 | W22: Declo, City of | X22: 0 | Y22: 0 | Z22: 0 | AA22: Yes
E23: 2023 | F23: 10 | G23: 2023 | H23: 7 | I23: 2023-07-01 | J23: 744 | K23: 400 | L23: 344 | N23: 2043 | O23: 365 | P23: 8760 | V23: 10071 | W23: Drain, City of | X23: 0 | Y23: 0 | Z23: 0 | AA23: Yes
E24: 2023 | F24: 11 | G24: 2023 | H24: 8 | I24: 2023-08-01 | J24: 744 | K24: 432 | L24: 312 | N24: 2044 | O24: 366 | P24: 8784 | V24: 10072 | W24: Ellensburg, City of | X24: 0 | Y24: 0 | Z24: 0 | AA24: Yes
E25: 2023 | F25: 12 | G25: 2023 | H25: 9 | I25: 2023-09-01 | J25: 720 | K25: 400 | L25: 320 | N25: 2045 | O25: 365 | P25: 8760 | V25: 10074 | W25: Forest Grove, City of | X25: 0 | Y25: 0 | Z25: 0 | AA25: Yes
E26: 2024 | F26: 1 | G26: 2023 | H26: 10 | I26: 2023-10-01 | J26: 744 | K26: 416 | L26: 328 | N26: 2046 | O26: 365 | P26: 8760 | V26: 10076 | W26: Heyburn, City of | X26: 0 | Y26: 0 | Z26: 0 | AA26: Yes
E27: 2024 | F27: 2 | G27: 2023 | H27: 11 | I27: 2023-11-01 | J27: 721 | K27: 400 | L27: 321 | N27: 2047 | O27: 365 | P27: 8760 | V27: 10078 | W27: McCleary, City of | X27: 0 | Y27: 0 | Z27: 0 | AA27: Yes
E28: 2024 | F28: 3 | G28: 2023 | H28: 12 | I28: 2023-12-01 | J28: 744 | K28: 400 | L28: 344 | N28: 2048 | O28: 366 | P28: 8784 | V28: 10079 | W28: McMinnville, City of | X28: 0 | Y28: 0 | Z28: 0 | AA28: Yes
E29: 2024 | F29: 4 | G29: 2024 | H29: 1 | I29: 2024-01-01 | J29: 744 | K29: 416 | L29: 328 | N29: 2049 | O29: 365 | P29: 8760 | V29: 10080 | W29: Milton, Town of | X29: 0 | Y29: 0 | Z29: 0 | AA29: Yes
E30: 2024 | F30: 5 | G30: 2024 | H30: 2 | I30: 2024-02-01 | J30: 696 | K30: 400 | L30: 296 | N30: 2050 | O30: 365 | P30: 8760 | V30: 10081 | W30: Milton-Freewater, City of | X30: 0 | Y30: 0 | Z30: 0 | AA30: Yes
E31: 2024 | F31: 6 | G31: 2024 | H31: 3 | I31: 2024-03-01 | J31: 743 | K31: 416 | L31: 327 | N31: 2051 | O31: 365 | P31: 8760 | V31: 10082 | W31: Minidoka, City of | X31: 0 | Y31: 0 | Z31: 0 | AA31: Yes
... 38 more rows

Sheet Rate Summary for Input into PCM
B1: Rate Summary for Inputs into Product Choice Model
B3: BP-26 Load Shaping Rates (TRM)
C4: =+Staging!F4 -> 2025-10-01 | D4: =+Staging!G4 -> 2025-11-01 | E4: =+Staging!H4 -> 2025-12-01 | F4: =+Staging!I4 -> 2026-01-01 | G4: =+Staging!J4 -> 2026-02-01 | H4: =+Staging!K4 -> 2026-03-01 | I4: =+Staging!L4 -> 2026-04-01 | J4: =+Staging!M4 -> 2026-05-01 | K4: =+Staging!N4 -> 2026-06-01 | L4: =+Staging!O4 -> 2026-07-01 | M4: =+Staging!P4 -> 2026-08-01 | N4: =+Staging!Q4 -> 2026-09-01
B5: HLH | C5: =+'Energy Rates Marginal Demand'!E10 -> 50.63 | D5: =+'Energy Rates Marginal Demand'!F10 -> 39.53 | E5: =+'Energy Rates Marginal Demand'!G10 -> 47.63 | F5: =+'Energy Rates Marginal Demand'!H10 -> 43.56 | G5: =+'Energy Rates Marginal Demand'!I10 -> 45.43 | H5: =+'Energy Rates Marginal Demand'!J10 -> 29.19 | I5: =+'Energy Rates Marginal Demand'!K10 -> 22.33 | J5: =+'Energy Rates Marginal Demand'!L10 -> 8.6 | K5: =+'Energy Rates Marginal Demand'!M10 -> 15.1 | L5: =+'Energy Rates Marginal Demand'!N10 -> 50.98 | M5: =+'Energy Rates Marginal Demand'!O10 -> 53.8 | N5: =+'Energy Rates Marginal Demand'!P10 -> 60.51
B6: LLH | C6: =+'Energy Rates Marginal Demand'!E11 -> 48.85 | D6: =+'Energy Rates Marginal Demand'!F11 -> 41.64 | E6: =+'Energy Rates Marginal Demand'!G11 -> 48.79 | F6: =+'Energy Rates Marginal Demand'!H11 -> 43.8 | G6: =+'Energy Rates Marginal Demand'!I11 -> 49.18 | H6: =+'Energy Rates Marginal Demand'!J11 -> 34.54 | I6: =+'Energy Rates Marginal Demand'!K11 -> 27.09 | J6: =+'Energy Rates Marginal Demand'!L11 -> 12.73 | K6: =+'Energy Rates Marginal Demand'!M11 -> 16.08 | L6: =+'Energy Rates Marginal Demand'!N11 -> 48.06 | M6: =+'Energy Rates Marginal Demand'!O11 -> 50.32 | N6: =+'Energy Rates Marginal Demand'!P11 -> 59.06
B8: BP-26 Demand Rates
C9: =+C$4 -> 2025-10-01 | D9: =+D$4 -> 2025-11-01 | E9: 2025-12-01 | F9: 2026-01-01 | G9: 2026-02-01 | H9: 2026-03-01 | I9: 2026-04-01 | J9: 2026-05-01 | K9: 2026-06-01 | L9: 2026-07-01 | M9: 2026-08-01 | N9: 2026-09-01 | O9: Average
B10: All Hours | C10: =TRANSPOSE('Forecast Rates'!J6:J17) -> 13.81 | D10: 10.78 | E10: 12.99 | F10: 11.88 | G10: 12.39 | H10: 7.97 | I10: 6.09 | J10: 2.35 | K10: 4.12 | L10: 13.91 | M10: 14.67 | N10: 16.51 | O10: =+'Forecast Rates'!I50 -> 10.62 | P10: =+AVERAGE(C10:N10)-O10 -> 0.0025
B12: BP-26 Embedded Cost
C13: =+C$4 -> 2025-10-01 | D13: =+D$4 -> 2025-11-01 | E13: 2025-12-01 | F13: 2026-01-01 | G13: 2026-02-01 | H13: 2026-03-01 | I13: 2026-04-01 | J13: 2026-05-01 | K13: 2026-06-01 | L13: 2026-07-01 | M13: 2026-08-01 | N13: 2026-09-01 | O13: Average
B14: All Hours | C14: =TRANSPOSE('Forecast Rates'!U6:U17) -> 5.99 | D14: 4.68 | E14: 5.64 | F14: 5.16 | G14: 5.38 | H14: 3.46 | I14: 2.64 | J14: 1.02 | K14: 1.79 | L14: 6.04 | M14: 6.37 | N14: 7.17 | O14: =+'Forecast Rates'!I51 -> 4.68 | P14: =+AVERAGE(C14:N14)-O14 -> -0.06833333333
B16: PLVS Rate
C17: =+C$4 -> 2025-10-01 | D17: =+D$4 -> 2025-11-01 | E17: 2025-12-01 | F17: 2026-01-01 | G17: 2026-02-01 | H17: 2026-03-01 | I17: 2026-04-01 | J17: 2026-05-01 | K17: 2026-06-01 | L17: 2026-07-01 | M17: 2026-08-01 | N17: 2026-09-01 | O17: Average
B18: All Hours | C18: =+'PLVS Revenues'!$C$4 -> 0.8682744875 | D18: =+'PLVS Revenues'!$C$4 -> 0.8682744875 | E18: =+'PLVS Revenues'!$C$4 -> 0.8682744875 | F18: =+'PLVS Revenues'!$C$4 -> 0.8682744875 | G18: =+'PLVS Revenues'!$C$4 -> 0.8682744875 | H18: =+'PLVS Revenues'!$C$4 -> 0.8682744875 | I18: =+'PLVS Revenues'!$C$4 -> 0.8682744875 | J18: =+'PLVS Revenues'!$C$4 -> 0.8682744875 | K18: =+'PLVS Revenues'!$C$4 -> 0.8682744875 | L18: =+'PLVS Revenues'!$C$4 -> 0.8682744875 | M18: =+'PLVS Revenues'!$C$4 -> 0.8682744875 | N18: =+'PLVS Revenues'!$C$4 -> 0.8682744875
B20: Composite Rate
C21: =+C$4 -> 2025-10-01 | D21: =+D$4 -> 2025-11-01 | E21: 2025-12-01 | F21: 2026-01-01 | G21: 2026-02-01 | H21: 2026-03-01 | I21: 2026-04-01 | J21: 2026-05-01 | K21: 2026-06-01 | L21: 2026-07-01 | M21: 2026-08-01 | N21: 2026-09-01
B22: All Hours | C22: =+'Energy Rates Marginal Demand'!$AR$22 -> 40.0114597 | D22: =+'Energy Rates Marginal Demand'!$AR$22 -> 40.0114597 | E22: =+'Energy Rates Marginal Demand'!$AR$22 -> 40.0114597 | F22: =+'Energy Rates Marginal Demand'!$AR$22 -> 40.0114597 | G22: =+'Energy Rates Marginal Demand'!$AR$22 -> 40.0114597 | H22: =+'Energy Rates Marginal Demand'!$AR$22 -> 40.0114597 | I22: =+'Energy Rates Marginal Demand'!$AR$22 -> 40.0114597 | J22: =+'Energy Rates Marginal Demand'!$AR$22 -> 40.0114597 | K22: =+'Energy Rates Marginal Demand'!$AR$22 -> 40.0114597 | L22: =+'Energy Rates Marginal Demand'!$AR$22 -> 40.0114597 | M22: =+'Energy Rates Marginal Demand'!$AR$22 -> 40.0114597 | N22: =+'Energy Rates Marginal Demand'!$AR$22 -> 40.0114597
B24: Non-Slice Rate (Composite Embedded) under TRM
C25: =+C$4 -> 2025-10-01 | D25: =+D$4 -> 2025-11-01 | E25: 2025-12-01 | F25: 2026-01-01 | G25: 2026-02-01 | H25: 2026-03-01 | I25: 2026-04-01 | J25: 2026-05-01 | K25: 2026-06-01 | L25: 2026-07-01 | M25: 2026-08-01 | N25: 2026-09-01
B26: HLH | C26: =+'Energy Rates Marginal Demand'!E36 -> 42.50799159 | D26: =+'Energy Rates Marginal Demand'!F36 -> 31.40799159 | E26: =+'Energy Rates Marginal Demand'!G36 -> 39.50799159 | F26: =+'Energy Rates Marginal Demand'!H36 -> 35.43799159 | G26: =+'Energy Rates Marginal Demand'!I36 -> 37.30799159 | H26: =+'Energy Rates Marginal Demand'!J36 -> 21.06799159 | I26: =+'Energy Rates Marginal Demand'!K36 -> 14.20799159 | J26: =+'Energy Rates Marginal Demand'!L36 -> 0.4779915928 | K26: =+'Energy Rates Marginal Demand'!M36 -> 6.977991593 | L26: =+'Energy Rates Marginal Demand'!N36 -> 42.85799159 | M26: =+'Energy Rates Marginal Demand'!O36 -> 45.67799159 | N26: =+'Energy Rates Marginal Demand'!P36 -> 52.38799159
B27: LLH | C27: =+'Energy Rates Marginal Demand'!E37 -> 40.72799159 | D27: =+'Energy Rates Marginal Demand'!F37 -> 33.51799159 | E27: =+'Energy Rates Marginal Demand'!G37 -> 40.66799159 | F27: =+'Energy Rates Marginal Demand'!H37 -> 35.67799159 | G27: =+'Energy Rates Marginal Demand'!I37 -> 41.05799159 | H27: =+'Energy Rates Marginal Demand'!J37 -> 26.41799159 | I27: =+'Energy Rates Marginal Demand'!K37 -> 18.96799159 | J27: =+'Energy Rates Marginal Demand'!L37 -> 4.607991593 | K27: =+'Energy Rates Marginal Demand'!M37 -> 7.957991593 | L27: =+'Energy Rates Marginal Demand'!N37 -> 39.93799159 | M27: =+'Energy Rates Marginal Demand'!O37 -> 42.19799159 | N27: =+'Energy Rates Marginal Demand'!P37 -> 50.93799159
B29: Non-Slice Rate (Composite Embedded) under PRDM
C30: =+C$4 -> 2025-10-01 | D30: =+D$4 -> 2025-11-01 | E30: 2025-12-01 | F30: 2026-01-01 | G30: 2026-02-01 | H30: 2026-03-01 | I30: 2026-04-01 | J30: 2026-05-01 | K30: 2026-06-01 | L30: 2026-07-01 | M30: 2026-08-01 | N30: 2026-09-01
B31: HLH | C31: =+'Energy Rates Marginal Demand'!E40+'Effective Rates'!$I$3 -> 41.93276999 | D31: =+'Energy Rates Marginal Demand'!F40+'Effective Rates'!$I$3 -> 30.83276999 | E31: =+'Energy Rates Marginal Demand'!G40+'Effective Rates'!$I$3 -> 38.93276999 | F31: =+'Energy Rates Marginal Demand'!H40+'Effective Rates'!$I$3 -> 34.86276999 | G31: =+'Energy Rates Marginal Demand'!I40+'Effective Rates'!$I$3 -> 36.73276999 | H31: =+'Energy Rates Marginal Demand'!J40+'Effective Rates'!$I$3 -> 20.49276999 | I31: =+'Energy Rates Marginal Demand'!K40+'Effective Rates'!$I$3 -> 13.63276999 | J31: =+'Energy Rates Marginal Demand'!L40+'Effective Rates'!$I$3 -> -0.09723001103 | K31: =+'Energy Rates Marginal Demand'!M40+'Effective Rates'!$I$3 -> 6.402769989 | L31: =+'Energy Rates Marginal Demand'!N40+'Effective Rates'!$I$3 -> 42.28276999 | M31: =+'Energy Rates Marginal Demand'!O40+'Effective Rates'!$I$3 -> 45.10276999 | N31: =+'Energy Rates Marginal Demand'!P40+'Effective Rates'!$I$3 -> 51.81276999
B32: LLH | C32: =+'Energy Rates Marginal Demand'!E41+'Effective Rates'!$I$3 -> 40.15276999 | D32: =+'Energy Rates Marginal Demand'!F41+'Effective Rates'!$I$3 -> 32.94276999 | E32: =+'Energy Rates Marginal Demand'!G41+'Effective Rates'!$I$3 -> 40.09276999 | F32: =+'Energy Rates Marginal Demand'!H41+'Effective Rates'!$I$3 -> 35.10276999 | G32: =+'Energy Rates Marginal Demand'!I41+'Effective Rates'!$I$3 -> 40.48276999 | H32: =+'Energy Rates Marginal Demand'!J41+'Effective Rates'!$I$3 -> 25.84276999 | I32: =+'Energy Rates Marginal Demand'!K41+'Effective Rates'!$I$3 -> 18.39276999 | J32: =+'Energy Rates Marginal Demand'!L41+'Effective Rates'!$I$3 -> 4.032769989 | K32: =+'Energy Rates Marginal Demand'!M41+'Effective Rates'!$I$3 -> 7.382769989 | L32: =+'Energy Rates Marginal Demand'!N41+'Effective Rates'!$I$3 -> 39.36276999 | M32: =+'Energy Rates Marginal Demand'!O41+'Effective Rates'!$I$3 -> 41.62276999 | N32: =+'Energy Rates Marginal Demand'!P41+'Effective Rates'!$I$3 -> 50.36276999
B34: Slice Rate
C35: =+C$4 -> 2025-10-01 | D35: =+D$4 -> 2025-11-01 | E35: 2025-12-01 | F35: 2026-01-01 | G35: 2026-02-01 | H35: 2026-03-01 | I35: 2026-04-01 | J35: 2026-05-01 | K35: 2026-06-01 | L35: 2026-07-01 | M35: 2026-08-01 | N35: 2026-09-01
B36: All Hours | C36: 0 | D36: 0 | E36: 0 | F36: 0 | G36: 0 | H36: 0 | I36: 0 | J36: 0 | K36: 0 | L36: 0 | M36: 0 | N36: 0

Sheet BlockShaping
A1: Elections | C1: Shaping Capacity (MW demand) | P1: HLH/LLH Shape Adjustment (% HLH shift)
C2: 10 | D2: 11 | E2: 12 | F2: 1 | G2: 2 | H2: 3 | I2: 4 | J2: 5 | K2: 6 | L2: 7 | M2: 8 | N2: 9 | P2: =+C2 -> 10 | Q2: 11 | R2: 12 | S2: 1 | T2: 2 | U2: 3 | V2: 4 | W2: 5 | X2: 6 | Y2: 7 | Z2: 8 | AA2: 9
A3: 10015 | B3: Asotin County PUD #1 | C3: =+IF(VLOOKUP($A3,Staging!$B:$E,4,FALSE)=0,0,SUMIF(Tier1!$2:$2,DATE(IF(C$2>9,YEAR(Tier1!$D$2),YEAR(Tier1!$D$2)+1),C$2,1),Tier1!4:4)/VLOOKUP(DATE(IF(C$2>9,YEAR(Tier1!$D$2),YEAR(Tier1!$D$2)+1),C$2,1),Init!$I:$L,2,FALSE))*Init!$B$7 -> 0 | D3: =+IF(VLOOKUP($A3,Staging!$B:$E,4,FALSE)=0,0,SUMIF(Tier1!$2:$2,DATE(IF(D$2>9,YEAR(Tier1!$D$2),YEAR(Tier1!$D$2)+1),D$2,1),Tier1!4:4)/VLOOKUP(DATE(IF(D$2>9,YEAR(Tier1!$D$2),YEAR(Tier1!$D$2)+1),D$2,1),Init!$I:$L,2,FALSE))*Init!$B$7 -> 0 | E3: =+IF(VLOOKUP($A3,Staging!$B:$E,4,FALSE)=0,0,SUMIF(Tier1!$2:$2,DATE(IF(E$2>9,YEAR(Tier1!$D$2),YEAR(Tier1!$D$2)+1),E$2,1),Tier1!4:4)/VLOOKUP(DATE(IF(E$2>9,YEAR(Tier1!$D$2),YEAR(Tier1!$D$2)+1),E$2,1),Init!$I:$L,2,FALSE))*Init!$B$7 -> 0 | F3: =+IF(VLOOKUP($A3,Staging!$B:$E,4,FALSE)=0,0,SUMIF(Tier1!$2:$2,DATE(IF(F$2>9,YEAR(Tier1!$D$2),YEAR(Tier1!$D$2)+1),F$2,1),Tier1!4:4)/VLOOKUP(DATE(IF(F$2>9,YEAR(Tier1!$D$2),YEAR(Tier1!$D$2)+1),F$2,1),Init!$I:$L,2,FALSE))*Init!$B$7 -> 0 | G3: =+IF(VLOOKUP($A3,Staging!$B:$E,4,FALSE)=0,0,SUMIF(Tier1!$2:$2,DATE(IF(G$2>9,YEAR(Tier1!$D$2),YEAR(Tier1!$D$2)+1),G$2,1),Tier1!4:4)/VLOOKUP(DATE(IF(G$2>9,YEAR(Tier1!$D$2),YEAR(Tier1!$D$2)+1),G$2,1),Init!$I:$L,2,FALSE))*Init!$B$7 -> 0 | H3: =+IF(VLOOKUP($A3,Staging!$B:$E,4,FALSE)=0,0,SUMIF(Tier1!$2:$2,DATE(IF(H$2>9,YEAR(Tier1!$D$2),YEAR(Tier1!$D$2)+1),H$2,1),Tier1!4:4)/VLOOKUP(DATE(IF(H$2>9,YEAR(Tier1!$D$2),YEAR(Tier1!$D$2)+1),H$2,1),Init!$I:$L,2,FALSE))*Init!$B$7 -> 0 | I3: =+IF(VLOOKUP($A3,Staging!$B:$E,4,FALSE)=0,0,SUMIF(Tier1!$2:$2,DATE(IF(I$2>9,YEAR(Tier1!$D$2),YEAR(Tier1!$D$2)+1),I$2,1),Tier1!4:4)/VLOOKUP(DATE(IF(I$2>9,YEAR(Tier1!$D$2),YEAR(Tier1!$D$2)+1),I$2,1),Init!$I:$L,2,FALSE))*Init!$B$7 -> 0 | J3: =+IF(VLOOKUP($A3,Staging!$B:$E,4,FALSE)=0,0,SUMIF(Tier1!$2:$2,DATE(IF(J$2>9,YEAR(Tier1!$D$2),YEAR(Tier1!$D$2)+1),J$2,1),Tier1!4:4)/VLOOKUP(DATE(IF(J$2>9,YEAR(Tier1!$D$2),YEAR(Tier1!$D$2)+1),J$2,1),Init!$I:$L,2,FALSE))*Init!$B$7 -> 0 | K3: =+IF(VLOOKUP($A3,Staging!$B:$E,4,FALSE)=0,0,SUMIF(Tier1!$2:$2,DATE(IF(K$2>9,YEAR(Tier1!$D$2),YEAR(Tier1!$D$2)+1),K$2,1),Tier1!4:4)/VLOOKUP(DATE(IF(K$2>9,YEAR(Tier1!$D$2),YEAR(Tier1!$D$2)+1),K$2,1),Init!$I:$L,2,FALSE))*Init!$B$7 -> 0 | L3: =+IF(VLOOKUP($A3,Staging!$B:$E,4,FALSE)=0,0,SUMIF(Tier1!$2:$2,DATE(IF(L$2>9,YEAR(Tier1!$D$2),YEAR(Tier1!$D$2)+1),L$2,1),Tier1!4:4)/VLOOKUP(DATE(IF(L$2>9,YEAR(Tier1!$D$2),YEAR(Tier1!$D$2)+1),L$2,1),Init!$I:$L,2,FALSE))*Init!$B$7 -> 0 | M3: =+IF(VLOOKUP($A3,Staging!$B:$E,4,FALSE)=0,0,SUMIF(Tier1!$2:$2,DATE(IF(M$2>9,YEAR(Tier1!$D$2),YEAR(Tier1!$D$2)+1),M$2,1),Tier1!4:4)/VLOOKUP(DATE(IF(M$2>9,YEAR(Tier1!$D$2),YEAR(Tier1!$D$2)+1),M$2,1),Init!$I:$L,2,FALSE))*Init!$B$7 -> 0 | N3: =+IF(VLOOKUP($A3,Staging!$B:$E,4,FALSE)=0,0,SUMIF(Tier1!$2:$2,DATE(IF(N$2>9,YEAR(Tier1!$D$2),YEAR(Tier1!$D$2)+1),N$2,1),Tier1!4:4)/VLOOKUP(DATE(IF(N$2>9,YEAR(Tier1!$D$2),YEAR(Tier1!$D$2)+1),N$2,1),Init!$I:$L,2,FALSE))*Init!$B$7 -> 0 | O3: =+A3 -> 10015 | P3: 1 | Q3: 1 | R3: 1 | S3: 1 | T3: 1 | U3: 1 | V3: 1 | W3: 1 | X3: 1 | Y3: 1 | Z3: 1 | AA3: 1
A4: 10024 | B4: Benton County PUD #1 | C4: =+IF(VLOOKUP($A4,Staging!$B:$E,4,FALSE)=0,0,SUMIF(Tier1!$2:$2,DATE(IF(C$2>9,YEAR(Tier1!$D$2),YEAR(Tier1!$D$2)+1),C$2,1),Tier1!5:5)/VLOOKUP(DATE(IF(C$2>9,YEAR(Tier1!$D$2),YEAR(Tier1!$D$2)+1),C$2,1),Init!$I:$L,2,FALSE))*Init!$B$7 -> 0 | D4: =+IF(VLOOKUP($A4,Staging!$B:$E,4,FALSE)=0,0,SUMIF(Tier1!$2:$2,DATE(IF(D$2>9,YEAR(Tier1!$D$2),YEAR(Tier1!$D$2)+1),D$2,1),Tier1!5:5)/VLOOKUP(DATE(IF(D$2>9,YEAR(Tier1!$D$2),YEAR(Tier1!$D$2)+1),D$2,1),Init!$I:$L,2,FALSE))*Init!$B$7 -> 0 | E4: =+IF(VLOOKUP($A4,Staging!$B:$E,4,FALSE)=0,0,SUMIF(Tier1!$2:$2,DATE(IF(E$2>9,YEAR(Tier1!$D$2),YEAR(Tier1!$D$2)+1),E$2,1),Tier1!5:5)/VLOOKUP(DATE(IF(E$2>9,YEAR(Tier1!$D$2),YEAR(Tier1!$D$2)+1),E$2,1),Init!$I:$L,2,FALSE))*Init!$B$7 -> 0 | F4: =+IF(VLOOKUP($A4,Staging!$B:$E,4,FALSE)=0,0,SUMIF(Tier1!$2:$2,DATE(IF(F$2>9,YEAR(Tier1!$D$2),YEAR(Tier1!$D$2)+1),F$2,1),Tier1!5:5)/VLOOKUP(DATE(IF(F$2>9,YEAR(Tier1!$D$2),YEAR(Tier1!$D$2)+1),F$2,1),Init!$I:$L,2,FALSE))*Init!$B$7 -> 0 | G4: =+IF(VLOOKUP($A4,Staging!$B:$E,4,FALSE)=0,0,SUMIF(Tier1!$2:$2,DATE(IF(G$2>9,YEAR(Tier1!$D$2),YEAR(Tier1!$D$2)+1),G$2,1),Tier1!5:5)/VLOOKUP(DATE(IF(G$2>9,YEAR(Tier1!$D$2),YEAR(Tier1!$D$2)+1),G$2,1),Init!$I:$L,2,FALSE))*Init!$B$7 -> 0 | H4: =+IF(VLOOKUP($A4,Staging!$B:$E,4,FALSE)=0,0,SUMIF(Tier1!$2:$2,DATE(IF(H$2>9,YEAR(Tier1!$D$2),YEAR(Tier1!$D$2)+1),H$2,1),Tier1!5:5)/VLOOKUP(DATE(IF(H$2>9,YEAR(Tier1!$D$2),YEAR(Tier1!$D$2)+1),H$2,1),Init!$I:$L,2,FALSE))*Init!$B$7 -> 0 | I4: =+IF(VLOOKUP($A4,Staging!$B:$E,4,FALSE)=0,0,SUMIF(Tier1!$2:$2,DATE(IF(I$2>9,YEAR(Tier1!$D$2),YEAR(Tier1!$D$2)+1),I$2,1),Tier1!5:5)/VLOOKUP(DATE(IF(I$2>9,YEAR(Tier1!$D$2),YEAR(Tier1!$D$2)+1),I$2,1),Init!$I:$L,2,FALSE))*Init!$B$7 -> 0 | J4: =+IF(VLOOKUP($A4,Staging!$B:$E,4,FALSE)=0,0,SUMIF(Tier1!$2:$2,DATE(IF(J$2>9,YEAR(Tier1!$D$2),YEAR(Tier1!$D$2)+1),J$2,1),Tier1!5:5)/VLOOKUP(DATE(IF(J$2>9,YEAR(Tier1!$D$2),YEAR(Tier1!$D$2)+1),J$2,1),Init!$I:$L,2,FALSE))*Init!$B$7 -> 0 | K4: =+IF(VLOOKUP($A4,Staging!$B:$E,4,FALSE)=0,0,SUMIF(Tier1!$2:$2,DATE(IF(K$2>9,YEAR(Tier1!$D$2),YEAR(Tier1!$D$2)+1),K$2,1),Tier1!5:5)/VLOOKUP(DATE(IF(K$2>9,YEAR(Tier1!$D$2),YEAR(Tier1!$D$2)+1),K$2,1),Init!$I:$L,2,FALSE))*Init!$B$7 -> 0 | L4: =+IF(VLOOKUP($A4,Staging!$B:$E,4,FALSE)=0,0,SUMIF(Tier1!$2:$2,DATE(IF(L$2>9,YEAR(Tier1!$D$2),YEAR(Tier1!$D$2)+1),L$2,1),Tier1!5:5)/VLOOKUP(DATE(IF(L$2>9,YEAR(Tier1!$D$2),YEAR(Tier1!$D$2)+1),L$2,1),Init!$I:$L,2,FALSE))*Init!$B$7 -> 0 | M4: =+IF(VLOOKUP($A4,Staging!$B:$E,4,FALSE)=0,0,SUMIF(Tier1!$2:$2,DATE(IF(M$2>9,YEAR(Tier1!$D$2),YEAR(Tier1!$D$2)+1),M$2,1),Tier1!5:5)/VLOOKUP(DATE(IF(M$2>9,YEAR(Tier1!$D$2),YEAR(Tier1!$D$2)+1),M$2,1),Init!$I:$L,2,FALSE))*Init!$B$7 -> 0 | N4: =+IF(VLOOKUP($A4,Staging!$B:$E,4,FALSE)=0,0,SUMIF(Tier1!$2:$2,DATE(IF(N$2>9,YEAR(Tier1!$D$2),YEAR(Tier1!$D$2)+1),N$2,1),Tier1!5:5)/VLOOKUP(DATE(IF(N$2>9,YEAR(Tier1!$D$2),YEAR(Tier1!$D$2)+1),N$2,1),Init!$I:$L,2,FALSE))*Init!$B$7 -> 0 | O4: 10024 | P4: 1 | Q4: 1 | R4: 1 | S4: 1 | T4: 1 | U4: 1 | V4: 1 | W4: 1 | X4: 1 | Y4: 1 | Z4: 1 | AA4: 1
A5: 10025 | B5: Benton REA | C5: =+IF(VLOOKUP($A5,Staging!$B:$E,4,FALSE)=0,0,SUMIF(Tier1!$2:$2,DATE(IF(C$2>9,YEAR(Tier1!$D$2),YEAR(Tier1!$D$2)+1),C$2,1),Tier1!6:6)/VLOOKUP(DATE(IF(C$2>9,YEAR(Tier1!$D$2),YEAR(Tier1!$D$2)+1),C$2,1),Init!$I:$L,2,FALSE))*Init!$B$7 -> 0 | D5: =+IF(VLOOKUP($A5,Staging!$B:$E,4,FALSE)=0,0,SUMIF(Tier1!$2:$2,DATE(IF(D$2>9,YEAR(Tier1!$D$2),YEAR(Tier1!$D$2)+1),D$2,1),Tier1!6:6)/VLOOKUP(DATE(IF(D$2>9,YEAR(Tier1!$D$2),YEAR(Tier1!$D$2)+1),D$2,1),Init!$I:$L,2,FALSE))*Init!$B$7 -> 0 | E5: =+IF(VLOOKUP($A5,Staging!$B:$E,4,FALSE)=0,0,SUMIF(Tier1!$2:$2,DATE(IF(E$2>9,YEAR(Tier1!$D$2),YEAR(Tier1!$D$2)+1),E$2,1),Tier1!6:6)/VLOOKUP(DATE(IF(E$2>9,YEAR(Tier1!$D$2),YEAR(Tier1!$D$2)+1),E$2,1),Init!$I:$L,2,FALSE))*Init!$B$7 -> 0 | F5: =+IF(VLOOKUP($A5,Staging!$B:$E,4,FALSE)=0,0,SUMIF(Tier1!$2:$2,DATE(IF(F$2>9,YEAR(Tier1!$D$2),YEAR(Tier1!$D$2)+1),F$2,1),Tier1!6:6)/VLOOKUP(DATE(IF(F$2>9,YEAR(Tier1!$D$2),YEAR(Tier1!$D$2)+1),F$2,1),Init!$I:$L,2,FALSE))*Init!$B$7 -> 0 | G5: =+IF(VLOOKUP($A5,Staging!$B:$E,4,FALSE)=0,0,SUMIF(Tier1!$2:$2,DATE(IF(G$2>9,YEAR(Tier1!$D$2),YEAR(Tier1!$D$2)+1),G$2,1),Tier1!6:6)/VLOOKUP(DATE(IF(G$2>9,YEAR(Tier1!$D$2),YEAR(Tier1!$D$2)+1),G$2,1),Init!$I:$L,2,FALSE))*Init!$B$7 -> 0 | H5: =+IF(VLOOKUP($A5,Staging!$B:$E,4,FALSE)=0,0,SUMIF(Tier1!$2:$2,DATE(IF(H$2>9,YEAR(Tier1!$D$2),YEAR(Tier1!$D$2)+1),H$2,1),Tier1!6:6)/VLOOKUP(DATE(IF(H$2>9,YEAR(Tier1!$D$2),YEAR(Tier1!$D$2)+1),H$2,1),Init!$I:$L,2,FALSE))*Init!$B$7 -> 0 | I5: =+IF(VLOOKUP($A5,Staging!$B:$E,4,FALSE)=0,0,SUMIF(Tier1!$2:$2,DATE(IF(I$2>9,YEAR(Tier1!$D$2),YEAR(Tier1!$D$2)+1),I$2,1),Tier1!6:6)/VLOOKUP(DATE(IF(I$2>9,YEAR(Tier1!$D$2),YEAR(Tier1!$D$2)+1),I$2,1),Init!$I:$L,2,FALSE))*Init!$B$7 -> 0 | J5: =+IF(VLOOKUP($A5,Staging!$B:$E,4,FALSE)=0,0,SUMIF(Tier1!$2:$2,DATE(IF(J$2>9,YEAR(Tier1!$D$2),YEAR(Tier1!$D$2)+1),J$2,1),Tier1!6:6)/VLOOKUP(DATE(IF(J$2>9,YEAR(Tier1!$D$2),YEAR(Tier1!$D$2)+1),J$2,1),Init!$I:$L,2,FALSE))*Init!$B$7 -> 0 | K5: =+IF(VLOOKUP($A5,Staging!$B:$E,4,FALSE)=0,0,SUMIF(Tier1!$2:$2,DATE(IF(K$2>9,YEAR(Tier1!$D$2),YEAR(Tier1!$D$2)+1),K$2,1),Tier1!6:6)/VLOOKUP(DATE(IF(K$2>9,YEAR(Tier1!$D$2),YEAR(Tier1!$D$2)+1),K$2,1),Init!$I:$L,2,FALSE))*Init!$B$7 -> 0 | L5: =+IF(VLOOKUP($A5,Staging!$B:$E,4,FALSE)=0,0,SUMIF(Tier1!$2:$2,DATE(IF(L$2>9,YEAR(Tier1!$D$2),YEAR(Tier1!$D$2)+1),L$2,1),Tier1!6:6)/VLOOKUP(DATE(IF(L$2>9,YEAR(Tier1!$D$2),YEAR(Tier1!$D$2)+1),L$2,1),Init!$I:$L,2,FALSE))*Init!$B$7 -> 0 | M5: =+IF(VLOOKUP($A5,Staging!$B:$E,4,FALSE)=0,0,SUMIF(Tier1!$2:$2,DATE(IF(M$2>9,YEAR(Tier1!$D$2),YEAR(Tier1!$D$2)+1),M$2,1),Tier1!6:6)/VLOOKUP(DATE(IF(M$2>9,YEAR(Tier1!$D$2),YEAR(Tier1!$D$2)+1),M$2,1),Init!$I:$L,2,FALSE))*Init!$B$7 -> 0 | N5: =+IF(VLOOKUP($A5,Staging!$B:$E,4,FALSE)=0,0,SUMIF(Tier1!$2:$2,DATE(IF(N$2>9,YEAR(Tier1!$D$2),YEAR(Tier1!$D$2)+1),N$2,1),Tier1!6:6)/VLOOKUP(DATE(IF(N$2>9,YEAR(Tier1!$D$2),YEAR(Tier1!$D$2)+1),N$2,1),Init!$I:$L,2,FALSE))*Init!$B$7 -> 0 | O5: 10025 | P5: 1 | Q5: 1 | R5: 1 | S5: 1 | T5: 1 | U5: 1 | V5: 1 | W5: 1 | X5: 1 | Y5: 1 | Z5: 1 | AA5: 1
A6: 10027 | B6: Big Bend Elec Coop | C6: =+IF(VLOOKUP($A6,Staging!$B:$E,4,FALSE)=0,0,SUMIF(Tier1!$2:$2,DATE(IF(C$2>9,YEAR(Tier1!$D$2),YEAR(Tier1!$D$2)+1),C$2,1),Tier1!7:7)/VLOOKUP(DATE(IF(C$2>9,YEAR(Tier1!$D$2),YEAR(Tier1!$D$2)+1),C$2,1),Init!$I:$L,2,FALSE))*Init!$B$7 -> 0 | D6: =+IF(VLOOKUP($A6,Staging!$B:$E,4,FALSE)=0,0,SUMIF(Tier1!$2:$2,DATE(IF(D$2>9,YEAR(Tier1!$D$2),YEAR(Tier1!$D$2)+1),D$2,1),Tier1!7:7)/VLOOKUP(DATE(IF(D$2>9,YEAR(Tier1!$D$2),YEAR(Tier1!$D$2)+1),D$2,1),Init!$I:$L,2,FALSE))*Init!$B$7 -> 0 | E6: =+IF(VLOOKUP($A6,Staging!$B:$E,4,FALSE)=0,0,SUMIF(Tier1!$2:$2,DATE(IF(E$2>9,YEAR(Tier1!$D$2),YEAR(Tier1!$D$2)+1),E$2,1),Tier1!7:7)/VLOOKUP(DATE(IF(E$2>9,YEAR(Tier1!$D$2),YEAR(Tier1!$D$2)+1),E$2,1),Init!$I:$L,2,FALSE))*Init!$B$7 -> 0 | F6: =+IF(VLOOKUP($A6,Staging!$B:$E,4,FALSE)=0,0,SUMIF(Tier1!$2:$2,DATE(IF(F$2>9,YEAR(Tier1!$D$2),YEAR(Tier1!$D$2)+1),F$2,1),Tier1!7:7)/VLOOKUP(DATE(IF(F$2>9,YEAR(Tier1!$D$2),YEAR(Tier1!$D$2)+1),F$2,1),Init!$I:$L,2,FALSE))*Init!$B$7 -> 0 | G6: =+IF(VLOOKUP($A6,Staging!$B:$E,4,FALSE)=0,0,SUMIF(Tier1!$2:$2,DATE(IF(G$2>9,YEAR(Tier1!$D$2),YEAR(Tier1!$D$2)+1),G$2,1),Tier1!7:7)/VLOOKUP(DATE(IF(G$2>9,YEAR(Tier1!$D$2),YEAR(Tier1!$D$2)+1),G$2,1),Init!$I:$L,2,FALSE))*Init!$B$7 -> 0 | H6: =+IF(VLOOKUP($A6,Staging!$B:$E,4,FALSE)=0,0,SUMIF(Tier1!$2:$2,DATE(IF(H$2>9,YEAR(Tier1!$D$2),YEAR(Tier1!$D$2)+1),H$2,1),Tier1!7:7)/VLOOKUP(DATE(IF(H$2>9,YEAR(Tier1!$D$2),YEAR(Tier1!$D$2)+1),H$2,1),Init!$I:$L,2,FALSE))*Init!$B$7 -> 0 | I6: =+IF(VLOOKUP($A6,Staging!$B:$E,4,FALSE)=0,0,SUMIF(Tier1!$2:$2,DATE(IF(I$2>9,YEAR(Tier1!$D$2),YEAR(Tier1!$D$2)+1),I$2,1),Tier1!7:7)/VLOOKUP(DATE(IF(I$2>9,YEAR(Tier1!$D$2),YEAR(Tier1!$D$2)+1),I$2,1),Init!$I:$L,2,FALSE))*Init!$B$7 -> 0 | J6: =+IF(VLOOKUP($A6,Staging!$B:$E,4,FALSE)=0,0,SUMIF(Tier1!$2:$2,DATE(IF(J$2>9,YEAR(Tier1!$D$2),YEAR(Tier1!$D$2)+1),J$2,1),Tier1!7:7)/VLOOKUP(DATE(IF(J$2>9,YEAR(Tier1!$D$2),YEAR(Tier1!$D$2)+1),J$2,1),Init!$I:$L,2,FALSE))*Init!$B$7 -> 0 | K6: =+IF(VLOOKUP($A6,Staging!$B:$E,4,FALSE)=0,0,SUMIF(Tier1!$2:$2,DATE(IF(K$2>9,YEAR(Tier1!$D$2),YEAR(Tier1!$D$2)+1),K$2,1),Tier1!7:7)/VLOOKUP(DATE(IF(K$2>9,YEAR(Tier1!$D$2),YEAR(Tier1!$D$2)+1),K$2,1),Init!$I:$L,2,FALSE))*Init!$B$7 -> 0 | L6: =+IF(VLOOKUP($A6,Staging!$B:$E,4,FALSE)=0,0,SUMIF(Tier1!$2:$2,DATE(IF(L$2>9,YEAR(Tier1!$D$2),YEAR(Tier1!$D$2)+1),L$2,1),Tier1!7:7)/VLOOKUP(DATE(IF(L$2>9,YEAR(Tier1!$D$2),YEAR(Tier1!$D$2)+1),L$2,1),Init!$I:$L,2,FALSE))*Init!$B$7 -> 0 | M6: =+IF(VLOOKUP($A6,Staging!$B:$E,4,FALSE)=0,0,SUMIF(Tier1!$2:$2,DATE(IF(M$2>9,YEAR(Tier1!$D$2),YEAR(Tier1!$D$2)+1),M$2,1),Tier1!7:7)/VLOOKUP(DATE(IF(M$2>9,YEAR(Tier1!$D$2),YEAR(Tier1!$D$2)+1),M$2,1),Init!$I:$L,2,FALSE))*Init!$B$7 -> 0 | N6: =+IF(VLOOKUP($A6,Staging!$B:$E,4,FALSE)=0,0,SUMIF(Tier1!$2:$2,DATE(IF(N$2>9,YEAR(Tier1!$D$2),YEAR(Tier1!$D$2)+1),N$2,1),Tier1!7:7)/VLOOKUP(DATE(IF(N$2>9,YEAR(Tier1!$D$2),YEAR(Tier1!$D$2)+1),N$2,1),Init!$I:$L,2,FALSE))*Init!$B$7 -> 0 | O6: 10027 | P6: 1 | Q6: 1 | R6: 1 | S6: 1 | T6: 1 | U6: 1 | V6: 1 | W6: 1 | X6: 1 | Y6: 1 | Z6: 1 | AA6: 1
A7: 10029 | B7: Blachly Lane Elec Coop | C7: =+IF(VLOOKUP($A7,Staging!$B:$E,4,FALSE)=0,0,SUMIF(Tier1!$2:$2,DATE(IF(C$2>9,YEAR(Tier1!$D$2),YEAR(Tier1!$D$2)+1),C$2,1),Tier1!8:8)/VLOOKUP(DATE(IF(C$2>9,YEAR(Tier1!$D$2),YEAR(Tier1!$D$2)+1),C$2,1),Init!$I:$L,2,FALSE))*Init!$B$7 -> 0 | D7: =+IF(VLOOKUP($A7,Staging!$B:$E,4,FALSE)=0,0,SUMIF(Tier1!$2:$2,DATE(IF(D$2>9,YEAR(Tier1!$D$2),YEAR(Tier1!$D$2)+1),D$2,1),Tier1!8:8)/VLOOKUP(DATE(IF(D$2>9,YEAR(Tier1!$D$2),YEAR(Tier1!$D$2)+1),D$2,1),Init!$I:$L,2,FALSE))*Init!$B$7 -> 0 | E7: =+IF(VLOOKUP($A7,Staging!$B:$E,4,FALSE)=0,0,SUMIF(Tier1!$2:$2,DATE(IF(E$2>9,YEAR(Tier1!$D$2),YEAR(Tier1!$D$2)+1),E$2,1),Tier1!8:8)/VLOOKUP(DATE(IF(E$2>9,YEAR(Tier1!$D$2),YEAR(Tier1!$D$2)+1),E$2,1),Init!$I:$L,2,FALSE))*Init!$B$7 -> 0 | F7: =+IF(VLOOKUP($A7,Staging!$B:$E,4,FALSE)=0,0,SUMIF(Tier1!$2:$2,DATE(IF(F$2>9,YEAR(Tier1!$D$2),YEAR(Tier1!$D$2)+1),F$2,1),Tier1!8:8)/VLOOKUP(DATE(IF(F$2>9,YEAR(Tier1!$D$2),YEAR(Tier1!$D$2)+1),F$2,1),Init!$I:$L,2,FALSE))*Init!$B$7 -> 0 | G7: =+IF(VLOOKUP($A7,Staging!$B:$E,4,FALSE)=0,0,SUMIF(Tier1!$2:$2,DATE(IF(G$2>9,YEAR(Tier1!$D$2),YEAR(Tier1!$D$2)+1),G$2,1),Tier1!8:8)/VLOOKUP(DATE(IF(G$2>9,YEAR(Tier1!$D$2),YEAR(Tier1!$D$2)+1),G$2,1),Init!$I:$L,2,FALSE))*Init!$B$7 -> 0 | H7: =+IF(VLOOKUP($A7,Staging!$B:$E,4,FALSE)=0,0,SUMIF(Tier1!$2:$2,DATE(IF(H$2>9,YEAR(Tier1!$D$2),YEAR(Tier1!$D$2)+1),H$2,1),Tier1!8:8)/VLOOKUP(DATE(IF(H$2>9,YEAR(Tier1!$D$2),YEAR(Tier1!$D$2)+1),H$2,1),Init!$I:$L,2,FALSE))*Init!$B$7 -> 0 | I7: =+IF(VLOOKUP($A7,Staging!$B:$E,4,FALSE)=0,0,SUMIF(Tier1!$2:$2,DATE(IF(I$2>9,YEAR(Tier1!$D$2),YEAR(Tier1!$D$2)+1),I$2,1),Tier1!8:8)/VLOOKUP(DATE(IF(I$2>9,YEAR(Tier1!$D$2),YEAR(Tier1!$D$2)+1),I$2,1),Init!$I:$L,2,FALSE))*Init!$B$7 -> 0 | J7: =+IF(VLOOKUP($A7,Staging!$B:$E,4,FALSE)=0,0,SUMIF(Tier1!$2:$2,DATE(IF(J$2>9,YEAR(Tier1!$D$2),YEAR(Tier1!$D$2)+1),J$2,1),Tier1!8:8)/VLOOKUP(DATE(IF(J$2>9,YEAR(Tier1!$D$2),YEAR(Tier1!$D$2)+1),J$2,1),Init!$I:$L,2,FALSE))*Init!$B$7 -> 0 | K7: =+IF(VLOOKUP($A7,Staging!$B:$E,4,FALSE)=0,0,SUMIF(Tier1!$2:$2,DATE(IF(K$2>9,YEAR(Tier1!$D$2),YEAR(Tier1!$D$2)+1),K$2,1),Tier1!8:8)/VLOOKUP(DATE(IF(K$2>9,YEAR(Tier1!$D$2),YEAR(Tier1!$D$2)+1),K$2,1),Init!$I:$L,2,FALSE))*Init!$B$7 -> 0 | L7: =+IF(VLOOKUP($A7,Staging!$B:$E,4,FALSE)=0,0,SUMIF(Tier1!$2:$2,DATE(IF(L$2>9,YEAR(Tier1!$D$2),YEAR(Tier1!$D$2)+1),L$2,1),Tier1!8:8)/VLOOKUP(DATE(IF(L$2>9,YEAR(Tier1!$D$2),YEAR(Tier1!$D$2)+1),L$2,1),Init!$I:$L,2,FALSE))*Init!$B$7 -> 0 | M7: =+IF(VLOOKUP($A7,Staging!$B:$E,4,FALSE)=0,0,SUMIF(Tier1!$2:$2,DATE(IF(M$2>9,YEAR(Tier1!$D$2),YEAR(Tier1!$D$2)+1),M$2,1),Tier1!8:8)/VLOOKUP(DATE(IF(M$2>9,YEAR(Tier1!$D$2),YEAR(Tier1!$D$2)+1),M$2,1),Init!$I:$L,2,FALSE))*Init!$B$7 -> 0 | N7: =+IF(VLOOKUP($A7,Staging!$B:$E,4,FALSE)=0,0,SUMIF(Tier1!$2:$2,DATE(IF(N$2>9,YEAR(Tier1!$D$2),YEAR(Tier1!$D$2)+1),N$2,1),Tier1!8:8)/VLOOKUP(DATE(IF(N$2>9,YEAR(Tier1!$D$2),YEAR(Tier1!$D$2)+1),N$2,1),Init!$I:$L,2,FALSE))*Init!$B$7 -> 0 | O7: 10029 | P7: 1 | Q7: 1 | R7: 1 | S7: 1 | T7: 1 | U7: 1 | V7: 1 | W7: 1 | X7: 1 | Y7: 1 | Z7: 1 | AA7: 1
A8: 10044 | B8: Canby, City of | C8: =+IF(VLOOKUP($A8,Staging!$B:$E,4,FALSE)=0,0,SUMIF(Tier1!$2:$2,DATE(IF(C$2>9,YEAR(Tier1!$D$2),YEAR(Tier1!$D$2)+1),C$2,1),Tier1!9:9)/VLOOKUP(DATE(IF(C$2>9,YEAR(Tier1!$D$2),YEAR(Tier1!$D$2)+1),C$2,1),Init!$I:$L,2,FALSE))*Init!$B$7 -> 0 | D8: =+IF(VLOOKUP($A8,Staging!$B:$E,4,FALSE)=0,0,SUMIF(Tier1!$2:$2,DATE(IF(D$2>9,YEAR(Tier1!$D$2),YEAR(Tier1!$D$2)+1),D$2,1),Tier1!9:9)/VLOOKUP(DATE(IF(D$2>9,YEAR(Tier1!$D$2),YEAR(Tier1!$D$2)+1),D$2,1),Init!$I:$L,2,FALSE))*Init!$B$7 -> 0 | E8: =+IF(VLOOKUP($A8,Staging!$B:$E,4,FALSE)=0,0,SUMIF(Tier1!$2:$2,DATE(IF(E$2>9,YEAR(Tier1!$D$2),YEAR(Tier1!$D$2)+1),E$2,1),Tier1!9:9)/VLOOKUP(DATE(IF(E$2>9,YEAR(Tier1!$D$2),YEAR(Tier1!$D$2)+1),E$2,1),Init!$I:$L,2,FALSE))*Init!$B$7 -> 0 | F8: =+IF(VLOOKUP($A8,Staging!$B:$E,4,FALSE)=0,0,SUMIF(Tier1!$2:$2,DATE(IF(F$2>9,YEAR(Tier1!$D$2),YEAR(Tier1!$D$2)+1),F$2,1),Tier1!9:9)/VLOOKUP(DATE(IF(F$2>9,YEAR(Tier1!$D$2),YEAR(Tier1!$D$2)+1),F$2,1),Init!$I:$L,2,FALSE))*Init!$B$7 -> 0 | G8: =+IF(VLOOKUP($A8,Staging!$B:$E,4,FALSE)=0,0,SUMIF(Tier1!$2:$2,DATE(IF(G$2>9,YEAR(Tier1!$D$2),YEAR(Tier1!$D$2)+1),G$2,1),Tier1!9:9)/VLOOKUP(DATE(IF(G$2>9,YEAR(Tier1!$D$2),YEAR(Tier1!$D$2)+1),G$2,1),Init!$I:$L,2,FALSE))*Init!$B$7 -> 0 | H8: =+IF(VLOOKUP($A8,Staging!$B:$E,4,FALSE)=0,0,SUMIF(Tier1!$2:$2,DATE(IF(H$2>9,YEAR(Tier1!$D$2),YEAR(Tier1!$D$2)+1),H$2,1),Tier1!9:9)/VLOOKUP(DATE(IF(H$2>9,YEAR(Tier1!$D$2),YEAR(Tier1!$D$2)+1),H$2,1),Init!$I:$L,2,FALSE))*Init!$B$7 -> 0 | I8: =+IF(VLOOKUP($A8,Staging!$B:$E,4,FALSE)=0,0,SUMIF(Tier1!$2:$2,DATE(IF(I$2>9,YEAR(Tier1!$D$2),YEAR(Tier1!$D$2)+1),I$2,1),Tier1!9:9)/VLOOKUP(DATE(IF(I$2>9,YEAR(Tier1!$D$2),YEAR(Tier1!$D$2)+1),I$2,1),Init!$I:$L,2,FALSE))*Init!$B$7 -> 0 | J8: =+IF(VLOOKUP($A8,Staging!$B:$E,4,FALSE)=0,0,SUMIF(Tier1!$2:$2,DATE(IF(J$2>9,YEAR(Tier1!$D$2),YEAR(Tier1!$D$2)+1),J$2,1),Tier1!9:9)/VLOOKUP(DATE(IF(J$2>9,YEAR(Tier1!$D$2),YEAR(Tier1!$D$2)+1),J$2,1),Init!$I:$L,2,FALSE))*Init!$B$7 -> 0 | K8: =+IF(VLOOKUP($A8,Staging!$B:$E,4,FALSE)=0,0,SUMIF(Tier1!$2:$2,DATE(IF(K$2>9,YEAR(Tier1!$D$2),YEAR(Tier1!$D$2)+1),K$2,1),Tier1!9:9)/VLOOKUP(DATE(IF(K$2>9,YEAR(Tier1!$D$2),YEAR(Tier1!$D$2)+1),K$2,1),Init!$I:$L,2,FALSE))*Init!$B$7 -> 0 | L8: =+IF(VLOOKUP($A8,Staging!$B:$E,4,FALSE)=0,0,SUMIF(Tier1!$2:$2,DATE(IF(L$2>9,YEAR(Tier1!$D$2),YEAR(Tier1!$D$2)+1),L$2,1),Tier1!9:9)/VLOOKUP(DATE(IF(L$2>9,YEAR(Tier1!$D$2),YEAR(Tier1!$D$2)+1),L$2,1),Init!$I:$L,2,FALSE))*Init!$B$7 -> 0 | M8: =+IF(VLOOKUP($A8,Staging!$B:$E,4,FALSE)=0,0,SUMIF(Tier1!$2:$2,DATE(IF(M$2>9,YEAR(Tier1!$D$2),YEAR(Tier1!$D$2)+1),M$2,1),Tier1!9:9)/VLOOKUP(DATE(IF(M$2>9,YEAR(Tier1!$D$2),YEAR(Tier1!$D$2)+1),M$2,1),Init!$I:$L,2,FALSE))*Init!$B$7 -> 0 | N8: =+IF(VLOOKUP($A8,Staging!$B:$E,4,FALSE)=0,0,SUMIF(Tier1!$2:$2,DATE(IF(N$2>9,YEAR(Tier1!$D$2),YEAR(Tier1!$D$2)+1),N$2,1),Tier1!9:9)/VLOOKUP(DATE(IF(N$2>9,YEAR(Tier1!$D$2),YEAR(Tier1!$D$2)+1),N$2,1),Init!$I:$L,2,FALSE))*Init!$B$7 -> 0 | O8: 10044 | P8: 1 | Q8: 1 | R8: 1 | S8: 1 | T8: 1 | U8: 1 | V8: 1 | W8: 1 | X8: 1 | Y8: 1 | Z8: 1 | AA8: 1
A9: 10046 | B9: Central Electric Coop | C9: =+IF(VLOOKUP($A9,Staging!$B:$E,4,FALSE)=0,0,SUMIF(Tier1!$2:$2,DATE(IF(C$2>9,YEAR(Tier1!$D$2),YEAR(Tier1!$D$2)+1),C$2,1),Tier1!10:10)/VLOOKUP(DATE(IF(C$2>9,YEAR(Tier1!$D$2),YEAR(Tier1!$D$2)+1),C$2,1),Init!$I:$L,2,FALSE))*Init!$B$7 -> 0 | D9: =+IF(VLOOKUP($A9,Staging!$B:$E,4,FALSE)=0,0,SUMIF(Tier1!$2:$2,DATE(IF(D$2>9,YEAR(Tier1!$D$2),YEAR(Tier1!$D$2)+1),D$2,1),Tier1!10:10)/VLOOKUP(DATE(IF(D$2>9,YEAR(Tier1!$D$2),YEAR(Tier1!$D$2)+1),D$2,1),Init!$I:$L,2,FALSE))*Init!$B$7 -> 0 | E9: =+IF(VLOOKUP($A9,Staging!$B:$E,4,FALSE)=0,0,SUMIF(Tier1!$2:$2,DATE(IF(E$2>9,YEAR(Tier1!$D$2),YEAR(Tier1!$D$2)+1),E$2,1),Tier1!10:10)/VLOOKUP(DATE(IF(E$2>9,YEAR(Tier1!$D$2),YEAR(Tier1!$D$2)+1),E$2,1),Init!$I:$L,2,FALSE))*Init!$B$7 -> 0 | F9: =+IF(VLOOKUP($A9,Staging!$B:$E,4,FALSE)=0,0,SUMIF(Tier1!$2:$2,DATE(IF(F$2>9,YEAR(Tier1!$D$2),YEAR(Tier1!$D$2)+1),F$2,1),Tier1!10:10)/VLOOKUP(DATE(IF(F$2>9,YEAR(Tier1!$D$2),YEAR(Tier1!$D$2)+1),F$2,1),Init!$I:$L,2,FALSE))*Init!$B$7 -> 0 | G9: =+IF(VLOOKUP($A9,Staging!$B:$E,4,FALSE)=0,0,SUMIF(Tier1!$2:$2,DATE(IF(G$2>9,YEAR(Tier1!$D$2),YEAR(Tier1!$D$2)+1),G$2,1),Tier1!10:10)/VLOOKUP(DATE(IF(G$2>9,YEAR(Tier1!$D$2),YEAR(Tier1!$D$2)+1),G$2,1),Init!$I:$L,2,FALSE))*Init!$B$7 -> 0 | H9: =+IF(VLOOKUP($A9,Staging!$B:$E,4,FALSE)=0,0,SUMIF(Tier1!$2:$2,DATE(IF(H$2>9,YEAR(Tier1!$D$2),YEAR(Tier1!$D$2)+1),H$2,1),Tier1!10:10)/VLOOKUP(DATE(IF(H$2>9,YEAR(Tier1!$D$2),YEAR(Tier1!$D$2)+1),H$2,1),Init!$I:$L,2,FALSE))*Init!$B$7 -> 0 | I9: =+IF(VLOOKUP($A9,Staging!$B:$E,4,FALSE)=0,0,SUMIF(Tier1!$2:$2,DATE(IF(I$2>9,YEAR(Tier1!$D$2),YEAR(Tier1!$D$2)+1),I$2,1),Tier1!10:10)/VLOOKUP(DATE(IF(I$2>9,YEAR(Tier1!$D$2),YEAR(Tier1!$D$2)+1),I$2,1),Init!$I:$L,2,FALSE))*Init!$B$7 -> 0 | J9: =+IF(VLOOKUP($A9,Staging!$B:$E,4,FALSE)=0,0,SUMIF(Tier1!$2:$2,DATE(IF(J$2>9,YEAR(Tier1!$D$2),YEAR(Tier1!$D$2)+1),J$2,1),Tier1!10:10)/VLOOKUP(DATE(IF(J$2>9,YEAR(Tier1!$D$2),YEAR(Tier1!$D$2)+1),J$2,1),Init!$I:$L,2,FALSE))*Init!$B$7 -> 0 | K9: =+IF(VLOOKUP($A9,Staging!$B:$E,4,FALSE)=0,0,SUMIF(Tier1!$2:$2,DATE(IF(K$2>9,YEAR(Tier1!$D$2),YEAR(Tier1!$D$2)+1),K$2,1),Tier1!10:10)/VLOOKUP(DATE(IF(K$2>9,YEAR(Tier1!$D$2),YEAR(Tier1!$D$2)+1),K$2,1),Init!$I:$L,2,FALSE))*Init!$B$7 -> 0 | L9: =+IF(VLOOKUP($A9,Staging!$B:$E,4,FALSE)=0,0,SUMIF(Tier1!$2:$2,DATE(IF(L$2>9,YEAR(Tier1!$D$2),YEAR(Tier1!$D$2)+1),L$2,1),Tier1!10:10)/VLOOKUP(DATE(IF(L$2>9,YEAR(Tier1!$D$2),YEAR(Tier1!$D$2)+1),L$2,1),Init!$I:$L,2,FALSE))*Init!$B$7 -> 0 | M9: =+IF(VLOOKUP($A9,Staging!$B:$E,4,FALSE)=0,0,SUMIF(Tier1!$2:$2,DATE(IF(M$2>9,YEAR(Tier1!$D$2),YEAR(Tier1!$D$2)+1),M$2,1),Tier1!10:10)/VLOOKUP(DATE(IF(M$2>9,YEAR(Tier1!$D$2),YEAR(Tier1!$D$2)+1),M$2,1),Init!$I:$L,2,FALSE))*Init!$B$7 -> 0 | N9: =+IF(VLOOKUP($A9,Staging!$B:$E,4,FALSE)=0,0,SUMIF(Tier1!$2:$2,DATE(IF(N$2>9,YEAR(Tier1!$D$2),YEAR(Tier1!$D$2)+1),N$2,1),Tier1!10:10)/VLOOKUP(DATE(IF(N$2>9,YEAR(Tier1!$D$2),YEAR(Tier1!$D$2)+1),N$2,1),Init!$I:$L,2,FALSE))*Init!$B$7 -> 0 | O9: 10046 | P9: 1 | Q9: 1 | R9: 1 | S9: 1 | T9: 1 | U9: 1 | V9: 1 | W9: 1 | X9: 1 | Y9: 1 | Z9: 1 | AA9: 1
A10: 10047 | B10: Central Lincoln PUD | C10: =+IF(VLOOKUP($A10,Staging!$B:$E,4,FALSE)=0,0,SUMIF(Tier1!$2:$2,DATE(IF(C$2>9,YEAR(Tier1!$D$2),YEAR(Tier1!$D$2)+1),C$2,1),Tier1!11:11)/VLOOKUP(DATE(IF(C$2>9,YEAR(Tier1!$D$2),YEAR(Tier1!$D$2)+1),C$2,1),Init!$I:$L,2,FALSE))*Init!$B$7 -> 0 | D10: =+IF(VLOOKUP($A10,Staging!$B:$E,4,FALSE)=0,0,SUMIF(Tier1!$2:$2,DATE(IF(D$2>9,YEAR(Tier1!$D$2),YEAR(Tier1!$D$2)+1),D$2,1),Tier1!11:11)/VLOOKUP(DATE(IF(D$2>9,YEAR(Tier1!$D$2),YEAR(Tier1!$D$2)+1),D$2,1),Init!$I:$L,2,FALSE))*Init!$B$7 -> 0 | E10: =+IF(VLOOKUP($A10,Staging!$B:$E,4,FALSE)=0,0,SUMIF(Tier1!$2:$2,DATE(IF(E$2>9,YEAR(Tier1!$D$2),YEAR(Tier1!$D$2)+1),E$2,1),Tier1!11:11)/VLOOKUP(DATE(IF(E$2>9,YEAR(Tier1!$D$2),YEAR(Tier1!$D$2)+1),E$2,1),Init!$I:$L,2,FALSE))*Init!$B$7 -> 0 | F10: =+IF(VLOOKUP($A10,Staging!$B:$E,4,FALSE)=0,0,SUMIF(Tier1!$2:$2,DATE(IF(F$2>9,YEAR(Tier1!$D$2),YEAR(Tier1!$D$2)+1),F$2,1),Tier1!11:11)/VLOOKUP(DATE(IF(F$2>9,YEAR(Tier1!$D$2),YEAR(Tier1!$D$2)+1),F$2,1),Init!$I:$L,2,FALSE))*Init!$B$7 -> 0 | G10: =+IF(VLOOKUP($A10,Staging!$B:$E,4,FALSE)=0,0,SUMIF(Tier1!$2:$2,DATE(IF(G$2>9,YEAR(Tier1!$D$2),YEAR(Tier1!$D$2)+1),G$2,1),Tier1!11:11)/VLOOKUP(DATE(IF(G$2>9,YEAR(Tier1!$D$2),YEAR(Tier1!$D$2)+1),G$2,1),Init!$I:$L,2,FALSE))*Init!$B$7 -> 0 | H10: =+IF(VLOOKUP($A10,Staging!$B:$E,4,FALSE)=0,0,SUMIF(Tier1!$2:$2,DATE(IF(H$2>9,YEAR(Tier1!$D$2),YEAR(Tier1!$D$2)+1),H$2,1),Tier1!11:11)/VLOOKUP(DATE(IF(H$2>9,YEAR(Tier1!$D$2),YEAR(Tier1!$D$2)+1),H$2,1),Init!$I:$L,2,FALSE))*Init!$B$7 -> 0 | I10: =+IF(VLOOKUP($A10,Staging!$B:$E,4,FALSE)=0,0,SUMIF(Tier1!$2:$2,DATE(IF(I$2>9,YEAR(Tier1!$D$2),YEAR(Tier1!$D$2)+1),I$2,1),Tier1!11:11)/VLOOKUP(DATE(IF(I$2>9,YEAR(Tier1!$D$2),YEAR(Tier1!$D$2)+1),I$2,1),Init!$I:$L,2,FALSE))*Init!$B$7 -> 0 | J10: =+IF(VLOOKUP($A10,Staging!$B:$E,4,FALSE)=0,0,SUMIF(Tier1!$2:$2,DATE(IF(J$2>9,YEAR(Tier1!$D$2),YEAR(Tier1!$D$2)+1),J$2,1),Tier1!11:11)/VLOOKUP(DATE(IF(J$2>9,YEAR(Tier1!$D$2),YEAR(Tier1!$D$2)+1),J$2,1),Init!$I:$L,2,FALSE))*Init!$B$7 -> 0 | K10: =+IF(VLOOKUP($A10,Staging!$B:$E,4,FALSE)=0,0,SUMIF(Tier1!$2:$2,DATE(IF(K$2>9,YEAR(Tier1!$D$2),YEAR(Tier1!$D$2)+1),K$2,1),Tier1!11:11)/VLOOKUP(DATE(IF(K$2>9,YEAR(Tier1!$D$2),YEAR(Tier1!$D$2)+1),K$2,1),Init!$I:$L,2,FALSE))*Init!$B$7 -> 0 | L10: =+IF(VLOOKUP($A10,Staging!$B:$E,4,FALSE)=0,0,SUMIF(Tier1!$2:$2,DATE(IF(L$2>9,YEAR(Tier1!$D$2),YEAR(Tier1!$D$2)+1),L$2,1),Tier1!11:11)/VLOOKUP(DATE(IF(L$2>9,YEAR(Tier1!$D$2),YEAR(Tier1!$D$2)+1),L$2,1),Init!$I:$L,2,FALSE))*Init!$B$7 -> 0 | M10: =+IF(VLOOKUP($A10,Staging!$B:$E,4,FALSE)=0,0,SUMIF(Tier1!$2:$2,DATE(IF(M$2>9,YEAR(Tier1!$D$2),YEAR(Tier1!$D$2)+1),M$2,1),Tier1!11:11)/VLOOKUP(DATE(IF(M$2>9,YEAR(Tier1!$D$2),YEAR(Tier1!$D$2)+1),M$2,1),Init!$I:$L,2,FALSE))*Init!$B$7 -> 0 | N10: =+IF(VLOOKUP($A10,Staging!$B:$E,4,FALSE)=0,0,SUMIF(Tier1!$2:$2,DATE(IF(N$2>9,YEAR(Tier1!$D$2),YEAR(Tier1!$D$2)+1),N$2,1),Tier1!11:11)/VLOOKUP(DATE(IF(N$2>9,YEAR(Tier1!$D$2),YEAR(Tier1!$D$2)+1),N$2,1),Init!$I:$L,2,FALSE))*Init!$B$7 -> 0 | O10: 10047 | P10: 1 | Q10: 1 | R10: 1 | S10: 1 | T10: 1 | U10: 1 | V10: 1 | W10: 1 | X10: 1 | Y10: 1 | Z10: 1 | AA10: 1
A11: 10055 | B11: Albion, City of | C11: =+IF(VLOOKUP($A11,Staging!$B:$E,4,FALSE)=0,0,SUMIF(Tier1!$2:$2,DATE(IF(C$2>9,YEAR(Tier1!$D$2),YEAR(Tier1!$D$2)+1),C$2,1),Tier1!12:12)/VLOOKUP(DATE(IF(C$2>9,YEAR(Tier1!$D$2),YEAR(Tier1!$D$2)+1),C$2,1),Init!$I:$L,2,FALSE))*Init!$B$7 -> 0 | D11: =+IF(VLOOKUP($A11,Staging!$B:$E,4,FALSE)=0,0,SUMIF(Tier1!$2:$2,DATE(IF(D$2>9,YEAR(Tier1!$D$2),YEAR(Tier1!$D$2)+1),D$2,1),Tier1!12:12)/VLOOKUP(DATE(IF(D$2>9,YEAR(Tier1!$D$2),YEAR(Tier1!$D$2)+1),D$2,1),Init!$I:$L,2,FALSE))*Init!$B$7 -> 0 | E11: =+IF(VLOOKUP($A11,Staging!$B:$E,4,FALSE)=0,0,SUMIF(Tier1!$2:$2,DATE(IF(E$2>9,YEAR(Tier1!$D$2),YEAR(Tier1!$D$2)+1),E$2,1),Tier1!12:12)/VLOOKUP(DATE(IF(E$2>9,YEAR(Tier1!$D$2),YEAR(Tier1!$D$2)+1),E$2,1),Init!$I:$L,2,FALSE))*Init!$B$7 -> 0 | F11: =+IF(VLOOKUP($A11,Staging!$B:$E,4,FALSE)=0,0,SUMIF(Tier1!$2:$2,DATE(IF(F$2>9,YEAR(Tier1!$D$2),YEAR(Tier1!$D$2)+1),F$2,1),Tier1!12:12)/VLOOKUP(DATE(IF(F$2>9,YEAR(Tier1!$D$2),YEAR(Tier1!$D$2)+1),F$2,1),Init!$I:$L,2,FALSE))*Init!$B$7 -> 0 | G11: =+IF(VLOOKUP($A11,Staging!$B:$E,4,FALSE)=0,0,SUMIF(Tier1!$2:$2,DATE(IF(G$2>9,YEAR(Tier1!$D$2),YEAR(Tier1!$D$2)+1),G$2,1),Tier1!12:12)/VLOOKUP(DATE(IF(G$2>9,YEAR(Tier1!$D$2),YEAR(Tier1!$D$2)+1),G$2,1),Init!$I:$L,2,FALSE))*Init!$B$7 -> 0 | H11: =+IF(VLOOKUP($A11,Staging!$B:$E,4,FALSE)=0,0,SUMIF(Tier1!$2:$2,DATE(IF(H$2>9,YEAR(Tier1!$D$2),YEAR(Tier1!$D$2)+1),H$2,1),Tier1!12:12)/VLOOKUP(DATE(IF(H$2>9,YEAR(Tier1!$D$2),YEAR(Tier1!$D$2)+1),H$2,1),Init!$I:$L,2,FALSE))*Init!$B$7 -> 0 | I11: =+IF(VLOOKUP($A11,Staging!$B:$E,4,FALSE)=0,0,SUMIF(Tier1!$2:$2,DATE(IF(I$2>9,YEAR(Tier1!$D$2),YEAR(Tier1!$D$2)+1),I$2,1),Tier1!12:12)/VLOOKUP(DATE(IF(I$2>9,YEAR(Tier1!$D$2),YEAR(Tier1!$D$2)+1),I$2,1),Init!$I:$L,2,FALSE))*Init!$B$7 -> 0 | J11: =+IF(VLOOKUP($A11,Staging!$B:$E,4,FALSE)=0,0,SUMIF(Tier1!$2:$2,DATE(IF(J$2>9,YEAR(Tier1!$D$2),YEAR(Tier1!$D$2)+1),J$2,1),Tier1!12:12)/VLOOKUP(DATE(IF(J$2>9,YEAR(Tier1!$D$2),YEAR(Tier1!$D$2)+1),J$2,1),Init!$I:$L,2,FALSE))*Init!$B$7 -> 0 | K11: =+IF(VLOOKUP($A11,Staging!$B:$E,4,FALSE)=0,0,SUMIF(Tier1!$2:$2,DATE(IF(K$2>9,YEAR(Tier1!$D$2),YEAR(Tier1!$D$2)+1),K$2,1),Tier1!12:12)/VLOOKUP(DATE(IF(K$2>9,YEAR(Tier1!$D$2),YEAR(Tier1!$D$2)+1),K$2,1),Init!$I:$L,2,FALSE))*Init!$B$7 -> 0 | L11: =+IF(VLOOKUP($A11,Staging!$B:$E,4,FALSE)=0,0,SUMIF(Tier1!$2:$2,DATE(IF(L$2>9,YEAR(Tier1!$D$2),YEAR(Tier1!$D$2)+1),L$2,1),Tier1!12:12)/VLOOKUP(DATE(IF(L$2>9,YEAR(Tier1!$D$2),YEAR(Tier1!$D$2)+1),L$2,1),Init!$I:$L,2,FALSE))*Init!$B$7 -> 0 | M11: =+IF(VLOOKUP($A11,Staging!$B:$E,4,FALSE)=0,0,SUMIF(Tier1!$2:$2,DATE(IF(M$2>9,YEAR(Tier1!$D$2),YEAR(Tier1!$D$2)+1),M$2,1),Tier1!12:12)/VLOOKUP(DATE(IF(M$2>9,YEAR(Tier1!$D$2),YEAR(Tier1!$D$2)+1),M$2,1),Init!$I:$L,2,FALSE))*Init!$B$7 -> 0 | N11: =+IF(VLOOKUP($A11,Staging!$B:$E,4,FALSE)=0,0,SUMIF(Tier1!$2:$2,DATE(IF(N$2>9,YEAR(Tier1!$D$2),YEAR(Tier1!$D$2)+1),N$2,1),Tier1!12:12)/VLOOKUP(DATE(IF(N$2>9,YEAR(Tier1!$D$2),YEAR(Tier1!$D$2)+1),N$2,1),Init!$I:$L,2,FALSE))*Init!$B$7 -> 0 | O11: 10055 | P11: 1 | Q11: 1 | R11: 1 | S11: 1 | T11: 1 | U11: 1 | V11: 1 | W11: 1 | X11: 1 | Y11: 1 | Z11: 1 | AA11: 1
A12: 10057 | B12: Ashland, City of | C12: =+IF(VLOOKUP($A12,Staging!$B:$E,4,FALSE)=0,0,SUMIF(Tier1!$2:$2,DATE(IF(C$2>9,YEAR(Tier1!$D$2),YEAR(Tier1!$D$2)+1),C$2,1),Tier1!13:13)/VLOOKUP(DATE(IF(C$2>9,YEAR(Tier1!$D$2),YEAR(Tier1!$D$2)+1),C$2,1),Init!$I:$L,2,FALSE))*Init!$B$7 -> 0 | D12: =+IF(VLOOKUP($A12,Staging!$B:$E,4,FALSE)=0,0,SUMIF(Tier1!$2:$2,DATE(IF(D$2>9,YEAR(Tier1!$D$2),YEAR(Tier1!$D$2)+1),D$2,1),Tier1!13:13)/VLOOKUP(DATE(IF(D$2>9,YEAR(Tier1!$D$2),YEAR(Tier1!$D$2)+1),D$2,1),Init!$I:$L,2,FALSE))*Init!$B$7 -> 0 | E12: =+IF(VLOOKUP($A12,Staging!$B:$E,4,FALSE)=0,0,SUMIF(Tier1!$2:$2,DATE(IF(E$2>9,YEAR(Tier1!$D$2),YEAR(Tier1!$D$2)+1),E$2,1),Tier1!13:13)/VLOOKUP(DATE(IF(E$2>9,YEAR(Tier1!$D$2),YEAR(Tier1!$D$2)+1),E$2,1),Init!$I:$L,2,FALSE))*Init!$B$7 -> 0 | F12: =+IF(VLOOKUP($A12,Staging!$B:$E,4,FALSE)=0,0,SUMIF(Tier1!$2:$2,DATE(IF(F$2>9,YEAR(Tier1!$D$2),YEAR(Tier1!$D$2)+1),F$2,1),Tier1!13:13)/VLOOKUP(DATE(IF(F$2>9,YEAR(Tier1!$D$2),YEAR(Tier1!$D$2)+1),F$2,1),Init!$I:$L,2,FALSE))*Init!$B$7 -> 0 | G12: =+IF(VLOOKUP($A12,Staging!$B:$E,4,FALSE)=0,0,SUMIF(Tier1!$2:$2,DATE(IF(G$2>9,YEAR(Tier1!$D$2),YEAR(Tier1!$D$2)+1),G$2,1),Tier1!13:13)/VLOOKUP(DATE(IF(G$2>9,YEAR(Tier1!$D$2),YEAR(Tier1!$D$2)+1),G$2,1),Init!$I:$L,2,FALSE))*Init!$B$7 -> 0 | H12: =+IF(VLOOKUP($A12,Staging!$B:$E,4,FALSE)=0,0,SUMIF(Tier1!$2:$2,DATE(IF(H$2>9,YEAR(Tier1!$D$2),YEAR(Tier1!$D$2)+1),H$2,1),Tier1!13:13)/VLOOKUP(DATE(IF(H$2>9,YEAR(Tier1!$D$2),YEAR(Tier1!$D$2)+1),H$2,1),Init!$I:$L,2,FALSE))*Init!$B$7 -> 0 | I12: =+IF(VLOOKUP($A12,Staging!$B:$E,4,FALSE)=0,0,SUMIF(Tier1!$2:$2,DATE(IF(I$2>9,YEAR(Tier1!$D$2),YEAR(Tier1!$D$2)+1),I$2,1),Tier1!13:13)/VLOOKUP(DATE(IF(I$2>9,YEAR(Tier1!$D$2),YEAR(Tier1!$D$2)+1),I$2,1),Init!$I:$L,2,FALSE))*Init!$B$7 -> 0 | J12: =+IF(VLOOKUP($A12,Staging!$B:$E,4,FALSE)=0,0,SUMIF(Tier1!$2:$2,DATE(IF(J$2>9,YEAR(Tier1!$D$2),YEAR(Tier1!$D$2)+1),J$2,1),Tier1!13:13)/VLOOKUP(DATE(IF(J$2>9,YEAR(Tier1!$D$2),YEAR(Tier1!$D$2)+1),J$2,1),Init!$I:$L,2,FALSE))*Init!$B$7 -> 0 | K12: =+IF(VLOOKUP($A12,Staging!$B:$E,4,FALSE)=0,0,SUMIF(Tier1!$2:$2,DATE(IF(K$2>9,YEAR(Tier1!$D$2),YEAR(Tier1!$D$2)+1),K$2,1),Tier1!13:13)/VLOOKUP(DATE(IF(K$2>9,YEAR(Tier1!$D$2),YEAR(Tier1!$D$2)+1),K$2,1),Init!$I:$L,2,FALSE))*Init!$B$7 -> 0 | L12: =+IF(VLOOKUP($A12,Staging!$B:$E,4,FALSE)=0,0,SUMIF(Tier1!$2:$2,DATE(IF(L$2>9,YEAR(Tier1!$D$2),YEAR(Tier1!$D$2)+1),L$2,1),Tier1!13:13)/VLOOKUP(DATE(IF(L$2>9,YEAR(Tier1!$D$2),YEAR(Tier1!$D$2)+1),L$2,1),Init!$I:$L,2,FALSE))*Init!$B$7 -> 0 | M12: =+IF(VLOOKUP($A12,Staging!$B:$E,4,FALSE)=0,0,SUMIF(Tier1!$2:$2,DATE(IF(M$2>9,YEAR(Tier1!$D$2),YEAR(Tier1!$D$2)+1),M$2,1),Tier1!13:13)/VLOOKUP(DATE(IF(M$2>9,YEAR(Tier1!$D$2),YEAR(Tier1!$D$2)+1),M$2,1),Init!$I:$L,2,FALSE))*Init!$B$7 -> 0 | N12: =+IF(VLOOKUP($A12,Staging!$B:$E,4,FALSE)=0,0,SUMIF(Tier1!$2:$2,DATE(IF(N$2>9,YEAR(Tier1!$D$2),YEAR(Tier1!$D$2)+1),N$2,1),Tier1!13:13)/VLOOKUP(DATE(IF(N$2>9,YEAR(Tier1!$D$2),YEAR(Tier1!$D$2)+1),N$2,1),Init!$I:$L,2,FALSE))*Init!$B$7 -> 0 | O12: 10057 | P12: 1 | Q12: 1 | R12: 1 | S12: 1 | T12: 1 | U12: 1 | V12: 1 | W12: 1 | X12: 1 | Y12: 1 | Z12: 1 | AA12: 1
A13: 10059 | B13: Bandon, City of | C13: =+IF(VLOOKUP($A13,Staging!$B:$E,4,FALSE)=0,0,SUMIF(Tier1!$2:$2,DATE(IF(C$2>9,YEAR(Tier1!$D$2),YEAR(Tier1!$D$2)+1),C$2,1),Tier1!14:14)/VLOOKUP(DATE(IF(C$2>9,YEAR(Tier1!$D$2),YEAR(Tier1!$D$2)+1),C$2,1),Init!$I:$L,2,FALSE))*Init!$B$7 -> 0 | D13: =+IF(VLOOKUP($A13,Staging!$B:$E,4,FALSE)=0,0,SUMIF(Tier1!$2:$2,DATE(IF(D$2>9,YEAR(Tier1!$D$2),YEAR(Tier1!$D$2)+1),D$2,1),Tier1!14:14)/VLOOKUP(DATE(IF(D$2>9,YEAR(Tier1!$D$2),YEAR(Tier1!$D$2)+1),D$2,1),Init!$I:$L,2,FALSE))*Init!$B$7 -> 0 | E13: =+IF(VLOOKUP($A13,Staging!$B:$E,4,FALSE)=0,0,SUMIF(Tier1!$2:$2,DATE(IF(E$2>9,YEAR(Tier1!$D$2),YEAR(Tier1!$D$2)+1),E$2,1),Tier1!14:14)/VLOOKUP(DATE(IF(E$2>9,YEAR(Tier1!$D$2),YEAR(Tier1!$D$2)+1),E$2,1),Init!$I:$L,2,FALSE))*Init!$B$7 -> 0 | F13: =+IF(VLOOKUP($A13,Staging!$B:$E,4,FALSE)=0,0,SUMIF(Tier1!$2:$2,DATE(IF(F$2>9,YEAR(Tier1!$D$2),YEAR(Tier1!$D$2)+1),F$2,1),Tier1!14:14)/VLOOKUP(DATE(IF(F$2>9,YEAR(Tier1!$D$2),YEAR(Tier1!$D$2)+1),F$2,1),Init!$I:$L,2,FALSE))*Init!$B$7 -> 0 | G13: =+IF(VLOOKUP($A13,Staging!$B:$E,4,FALSE)=0,0,SUMIF(Tier1!$2:$2,DATE(IF(G$2>9,YEAR(Tier1!$D$2),YEAR(Tier1!$D$2)+1),G$2,1),Tier1!14:14)/VLOOKUP(DATE(IF(G$2>9,YEAR(Tier1!$D$2),YEAR(Tier1!$D$2)+1),G$2,1),Init!$I:$L,2,FALSE))*Init!$B$7 -> 0 | H13: =+IF(VLOOKUP($A13,Staging!$B:$E,4,FALSE)=0,0,SUMIF(Tier1!$2:$2,DATE(IF(H$2>9,YEAR(Tier1!$D$2),YEAR(Tier1!$D$2)+1),H$2,1),Tier1!14:14)/VLOOKUP(DATE(IF(H$2>9,YEAR(Tier1!$D$2),YEAR(Tier1!$D$2)+1),H$2,1),Init!$I:$L,2,FALSE))*Init!$B$7 -> 0 | I13: =+IF(VLOOKUP($A13,Staging!$B:$E,4,FALSE)=0,0,SUMIF(Tier1!$2:$2,DATE(IF(I$2>9,YEAR(Tier1!$D$2),YEAR(Tier1!$D$2)+1),I$2,1),Tier1!14:14)/VLOOKUP(DATE(IF(I$2>9,YEAR(Tier1!$D$2),YEAR(Tier1!$D$2)+1),I$2,1),Init!$I:$L,2,FALSE))*Init!$B$7 -> 0 | J13: =+IF(VLOOKUP($A13,Staging!$B:$E,4,FALSE)=0,0,SUMIF(Tier1!$2:$2,DATE(IF(J$2>9,YEAR(Tier1!$D$2),YEAR(Tier1!$D$2)+1),J$2,1),Tier1!14:14)/VLOOKUP(DATE(IF(J$2>9,YEAR(Tier1!$D$2),YEAR(Tier1!$D$2)+1),J$2,1),Init!$I:$L,2,FALSE))*Init!$B$7 -> 0 | K13: =+IF(VLOOKUP($A13,Staging!$B:$E,4,FALSE)=0,0,SUMIF(Tier1!$2:$2,DATE(IF(K$2>9,YEAR(Tier1!$D$2),YEAR(Tier1!$D$2)+1),K$2,1),Tier1!14:14)/VLOOKUP(DATE(IF(K$2>9,YEAR(Tier1!$D$2),YEAR(Tier1!$D$2)+1),K$2,1),Init!$I:$L,2,FALSE))*Init!$B$7 -> 0 | L13: =+IF(VLOOKUP($A13,Staging!$B:$E,4,FALSE)=0,0,SUMIF(Tier1!$2:$2,DATE(IF(L$2>9,YEAR(Tier1!$D$2),YEAR(Tier1!$D$2)+1),L$2,1),Tier1!14:14)/VLOOKUP(DATE(IF(L$2>9,YEAR(Tier1!$D$2),YEAR(Tier1!$D$2)+1),L$2,1),Init!$I:$L,2,FALSE))*Init!$B$7 -> 0 | M13: =+IF(VLOOKUP($A13,Staging!$B:$E,4,FALSE)=0,0,SUMIF(Tier1!$2:$2,DATE(IF(M$2>9,YEAR(Tier1!$D$2),YEAR(Tier1!$D$2)+1),M$2,1),Tier1!14:14)/VLOOKUP(DATE(IF(M$2>9,YEAR(Tier1!$D$2),YEAR(Tier1!$D$2)+1),M$2,1),Init!$I:$L,2,FALSE))*Init!$B$7 -> 0 | N13: =+IF(VLOOKUP($A13,Staging!$B:$E,4,FALSE)=0,0,SUMIF(Tier1!$2:$2,DATE(IF(N$2>9,YEAR(Tier1!$D$2),YEAR(Tier1!$D$2)+1),N$2,1),Tier1!14:14)/VLOOKUP(DATE(IF(N$2>9,YEAR(Tier1!$D$2),YEAR(Tier1!$D$2)+1),N$2,1),Init!$I:$L,2,FALSE))*Init!$B$7 -> 0 | O13: 10059 | P13: 1 | Q13: 1 | R13: 1 | S13: 1 | T13: 1 | U13: 1 | V13: 1 | W13: 1 | X13: 1 | Y13: 1 | Z13: 1 | AA13: 1
A14: 10061 | B14: Blaine, City of | C14: =+IF(VLOOKUP($A14,Staging!$B:$E,4,FALSE)=0,0,SUMIF(Tier1!$2:$2,DATE(IF(C$2>9,YEAR(Tier1!$D$2),YEAR(Tier1!$D$2)+1),C$2,1),Tier1!15:15)/VLOOKUP(DATE(IF(C$2>9,YEAR(Tier1!$D$2),YEAR(Tier1!$D$2)+1),C$2,1),Init!$I:$L,2,FALSE))*Init!$B$7 -> 0 | D14: =+IF(VLOOKUP($A14,Staging!$B:$E,4,FALSE)=0,0,SUMIF(Tier1!$2:$2,DATE(IF(D$2>9,YEAR(Tier1!$D$2),YEAR(Tier1!$D$2)+1),D$2,1),Tier1!15:15)/VLOOKUP(DATE(IF(D$2>9,YEAR(Tier1!$D$2),YEAR(Tier1!$D$2)+1),D$2,1),Init!$I:$L,2,FALSE))*Init!$B$7 -> 0 | E14: =+IF(VLOOKUP($A14,Staging!$B:$E,4,FALSE)=0,0,SUMIF(Tier1!$2:$2,DATE(IF(E$2>9,YEAR(Tier1!$D$2),YEAR(Tier1!$D$2)+1),E$2,1),Tier1!15:15)/VLOOKUP(DATE(IF(E$2>9,YEAR(Tier1!$D$2),YEAR(Tier1!$D$2)+1),E$2,1),Init!$I:$L,2,FALSE))*Init!$B$7 -> 0 | F14: =+IF(VLOOKUP($A14,Staging!$B:$E,4,FALSE)=0,0,SUMIF(Tier1!$2:$2,DATE(IF(F$2>9,YEAR(Tier1!$D$2),YEAR(Tier1!$D$2)+1),F$2,1),Tier1!15:15)/VLOOKUP(DATE(IF(F$2>9,YEAR(Tier1!$D$2),YEAR(Tier1!$D$2)+1),F$2,1),Init!$I:$L,2,FALSE))*Init!$B$7 -> 0 | G14: =+IF(VLOOKUP($A14,Staging!$B:$E,4,FALSE)=0,0,SUMIF(Tier1!$2:$2,DATE(IF(G$2>9,YEAR(Tier1!$D$2),YEAR(Tier1!$D$2)+1),G$2,1),Tier1!15:15)/VLOOKUP(DATE(IF(G$2>9,YEAR(Tier1!$D$2),YEAR(Tier1!$D$2)+1),G$2,1),Init!$I:$L,2,FALSE))*Init!$B$7 -> 0 | H14: =+IF(VLOOKUP($A14,Staging!$B:$E,4,FALSE)=0,0,SUMIF(Tier1!$2:$2,DATE(IF(H$2>9,YEAR(Tier1!$D$2),YEAR(Tier1!$D$2)+1),H$2,1),Tier1!15:15)/VLOOKUP(DATE(IF(H$2>9,YEAR(Tier1!$D$2),YEAR(Tier1!$D$2)+1),H$2,1),Init!$I:$L,2,FALSE))*Init!$B$7 -> 0 | I14: =+IF(VLOOKUP($A14,Staging!$B:$E,4,FALSE)=0,0,SUMIF(Tier1!$2:$2,DATE(IF(I$2>9,YEAR(Tier1!$D$2),YEAR(Tier1!$D$2)+1),I$2,1),Tier1!15:15)/VLOOKUP(DATE(IF(I$2>9,YEAR(Tier1!$D$2),YEAR(Tier1!$D$2)+1),I$2,1),Init!$I:$L,2,FALSE))*Init!$B$7 -> 0 | J14: =+IF(VLOOKUP($A14,Staging!$B:$E,4,FALSE)=0,0,SUMIF(Tier1!$2:$2,DATE(IF(J$2>9,YEAR(Tier1!$D$2),YEAR(Tier1!$D$2)+1),J$2,1),Tier1!15:15)/VLOOKUP(DATE(IF(J$2>9,YEAR(Tier1!$D$2),YEAR(Tier1!$D$2)+1),J$2,1),Init!$I:$L,2,FALSE))*Init!$B$7 -> 0 | K14: =+IF(VLOOKUP($A14,Staging!$B:$E,4,FALSE)=0,0,SUMIF(Tier1!$2:$2,DATE(IF(K$2>9,YEAR(Tier1!$D$2),YEAR(Tier1!$D$2)+1),K$2,1),Tier1!15:15)/VLOOKUP(DATE(IF(K$2>9,YEAR(Tier1!$D$2),YEAR(Tier1!$D$2)+1),K$2,1),Init!$I:$L,2,FALSE))*Init!$B$7 -> 0 | L14: =+IF(VLOOKUP($A14,Staging!$B:$E,4,FALSE)=0,0,SUMIF(Tier1!$2:$2,DATE(IF(L$2>9,YEAR(Tier1!$D$2),YEAR(Tier1!$D$2)+1),L$2,1),Tier1!15:15)/VLOOKUP(DATE(IF(L$2>9,YEAR(Tier1!$D$2),YEAR(Tier1!$D$2)+1),L$2,1),Init!$I:$L,2,FALSE))*Init!$B$7 -> 0 | M14: =+IF(VLOOKUP($A14,Staging!$B:$E,4,FALSE)=0,0,SUMIF(Tier1!$2:$2,DATE(IF(M$2>9,YEAR(Tier1!$D$2),YEAR(Tier1!$D$2)+1),M$2,1),Tier1!15:15)/VLOOKUP(DATE(IF(M$2>9,YEAR(Tier1!$D$2),YEAR(Tier1!$D$2)+1),M$2,1),Init!$I:$L,2,FALSE))*Init!$B$7 -> 0 | N14: =+IF(VLOOKUP($A14,Staging!$B:$E,4,FALSE)=0,0,SUMIF(Tier1!$2:$2,DATE(IF(N$2>9,YEAR(Tier1!$D$2),YEAR(Tier1!$D$2)+1),N$2,1),Tier1!15:15)/VLOOKUP(DATE(IF(N$2>9,YEAR(Tier1!$D$2),YEAR(Tier1!$D$2)+1),N$2,1),Init!$I:$L,2,FALSE))*Init!$B$7 -> 0 | O14: 10061 | P14: 1 | Q14: 1 | R14: 1 | S14: 1 | T14: 1 | U14: 1 | V14: 1 | W14: 1 | X14: 1 | Y14: 1 | Z14: 1 | AA14: 1
A15: 10062 | B15: Bonners Ferry, City of | C15: =+IF(VLOOKUP($A15,Staging!$B:$E,4,FALSE)=0,0,SUMIF(Tier1!$2:$2,DATE(IF(C$2>9,YEAR(Tier1!$D$2),YEAR(Tier1!$D$2)+1),C$2,1),Tier1!16:16)/VLOOKUP(DATE(IF(C$2>9,YEAR(Tier1!$D$2),YEAR(Tier1!$D$2)+1),C$2,1),Init!$I:$L,2,FALSE))*Init!$B$7 -> 0 | D15: =+IF(VLOOKUP($A15,Staging!$B:$E,4,FALSE)=0,0,SUMIF(Tier1!$2:$2,DATE(IF(D$2>9,YEAR(Tier1!$D$2),YEAR(Tier1!$D$2)+1),D$2,1),Tier1!16:16)/VLOOKUP(DATE(IF(D$2>9,YEAR(Tier1!$D$2),YEAR(Tier1!$D$2)+1),D$2,1),Init!$I:$L,2,FALSE))*Init!$B$7 -> 0 | E15: =+IF(VLOOKUP($A15,Staging!$B:$E,4,FALSE)=0,0,SUMIF(Tier1!$2:$2,DATE(IF(E$2>9,YEAR(Tier1!$D$2),YEAR(Tier1!$D$2)+1),E$2,1),Tier1!16:16)/VLOOKUP(DATE(IF(E$2>9,YEAR(Tier1!$D$2),YEAR(Tier1!$D$2)+1),E$2,1),Init!$I:$L,2,FALSE))*Init!$B$7 -> 0 | F15: =+IF(VLOOKUP($A15,Staging!$B:$E,4,FALSE)=0,0,SUMIF(Tier1!$2:$2,DATE(IF(F$2>9,YEAR(Tier1!$D$2),YEAR(Tier1!$D$2)+1),F$2,1),Tier1!16:16)/VLOOKUP(DATE(IF(F$2>9,YEAR(Tier1!$D$2),YEAR(Tier1!$D$2)+1),F$2,1),Init!$I:$L,2,FALSE))*Init!$B$7 -> 0 | G15: =+IF(VLOOKUP($A15,Staging!$B:$E,4,FALSE)=0,0,SUMIF(Tier1!$2:$2,DATE(IF(G$2>9,YEAR(Tier1!$D$2),YEAR(Tier1!$D$2)+1),G$2,1),Tier1!16:16)/VLOOKUP(DATE(IF(G$2>9,YEAR(Tier1!$D$2),YEAR(Tier1!$D$2)+1),G$2,1),Init!$I:$L,2,FALSE))*Init!$B$7 -> 0 | H15: =+IF(VLOOKUP($A15,Staging!$B:$E,4,FALSE)=0,0,SUMIF(Tier1!$2:$2,DATE(IF(H$2>9,YEAR(Tier1!$D$2),YEAR(Tier1!$D$2)+1),H$2,1),Tier1!16:16)/VLOOKUP(DATE(IF(H$2>9,YEAR(Tier1!$D$2),YEAR(Tier1!$D$2)+1),H$2,1),Init!$I:$L,2,FALSE))*Init!$B$7 -> 0 | I15: =+IF(VLOOKUP($A15,Staging!$B:$E,4,FALSE)=0,0,SUMIF(Tier1!$2:$2,DATE(IF(I$2>9,YEAR(Tier1!$D$2),YEAR(Tier1!$D$2)+1),I$2,1),Tier1!16:16)/VLOOKUP(DATE(IF(I$2>9,YEAR(Tier1!$D$2),YEAR(Tier1!$D$2)+1),I$2,1),Init!$I:$L,2,FALSE))*Init!$B$7 -> 0 | J15: =+IF(VLOOKUP($A15,Staging!$B:$E,4,FALSE)=0,0,SUMIF(Tier1!$2:$2,DATE(IF(J$2>9,YEAR(Tier1!$D$2),YEAR(Tier1!$D$2)+1),J$2,1),Tier1!16:16)/VLOOKUP(DATE(IF(J$2>9,YEAR(Tier1!$D$2),YEAR(Tier1!$D$2)+1),J$2,1),Init!$I:$L,2,FALSE))*Init!$B$7 -> 0 | K15: =+IF(VLOOKUP($A15,Staging!$B:$E,4,FALSE)=0,0,SUMIF(Tier1!$2:$2,DATE(IF(K$2>9,YEAR(Tier1!$D$2),YEAR(Tier1!$D$2)+1),K$2,1),Tier1!16:16)/VLOOKUP(DATE(IF(K$2>9,YEAR(Tier1!$D$2),YEAR(Tier1!$D$2)+1),K$2,1),Init!$I:$L,2,FALSE))*Init!$B$7 -> 0 | L15: =+IF(VLOOKUP($A15,Staging!$B:$E,4,FALSE)=0,0,SUMIF(Tier1!$2:$2,DATE(IF(L$2>9,YEAR(Tier1!$D$2),YEAR(Tier1!$D$2)+1),L$2,1),Tier1!16:16)/VLOOKUP(DATE(IF(L$2>9,YEAR(Tier1!$D$2),YEAR(Tier1!$D$2)+1),L$2,1),Init!$I:$L,2,FALSE))*Init!$B$7 -> 0 | M15: =+IF(VLOOKUP($A15,Staging!$B:$E,4,FALSE)=0,0,SUMIF(Tier1!$2:$2,DATE(IF(M$2>9,YEAR(Tier1!$D$2),YEAR(Tier1!$D$2)+1),M$2,1),Tier1!16:16)/VLOOKUP(DATE(IF(M$2>9,YEAR(Tier1!$D$2),YEAR(Tier1!$D$2)+1),M$2,1),Init!$I:$L,2,FALSE))*Init!$B$7 -> 0 | N15: =+IF(VLOOKUP($A15,Staging!$B:$E,4,FALSE)=0,0,SUMIF(Tier1!$2:$2,DATE(IF(N$2>9,YEAR(Tier1!$D$2),YEAR(Tier1!$D$2)+1),N$2,1),Tier1!16:16)/VLOOKUP(DATE(IF(N$2>9,YEAR(Tier1!$D$2),YEAR(Tier1!$D$2)+1),N$2,1),Init!$I:$L,2,FALSE))*Init!$B$7 -> 0 | O15: 10062 | P15: 1 | Q15: 1 | R15: 1 | S15: 1 | T15: 1 | U15: 1 | V15: 1 | W15: 1 | X15: 1 | Y15: 1 | Z15: 1 | AA15: 1
A16: 10064 | B16: Burley, City of | C16: =+IF(VLOOKUP($A16,Staging!$B:$E,4,FALSE)=0,0,SUMIF(Tier1!$2:$2,DATE(IF(C$2>9,YEAR(Tier1!$D$2),YEAR(Tier1!$D$2)+1),C$2,1),Tier1!17:17)/VLOOKUP(DATE(IF(C$2>9,YEAR(Tier1!$D$2),YEAR(Tier1!$D$2)+1),C$2,1),Init!$I:$L,2,FALSE))*Init!$B$7 -> 0 | D16: =+IF(VLOOKUP($A16,Staging!$B:$E,4,FALSE)=0,0,SUMIF(Tier1!$2:$2,DATE(IF(D$2>9,YEAR(Tier1!$D$2),YEAR(Tier1!$D$2)+1),D$2,1),Tier1!17:17)/VLOOKUP(DATE(IF(D$2>9,YEAR(Tier1!$D$2),YEAR(Tier1!$D$2)+1),D$2,1),Init!$I:$L,2,FALSE))*Init!$B$7 -> 0 | E16: =+IF(VLOOKUP($A16,Staging!$B:$E,4,FALSE)=0,0,SUMIF(Tier1!$2:$2,DATE(IF(E$2>9,YEAR(Tier1!$D$2),YEAR(Tier1!$D$2)+1),E$2,1),Tier1!17:17)/VLOOKUP(DATE(IF(E$2>9,YEAR(Tier1!$D$2),YEAR(Tier1!$D$2)+1),E$2,1),Init!$I:$L,2,FALSE))*Init!$B$7 -> 0 | F16: =+IF(VLOOKUP($A16,Staging!$B:$E,4,FALSE)=0,0,SUMIF(Tier1!$2:$2,DATE(IF(F$2>9,YEAR(Tier1!$D$2),YEAR(Tier1!$D$2)+1),F$2,1),Tier1!17:17)/VLOOKUP(DATE(IF(F$2>9,YEAR(Tier1!$D$2),YEAR(Tier1!$D$2)+1),F$2,1),Init!$I:$L,2,FALSE))*Init!$B$7 -> 0 | G16: =+IF(VLOOKUP($A16,Staging!$B:$E,4,FALSE)=0,0,SUMIF(Tier1!$2:$2,DATE(IF(G$2>9,YEAR(Tier1!$D$2),YEAR(Tier1!$D$2)+1),G$2,1),Tier1!17:17)/VLOOKUP(DATE(IF(G$2>9,YEAR(Tier1!$D$2),YEAR(Tier1!$D$2)+1),G$2,1),Init!$I:$L,2,FALSE))*Init!$B$7 -> 0 | H16: =+IF(VLOOKUP($A16,Staging!$B:$E,4,FALSE)=0,0,SUMIF(Tier1!$2:$2,DATE(IF(H$2>9,YEAR(Tier1!$D$2),YEAR(Tier1!$D$2)+1),H$2,1),Tier1!17:17)/VLOOKUP(DATE(IF(H$2>9,YEAR(Tier1!$D$2),YEAR(Tier1!$D$2)+1),H$2,1),Init!$I:$L,2,FALSE))*Init!$B$7 -> 0 | I16: =+IF(VLOOKUP($A16,Staging!$B:$E,4,FALSE)=0,0,SUMIF(Tier1!$2:$2,DATE(IF(I$2>9,YEAR(Tier1!$D$2),YEAR(Tier1!$D$2)+1),I$2,1),Tier1!17:17)/VLOOKUP(DATE(IF(I$2>9,YEAR(Tier1!$D$2),YEAR(Tier1!$D$2)+1),I$2,1),Init!$I:$L,2,FALSE))*Init!$B$7 -> 0 | J16: =+IF(VLOOKUP($A16,Staging!$B:$E,4,FALSE)=0,0,SUMIF(Tier1!$2:$2,DATE(IF(J$2>9,YEAR(Tier1!$D$2),YEAR(Tier1!$D$2)+1),J$2,1),Tier1!17:17)/VLOOKUP(DATE(IF(J$2>9,YEAR(Tier1!$D$2),YEAR(Tier1!$D$2)+1),J$2,1),Init!$I:$L,2,FALSE))*Init!$B$7 -> 0 | K16: =+IF(VLOOKUP($A16,Staging!$B:$E,4,FALSE)=0,0,SUMIF(Tier1!$2:$2,DATE(IF(K$2>9,YEAR(Tier1!$D$2),YEAR(Tier1!$D$2)+1),K$2,1),Tier1!17:17)/VLOOKUP(DATE(IF(K$2>9,YEAR(Tier1!$D$2),YEAR(Tier1!$D$2)+1),K$2,1),Init!$I:$L,2,FALSE))*Init!$B$7 -> 0 | L16: =+IF(VLOOKUP($A16,Staging!$B:$E,4,FALSE)=0,0,SUMIF(Tier1!$2:$2,DATE(IF(L$2>9,YEAR(Tier1!$D$2),YEAR(Tier1!$D$2)+1),L$2,1),Tier1!17:17)/VLOOKUP(DATE(IF(L$2>9,YEAR(Tier1!$D$2),YEAR(Tier1!$D$2)+1),L$2,1),Init!$I:$L,2,FALSE))*Init!$B$7 -> 0 | M16: =+IF(VLOOKUP($A16,Staging!$B:$E,4,FALSE)=0,0,SUMIF(Tier1!$2:$2,DATE(IF(M$2>9,YEAR(Tier1!$D$2),YEAR(Tier1!$D$2)+1),M$2,1),Tier1!17:17)/VLOOKUP(DATE(IF(M$2>9,YEAR(Tier1!$D$2),YEAR(Tier1!$D$2)+1),M$2,1),Init!$I:$L,2,FALSE))*Init!$B$7 -> 0 | N16: =+IF(VLOOKUP($A16,Staging!$B:$E,4,FALSE)=0,0,SUMIF(Tier1!$2:$2,DATE(IF(N$2>9,YEAR(Tier1!$D$2),YEAR(Tier1!$D$2)+1),N$2,1),Tier1!17:17)/VLOOKUP(DATE(IF(N$2>9,YEAR(Tier1!$D$2),YEAR(Tier1!$D$2)+1),N$2,1),Init!$I:$L,2,FALSE))*Init!$B$7 -> 0 | O16: 10064 | P16: 1 | Q16: 1 | R16: 1 | S16: 1 | T16: 1 | U16: 1 | V16: 1 | W16: 1 | X16: 1 | Y16: 1 | Z16: 1 | AA16: 1
A17: 10065 | B17: Cascade Locks, City of | C17: =+IF(VLOOKUP($A17,Staging!$B:$E,4,FALSE)=0,0,SUMIF(Tier1!$2:$2,DATE(IF(C$2>9,YEAR(Tier1!$D$2),YEAR(Tier1!$D$2)+1),C$2,1),Tier1!18:18)/VLOOKUP(DATE(IF(C$2>9,YEAR(Tier1!$D$2),YEAR(Tier1!$D$2)+1),C$2,1),Init!$I:$L,2,FALSE))*Init!$B$7 -> 0 | D17: =+IF(VLOOKUP($A17,Staging!$B:$E,4,FALSE)=0,0,SUMIF(Tier1!$2:$2,DATE(IF(D$2>9,YEAR(Tier1!$D$2),YEAR(Tier1!$D$2)+1),D$2,1),Tier1!18:18)/VLOOKUP(DATE(IF(D$2>9,YEAR(Tier1!$D$2),YEAR(Tier1!$D$2)+1),D$2,1),Init!$I:$L,2,FALSE))*Init!$B$7 -> 0 | E17: =+IF(VLOOKUP($A17,Staging!$B:$E,4,FALSE)=0,0,SUMIF(Tier1!$2:$2,DATE(IF(E$2>9,YEAR(Tier1!$D$2),YEAR(Tier1!$D$2)+1),E$2,1),Tier1!18:18)/VLOOKUP(DATE(IF(E$2>9,YEAR(Tier1!$D$2),YEAR(Tier1!$D$2)+1),E$2,1),Init!$I:$L,2,FALSE))*Init!$B$7 -> 0 | F17: =+IF(VLOOKUP($A17,Staging!$B:$E,4,FALSE)=0,0,SUMIF(Tier1!$2:$2,DATE(IF(F$2>9,YEAR(Tier1!$D$2),YEAR(Tier1!$D$2)+1),F$2,1),Tier1!18:18)/VLOOKUP(DATE(IF(F$2>9,YEAR(Tier1!$D$2),YEAR(Tier1!$D$2)+1),F$2,1),Init!$I:$L,2,FALSE))*Init!$B$7 -> 0 | G17: =+IF(VLOOKUP($A17,Staging!$B:$E,4,FALSE)=0,0,SUMIF(Tier1!$2:$2,DATE(IF(G$2>9,YEAR(Tier1!$D$2),YEAR(Tier1!$D$2)+1),G$2,1),Tier1!18:18)/VLOOKUP(DATE(IF(G$2>9,YEAR(Tier1!$D$2),YEAR(Tier1!$D$2)+1),G$2,1),Init!$I:$L,2,FALSE))*Init!$B$7 -> 0 | H17: =+IF(VLOOKUP($A17,Staging!$B:$E,4,FALSE)=0,0,SUMIF(Tier1!$2:$2,DATE(IF(H$2>9,YEAR(Tier1!$D$2),YEAR(Tier1!$D$2)+1),H$2,1),Tier1!18:18)/VLOOKUP(DATE(IF(H$2>9,YEAR(Tier1!$D$2),YEAR(Tier1!$D$2)+1),H$2,1),Init!$I:$L,2,FALSE))*Init!$B$7 -> 0 | I17: =+IF(VLOOKUP($A17,Staging!$B:$E,4,FALSE)=0,0,SUMIF(Tier1!$2:$2,DATE(IF(I$2>9,YEAR(Tier1!$D$2),YEAR(Tier1!$D$2)+1),I$2,1),Tier1!18:18)/VLOOKUP(DATE(IF(I$2>9,YEAR(Tier1!$D$2),YEAR(Tier1!$D$2)+1),I$2,1),Init!$I:$L,2,FALSE))*Init!$B$7 -> 0 | J17: =+IF(VLOOKUP($A17,Staging!$B:$E,4,FALSE)=0,0,SUMIF(Tier1!$2:$2,DATE(IF(J$2>9,YEAR(Tier1!$D$2),YEAR(Tier1!$D$2)+1),J$2,1),Tier1!18:18)/VLOOKUP(DATE(IF(J$2>9,YEAR(Tier1!$D$2),YEAR(Tier1!$D$2)+1),J$2,1),Init!$I:$L,2,FALSE))*Init!$B$7 -> 0 | K17: =+IF(VLOOKUP($A17,Staging!$B:$E,4,FALSE)=0,0,SUMIF(Tier1!$2:$2,DATE(IF(K$2>9,YEAR(Tier1!$D$2),YEAR(Tier1!$D$2)+1),K$2,1),Tier1!18:18)/VLOOKUP(DATE(IF(K$2>9,YEAR(Tier1!$D$2),YEAR(Tier1!$D$2)+1),K$2,1),Init!$I:$L,2,FALSE))*Init!$B$7 -> 0 | L17: =+IF(VLOOKUP($A17,Staging!$B:$E,4,FALSE)=0,0,SUMIF(Tier1!$2:$2,DATE(IF(L$2>9,YEAR(Tier1!$D$2),YEAR(Tier1!$D$2)+1),L$2,1),Tier1!18:18)/VLOOKUP(DATE(IF(L$2>9,YEAR(Tier1!$D$2),YEAR(Tier1!$D$2)+1),L$2,1),Init!$I:$L,2,FALSE))*Init!$B$7 -> 0 | M17: =+IF(VLOOKUP($A17,Staging!$B:$E,4,FALSE)=0,0,SUMIF(Tier1!$2:$2,DATE(IF(M$2>9,YEAR(Tier1!$D$2),YEAR(Tier1!$D$2)+1),M$2,1),Tier1!18:18)/VLOOKUP(DATE(IF(M$2>9,YEAR(Tier1!$D$2),YEAR(Tier1!$D$2)+1),M$2,1),Init!$I:$L,2,FALSE))*Init!$B$7 -> 0 | N17: =+IF(VLOOKUP($A17,Staging!$B:$E,4,FALSE)=0,0,SUMIF(Tier1!$2:$2,DATE(IF(N$2>9,YEAR(Tier1!$D$2),YEAR(Tier1!$D$2)+1),N$2,1),Tier1!18:18)/VLOOKUP(DATE(IF(N$2>9,YEAR(Tier1!$D$2),YEAR(Tier1!$D$2)+1),N$2,1),Init!$I:$L,2,FALSE))*Init!$B$7 -> 0 | O17: 10065 | P17: 1 | Q17: 1 | R17: 1 | S17: 1 | T17: 1 | U17: 1 | V17: 1 | W17: 1 | X17: 1 | Y17: 1 | Z17: 1 | AA17: 1
A18: 10066 | B18: Centralia, City of | C18: =+IF(VLOOKUP($A18,Staging!$B:$E,4,FALSE)=0,0,SUMIF(Tier1!$2:$2,DATE(IF(C$2>9,YEAR(Tier1!$D$2),YEAR(Tier1!$D$2)+1),C$2,1),Tier1!19:19)/VLOOKUP(DATE(IF(C$2>9,YEAR(Tier1!$D$2),YEAR(Tier1!$D$2)+1),C$2,1),Init!$I:$L,2,FALSE))*Init!$B$7 -> 0 | D18: =+IF(VLOOKUP($A18,Staging!$B:$E,4,FALSE)=0,0,SUMIF(Tier1!$2:$2,DATE(IF(D$2>9,YEAR(Tier1!$D$2),YEAR(Tier1!$D$2)+1),D$2,1),Tier1!19:19)/VLOOKUP(DATE(IF(D$2>9,YEAR(Tier1!$D$2),YEAR(Tier1!$D$2)+1),D$2,1),Init!$I:$L,2,FALSE))*Init!$B$7 -> 0 | E18: =+IF(VLOOKUP($A18,Staging!$B:$E,4,FALSE)=0,0,SUMIF(Tier1!$2:$2,DATE(IF(E$2>9,YEAR(Tier1!$D$2),YEAR(Tier1!$D$2)+1),E$2,1),Tier1!19:19)/VLOOKUP(DATE(IF(E$2>9,YEAR(Tier1!$D$2),YEAR(Tier1!$D$2)+1),E$2,1),Init!$I:$L,2,FALSE))*Init!$B$7 -> 0 | F18: =+IF(VLOOKUP($A18,Staging!$B:$E,4,FALSE)=0,0,SUMIF(Tier1!$2:$2,DATE(IF(F$2>9,YEAR(Tier1!$D$2),YEAR(Tier1!$D$2)+1),F$2,1),Tier1!19:19)/VLOOKUP(DATE(IF(F$2>9,YEAR(Tier1!$D$2),YEAR(Tier1!$D$2)+1),F$2,1),Init!$I:$L,2,FALSE))*Init!$B$7 -> 0 | G18: =+IF(VLOOKUP($A18,Staging!$B:$E,4,FALSE)=0,0,SUMIF(Tier1!$2:$2,DATE(IF(G$2>9,YEAR(Tier1!$D$2),YEAR(Tier1!$D$2)+1),G$2,1),Tier1!19:19)/VLOOKUP(DATE(IF(G$2>9,YEAR(Tier1!$D$2),YEAR(Tier1!$D$2)+1),G$2,1),Init!$I:$L,2,FALSE))*Init!$B$7 -> 0 | H18: =+IF(VLOOKUP($A18,Staging!$B:$E,4,FALSE)=0,0,SUMIF(Tier1!$2:$2,DATE(IF(H$2>9,YEAR(Tier1!$D$2),YEAR(Tier1!$D$2)+1),H$2,1),Tier1!19:19)/VLOOKUP(DATE(IF(H$2>9,YEAR(Tier1!$D$2),YEAR(Tier1!$D$2)+1),H$2,1),Init!$I:$L,2,FALSE))*Init!$B$7 -> 0 | I18: =+IF(VLOOKUP($A18,Staging!$B:$E,4,FALSE)=0,0,SUMIF(Tier1!$2:$2,DATE(IF(I$2>9,YEAR(Tier1!$D$2),YEAR(Tier1!$D$2)+1),I$2,1),Tier1!19:19)/VLOOKUP(DATE(IF(I$2>9,YEAR(Tier1!$D$2),YEAR(Tier1!$D$2)+1),I$2,1),Init!$I:$L,2,FALSE))*Init!$B$7 -> 0 | J18: =+IF(VLOOKUP($A18,Staging!$B:$E,4,FALSE)=0,0,SUMIF(Tier1!$2:$2,DATE(IF(J$2>9,YEAR(Tier1!$D$2),YEAR(Tier1!$D$2)+1),J$2,1),Tier1!19:19)/VLOOKUP(DATE(IF(J$2>9,YEAR(Tier1!$D$2),YEAR(Tier1!$D$2)+1),J$2,1),Init!$I:$L,2,FALSE))*Init!$B$7 -> 0 | K18: =+IF(VLOOKUP($A18,Staging!$B:$E,4,FALSE)=0,0,SUMIF(Tier1!$2:$2,DATE(IF(K$2>9,YEAR(Tier1!$D$2),YEAR(Tier1!$D$2)+1),K$2,1),Tier1!19:19)/VLOOKUP(DATE(IF(K$2>9,YEAR(Tier1!$D$2),YEAR(Tier1!$D$2)+1),K$2,1),Init!$I:$L,2,FALSE))*Init!$B$7 -> 0 | L18: =+IF(VLOOKUP($A18,Staging!$B:$E,4,FALSE)=0,0,SUMIF(Tier1!$2:$2,DATE(IF(L$2>9,YEAR(Tier1!$D$2),YEAR(Tier1!$D$2)+1),L$2,1),Tier1!19:19)/VLOOKUP(DATE(IF(L$2>9,YEAR(Tier1!$D$2),YEAR(Tier1!$D$2)+1),L$2,1),Init!$I:$L,2,FALSE))*Init!$B$7 -> 0 | M18: =+IF(VLOOKUP($A18,Staging!$B:$E,4,FALSE)=0,0,SUMIF(Tier1!$2:$2,DATE(IF(M$2>9,YEAR(Tier1!$D$2),YEAR(Tier1!$D$2)+1),M$2,1),Tier1!19:19)/VLOOKUP(DATE(IF(M$2>9,YEAR(Tier1!$D$2),YEAR(Tier1!$D$2)+1),M$2,1),Init!$I:$L,2,FALSE))*Init!$B$7 -> 0 | N18: =+IF(VLOOKUP($A18,Staging!$B:$E,4,FALSE)=0,0,SUMIF(Tier1!$2:$2,DATE(IF(N$2>9,YEAR(Tier1!$D$2),YEAR(Tier1!$D$2)+1),N$2,1),Tier1!19:19)/VLOOKUP(DATE(IF(N$2>9,YEAR(Tier1!$D$2),YEAR(Tier1!$D$2)+1),N$2,1),Init!$I:$L,2,FALSE))*Init!$B$7 -> 0 | O18: 10066 | P18: 1 | Q18: 1 | R18: 1 | S18: 1 | T18: 1 | U18: 1 | V18: 1 | W18: 1 | X18: 1 | Y18: 1 | Z18: 1 | AA18: 1
A19: 10067 | B19: Cheney, City of | C19: =+IF(VLOOKUP($A19,Staging!$B:$E,4,FALSE)=0,0,SUMIF(Tier1!$2:$2,DATE(IF(C$2>9,YEAR(Tier1!$D$2),YEAR(Tier1!$D$2)+1),C$2,1),Tier1!20:20)/VLOOKUP(DATE(IF(C$2>9,YEAR(Tier1!$D$2),YEAR(Tier1!$D$2)+1),C$2,1),Init!$I:$L,2,FALSE))*Init!$B$7 -> 0 | D19: =+IF(VLOOKUP($A19,Staging!$B:$E,4,FALSE)=0,0,SUMIF(Tier1!$2:$2,DATE(IF(D$2>9,YEAR(Tier1!$D$2),YEAR(Tier1!$D$2)+1),D$2,1),Tier1!20:20)/VLOOKUP(DATE(IF(D$2>9,YEAR(Tier1!$D$2),YEAR(Tier1!$D$2)+1),D$2,1),Init!$I:$L,2,FALSE))*Init!$B$7 -> 0 | E19: =+IF(VLOOKUP($A19,Staging!$B:$E,4,FALSE)=0,0,SUMIF(Tier1!$2:$2,DATE(IF(E$2>9,YEAR(Tier1!$D$2),YEAR(Tier1!$D$2)+1),E$2,1),Tier1!20:20)/VLOOKUP(DATE(IF(E$2>9,YEAR(Tier1!$D$2),YEAR(Tier1!$D$2)+1),E$2,1),Init!$I:$L,2,FALSE))*Init!$B$7 -> 0 | F19: =+IF(VLOOKUP($A19,Staging!$B:$E,4,FALSE)=0,0,SUMIF(Tier1!$2:$2,DATE(IF(F$2>9,YEAR(Tier1!$D$2),YEAR(Tier1!$D$2)+1),F$2,1),Tier1!20:20)/VLOOKUP(DATE(IF(F$2>9,YEAR(Tier1!$D$2),YEAR(Tier1!$D$2)+1),F$2,1),Init!$I:$L,2,FALSE))*Init!$B$7 -> 0 | G19: =+IF(VLOOKUP($A19,Staging!$B:$E,4,FALSE)=0,0,SUMIF(Tier1!$2:$2,DATE(IF(G$2>9,YEAR(Tier1!$D$2),YEAR(Tier1!$D$2)+1),G$2,1),Tier1!20:20)/VLOOKUP(DATE(IF(G$2>9,YEAR(Tier1!$D$2),YEAR(Tier1!$D$2)+1),G$2,1),Init!$I:$L,2,FALSE))*Init!$B$7 -> 0 | H19: =+IF(VLOOKUP($A19,Staging!$B:$E,4,FALSE)=0,0,SUMIF(Tier1!$2:$2,DATE(IF(H$2>9,YEAR(Tier1!$D$2),YEAR(Tier1!$D$2)+1),H$2,1),Tier1!20:20)/VLOOKUP(DATE(IF(H$2>9,YEAR(Tier1!$D$2),YEAR(Tier1!$D$2)+1),H$2,1),Init!$I:$L,2,FALSE))*Init!$B$7 -> 0 | I19: =+IF(VLOOKUP($A19,Staging!$B:$E,4,FALSE)=0,0,SUMIF(Tier1!$2:$2,DATE(IF(I$2>9,YEAR(Tier1!$D$2),YEAR(Tier1!$D$2)+1),I$2,1),Tier1!20:20)/VLOOKUP(DATE(IF(I$2>9,YEAR(Tier1!$D$2),YEAR(Tier1!$D$2)+1),I$2,1),Init!$I:$L,2,FALSE))*Init!$B$7 -> 0 | J19: =+IF(VLOOKUP($A19,Staging!$B:$E,4,FALSE)=0,0,SUMIF(Tier1!$2:$2,DATE(IF(J$2>9,YEAR(Tier1!$D$2),YEAR(Tier1!$D$2)+1),J$2,1),Tier1!20:20)/VLOOKUP(DATE(IF(J$2>9,YEAR(Tier1!$D$2),YEAR(Tier1!$D$2)+1),J$2,1),Init!$I:$L,2,FALSE))*Init!$B$7 -> 0 | K19: =+IF(VLOOKUP($A19,Staging!$B:$E,4,FALSE)=0,0,SUMIF(Tier1!$2:$2,DATE(IF(K$2>9,YEAR(Tier1!$D$2),YEAR(Tier1!$D$2)+1),K$2,1),Tier1!20:20)/VLOOKUP(DATE(IF(K$2>9,YEAR(Tier1!$D$2),YEAR(Tier1!$D$2)+1),K$2,1),Init!$I:$L,2,FALSE))*Init!$B$7 -> 0 | L19: =+IF(VLOOKUP($A19,Staging!$B:$E,4,FALSE)=0,0,SUMIF(Tier1!$2:$2,DATE(IF(L$2>9,YEAR(Tier1!$D$2),YEAR(Tier1!$D$2)+1),L$2,1),Tier1!20:20)/VLOOKUP(DATE(IF(L$2>9,YEAR(Tier1!$D$2),YEAR(Tier1!$D$2)+1),L$2,1),Init!$I:$L,2,FALSE))*Init!$B$7 -> 0 | M19: =+IF(VLOOKUP($A19,Staging!$B:$E,4,FALSE)=0,0,SUMIF(Tier1!$2:$2,DATE(IF(M$2>9,YEAR(Tier1!$D$2),YEAR(Tier1!$D$2)+1),M$2,1),Tier1!20:20)/VLOOKUP(DATE(IF(M$2>9,YEAR(Tier1!$D$2),YEAR(Tier1!$D$2)+1),M$2,1),Init!$I:$L,2,FALSE))*Init!$B$7 -> 0 | N19: =+IF(VLOOKUP($A19,Staging!$B:$E,4,FALSE)=0,0,SUMIF(Tier1!$2:$2,DATE(IF(N$2>9,YEAR(Tier1!$D$2),YEAR(Tier1!$D$2)+1),N$2,1),Tier1!20:20)/VLOOKUP(DATE(IF(N$2>9,YEAR(Tier1!$D$2),YEAR(Tier1!$D$2)+1),N$2,1),Init!$I:$L,2,FALSE))*Init!$B$7 -> 0 | O19: 10067 | P19: 1 | Q19: 1 | R19: 1 | S19: 1 | T19: 1 | U19: 1 | V19: 1 | W19: 1 | X19: 1 | Y19: 1 | Z19: 1 | AA19: 1
A20: 10068 | B20: Chewelah, City of | C20: =+IF(VLOOKUP($A20,Staging!$B:$E,4,FALSE)=0,0,SUMIF(Tier1!$2:$2,DATE(IF(C$2>9,YEAR(Tier1!$D$2),YEAR(Tier1!$D$2)+1),C$2,1),Tier1!21:21)/VLOOKUP(DATE(IF(C$2>9,YEAR(Tier1!$D$2),YEAR(Tier1!$D$2)+1),C$2,1),Init!$I:$L,2,FALSE))*Init!$B$7 -> 0 | D20: =+IF(VLOOKUP($A20,Staging!$B:$E,4,FALSE)=0,0,SUMIF(Tier1!$2:$2,DATE(IF(D$2>9,YEAR(Tier1!$D$2),YEAR(Tier1!$D$2)+1),D$2,1),Tier1!21:21)/VLOOKUP(DATE(IF(D$2>9,YEAR(Tier1!$D$2),YEAR(Tier1!$D$2)+1),D$2,1),Init!$I:$L,2,FALSE))*Init!$B$7 -> 0 | E20: =+IF(VLOOKUP($A20,Staging!$B:$E,4,FALSE)=0,0,SUMIF(Tier1!$2:$2,DATE(IF(E$2>9,YEAR(Tier1!$D$2),YEAR(Tier1!$D$2)+1),E$2,1),Tier1!21:21)/VLOOKUP(DATE(IF(E$2>9,YEAR(Tier1!$D$2),YEAR(Tier1!$D$2)+1),E$2,1),Init!$I:$L,2,FALSE))*Init!$B$7 -> 0 | F20: =+IF(VLOOKUP($A20,Staging!$B:$E,4,FALSE)=0,0,SUMIF(Tier1!$2:$2,DATE(IF(F$2>9,YEAR(Tier1!$D$2),YEAR(Tier1!$D$2)+1),F$2,1),Tier1!21:21)/VLOOKUP(DATE(IF(F$2>9,YEAR(Tier1!$D$2),YEAR(Tier1!$D$2)+1),F$2,1),Init!$I:$L,2,FALSE))*Init!$B$7 -> 0 | G20: =+IF(VLOOKUP($A20,Staging!$B:$E,4,FALSE)=0,0,SUMIF(Tier1!$2:$2,DATE(IF(G$2>9,YEAR(Tier1!$D$2),YEAR(Tier1!$D$2)+1),G$2,1),Tier1!21:21)/VLOOKUP(DATE(IF(G$2>9,YEAR(Tier1!$D$2),YEAR(Tier1!$D$2)+1),G$2,1),Init!$I:$L,2,FALSE))*Init!$B$7 -> 0 | H20: =+IF(VLOOKUP($A20,Staging!$B:$E,4,FALSE)=0,0,SUMIF(Tier1!$2:$2,DATE(IF(H$2>9,YEAR(Tier1!$D$2),YEAR(Tier1!$D$2)+1),H$2,1),Tier1!21:21)/VLOOKUP(DATE(IF(H$2>9,YEAR(Tier1!$D$2),YEAR(Tier1!$D$2)+1),H$2,1),Init!$I:$L,2,FALSE))*Init!$B$7 -> 0 | I20: =+IF(VLOOKUP($A20,Staging!$B:$E,4,FALSE)=0,0,SUMIF(Tier1!$2:$2,DATE(IF(I$2>9,YEAR(Tier1!$D$2),YEAR(Tier1!$D$2)+1),I$2,1),Tier1!21:21)/VLOOKUP(DATE(IF(I$2>9,YEAR(Tier1!$D$2),YEAR(Tier1!$D$2)+1),I$2,1),Init!$I:$L,2,FALSE))*Init!$B$7 -> 0 | J20: =+IF(VLOOKUP($A20,Staging!$B:$E,4,FALSE)=0,0,SUMIF(Tier1!$2:$2,DATE(IF(J$2>9,YEAR(Tier1!$D$2),YEAR(Tier1!$D$2)+1),J$2,1),Tier1!21:21)/VLOOKUP(DATE(IF(J$2>9,YEAR(Tier1!$D$2),YEAR(Tier1!$D$2)+1),J$2,1),Init!$I:$L,2,FALSE))*Init!$B$7 -> 0 | K20: =+IF(VLOOKUP($A20,Staging!$B:$E,4,FALSE)=0,0,SUMIF(Tier1!$2:$2,DATE(IF(K$2>9,YEAR(Tier1!$D$2),YEAR(Tier1!$D$2)+1),K$2,1),Tier1!21:21)/VLOOKUP(DATE(IF(K$2>9,YEAR(Tier1!$D$2),YEAR(Tier1!$D$2)+1),K$2,1),Init!$I:$L,2,FALSE))*Init!$B$7 -> 0 | L20: =+IF(VLOOKUP($A20,Staging!$B:$E,4,FALSE)=0,0,SUMIF(Tier1!$2:$2,DATE(IF(L$2>9,YEAR(Tier1!$D$2),YEAR(Tier1!$D$2)+1),L$2,1),Tier1!21:21)/VLOOKUP(DATE(IF(L$2>9,YEAR(Tier1!$D$2),YEAR(Tier1!$D$2)+1),L$2,1),Init!$I:$L,2,FALSE))*Init!$B$7 -> 0 | M20: =+IF(VLOOKUP($A20,Staging!$B:$E,4,FALSE)=0,0,SUMIF(Tier1!$2:$2,DATE(IF(M$2>9,YEAR(Tier1!$D$2),YEAR(Tier1!$D$2)+1),M$2,1),Tier1!21:21)/VLOOKUP(DATE(IF(M$2>9,YEAR(Tier1!$D$2),YEAR(Tier1!$D$2)+1),M$2,1),Init!$I:$L,2,FALSE))*Init!$B$7 -> 0 | N20: =+IF(VLOOKUP($A20,Staging!$B:$E,4,FALSE)=0,0,SUMIF(Tier1!$2:$2,DATE(IF(N$2>9,YEAR(Tier1!$D$2),YEAR(Tier1!$D$2)+1),N$2,1),Tier1!21:21)/VLOOKUP(DATE(IF(N$2>9,YEAR(Tier1!$D$2),YEAR(Tier1!$D$2)+1),N$2,1),Init!$I:$L,2,FALSE))*Init!$B$7 -> 0 | O20: 10068 | P20: 1 | Q20: 1 | R20: 1 | S20: 1 | T20: 1 | U20: 1 | V20: 1 | W20: 1 | X20: 1 | Y20: 1 | Z20: 1 | AA20: 1
A21: 10070 | B21: Declo, City of | C21: =+IF(VLOOKUP($A21,Staging!$B:$E,4,FALSE)=0,0,SUMIF(Tier1!$2:$2,DATE(IF(C$2>9,YEAR(Tier1!$D$2),YEAR(Tier1!$D$2)+1),C$2,1),Tier1!22:22)/VLOOKUP(DATE(IF(C$2>9,YEAR(Tier1!$D$2),YEAR(Tier1!$D$2)+1),C$2,1),Init!$I:$L,2,FALSE))*Init!$B$7 -> 0 | D21: =+IF(VLOOKUP($A21,Staging!$B:$E,4,FALSE)=0,0,SUMIF(Tier1!$2:$2,DATE(IF(D$2>9,YEAR(Tier1!$D$2),YEAR(Tier1!$D$2)+1),D$2,1),Tier1!22:22)/VLOOKUP(DATE(IF(D$2>9,YEAR(Tier1!$D$2),YEAR(Tier1!$D$2)+1),D$2,1),Init!$I:$L,2,FALSE))*Init!$B$7 -> 0 | E21: =+IF(VLOOKUP($A21,Staging!$B:$E,4,FALSE)=0,0,SUMIF(Tier1!$2:$2,DATE(IF(E$2>9,YEAR(Tier1!$D$2),YEAR(Tier1!$D$2)+1),E$2,1),Tier1!22:22)/VLOOKUP(DATE(IF(E$2>9,YEAR(Tier1!$D$2),YEAR(Tier1!$D$2)+1),E$2,1),Init!$I:$L,2,FALSE))*Init!$B$7 -> 0 | F21: =+IF(VLOOKUP($A21,Staging!$B:$E,4,FALSE)=0,0,SUMIF(Tier1!$2:$2,DATE(IF(F$2>9,YEAR(Tier1!$D$2),YEAR(Tier1!$D$2)+1),F$2,1),Tier1!22:22)/VLOOKUP(DATE(IF(F$2>9,YEAR(Tier1!$D$2),YEAR(Tier1!$D$2)+1),F$2,1),Init!$I:$L,2,FALSE))*Init!$B$7 -> 0 | G21: =+IF(VLOOKUP($A21,Staging!$B:$E,4,FALSE)=0,0,SUMIF(Tier1!$2:$2,DATE(IF(G$2>9,YEAR(Tier1!$D$2),YEAR(Tier1!$D$2)+1),G$2,1),Tier1!22:22)/VLOOKUP(DATE(IF(G$2>9,YEAR(Tier1!$D$2),YEAR(Tier1!$D$2)+1),G$2,1),Init!$I:$L,2,FALSE))*Init!$B$7 -> 0 | H21: =+IF(VLOOKUP($A21,Staging!$B:$E,4,FALSE)=0,0,SUMIF(Tier1!$2:$2,DATE(IF(H$2>9,YEAR(Tier1!$D$2),YEAR(Tier1!$D$2)+1),H$2,1),Tier1!22:22)/VLOOKUP(DATE(IF(H$2>9,YEAR(Tier1!$D$2),YEAR(Tier1!$D$2)+1),H$2,1),Init!$I:$L,2,FALSE))*Init!$B$7 -> 0 | I21: =+IF(VLOOKUP($A21,Staging!$B:$E,4,FALSE)=0,0,SUMIF(Tier1!$2:$2,DATE(IF(I$2>9,YEAR(Tier1!$D$2),YEAR(Tier1!$D$2)+1),I$2,1),Tier1!22:22)/VLOOKUP(DATE(IF(I$2>9,YEAR(Tier1!$D$2),YEAR(Tier1!$D$2)+1),I$2,1),Init!$I:$L,2,FALSE))*Init!$B$7 -> 0 | J21: =+IF(VLOOKUP($A21,Staging!$B:$E,4,FALSE)=0,0,SUMIF(Tier1!$2:$2,DATE(IF(J$2>9,YEAR(Tier1!$D$2),YEAR(Tier1!$D$2)+1),J$2,1),Tier1!22:22)/VLOOKUP(DATE(IF(J$2>9,YEAR(Tier1!$D$2),YEAR(Tier1!$D$2)+1),J$2,1),Init!$I:$L,2,FALSE))*Init!$B$7 -> 0 | K21: =+IF(VLOOKUP($A21,Staging!$B:$E,4,FALSE)=0,0,SUMIF(Tier1!$2:$2,DATE(IF(K$2>9,YEAR(Tier1!$D$2),YEAR(Tier1!$D$2)+1),K$2,1),Tier1!22:22)/VLOOKUP(DATE(IF(K$2>9,YEAR(Tier1!$D$2),YEAR(Tier1!$D$2)+1),K$2,1),Init!$I:$L,2,FALSE))*Init!$B$7 -> 0 | L21: =+IF(VLOOKUP($A21,Staging!$B:$E,4,FALSE)=0,0,SUMIF(Tier1!$2:$2,DATE(IF(L$2>9,YEAR(Tier1!$D$2),YEAR(Tier1!$D$2)+1),L$2,1),Tier1!22:22)/VLOOKUP(DATE(IF(L$2>9,YEAR(Tier1!$D$2),YEAR(Tier1!$D$2)+1),L$2,1),Init!$I:$L,2,FALSE))*Init!$B$7 -> 0 | M21: =+IF(VLOOKUP($A21,Staging!$B:$E,4,FALSE)=0,0,SUMIF(Tier1!$2:$2,DATE(IF(M$2>9,YEAR(Tier1!$D$2),YEAR(Tier1!$D$2)+1),M$2,1),Tier1!22:22)/VLOOKUP(DATE(IF(M$2>9,YEAR(Tier1!$D$2),YEAR(Tier1!$D$2)+1),M$2,1),Init!$I:$L,2,FALSE))*Init!$B$7 -> 0 | N21: =+IF(VLOOKUP($A21,Staging!$B:$E,4,FALSE)=0,0,SUMIF(Tier1!$2:$2,DATE(IF(N$2>9,YEAR(Tier1!$D$2),YEAR(Tier1!$D$2)+1),N$2,1),Tier1!22:22)/VLOOKUP(DATE(IF(N$2>9,YEAR(Tier1!$D$2),YEAR(Tier1!$D$2)+1),N$2,1),Init!$I:$L,2,FALSE))*Init!$B$7 -> 0 | O21: 10070 | P21: 1 | Q21: 1 | R21: 1 | S21: 1 | T21: 1 | U21: 1 | V21: 1 | W21: 1 | X21: 1 | Y21: 1 | Z21: 1 | AA21: 1
A22: 10071 | B22: Drain, City of | C22: =+IF(VLOOKUP($A22,Staging!$B:$E,4,FALSE)=0,0,SUMIF(Tier1!$2:$2,DATE(IF(C$2>9,YEAR(Tier1!$D$2),YEAR(Tier1!$D$2)+1),C$2,1),Tier1!23:23)/VLOOKUP(DATE(IF(C$2>9,YEAR(Tier1!$D$2),YEAR(Tier1!$D$2)+1),C$2,1),Init!$I:$L,2,FALSE))*Init!$B$7 -> 0 | D22: =+IF(VLOOKUP($A22,Staging!$B:$E,4,FALSE)=0,0,SUMIF(Tier1!$2:$2,DATE(IF(D$2>9,YEAR(Tier1!$D$2),YEAR(Tier1!$D$2)+1),D$2,1),Tier1!23:23)/VLOOKUP(DATE(IF(D$2>9,YEAR(Tier1!$D$2),YEAR(Tier1!$D$2)+1),D$2,1),Init!$I:$L,2,FALSE))*Init!$B$7 -> 0 | E22: =+IF(VLOOKUP($A22,Staging!$B:$E,4,FALSE)=0,0,SUMIF(Tier1!$2:$2,DATE(IF(E$2>9,YEAR(Tier1!$D$2),YEAR(Tier1!$D$2)+1),E$2,1),Tier1!23:23)/VLOOKUP(DATE(IF(E$2>9,YEAR(Tier1!$D$2),YEAR(Tier1!$D$2)+1),E$2,1),Init!$I:$L,2,FALSE))*Init!$B$7 -> 0 | F22: =+IF(VLOOKUP($A22,Staging!$B:$E,4,FALSE)=0,0,SUMIF(Tier1!$2:$2,DATE(IF(F$2>9,YEAR(Tier1!$D$2),YEAR(Tier1!$D$2)+1),F$2,1),Tier1!23:23)/VLOOKUP(DATE(IF(F$2>9,YEAR(Tier1!$D$2),YEAR(Tier1!$D$2)+1),F$2,1),Init!$I:$L,2,FALSE))*Init!$B$7 -> 0 | G22: =+IF(VLOOKUP($A22,Staging!$B:$E,4,FALSE)=0,0,SUMIF(Tier1!$2:$2,DATE(IF(G$2>9,YEAR(Tier1!$D$2),YEAR(Tier1!$D$2)+1),G$2,1),Tier1!23:23)/VLOOKUP(DATE(IF(G$2>9,YEAR(Tier1!$D$2),YEAR(Tier1!$D$2)+1),G$2,1),Init!$I:$L,2,FALSE))*Init!$B$7 -> 0 | H22: =+IF(VLOOKUP($A22,Staging!$B:$E,4,FALSE)=0,0,SUMIF(Tier1!$2:$2,DATE(IF(H$2>9,YEAR(Tier1!$D$2),YEAR(Tier1!$D$2)+1),H$2,1),Tier1!23:23)/VLOOKUP(DATE(IF(H$2>9,YEAR(Tier1!$D$2),YEAR(Tier1!$D$2)+1),H$2,1),Init!$I:$L,2,FALSE))*Init!$B$7 -> 0 | I22: =+IF(VLOOKUP($A22,Staging!$B:$E,4,FALSE)=0,0,SUMIF(Tier1!$2:$2,DATE(IF(I$2>9,YEAR(Tier1!$D$2),YEAR(Tier1!$D$2)+1),I$2,1),Tier1!23:23)/VLOOKUP(DATE(IF(I$2>9,YEAR(Tier1!$D$2),YEAR(Tier1!$D$2)+1),I$2,1),Init!$I:$L,2,FALSE))*Init!$B$7 -> 0 | J22: =+IF(VLOOKUP($A22,Staging!$B:$E,4,FALSE)=0,0,SUMIF(Tier1!$2:$2,DATE(IF(J$2>9,YEAR(Tier1!$D$2),YEAR(Tier1!$D$2)+1),J$2,1),Tier1!23:23)/VLOOKUP(DATE(IF(J$2>9,YEAR(Tier1!$D$2),YEAR(Tier1!$D$2)+1),J$2,1),Init!$I:$L,2,FALSE))*Init!$B$7 -> 0 | K22: =+IF(VLOOKUP($A22,Staging!$B:$E,4,FALSE)=0,0,SUMIF(Tier1!$2:$2,DATE(IF(K$2>9,YEAR(Tier1!$D$2),YEAR(Tier1!$D$2)+1),K$2,1),Tier1!23:23)/VLOOKUP(DATE(IF(K$2>9,YEAR(Tier1!$D$2),YEAR(Tier1!$D$2)+1),K$2,1),Init!$I:$L,2,FALSE))*Init!$B$7 -> 0 | L22: =+IF(VLOOKUP($A22,Staging!$B:$E,4,FALSE)=0,0,SUMIF(Tier1!$2:$2,DATE(IF(L$2>9,YEAR(Tier1!$D$2),YEAR(Tier1!$D$2)+1),L$2,1),Tier1!23:23)/VLOOKUP(DATE(IF(L$2>9,YEAR(Tier1!$D$2),YEAR(Tier1!$D$2)+1),L$2,1),Init!$I:$L,2,FALSE))*Init!$B$7 -> 0 | M22: =+IF(VLOOKUP($A22,Staging!$B:$E,4,FALSE)=0,0,SUMIF(Tier1!$2:$2,DATE(IF(M$2>9,YEAR(Tier1!$D$2),YEAR(Tier1!$D$2)+1),M$2,1),Tier1!23:23)/VLOOKUP(DATE(IF(M$2>9,YEAR(Tier1!$D$2),YEAR(Tier1!$D$2)+1),M$2,1),Init!$I:$L,2,FALSE))*Init!$B$7 -> 0 | N22: =+IF(VLOOKUP($A22,Staging!$B:$E,4,FALSE)=0,0,SUMIF(Tier1!$2:$2,DATE(IF(N$2>9,YEAR(Tier1!$D$2),YEAR(Tier1!$D$2)+1),N$2,1),Tier1!23:23)/VLOOKUP(DATE(IF(N$2>9,YEAR(Tier1!$D$2),YEAR(Tier1!$D$2)+1),N$2,1),Init!$I:$L,2,FALSE))*Init!$B$7 -> 0 | O22: 10071 | P22: 1 | Q22: 1 | R22: 1 | S22: 1 | T22: 1 | U22: 1 | V22: 1 | W22: 1 | X22: 1 | Y22: 1 | Z22: 1 | AA22: 1
A23: 10072 | B23: Ellensburg, City of | C23: =+IF(VLOOKUP($A23,Staging!$B:$E,4,FALSE)=0,0,SUMIF(Tier1!$2:$2,DATE(IF(C$2>9,YEAR(Tier1!$D$2),YEAR(Tier1!$D$2)+1),C$2,1),Tier1!24:24)/VLOOKUP(DATE(IF(C$2>9,YEAR(Tier1!$D$2),YEAR(Tier1!$D$2)+1),C$2,1),Init!$I:$L,2,FALSE))*Init!$B$7 -> 0 | D23: =+IF(VLOOKUP($A23,Staging!$B:$E,4,FALSE)=0,0,SUMIF(Tier1!$2:$2,DATE(IF(D$2>9,YEAR(Tier1!$D$2),YEAR(Tier1!$D$2)+1),D$2,1),Tier1!24:24)/VLOOKUP(DATE(IF(D$2>9,YEAR(Tier1!$D$2),YEAR(Tier1!$D$2)+1),D$2,1),Init!$I:$L,2,FALSE))*Init!$B$7 -> 0 | E23: =+IF(VLOOKUP($A23,Staging!$B:$E,4,FALSE)=0,0,SUMIF(Tier1!$2:$2,DATE(IF(E$2>9,YEAR(Tier1!$D$2),YEAR(Tier1!$D$2)+1),E$2,1),Tier1!24:24)/VLOOKUP(DATE(IF(E$2>9,YEAR(Tier1!$D$2),YEAR(Tier1!$D$2)+1),E$2,1),Init!$I:$L,2,FALSE))*Init!$B$7 -> 0 | F23: =+IF(VLOOKUP($A23,Staging!$B:$E,4,FALSE)=0,0,SUMIF(Tier1!$2:$2,DATE(IF(F$2>9,YEAR(Tier1!$D$2),YEAR(Tier1!$D$2)+1),F$2,1),Tier1!24:24)/VLOOKUP(DATE(IF(F$2>9,YEAR(Tier1!$D$2),YEAR(Tier1!$D$2)+1),F$2,1),Init!$I:$L,2,FALSE))*Init!$B$7 -> 0 | G23: =+IF(VLOOKUP($A23,Staging!$B:$E,4,FALSE)=0,0,SUMIF(Tier1!$2:$2,DATE(IF(G$2>9,YEAR(Tier1!$D$2),YEAR(Tier1!$D$2)+1),G$2,1),Tier1!24:24)/VLOOKUP(DATE(IF(G$2>9,YEAR(Tier1!$D$2),YEAR(Tier1!$D$2)+1),G$2,1),Init!$I:$L,2,FALSE))*Init!$B$7 -> 0 | H23: =+IF(VLOOKUP($A23,Staging!$B:$E,4,FALSE)=0,0,SUMIF(Tier1!$2:$2,DATE(IF(H$2>9,YEAR(Tier1!$D$2),YEAR(Tier1!$D$2)+1),H$2,1),Tier1!24:24)/VLOOKUP(DATE(IF(H$2>9,YEAR(Tier1!$D$2),YEAR(Tier1!$D$2)+1),H$2,1),Init!$I:$L,2,FALSE))*Init!$B$7 -> 0 | I23: =+IF(VLOOKUP($A23,Staging!$B:$E,4,FALSE)=0,0,SUMIF(Tier1!$2:$2,DATE(IF(I$2>9,YEAR(Tier1!$D$2),YEAR(Tier1!$D$2)+1),I$2,1),Tier1!24:24)/VLOOKUP(DATE(IF(I$2>9,YEAR(Tier1!$D$2),YEAR(Tier1!$D$2)+1),I$2,1),Init!$I:$L,2,FALSE))*Init!$B$7 -> 0 | J23: =+IF(VLOOKUP($A23,Staging!$B:$E,4,FALSE)=0,0,SUMIF(Tier1!$2:$2,DATE(IF(J$2>9,YEAR(Tier1!$D$2),YEAR(Tier1!$D$2)+1),J$2,1),Tier1!24:24)/VLOOKUP(DATE(IF(J$2>9,YEAR(Tier1!$D$2),YEAR(Tier1!$D$2)+1),J$2,1),Init!$I:$L,2,FALSE))*Init!$B$7 -> 0 | K23: =+IF(VLOOKUP($A23,Staging!$B:$E,4,FALSE)=0,0,SUMIF(Tier1!$2:$2,DATE(IF(K$2>9,YEAR(Tier1!$D$2),YEAR(Tier1!$D$2)+1),K$2,1),Tier1!24:24)/VLOOKUP(DATE(IF(K$2>9,YEAR(Tier1!$D$2),YEAR(Tier1!$D$2)+1),K$2,1),Init!$I:$L,2,FALSE))*Init!$B$7 -> 0 | L23: =+IF(VLOOKUP($A23,Staging!$B:$E,4,FALSE)=0,0,SUMIF(Tier1!$2:$2,DATE(IF(L$2>9,YEAR(Tier1!$D$2),YEAR(Tier1!$D$2)+1),L$2,1),Tier1!24:24)/VLOOKUP(DATE(IF(L$2>9,YEAR(Tier1!$D$2),YEAR(Tier1!$D$2)+1),L$2,1),Init!$I:$L,2,FALSE))*Init!$B$7 -> 0 | M23: =+IF(VLOOKUP($A23,Staging!$B:$E,4,FALSE)=0,0,SUMIF(Tier1!$2:$2,DATE(IF(M$2>9,YEAR(Tier1!$D$2),YEAR(Tier1!$D$2)+1),M$2,1),Tier1!24:24)/VLOOKUP(DATE(IF(M$2>9,YEAR(Tier1!$D$2),YEAR(Tier1!$D$2)+1),M$2,1),Init!$I:$L,2,FALSE))*Init!$B$7 -> 0 | N23: =+IF(VLOOKUP($A23,Staging!$B:$E,4,FALSE)=0,0,SUMIF(Tier1!$2:$2,DATE(IF(N$2>9,YEAR(Tier1!$D$2),YEAR(Tier1!$D$2)+1),N$2,1),Tier1!24:24)/VLOOKUP(DATE(IF(N$2>9,YEAR(Tier1!$D$2),YEAR(Tier1!$D$2)+1),N$2,1),Init!$I:$L,2,FALSE))*Init!$B$7 -> 0 | O23: 10072 | P23: 1 | Q23: 1 | R23: 1 | S23: 1 | T23: 1 | U23: 1 | V23: 1 | W23: 1 | X23: 1 | Y23: 1 | Z23: 1 | AA23: 1
A24: 10074 | B24: Forest Grove, City of | C24: =+IF(VLOOKUP($A24,Staging!$B:$E,4,FALSE)=0,0,SUMIF(Tier1!$2:$2,DATE(IF(C$2>9,YEAR(Tier1!$D$2),YEAR(Tier1!$D$2)+1),C$2,1),Tier1!25:25)/VLOOKUP(DATE(IF(C$2>9,YEAR(Tier1!$D$2),YEAR(Tier1!$D$2)+1),C$2,1),Init!$I:$L,2,FALSE))*Init!$B$7 -> 0 | D24: =+IF(VLOOKUP($A24,Staging!$B:$E,4,FALSE)=0,0,SUMIF(Tier1!$2:$2,DATE(IF(D$2>9,YEAR(Tier1!$D$2),YEAR(Tier1!$D$2)+1),D$2,1),Tier1!25:25)/VLOOKUP(DATE(IF(D$2>9,YEAR(Tier1!$D$2),YEAR(Tier1!$D$2)+1),D$2,1),Init!$I:$L,2,FALSE))*Init!$B$7 -> 0 | E24: =+IF(VLOOKUP($A24,Staging!$B:$E,4,FALSE)=0,0,SUMIF(Tier1!$2:$2,DATE(IF(E$2>9,YEAR(Tier1!$D$2),YEAR(Tier1!$D$2)+1),E$2,1),Tier1!25:25)/VLOOKUP(DATE(IF(E$2>9,YEAR(Tier1!$D$2),YEAR(Tier1!$D$2)+1),E$2,1),Init!$I:$L,2,FALSE))*Init!$B$7 -> 0 | F24: =+IF(VLOOKUP($A24,Staging!$B:$E,4,FALSE)=0,0,SUMIF(Tier1!$2:$2,DATE(IF(F$2>9,YEAR(Tier1!$D$2),YEAR(Tier1!$D$2)+1),F$2,1),Tier1!25:25)/VLOOKUP(DATE(IF(F$2>9,YEAR(Tier1!$D$2),YEAR(Tier1!$D$2)+1),F$2,1),Init!$I:$L,2,FALSE))*Init!$B$7 -> 0 | G24: =+IF(VLOOKUP($A24,Staging!$B:$E,4,FALSE)=0,0,SUMIF(Tier1!$2:$2,DATE(IF(G$2>9,YEAR(Tier1!$D$2),YEAR(Tier1!$D$2)+1),G$2,1),Tier1!25:25)/VLOOKUP(DATE(IF(G$2>9,YEAR(Tier1!$D$2),YEAR(Tier1!$D$2)+1),G$2,1),Init!$I:$L,2,FALSE))*Init!$B$7 -> 0 | H24: =+IF(VLOOKUP($A24,Staging!$B:$E,4,FALSE)=0,0,SUMIF(Tier1!$2:$2,DATE(IF(H$2>9,YEAR(Tier1!$D$2),YEAR(Tier1!$D$2)+1),H$2,1),Tier1!25:25)/VLOOKUP(DATE(IF(H$2>9,YEAR(Tier1!$D$2),YEAR(Tier1!$D$2)+1),H$2,1),Init!$I:$L,2,FALSE))*Init!$B$7 -> 0 | I24: =+IF(VLOOKUP($A24,Staging!$B:$E,4,FALSE)=0,0,SUMIF(Tier1!$2:$2,DATE(IF(I$2>9,YEAR(Tier1!$D$2),YEAR(Tier1!$D$2)+1),I$2,1),Tier1!25:25)/VLOOKUP(DATE(IF(I$2>9,YEAR(Tier1!$D$2),YEAR(Tier1!$D$2)+1),I$2,1),Init!$I:$L,2,FALSE))*Init!$B$7 -> 0 | J24: =+IF(VLOOKUP($A24,Staging!$B:$E,4,FALSE)=0,0,SUMIF(Tier1!$2:$2,DATE(IF(J$2>9,YEAR(Tier1!$D$2),YEAR(Tier1!$D$2)+1),J$2,1),Tier1!25:25)/VLOOKUP(DATE(IF(J$2>9,YEAR(Tier1!$D$2),YEAR(Tier1!$D$2)+1),J$2,1),Init!$I:$L,2,FALSE))*Init!$B$7 -> 0 | K24: =+IF(VLOOKUP($A24,Staging!$B:$E,4,FALSE)=0,0,SUMIF(Tier1!$2:$2,DATE(IF(K$2>9,YEAR(Tier1!$D$2),YEAR(Tier1!$D$2)+1),K$2,1),Tier1!25:25)/VLOOKUP(DATE(IF(K$2>9,YEAR(Tier1!$D$2),YEAR(Tier1!$D$2)+1),K$2,1),Init!$I:$L,2,FALSE))*Init!$B$7 -> 0 | L24: =+IF(VLOOKUP($A24,Staging!$B:$E,4,FALSE)=0,0,SUMIF(Tier1!$2:$2,DATE(IF(L$2>9,YEAR(Tier1!$D$2),YEAR(Tier1!$D$2)+1),L$2,1),Tier1!25:25)/VLOOKUP(DATE(IF(L$2>9,YEAR(Tier1!$D$2),YEAR(Tier1!$D$2)+1),L$2,1),Init!$I:$L,2,FALSE))*Init!$B$7 -> 0 | M24: =+IF(VLOOKUP($A24,Staging!$B:$E,4,FALSE)=0,0,SUMIF(Tier1!$2:$2,DATE(IF(M$2>9,YEAR(Tier1!$D$2),YEAR(Tier1!$D$2)+1),M$2,1),Tier1!25:25)/VLOOKUP(DATE(IF(M$2>9,YEAR(Tier1!$D$2),YEAR(Tier1!$D$2)+1),M$2,1),Init!$I:$L,2,FALSE))*Init!$B$7 -> 0 | N24: =+IF(VLOOKUP($A24,Staging!$B:$E,4,FALSE)=0,0,SUMIF(Tier1!$2:$2,DATE(IF(N$2>9,YEAR(Tier1!$D$2),YEAR(Tier1!$D$2)+1),N$2,1),Tier1!25:25)/VLOOKUP(DATE(IF(N$2>9,YEAR(Tier1!$D$2),YEAR(Tier1!$D$2)+1),N$2,1),Init!$I:$L,2,FALSE))*Init!$B$7 -> 0 | O24: 10074 | P24: 1 | Q24: 1 | R24: 1 | S24: 1 | T24: 1 | U24: 1 | V24: 1 | W24: 1 | X24: 1 | Y24: 1 | Z24: 1 | AA24: 1
A25: 10076 | B25: Heyburn, City of | C25: =+IF(VLOOKUP($A25,Staging!$B:$E,4,FALSE)=0,0,SUMIF(Tier1!$2:$2,DATE(IF(C$2>9,YEAR(Tier1!$D$2),YEAR(Tier1!$D$2)+1),C$2,1),Tier1!26:26)/VLOOKUP(DATE(IF(C$2>9,YEAR(Tier1!$D$2),YEAR(Tier1!$D$2)+1),C$2,1),Init!$I:$L,2,FALSE))*Init!$B$7 -> 0 | D25: =+IF(VLOOKUP($A25,Staging!$B:$E,4,FALSE)=0,0,SUMIF(Tier1!$2:$2,DATE(IF(D$2>9,YEAR(Tier1!$D$2),YEAR(Tier1!$D$2)+1),D$2,1),Tier1!26:26)/VLOOKUP(DATE(IF(D$2>9,YEAR(Tier1!$D$2),YEAR(Tier1!$D$2)+1),D$2,1),Init!$I:$L,2,FALSE))*Init!$B$7 -> 0 | E25: =+IF(VLOOKUP($A25,Staging!$B:$E,4,FALSE)=0,0,SUMIF(Tier1!$2:$2,DATE(IF(E$2>9,YEAR(Tier1!$D$2),YEAR(Tier1!$D$2)+1),E$2,1),Tier1!26:26)/VLOOKUP(DATE(IF(E$2>9,YEAR(Tier1!$D$2),YEAR(Tier1!$D$2)+1),E$2,1),Init!$I:$L,2,FALSE))*Init!$B$7 -> 0 | F25: =+IF(VLOOKUP($A25,Staging!$B:$E,4,FALSE)=0,0,SUMIF(Tier1!$2:$2,DATE(IF(F$2>9,YEAR(Tier1!$D$2),YEAR(Tier1!$D$2)+1),F$2,1),Tier1!26:26)/VLOOKUP(DATE(IF(F$2>9,YEAR(Tier1!$D$2),YEAR(Tier1!$D$2)+1),F$2,1),Init!$I:$L,2,FALSE))*Init!$B$7 -> 0 | G25: =+IF(VLOOKUP($A25,Staging!$B:$E,4,FALSE)=0,0,SUMIF(Tier1!$2:$2,DATE(IF(G$2>9,YEAR(Tier1!$D$2),YEAR(Tier1!$D$2)+1),G$2,1),Tier1!26:26)/VLOOKUP(DATE(IF(G$2>9,YEAR(Tier1!$D$2),YEAR(Tier1!$D$2)+1),G$2,1),Init!$I:$L,2,FALSE))*Init!$B$7 -> 0 | H25: =+IF(VLOOKUP($A25,Staging!$B:$E,4,FALSE)=0,0,SUMIF(Tier1!$2:$2,DATE(IF(H$2>9,YEAR(Tier1!$D$2),YEAR(Tier1!$D$2)+1),H$2,1),Tier1!26:26)/VLOOKUP(DATE(IF(H$2>9,YEAR(Tier1!$D$2),YEAR(Tier1!$D$2)+1),H$2,1),Init!$I:$L,2,FALSE))*Init!$B$7 -> 0 | I25: =+IF(VLOOKUP($A25,Staging!$B:$E,4,FALSE)=0,0,SUMIF(Tier1!$2:$2,DATE(IF(I$2>9,YEAR(Tier1!$D$2),YEAR(Tier1!$D$2)+1),I$2,1),Tier1!26:26)/VLOOKUP(DATE(IF(I$2>9,YEAR(Tier1!$D$2),YEAR(Tier1!$D$2)+1),I$2,1),Init!$I:$L,2,FALSE))*Init!$B$7 -> 0 | J25: =+IF(VLOOKUP($A25,Staging!$B:$E,4,FALSE)=0,0,SUMIF(Tier1!$2:$2,DATE(IF(J$2>9,YEAR(Tier1!$D$2),YEAR(Tier1!$D$2)+1),J$2,1),Tier1!26:26)/VLOOKUP(DATE(IF(J$2>9,YEAR(Tier1!$D$2),YEAR(Tier1!$D$2)+1),J$2,1),Init!$I:$L,2,FALSE))*Init!$B$7 -> 0 | K25: =+IF(VLOOKUP($A25,Staging!$B:$E,4,FALSE)=0,0,SUMIF(Tier1!$2:$2,DATE(IF(K$2>9,YEAR(Tier1!$D$2),YEAR(Tier1!$D$2)+1),K$2,1),Tier1!26:26)/VLOOKUP(DATE(IF(K$2>9,YEAR(Tier1!$D$2),YEAR(Tier1!$D$2)+1),K$2,1),Init!$I:$L,2,FALSE))*Init!$B$7 -> 0 | L25: =+IF(VLOOKUP($A25,Staging!$B:$E,4,FALSE)=0,0,SUMIF(Tier1!$2:$2,DATE(IF(L$2>9,YEAR(Tier1!$D$2),YEAR(Tier1!$D$2)+1),L$2,1),Tier1!26:26)/VLOOKUP(DATE(IF(L$2>9,YEAR(Tier1!$D$2),YEAR(Tier1!$D$2)+1),L$2,1),Init!$I:$L,2,FALSE))*Init!$B$7 -> 0 | M25: =+IF(VLOOKUP($A25,Staging!$B:$E,4,FALSE)=0,0,SUMIF(Tier1!$2:$2,DATE(IF(M$2>9,YEAR(Tier1!$D$2),YEAR(Tier1!$D$2)+1),M$2,1),Tier1!26:26)/VLOOKUP(DATE(IF(M$2>9,YEAR(Tier1!$D$2),YEAR(Tier1!$D$2)+1),M$2,1),Init!$I:$L,2,FALSE))*Init!$B$7 -> 0 | N25: =+IF(VLOOKUP($A25,Staging!$B:$E,4,FALSE)=0,0,SUMIF(Tier1!$2:$2,DATE(IF(N$2>9,YEAR(Tier1!$D$2),YEAR(Tier1!$D$2)+1),N$2,1),Tier1!26:26)/VLOOKUP(DATE(IF(N$2>9,YEAR(Tier1!$D$2),YEAR(Tier1!$D$2)+1),N$2,1),Init!$I:$L,2,FALSE))*Init!$B$7 -> 0 | O25: 10076 | P25: 1 | Q25: 1 | R25: 1 | S25: 1 | T25: 1 | U25: 1 | V25: 1 | W25: 1 | X25: 1 | Y25: 1 | Z25: 1 | AA25: 1
A26: 10078 | B26: McCleary, City of | C26: =+IF(VLOOKUP($A26,Staging!$B:$E,4,FALSE)=0,0,SUMIF(Tier1!$2:$2,DATE(IF(C$2>9,YEAR(Tier1!$D$2),YEAR(Tier1!$D$2)+1),C$2,1),Tier1!27:27)/VLOOKUP(DATE(IF(C$2>9,YEAR(Tier1!$D$2),YEAR(Tier1!$D$2)+1),C$2,1),Init!$I:$L,2,FALSE))*Init!$B$7 -> 0 | D26: =+IF(VLOOKUP($A26,Staging!$B:$E,4,FALSE)=0,0,SUMIF(Tier1!$2:$2,DATE(IF(D$2>9,YEAR(Tier1!$D$2),YEAR(Tier1!$D$2)+1),D$2,1),Tier1!27:27)/VLOOKUP(DATE(IF(D$2>9,YEAR(Tier1!$D$2),YEAR(Tier1!$D$2)+1),D$2,1),Init!$I:$L,2,FALSE))*Init!$B$7 -> 0 | E26: =+IF(VLOOKUP($A26,Staging!$B:$E,4,FALSE)=0,0,SUMIF(Tier1!$2:$2,DATE(IF(E$2>9,YEAR(Tier1!$D$2),YEAR(Tier1!$D$2)+1),E$2,1),Tier1!27:27)/VLOOKUP(DATE(IF(E$2>9,YEAR(Tier1!$D$2),YEAR(Tier1!$D$2)+1),E$2,1),Init!$I:$L,2,FALSE))*Init!$B$7 -> 0 | F26: =+IF(VLOOKUP($A26,Staging!$B:$E,4,FALSE)=0,0,SUMIF(Tier1!$2:$2,DATE(IF(F$2>9,YEAR(Tier1!$D$2),YEAR(Tier1!$D$2)+1),F$2,1),Tier1!27:27)/VLOOKUP(DATE(IF(F$2>9,YEAR(Tier1!$D$2),YEAR(Tier1!$D$2)+1),F$2,1),Init!$I:$L,2,FALSE))*Init!$B$7 -> 0 | G26: =+IF(VLOOKUP($A26,Staging!$B:$E,4,FALSE)=0,0,SUMIF(Tier1!$2:$2,DATE(IF(G$2>9,YEAR(Tier1!$D$2),YEAR(Tier1!$D$2)+1),G$2,1),Tier1!27:27)/VLOOKUP(DATE(IF(G$2>9,YEAR(Tier1!$D$2),YEAR(Tier1!$D$2)+1),G$2,1),Init!$I:$L,2,FALSE))*Init!$B$7 -> 0 | H26: =+IF(VLOOKUP($A26,Staging!$B:$E,4,FALSE)=0,0,SUMIF(Tier1!$2:$2,DATE(IF(H$2>9,YEAR(Tier1!$D$2),YEAR(Tier1!$D$2)+1),H$2,1),Tier1!27:27)/VLOOKUP(DATE(IF(H$2>9,YEAR(Tier1!$D$2),YEAR(Tier1!$D$2)+1),H$2,1),Init!$I:$L,2,FALSE))*Init!$B$7 -> 0 | I26: =+IF(VLOOKUP($A26,Staging!$B:$E,4,FALSE)=0,0,SUMIF(Tier1!$2:$2,DATE(IF(I$2>9,YEAR(Tier1!$D$2),YEAR(Tier1!$D$2)+1),I$2,1),Tier1!27:27)/VLOOKUP(DATE(IF(I$2>9,YEAR(Tier1!$D$2),YEAR(Tier1!$D$2)+1),I$2,1),Init!$I:$L,2,FALSE))*Init!$B$7 -> 0 | J26: =+IF(VLOOKUP($A26,Staging!$B:$E,4,FALSE)=0,0,SUMIF(Tier1!$2:$2,DATE(IF(J$2>9,YEAR(Tier1!$D$2),YEAR(Tier1!$D$2)+1),J$2,1),Tier1!27:27)/VLOOKUP(DATE(IF(J$2>9,YEAR(Tier1!$D$2),YEAR(Tier1!$D$2)+1),J$2,1),Init!$I:$L,2,FALSE))*Init!$B$7 -> 0 | K26: =+IF(VLOOKUP($A26,Staging!$B:$E,4,FALSE)=0,0,SUMIF(Tier1!$2:$2,DATE(IF(K$2>9,YEAR(Tier1!$D$2),YEAR(Tier1!$D$2)+1),K$2,1),Tier1!27:27)/VLOOKUP(DATE(IF(K$2>9,YEAR(Tier1!$D$2),YEAR(Tier1!$D$2)+1),K$2,1),Init!$I:$L,2,FALSE))*Init!$B$7 -> 0 | L26: =+IF(VLOOKUP($A26,Staging!$B:$E,4,FALSE)=0,0,SUMIF(Tier1!$2:$2,DATE(IF(L$2>9,YEAR(Tier1!$D$2),YEAR(Tier1!$D$2)+1),L$2,1),Tier1!27:27)/VLOOKUP(DATE(IF(L$2>9,YEAR(Tier1!$D$2),YEAR(Tier1!$D$2)+1),L$2,1),Init!$I:$L,2,FALSE))*Init!$B$7 -> 0 | M26: =+IF(VLOOKUP($A26,Staging!$B:$E,4,FALSE)=0,0,SUMIF(Tier1!$2:$2,DATE(IF(M$2>9,YEAR(Tier1!$D$2),YEAR(Tier1!$D$2)+1),M$2,1),Tier1!27:27)/VLOOKUP(DATE(IF(M$2>9,YEAR(Tier1!$D$2),YEAR(Tier1!$D$2)+1),M$2,1),Init!$I:$L,2,FALSE))*Init!$B$7 -> 0 | N26: =+IF(VLOOKUP($A26,Staging!$B:$E,4,FALSE)=0,0,SUMIF(Tier1!$2:$2,DATE(IF(N$2>9,YEAR(Tier1!$D$2),YEAR(Tier1!$D$2)+1),N$2,1),Tier1!27:27)/VLOOKUP(DATE(IF(N$2>9,YEAR(Tier1!$D$2),YEAR(Tier1!$D$2)+1),N$2,1),Init!$I:$L,2,FALSE))*Init!$B$7 -> 0 | O26: 10078 | P26: 1 | Q26: 1 | R26: 1 | S26: 1 | T26: 1 | U26: 1 | V26: 1 | W26: 1 | X26: 1 | Y26: 1 | Z26: 1 | AA26: 1
A27: 10079 | B27: McMinnville, City of | C27: =+IF(VLOOKUP($A27,Staging!$B:$E,4,FALSE)=0,0,SUMIF(Tier1!$2:$2,DATE(IF(C$2>9,YEAR(Tier1!$D$2),YEAR(Tier1!$D$2)+1),C$2,1),Tier1!28:28)/VLOOKUP(DATE(IF(C$2>9,YEAR(Tier1!$D$2),YEAR(Tier1!$D$2)+1),C$2,1),Init!$I:$L,2,FALSE))*Init!$B$7 -> 0 | D27: =+IF(VLOOKUP($A27,Staging!$B:$E,4,FALSE)=0,0,SUMIF(Tier1!$2:$2,DATE(IF(D$2>9,YEAR(Tier1!$D$2),YEAR(Tier1!$D$2)+1),D$2,1),Tier1!28:28)/VLOOKUP(DATE(IF(D$2>9,YEAR(Tier1!$D$2),YEAR(Tier1!$D$2)+1),D$2,1),Init!$I:$L,2,FALSE))*Init!$B$7 -> 0 | E27: =+IF(VLOOKUP($A27,Staging!$B:$E,4,FALSE)=0,0,SUMIF(Tier1!$2:$2,DATE(IF(E$2>9,YEAR(Tier1!$D$2),YEAR(Tier1!$D$2)+1),E$2,1),Tier1!28:28)/VLOOKUP(DATE(IF(E$2>9,YEAR(Tier1!$D$2),YEAR(Tier1!$D$2)+1),E$2,1),Init!$I:$L,2,FALSE))*Init!$B$7 -> 0 | F27: =+IF(VLOOKUP($A27,Staging!$B:$E,4,FALSE)=0,0,SUMIF(Tier1!$2:$2,DATE(IF(F$2>9,YEAR(Tier1!$D$2),YEAR(Tier1!$D$2)+1),F$2,1),Tier1!28:28)/VLOOKUP(DATE(IF(F$2>9,YEAR(Tier1!$D$2),YEAR(Tier1!$D$2)+1),F$2,1),Init!$I:$L,2,FALSE))*Init!$B$7 -> 0 | G27: =+IF(VLOOKUP($A27,Staging!$B:$E,4,FALSE)=0,0,SUMIF(Tier1!$2:$2,DATE(IF(G$2>9,YEAR(Tier1!$D$2),YEAR(Tier1!$D$2)+1),G$2,1),Tier1!28:28)/VLOOKUP(DATE(IF(G$2>9,YEAR(Tier1!$D$2),YEAR(Tier1!$D$2)+1),G$2,1),Init!$I:$L,2,FALSE))*Init!$B$7 -> 0 | H27: =+IF(VLOOKUP($A27,Staging!$B:$E,4,FALSE)=0,0,SUMIF(Tier1!$2:$2,DATE(IF(H$2>9,YEAR(Tier1!$D$2),YEAR(Tier1!$D$2)+1),H$2,1),Tier1!28:28)/VLOOKUP(DATE(IF(H$2>9,YEAR(Tier1!$D$2),YEAR(Tier1!$D$2)+1),H$2,1),Init!$I:$L,2,FALSE))*Init!$B$7 -> 0 | I27: =+IF(VLOOKUP($A27,Staging!$B:$E,4,FALSE)=0,0,SUMIF(Tier1!$2:$2,DATE(IF(I$2>9,YEAR(Tier1!$D$2),YEAR(Tier1!$D$2)+1),I$2,1),Tier1!28:28)/VLOOKUP(DATE(IF(I$2>9,YEAR(Tier1!$D$2),YEAR(Tier1!$D$2)+1),I$2,1),Init!$I:$L,2,FALSE))*Init!$B$7 -> 0 | J27: =+IF(VLOOKUP($A27,Staging!$B:$E,4,FALSE)=0,0,SUMIF(Tier1!$2:$2,DATE(IF(J$2>9,YEAR(Tier1!$D$2),YEAR(Tier1!$D$2)+1),J$2,1),Tier1!28:28)/VLOOKUP(DATE(IF(J$2>9,YEAR(Tier1!$D$2),YEAR(Tier1!$D$2)+1),J$2,1),Init!$I:$L,2,FALSE))*Init!$B$7 -> 0 | K27: =+IF(VLOOKUP($A27,Staging!$B:$E,4,FALSE)=0,0,SUMIF(Tier1!$2:$2,DATE(IF(K$2>9,YEAR(Tier1!$D$2),YEAR(Tier1!$D$2)+1),K$2,1),Tier1!28:28)/VLOOKUP(DATE(IF(K$2>9,YEAR(Tier1!$D$2),YEAR(Tier1!$D$2)+1),K$2,1),Init!$I:$L,2,FALSE))*Init!$B$7 -> 0 | L27: =+IF(VLOOKUP($A27,Staging!$B:$E,4,FALSE)=0,0,SUMIF(Tier1!$2:$2,DATE(IF(L$2>9,YEAR(Tier1!$D$2),YEAR(Tier1!$D$2)+1),L$2,1),Tier1!28:28)/VLOOKUP(DATE(IF(L$2>9,YEAR(Tier1!$D$2),YEAR(Tier1!$D$2)+1),L$2,1),Init!$I:$L,2,FALSE))*Init!$B$7 -> 0 | M27: =+IF(VLOOKUP($A27,Staging!$B:$E,4,FALSE)=0,0,SUMIF(Tier1!$2:$2,DATE(IF(M$2>9,YEAR(Tier1!$D$2),YEAR(Tier1!$D$2)+1),M$2,1),Tier1!28:28)/VLOOKUP(DATE(IF(M$2>9,YEAR(Tier1!$D$2),YEAR(Tier1!$D$2)+1),M$2,1),Init!$I:$L,2,FALSE))*Init!$B$7 -> 0 | N27: =+IF(VLOOKUP($A27,Staging!$B:$E,4,FALSE)=0,0,SUMIF(Tier1!$2:$2,DATE(IF(N$2>9,YEAR(Tier1!$D$2),YEAR(Tier1!$D$2)+1),N$2,1),Tier1!28:28)/VLOOKUP(DATE(IF(N$2>9,YEAR(Tier1!$D$2),YEAR(Tier1!$D$2)+1),N$2,1),Init!$I:$L,2,FALSE))*Init!$B$7 -> 0 | O27: 10079 | P27: 1 | Q27: 1 | R27: 1 | S27: 1 | T27: 1 | U27: 1 | V27: 1 | W27: 1 | X27: 1 | Y27: 1 | Z27: 1 | AA27: 1
A28: 10080 | B28: Milton, Town of | C28: =+IF(VLOOKUP($A28,Staging!$B:$E,4,FALSE)=0,0,SUMIF(Tier1!$2:$2,DATE(IF(C$2>9,YEAR(Tier1!$D$2),YEAR(Tier1!$D$2)+1),C$2,1),Tier1!29:29)/VLOOKUP(DATE(IF(C$2>9,YEAR(Tier1!$D$2),YEAR(Tier1!$D$2)+1),C$2,1),Init!$I:$L,2,FALSE))*Init!$B$7 -> 0 | D28: =+IF(VLOOKUP($A28,Staging!$B:$E,4,FALSE)=0,0,SUMIF(Tier1!$2:$2,DATE(IF(D$2>9,YEAR(Tier1!$D$2),YEAR(Tier1!$D$2)+1),D$2,1),Tier1!29:29)/VLOOKUP(DATE(IF(D$2>9,YEAR(Tier1!$D$2),YEAR(Tier1!$D$2)+1),D$2,1),Init!$I:$L,2,FALSE))*Init!$B$7 -> 0 | E28: =+IF(VLOOKUP($A28,Staging!$B:$E,4,FALSE)=0,0,SUMIF(Tier1!$2:$2,DATE(IF(E$2>9,YEAR(Tier1!$D$2),YEAR(Tier1!$D$2)+1),E$2,1),Tier1!29:29)/VLOOKUP(DATE(IF(E$2>9,YEAR(Tier1!$D$2),YEAR(Tier1!$D$2)+1),E$2,1),Init!$I:$L,2,FALSE))*Init!$B$7 -> 0 | F28: =+IF(VLOOKUP($A28,Staging!$B:$E,4,FALSE)=0,0,SUMIF(Tier1!$2:$2,DATE(IF(F$2>9,YEAR(Tier1!$D$2),YEAR(Tier1!$D$2)+1),F$2,1),Tier1!29:29)/VLOOKUP(DATE(IF(F$2>9,YEAR(Tier1!$D$2),YEAR(Tier1!$D$2)+1),F$2,1),Init!$I:$L,2,FALSE))*Init!$B$7 -> 0 | G28: =+IF(VLOOKUP($A28,Staging!$B:$E,4,FALSE)=0,0,SUMIF(Tier1!$2:$2,DATE(IF(G$2>9,YEAR(Tier1!$D$2),YEAR(Tier1!$D$2)+1),G$2,1),Tier1!29:29)/VLOOKUP(DATE(IF(G$2>9,YEAR(Tier1!$D$2),YEAR(Tier1!$D$2)+1),G$2,1),Init!$I:$L,2,FALSE))*Init!$B$7 -> 0 | H28: =+IF(VLOOKUP($A28,Staging!$B:$E,4,FALSE)=0,0,SUMIF(Tier1!$2:$2,DATE(IF(H$2>9,YEAR(Tier1!$D$2),YEAR(Tier1!$D$2)+1),H$2,1),Tier1!29:29)/VLOOKUP(DATE(IF(H$2>9,YEAR(Tier1!$D$2),YEAR(Tier1!$D$2)+1),H$2,1),Init!$I:$L,2,FALSE))*Init!$B$7 -> 0 | I28: =+IF(VLOOKUP($A28,Staging!$B:$E,4,FALSE)=0,0,SUMIF(Tier1!$2:$2,DATE(IF(I$2>9,YEAR(Tier1!$D$2),YEAR(Tier1!$D$2)+1),I$2,1),Tier1!29:29)/VLOOKUP(DATE(IF(I$2>9,YEAR(Tier1!$D$2),YEAR(Tier1!$D$2)+1),I$2,1),Init!$I:$L,2,FALSE))*Init!$B$7 -> 0 | J28: =+IF(VLOOKUP($A28,Staging!$B:$E,4,FALSE)=0,0,SUMIF(Tier1!$2:$2,DATE(IF(J$2>9,YEAR(Tier1!$D$2),YEAR(Tier1!$D$2)+1),J$2,1),Tier1!29:29)/VLOOKUP(DATE(IF(J$2>9,YEAR(Tier1!$D$2),YEAR(Tier1!$D$2)+1),J$2,1),Init!$I:$L,2,FALSE))*Init!$B$7 -> 0 | K28: =+IF(VLOOKUP($A28,Staging!$B:$E,4,FALSE)=0,0,SUMIF(Tier1!$2:$2,DATE(IF(K$2>9,YEAR(Tier1!$D$2),YEAR(Tier1!$D$2)+1),K$2,1),Tier1!29:29)/VLOOKUP(DATE(IF(K$2>9,YEAR(Tier1!$D$2),YEAR(Tier1!$D$2)+1),K$2,1),Init!$I:$L,2,FALSE))*Init!$B$7 -> 0 | L28: =+IF(VLOOKUP($A28,Staging!$B:$E,4,FALSE)=0,0,SUMIF(Tier1!$2:$2,DATE(IF(L$2>9,YEAR(Tier1!$D$2),YEAR(Tier1!$D$2)+1),L$2,1),Tier1!29:29)/VLOOKUP(DATE(IF(L$2>9,YEAR(Tier1!$D$2),YEAR(Tier1!$D$2)+1),L$2,1),Init!$I:$L,2,FALSE))*Init!$B$7 -> 0 | M28: =+IF(VLOOKUP($A28,Staging!$B:$E,4,FALSE)=0,0,SUMIF(Tier1!$2:$2,DATE(IF(M$2>9,YEAR(Tier1!$D$2),YEAR(Tier1!$D$2)+1),M$2,1),Tier1!29:29)/VLOOKUP(DATE(IF(M$2>9,YEAR(Tier1!$D$2),YEAR(Tier1!$D$2)+1),M$2,1),Init!$I:$L,2,FALSE))*Init!$B$7 -> 0 | N28: =+IF(VLOOKUP($A28,Staging!$B:$E,4,FALSE)=0,0,SUMIF(Tier1!$2:$2,DATE(IF(N$2>9,YEAR(Tier1!$D$2),YEAR(Tier1!$D$2)+1),N$2,1),Tier1!29:29)/VLOOKUP(DATE(IF(N$2>9,YEAR(Tier1!$D$2),YEAR(Tier1!$D$2)+1),N$2,1),Init!$I:$L,2,FALSE))*Init!$B$7 -> 0 | O28: 10080 | P28: 1 | Q28: 1 | R28: 1 | S28: 1 | T28: 1 | U28: 1 | V28: 1 | W28: 1 | X28: 1 | Y28: 1 | Z28: 1 | AA28: 1
A29: 10081 | B29: Milton-Freewater, City of | C29: =+IF(VLOOKUP($A29,Staging!$B:$E,4,FALSE)=0,0,SUMIF(Tier1!$2:$2,DATE(IF(C$2>9,YEAR(Tier1!$D$2),YEAR(Tier1!$D$2)+1),C$2,1),Tier1!30:30)/VLOOKUP(DATE(IF(C$2>9,YEAR(Tier1!$D$2),YEAR(Tier1!$D$2)+1),C$2,1),Init!$I:$L,2,FALSE))*Init!$B$7 -> 0 | D29: =+IF(VLOOKUP($A29,Staging!$B:$E,4,FALSE)=0,0,SUMIF(Tier1!$2:$2,DATE(IF(D$2>9,YEAR(Tier1!$D$2),YEAR(Tier1!$D$2)+1),D$2,1),Tier1!30:30)/VLOOKUP(DATE(IF(D$2>9,YEAR(Tier1!$D$2),YEAR(Tier1!$D$2)+1),D$2,1),Init!$I:$L,2,FALSE))*Init!$B$7 -> 0 | E29: =+IF(VLOOKUP($A29,Staging!$B:$E,4,FALSE)=0,0,SUMIF(Tier1!$2:$2,DATE(IF(E$2>9,YEAR(Tier1!$D$2),YEAR(Tier1!$D$2)+1),E$2,1),Tier1!30:30)/VLOOKUP(DATE(IF(E$2>9,YEAR(Tier1!$D$2),YEAR(Tier1!$D$2)+1),E$2,1),Init!$I:$L,2,FALSE))*Init!$B$7 -> 0 | F29: =+IF(VLOOKUP($A29,Staging!$B:$E,4,FALSE)=0,0,SUMIF(Tier1!$2:$2,DATE(IF(F$2>9,YEAR(Tier1!$D$2),YEAR(Tier1!$D$2)+1),F$2,1),Tier1!30:30)/VLOOKUP(DATE(IF(F$2>9,YEAR(Tier1!$D$2),YEAR(Tier1!$D$2)+1),F$2,1),Init!$I:$L,2,FALSE))*Init!$B$7 -> 0 | G29: =+IF(VLOOKUP($A29,Staging!$B:$E,4,FALSE)=0,0,SUMIF(Tier1!$2:$2,DATE(IF(G$2>9,YEAR(Tier1!$D$2),YEAR(Tier1!$D$2)+1),G$2,1),Tier1!30:30)/VLOOKUP(DATE(IF(G$2>9,YEAR(Tier1!$D$2),YEAR(Tier1!$D$2)+1),G$2,1),Init!$I:$L,2,FALSE))*Init!$B$7 -> 0 | H29: =+IF(VLOOKUP($A29,Staging!$B:$E,4,FALSE)=0,0,SUMIF(Tier1!$2:$2,DATE(IF(H$2>9,YEAR(Tier1!$D$2),YEAR(Tier1!$D$2)+1),H$2,1),Tier1!30:30)/VLOOKUP(DATE(IF(H$2>9,YEAR(Tier1!$D$2),YEAR(Tier1!$D$2)+1),H$2,1),Init!$I:$L,2,FALSE))*Init!$B$7 -> 0 | I29: =+IF(VLOOKUP($A29,Staging!$B:$E,4,FALSE)=0,0,SUMIF(Tier1!$2:$2,DATE(IF(I$2>9,YEAR(Tier1!$D$2),YEAR(Tier1!$D$2)+1),I$2,1),Tier1!30:30)/VLOOKUP(DATE(IF(I$2>9,YEAR(Tier1!$D$2),YEAR(Tier1!$D$2)+1),I$2,1),Init!$I:$L,2,FALSE))*Init!$B$7 -> 0 | J29: =+IF(VLOOKUP($A29,Staging!$B:$E,4,FALSE)=0,0,SUMIF(Tier1!$2:$2,DATE(IF(J$2>9,YEAR(Tier1!$D$2),YEAR(Tier1!$D$2)+1),J$2,1),Tier1!30:30)/VLOOKUP(DATE(IF(J$2>9,YEAR(Tier1!$D$2),YEAR(Tier1!$D$2)+1),J$2,1),Init!$I:$L,2,FALSE))*Init!$B$7 -> 0 | K29: =+IF(VLOOKUP($A29,Staging!$B:$E,4,FALSE)=0,0,SUMIF(Tier1!$2:$2,DATE(IF(K$2>9,YEAR(Tier1!$D$2),YEAR(Tier1!$D$2)+1),K$2,1),Tier1!30:30)/VLOOKUP(DATE(IF(K$2>9,YEAR(Tier1!$D$2),YEAR(Tier1!$D$2)+1),K$2,1),Init!$I:$L,2,FALSE))*Init!$B$7 -> 0 | L29: =+IF(VLOOKUP($A29,Staging!$B:$E,4,FALSE)=0,0,SUMIF(Tier1!$2:$2,DATE(IF(L$2>9,YEAR(Tier1!$D$2),YEAR(Tier1!$D$2)+1),L$2,1),Tier1!30:30)/VLOOKUP(DATE(IF(L$2>9,YEAR(Tier1!$D$2),YEAR(Tier1!$D$2)+1),L$2,1),Init!$I:$L,2,FALSE))*Init!$B$7 -> 0 | M29: =+IF(VLOOKUP($A29,Staging!$B:$E,4,FALSE)=0,0,SUMIF(Tier1!$2:$2,DATE(IF(M$2>9,YEAR(Tier1!$D$2),YEAR(Tier1!$D$2)+1),M$2,1),Tier1!30:30)/VLOOKUP(DATE(IF(M$2>9,YEAR(Tier1!$D$2),YEAR(Tier1!$D$2)+1),M$2,1),Init!$I:$L,2,FALSE))*Init!$B$7 -> 0 | N29: =+IF(VLOOKUP($A29,Staging!$B:$E,4,FALSE)=0,0,SUMIF(Tier1!$2:$2,DATE(IF(N$2>9,YEAR(Tier1!$D$2),YEAR(Tier1!$D$2)+1),N$2,1),Tier1!30:30)/VLOOKUP(DATE(IF(N$2>9,YEAR(Tier1!$D$2),YEAR(Tier1!$D$2)+1),N$2,1),Init!$I:$L,2,FALSE))*Init!$B$7 -> 0 | O29: 10081 | P29: 1 | Q29: 1 | R29: 1 | S29: 1 | T29: 1 | U29: 1 | V29: 1 | W29: 1 | X29: 1 | Y29: 1 | Z29: 1 | AA29: 1
A30: 10082 | B30: Minidoka, City of | C30: =+IF(VLOOKUP($A30,Staging!$B:$E,4,FALSE)=0,0,SUMIF(Tier1!$2:$2,DATE(IF(C$2>9,YEAR(Tier1!$D$2),YEAR(Tier1!$D$2)+1),C$2,1),Tier1!31:31)/VLOOKUP(DATE(IF(C$2>9,YEAR(Tier1!$D$2),YEAR(Tier1!$D$2)+1),C$2,1),Init!$I:$L,2,FALSE))*Init!$B$7 -> 0 | D30: =+IF(VLOOKUP($A30,Staging!$B:$E,4,FALSE)=0,0,SUMIF(Tier1!$2:$2,DATE(IF(D$2>9,YEAR(Tier1!$D$2),YEAR(Tier1!$D$2)+1),D$2,1),Tier1!31:31)/VLOOKUP(DATE(IF(D$2>9,YEAR(Tier1!$D$2),YEAR(Tier1!$D$2)+1),D$2,1),Init!$I:$L,2,FALSE))*Init!$B$7 -> 0 | E30: =+IF(VLOOKUP($A30,Staging!$B:$E,4,FALSE)=0,0,SUMIF(Tier1!$2:$2,DATE(IF(E$2>9,YEAR(Tier1!$D$2),YEAR(Tier1!$D$2)+1),E$2,1),Tier1!31:31)/VLOOKUP(DATE(IF(E$2>9,YEAR(Tier1!$D$2),YEAR(Tier1!$D$2)+1),E$2,1),Init!$I:$L,2,FALSE))*Init!$B$7 -> 0 | F30: =+IF(VLOOKUP($A30,Staging!$B:$E,4,FALSE)=0,0,SUMIF(Tier1!$2:$2,DATE(IF(F$2>9,YEAR(Tier1!$D$2),YEAR(Tier1!$D$2)+1),F$2,1),Tier1!31:31)/VLOOKUP(DATE(IF(F$2>9,YEAR(Tier1!$D$2),YEAR(Tier1!$D$2)+1),F$2,1),Init!$I:$L,2,FALSE))*Init!$B$7 -> 0 | G30: =+IF(VLOOKUP($A30,Staging!$B:$E,4,FALSE)=0,0,SUMIF(Tier1!$2:$2,DATE(IF(G$2>9,YEAR(Tier1!$D$2),YEAR(Tier1!$D$2)+1),G$2,1),Tier1!31:31)/VLOOKUP(DATE(IF(G$2>9,YEAR(Tier1!$D$2),YEAR(Tier1!$D$2)+1),G$2,1),Init!$I:$L,2,FALSE))*Init!$B$7 -> 0 | H30: =+IF(VLOOKUP($A30,Staging!$B:$E,4,FALSE)=0,0,SUMIF(Tier1!$2:$2,DATE(IF(H$2>9,YEAR(Tier1!$D$2),YEAR(Tier1!$D$2)+1),H$2,1),Tier1!31:31)/VLOOKUP(DATE(IF(H$2>9,YEAR(Tier1!$D$2),YEAR(Tier1!$D$2)+1),H$2,1),Init!$I:$L,2,FALSE))*Init!$B$7 -> 0 | I30: =+IF(VLOOKUP($A30,Staging!$B:$E,4,FALSE)=0,0,SUMIF(Tier1!$2:$2,DATE(IF(I$2>9,YEAR(Tier1!$D$2),YEAR(Tier1!$D$2)+1),I$2,1),Tier1!31:31)/VLOOKUP(DATE(IF(I$2>9,YEAR(Tier1!$D$2),YEAR(Tier1!$D$2)+1),I$2,1),Init!$I:$L,2,FALSE))*Init!$B$7 -> 0 | J30: =+IF(VLOOKUP($A30,Staging!$B:$E,4,FALSE)=0,0,SUMIF(Tier1!$2:$2,DATE(IF(J$2>9,YEAR(Tier1!$D$2),YEAR(Tier1!$D$2)+1),J$2,1),Tier1!31:31)/VLOOKUP(DATE(IF(J$2>9,YEAR(Tier1!$D$2),YEAR(Tier1!$D$2)+1),J$2,1),Init!$I:$L,2,FALSE))*Init!$B$7 -> 0 | K30: =+IF(VLOOKUP($A30,Staging!$B:$E,4,FALSE)=0,0,SUMIF(Tier1!$2:$2,DATE(IF(K$2>9,YEAR(Tier1!$D$2),YEAR(Tier1!$D$2)+1),K$2,1),Tier1!31:31)/VLOOKUP(DATE(IF(K$2>9,YEAR(Tier1!$D$2),YEAR(Tier1!$D$2)+1),K$2,1),Init!$I:$L,2,FALSE))*Init!$B$7 -> 0 | L30: =+IF(VLOOKUP($A30,Staging!$B:$E,4,FALSE)=0,0,SUMIF(Tier1!$2:$2,DATE(IF(L$2>9,YEAR(Tier1!$D$2),YEAR(Tier1!$D$2)+1),L$2,1),Tier1!31:31)/VLOOKUP(DATE(IF(L$2>9,YEAR(Tier1!$D$2),YEAR(Tier1!$D$2)+1),L$2,1),Init!$I:$L,2,FALSE))*Init!$B$7 -> 0 | M30: =+IF(VLOOKUP($A30,Staging!$B:$E,4,FALSE)=0,0,SUMIF(Tier1!$2:$2,DATE(IF(M$2>9,YEAR(Tier1!$D$2),YEAR(Tier1!$D$2)+1),M$2,1),Tier1!31:31)/VLOOKUP(DATE(IF(M$2>9,YEAR(Tier1!$D$2),YEAR(Tier1!$D$2)+1),M$2,1),Init!$I:$L,2,FALSE))*Init!$B$7 -> 0 | N30: =+IF(VLOOKUP($A30,Staging!$B:$E,4,FALSE)=0,0,SUMIF(Tier1!$2:$2,DATE(IF(N$2>9,YEAR(Tier1!$D$2),YEAR(Tier1!$D$2)+1),N$2,1),Tier1!31:31)/VLOOKUP(DATE(IF(N$2>9,YEAR(Tier1!$D$2),YEAR(Tier1!$D$2)+1),N$2,1),Init!$I:$L,2,FALSE))*Init!$B$7 -> 0 | O30: 10082 | P30: 1 | Q30: 1 | R30: 1 | S30: 1 | T30: 1 | U30: 1 | V30: 1 | W30: 1 | X30: 1 | Y30: 1 | Z30: 1 | AA30: 1
A31: 10083 | B31: Monmouth, City of | C31: =+IF(VLOOKUP($A31,Staging!$B:$E,4,FALSE)=0,0,SUMIF(Tier1!$2:$2,DATE(IF(C$2>9,YEAR(Tier1!$D$2),YEAR(Tier1!$D$2)+1),C$2,1),Tier1!32:32)/VLOOKUP(DATE(IF(C$2>9,YEAR(Tier1!$D$2),YEAR(Tier1!$D$2)+1),C$2,1),Init!$I:$L,2,FALSE))*Init!$B$7 -> 0 | D31: =+IF(VLOOKUP($A31,Staging!$B:$E,4,FALSE)=0,0,SUMIF(Tier1!$2:$2,DATE(IF(D$2>9,YEAR(Tier1!$D$2),YEAR(Tier1!$D$2)+1),D$2,1),Tier1!32:32)/VLOOKUP(DATE(IF(D$2>9,YEAR(Tier1!$D$2),YEAR(Tier1!$D$2)+1),D$2,1),Init!$I:$L,2,FALSE))*Init!$B$7 -> 0 | E31: =+IF(VLOOKUP($A31,Staging!$B:$E,4,FALSE)=0,0,SUMIF(Tier1!$2:$2,DATE(IF(E$2>9,YEAR(Tier1!$D$2),YEAR(Tier1!$D$2)+1),E$2,1),Tier1!32:32)/VLOOKUP(DATE(IF(E$2>9,YEAR(Tier1!$D$2),YEAR(Tier1!$D$2)+1),E$2,1),Init!$I:$L,2,FALSE))*Init!$B$7 -> 0 | F31: =+IF(VLOOKUP($A31,Staging!$B:$E,4,FALSE)=0,0,SUMIF(Tier1!$2:$2,DATE(IF(F$2>9,YEAR(Tier1!$D$2),YEAR(Tier1!$D$2)+1),F$2,1),Tier1!32:32)/VLOOKUP(DATE(IF(F$2>9,YEAR(Tier1!$D$2),YEAR(Tier1!$D$2)+1),F$2,1),Init!$I:$L,2,FALSE))*Init!$B$7 -> 0 | G31: =+IF(VLOOKUP($A31,Staging!$B:$E,4,FALSE)=0,0,SUMIF(Tier1!$2:$2,DATE(IF(G$2>9,YEAR(Tier1!$D$2),YEAR(Tier1!$D$2)+1),G$2,1),Tier1!32:32)/VLOOKUP(DATE(IF(G$2>9,YEAR(Tier1!$D$2),YEAR(Tier1!$D$2)+1),G$2,1),Init!$I:$L,2,FALSE))*Init!$B$7 -> 0 | H31: =+IF(VLOOKUP($A31,Staging!$B:$E,4,FALSE)=0,0,SUMIF(Tier1!$2:$2,DATE(IF(H$2>9,YEAR(Tier1!$D$2),YEAR(Tier1!$D$2)+1),H$2,1),Tier1!32:32)/VLOOKUP(DATE(IF(H$2>9,YEAR(Tier1!$D$2),YEAR(Tier1!$D$2)+1),H$2,1),Init!$I:$L,2,FALSE))*Init!$B$7 -> 0 | I31: =+IF(VLOOKUP($A31,Staging!$B:$E,4,FALSE)=0,0,SUMIF(Tier1!$2:$2,DATE(IF(I$2>9,YEAR(Tier1!$D$2),YEAR(Tier1!$D$2)+1),I$2,1),Tier1!32:32)/VLOOKUP(DATE(IF(I$2>9,YEAR(Tier1!$D$2),YEAR(Tier1!$D$2)+1),I$2,1),Init!$I:$L,2,FALSE))*Init!$B$7 -> 0 | J31: =+IF(VLOOKUP($A31,Staging!$B:$E,4,FALSE)=0,0,SUMIF(Tier1!$2:$2,DATE(IF(J$2>9,YEAR(Tier1!$D$2),YEAR(Tier1!$D$2)+1),J$2,1),Tier1!32:32)/VLOOKUP(DATE(IF(J$2>9,YEAR(Tier1!$D$2),YEAR(Tier1!$D$2)+1),J$2,1),Init!$I:$L,2,FALSE))*Init!$B$7 -> 0 | K31: =+IF(VLOOKUP($A31,Staging!$B:$E,4,FALSE)=0,0,SUMIF(Tier1!$2:$2,DATE(IF(K$2>9,YEAR(Tier1!$D$2),YEAR(Tier1!$D$2)+1),K$2,1),Tier1!32:32)/VLOOKUP(DATE(IF(K$2>9,YEAR(Tier1!$D$2),YEAR(Tier1!$D$2)+1),K$2,1),Init!$I:$L,2,FALSE))*Init!$B$7 -> 0 | L31: =+IF(VLOOKUP($A31,Staging!$B:$E,4,FALSE)=0,0,SUMIF(Tier1!$2:$2,DATE(IF(L$2>9,YEAR(Tier1!$D$2),YEAR(Tier1!$D$2)+1),L$2,1),Tier1!32:32)/VLOOKUP(DATE(IF(L$2>9,YEAR(Tier1!$D$2),YEAR(Tier1!$D$2)+1),L$2,1),Init!$I:$L,2,FALSE))*Init!$B$7 -> 0 | M31: =+IF(VLOOKUP($A31,Staging!$B:$E,4,FALSE)=0,0,SUMIF(Tier1!$2:$2,DATE(IF(M$2>9,YEAR(Tier1!$D$2),YEAR(Tier1!$D$2)+1),M$2,1),Tier1!32:32)/VLOOKUP(DATE(IF(M$2>9,YEAR(Tier1!$D$2),YEAR(Tier1!$D$2)+1),M$2,1),Init!$I:$L,2,FALSE))*Init!$B$7 -> 0 | N31: =+IF(VLOOKUP($A31,Staging!$B:$E,4,FALSE)=0,0,SUMIF(Tier1!$2:$2,DATE(IF(N$2>9,YEAR(Tier1!$D$2),YEAR(Tier1!$D$2)+1),N$2,1),Tier1!32:32)/VLOOKUP(DATE(IF(N$2>9,YEAR(Tier1!$D$2),YEAR(Tier1!$D$2)+1),N$2,1),Init!$I:$L,2,FALSE))*Init!$B$7 -> 0 | O31: 10083 | P31: 1 | Q31: 1 | R31: 1 | S31: 1 | T31: 1 | U31: 1 | V31: 1 | W31: 1 | X31: 1 | Y31: 1 | Z31: 1 | AA31: 1
... 38 more rows

Sheet PLVS
B2: Peak Load Variance Service Inputs | I2: Calculation
I4: Date | J4: =DATE(StartYr-1,10,1) -> 2025-10-01 | K4: =+EOMONTH(J4,0)+1 -> 2025-11-01 | L4: =+EOMONTH(K4,0)+1 -> 2025-12-01 | M4: 2026-01-01 | N4: 2026-02-01 | O4: 2026-03-01 | P4: 2026-04-01 | Q4: 2026-05-01 | R4: 2026-06-01 | S4: 2026-07-01 | T4: 2026-08-01 | U4: 2026-09-01
I5: Month | J5: 10 | K5: 11 | L5: 12 | M5: 1 | N5: =+M5+1 -> 2 | O5: =+N5+1 -> 3 | P5: 4 | Q5: 5 | R5: 6 | S5: 7 | T5: 8 | U5: 9
I6: PRM | J6: 0 | K6: 0.216 | L6: 0.177 | M6: 0.19 | N6: 0.199 | O6: 0.269 | P6: 0 | Q6: 0 | R6: 0.165 | S6: 0.104 | T6: 0.103 | U6: 0.179
F7: Ave. | G7: 0.178 | I7: Demand Rate | J7: =+HLOOKUP(DATE(IF(J5>9,StartYr-1,StartYr),J$5,1),'Forecast Rates'!$W$5:$AH$6,2,FALSE) -> 5.99 | K7: =+HLOOKUP(DATE(IF(K5>9,StartYr-1,StartYr),K$5,1),'Forecast Rates'!$W$5:$AH$6,2,FALSE) -> 4.68 | L7: =+HLOOKUP(DATE(IF(L5>9,StartYr-1,StartYr),L$5,1),'Forecast Rates'!$W$5:$AH$6,2,FALSE) -> 5.64 | M7: =+HLOOKUP(DATE(IF(M5>9,StartYr-1,StartYr),M$5,1),'Forecast Rates'!$W$5:$AH$6,2,FALSE) -> 5.16 | N7: =+HLOOKUP(DATE(IF(N5>9,StartYr-1,StartYr),N$5,1),'Forecast Rates'!$W$5:$AH$6,2,FALSE) -> 5.38 | O7: =+HLOOKUP(DATE(IF(O5>9,StartYr-1,StartYr),O$5,1),'Forecast Rates'!$W$5:$AH$6,2,FALSE) -> 3.46 | P7: =+HLOOKUP(DATE(IF(P5>9,StartYr-1,StartYr),P$5,1),'Forecast Rates'!$W$5:$AH$6,2,FALSE) -> 2.64 | Q7: =+HLOOKUP(DATE(IF(Q5>9,StartYr-1,StartYr),Q$5,1),'Forecast Rates'!$W$5:$AH$6,2,FALSE) -> 1.02 | R7: =+HLOOKUP(DATE(IF(R5>9,StartYr-1,StartYr),R$5,1),'Forecast Rates'!$W$5:$AH$6,2,FALSE) -> 1.79 | S7: =+HLOOKUP(DATE(IF(S5>9,StartYr-1,StartYr),S$5,1),'Forecast Rates'!$W$5:$AH$6,2,FALSE) -> 6.04 | T7: =+HLOOKUP(DATE(IF(T5>9,StartYr-1,StartYr),T$5,1),'Forecast Rates'!$W$5:$AH$6,2,FALSE) -> 6.37 | U7: =+HLOOKUP(DATE(IF(U5>9,StartYr-1,StartYr),U$5,1),'Forecast Rates'!$W$5:$AH$6,2,FALSE) -> 7.17
B8: Requirements Summary | I8: Hours | J8: =+VLOOKUP(J4,Init!$I:$J,2,FALSE) -> 744 | K8: =+VLOOKUP(K4,Init!$I:$J,2,FALSE) -> 721 | L8: =+VLOOKUP(L4,Init!$I:$J,2,FALSE) -> 744 | M8: =+VLOOKUP(M4,Init!$I:$J,2,FALSE) -> 744 | N8: =+VLOOKUP(N4,Init!$I:$J,2,FALSE) -> 672 | O8: =+VLOOKUP(O4,Init!$I:$J,2,FALSE) -> 743 | P8: =+VLOOKUP(P4,Init!$I:$J,2,FALSE) -> 720 | Q8: =+VLOOKUP(Q4,Init!$I:$J,2,FALSE) -> 744 | R8: =+VLOOKUP(R4,Init!$I:$J,2,FALSE) -> 720 | S8: =+VLOOKUP(S4,Init!$I:$J,2,FALSE) -> 744 | T8: =+VLOOKUP(T4,Init!$I:$J,2,FALSE) -> 744 | U8: =+VLOOKUP(U4,Init!$I:$J,2,FALSE) -> 720
C9: Season | D9: 2024-06-01 | E9: 2024-07-01 | F9: 2024-08-01 | G9: 2024-09-01 | I9: p50 load | J9: =(SUMPRODUCT((OFFSET(Tier1!$B$4:$B$137,0,MATCH(J4,Tier1!$B$2:$DT$2,0)-1)),Tier1!$DT$4:$DT$137)+SUMPRODUCT((OFFSET(Tier1!$B$4:$B$137,0,MATCH(J4,Tier1!$B$2:$DT$2,0))),Tier1!$DT$4:$DT$137))/J8+SUM(TOCA!$BP$4:$BP$138) -> 4722.423628 | K9: =(SUMPRODUCT((OFFSET(Tier1!$B$4:$B$137,0,MATCH(K4,Tier1!$B$2:$DT$2,0)-1)),Tier1!$DT$4:$DT$137)+SUMPRODUCT((OFFSET(Tier1!$B$4:$B$137,0,MATCH(K4,Tier1!$B$2:$DT$2,0))),Tier1!$DT$4:$DT$137))/K8+SUM(TOCA!$BP$4:$BP$138) -> 5343.40271 | L9: =(SUMPRODUCT((OFFSET(Tier1!$B$4:$B$137,0,MATCH(L4,Tier1!$B$2:$DT$2,0)-1)),Tier1!$DT$4:$DT$137)+SUMPRODUCT((OFFSET(Tier1!$B$4:$B$137,0,MATCH(L4,Tier1!$B$2:$DT$2,0))),Tier1!$DT$4:$DT$137))/L8+SUM(TOCA!$BP$4:$BP$138) -> 6329.397129 | M9: =(SUMPRODUCT((OFFSET(Tier1!$B$4:$B$137,0,MATCH(M4,Tier1!$B$2:$DT$2,0)-1)),Tier1!$DT$4:$DT$137)+SUMPRODUCT((OFFSET(Tier1!$B$4:$B$137,0,MATCH(M4,Tier1!$B$2:$DT$2,0))),Tier1!$DT$4:$DT$137))/M8+SUM(TOCA!$BP$4:$BP$138) -> 6338.111949 | N9: =(SUMPRODUCT((OFFSET(Tier1!$B$4:$B$137,0,MATCH(N4,Tier1!$B$2:$DT$2,0)-1)),Tier1!$DT$4:$DT$137)+SUMPRODUCT((OFFSET(Tier1!$B$4:$B$137,0,MATCH(N4,Tier1!$B$2:$DT$2,0))),Tier1!$DT$4:$DT$137))/N8+SUM(TOCA!$BP$4:$BP$138) -> 5965.274339 | O9: =(SUMPRODUCT((OFFSET(Tier1!$B$4:$B$137,0,MATCH(O4,Tier1!$B$2:$DT$2,0)-1)),Tier1!$DT$4:$DT$137)+SUMPRODUCT((OFFSET(Tier1!$B$4:$B$137,0,MATCH(O4,Tier1!$B$2:$DT$2,0))),Tier1!$DT$4:$DT$137))/O8+SUM(TOCA!$BP$4:$BP$138) -> 5430.154466 | P9: =(SUMPRODUCT((OFFSET(Tier1!$B$4:$B$137,0,MATCH(P4,Tier1!$B$2:$DT$2,0)-1)),Tier1!$DT$4:$DT$137)+SUMPRODUCT((OFFSET(Tier1!$B$4:$B$137,0,MATCH(P4,Tier1!$B$2:$DT$2,0))),Tier1!$DT$4:$DT$137))/P8+SUM(TOCA!$BP$4:$BP$138) -> 4925.82205 | Q9: =(SUMPRODUCT((OFFSET(Tier1!$B$4:$B$137,0,MATCH(Q4,Tier1!$B$2:$DT$2,0)-1)),Tier1!$DT$4:$DT$137)+SUMPRODUCT((OFFSET(Tier1!$B$4:$B$137,0,MATCH(Q4,Tier1!$B$2:$DT$2,0))),Tier1!$DT$4:$DT$137))/Q8+SUM(TOCA!$BP$4:$BP$138) -> 4740.243376 | R9: =(SUMPRODUCT((OFFSET(Tier1!$B$4:$B$137,0,MATCH(R4,Tier1!$B$2:$DT$2,0)-1)),Tier1!$DT$4:$DT$137)+SUMPRODUCT((OFFSET(Tier1!$B$4:$B$137,0,MATCH(R4,Tier1!$B$2:$DT$2,0))),Tier1!$DT$4:$DT$137))/R8+SUM(TOCA!$BP$4:$BP$138) -> 4872.020756 | S9: =(SUMPRODUCT((OFFSET(Tier1!$B$4:$B$137,0,MATCH(S4,Tier1!$B$2:$DT$2,0)-1)),Tier1!$DT$4:$DT$137)+SUMPRODUCT((OFFSET(Tier1!$B$4:$B$137,0,MATCH(S4,Tier1!$B$2:$DT$2,0))),Tier1!$DT$4:$DT$137))/S8+SUM(TOCA!$BP$4:$BP$138) -> 5205.397823 | T9: =(SUMPRODUCT((OFFSET(Tier1!$B$4:$B$137,0,MATCH(T4,Tier1!$B$2:$DT$2,0)-1)),Tier1!$DT$4:$DT$137)+SUMPRODUCT((OFFSET(Tier1!$B$4:$B$137,0,MATCH(T4,Tier1!$B$2:$DT$2,0))),Tier1!$DT$4:$DT$137))/T8+SUM(TOCA!$BP$4:$BP$138) -> 5093.298505 | U9: =(SUMPRODUCT((OFFSET(Tier1!$B$4:$B$137,0,MATCH(U4,Tier1!$B$2:$DT$2,0)-1)),Tier1!$DT$4:$DT$137)+SUMPRODUCT((OFFSET(Tier1!$B$4:$B$137,0,MATCH(U4,Tier1!$B$2:$DT$2,0))),Tier1!$DT$4:$DT$137))/U8+SUM(TOCA!$BP$4:$BP$138) -> 4513.275876 | V9: =+AVERAGE(J9:U9) -> 5289.901884
B10: Program Monthly PRM | C10: Summer | D10: 0.165 | E10: 0.104 | F10: 0.103 | G10: 0.179 | I10: P10 | J10: =+J9*(1+J6) -> 4722.423628 | K10: =+K9*(1+K6) -> 6497.577696 | L10: 7449.700421 | M10: 7542.353219 | N10: 7152.363933 | O10: 6890.866017 | P10: 4925.82205 | Q10: 4740.243376 | R10: 5675.90418 | S10: 5746.759196 | T10: 5617.908251 | U10: 5321.152258
B11: Peak Demand - DR Programs + PRM | C11: Summer | D11: 5968.4 | E11: 5999.1 | F11: 5972.7 | G11: 5625 | I11: P10 minus P50 | J11: =+J10-J9 -> 0 | K11: =+K10-K9 -> 1154.174985 | L11: 1120.303292 | M11: 1204.24127 | N11: 1187.089594 | O11: 1460.711551 | P11: 0 | Q11: 0 | R11: 803.8834247 | S11: 541.3613735 | T11: 524.6097461 | U11: 807.8763819
B12: Contingency Reserves Adjustment - Gen | C12: Summer | D12: 85.7 | E12: 85.7 | F12: 86.6 | G12: 94.7 | I12: Revenue | J12: =+J11*J7*1000 -> 0 | K12: =+K11*K7*1000 -> 5401538.932 | L12: 6318510.566 | M12: 6213884.955 | N12: 6386542.013 | O12: 5054061.967 | P12: 0 | Q12: 0 | R12: 1438951.33 | S12: 3269822.696 | T12: 3341764.082 | U12: 5792473.658
B13: Contingency Reserves Adjustment - Load | C13: Summer | D13: 947.9 | E13: 1306.2 | F13: 1336.7 | G13: 1607.4 | I13: PLVS Rate | J13: =+SUM($J$12:$U$12)/(SUM('PLVS Revenues'!$BZ:$BZ)/3) -> 0.8682744875 | K13: =+SUM($J$12:$U$12)/(SUM('PLVS Revenues'!$BZ:$BZ)/3) -> 0.8682744875 | L13: =+SUM($J$12:$U$12)/(SUM('PLVS Revenues'!$BZ:$BZ)/3) -> 0.8682744875 | M13: =+SUM($J$12:$U$12)/(SUM('PLVS Revenues'!$BZ:$BZ)/3) -> 0.8682744875 | N13: =+SUM($J$12:$U$12)/(SUM('PLVS Revenues'!$BZ:$BZ)/3) -> 0.8682744875 | O13: =+SUM($J$12:$U$12)/(SUM('PLVS Revenues'!$BZ:$BZ)/3) -> 0.8682744875 | P13: =+SUM($J$12:$U$12)/(SUM('PLVS Revenues'!$BZ:$BZ)/3) -> 0.8682744875 | Q13: =+SUM($J$12:$U$12)/(SUM('PLVS Revenues'!$BZ:$BZ)/3) -> 0.8682744875 | R13: =+SUM($J$12:$U$12)/(SUM('PLVS Revenues'!$BZ:$BZ)/3) -> 0.8682744875 | S13: =+SUM($J$12:$U$12)/(SUM('PLVS Revenues'!$BZ:$BZ)/3) -> 0.8682744875 | T13: =+SUM($J$12:$U$12)/(SUM('PLVS Revenues'!$BZ:$BZ)/3) -> 0.8682744875 | U13: =+SUM($J$12:$U$12)/(SUM('PLVS Revenues'!$BZ:$BZ)/3) -> 0.8682744875
B14: Ops CR Requirement (Informational) | C14: Summer | D14: 1341 | E14: 1718 | F14: 1748.2 | G14: 1988.3
B15: Forward Showing Obligation | C15: Summer | D15: 7002 | E15: 7391.1 | F15: 7396.1 | G15: 7327.1
B16: Surplus/Deficient Capacity | C16: Summer | D16: 3939 | E16: 3633 | F16: 3640.6 | G16: 4216.9
B17: Forward Showing Requirement Met | C17: Summer | D17: Yes | E17: Yes | F17: Yes | G17: Yes
B20: Requirements Summary
C21: Season | D21: 2023-11-01 | E21: 2023-12-01 | F21: 2024-01-01 | G21: 2024-02-01 | H21: 2024-03-01
B22: Program Monthly PRM | C22: Winter | D22: 0.216 | E22: 0.177 | F22: 0.19 | G22: 0.199 | H22: 0.269
B23: Peak Demand - DR Programs + PRM | C23: Winter | D23: 6906.7 | E23: 7293.3 | F23: 7571.2 | G23: 7596.8 | H23: 7297.4
B24: Operating Reserves Adjustment | C24: Winter | D24: 147 | E24: 152.2 | F24: 154 | G24: 144.8 | H24: 145.1
B25: Forward Showing Obligation | C25: Winter | D25: 7053.7 | E25: 7445.6 | F25: 7725.2 | G25: 7741.6 | H25: 7442.5
B26: Surplus/Deficient Capacity | C26: Winter | D26: 3196.7 | E26: 2783.5 | F26: 2767.5 | G26: 2579.7 | H26: 3424.4
B27: Forward Showing Requirement Met | C27: Winter | D27: Yes | E27: Yes | F27: Yes | G27: Yes | H27: Yes

Sheet TOCA
B1: TOCA Computations, RHWMs and Net Requirements
A2: TOC
B3: BESID | C3: Preference Customer | D3: NOTJOE | E3: JOE | F3: Initial CHWM | G3: CHWM 2026 | H3: TRL 2026 | I3: TRL 2027 | J3: TRL 2028 | K3: NLSL 2026 | L3: NLSL 2027 | M3: NLSL 2028 | N3: Existing/Other Resource aMW 2026 | O3: Existing/Other Resource aMW 2027 | P3: Existing/Other Resource aMW 2028 | Q3: Existing/Other Resource MWh 2026 | R3: Existing/Other Resource MWh 2027 | S3: Existing/Other Resource MWh 2028 | T3: TRL - NLSL - Existing Resource 2026 | U3: TRL - NLSL - Existing Resource 2027 | V3: TRL - NLSL - Existing Resource 2028 | W3: TRL - NLSL - Existing Resource MWh 2026 | X3: TRL - NLSL - Existing Resource MWh 2027 | Y3: TRL - NLSL - Existing Resource MWh 2028 | Z3: RHWM 2026 | AA3: RHWM MWh 2026 | AB3: RHWM MWh 2027 | AC3: RHWM MWh 2028 | AD3: Above RHWM 2026 | AE3: Above RHWM 2027 | AF3: Above RHWM 2028 | AG3: Above RHWM Not Served with LS 2026 | AH3: Above RHWM Not Served with LS 2027 | AI3: Above RHWM Not Served with LS 2028 | AJ3: Above RHWM Load Served at the LS rate 2026 | AK3: Above RHWM Load Served at the LS rate 2027 | AL3: Above RHWM Load Served at the LS rate 2028 | AM3: Total Vintage 2026 | AN3: Total Vintage 2027 | AO3: Total Vintage 2028 | AP3: Remaining Above RHWM 2026 | AQ3: Remaining Above RHWM 2027 | AR3: Remaining Above RHWM 2028 | AS3: TOCA 2026 | AT3: TOCA 2027 | AU3: TOCA 2028 | AV3: Slice% 2026 | AW3: Non-slice TOCA 2026 | AX3: Non-slice TOCA 2027 | AY3: Non-slice TOCA 2028 | AZ3: Avg Non-Slice TOCA | BA3: T1 Percentage 2026 | BB3: T1 Percentage 2027 | BC3: T1 Percentage 2028 | BD3: LDD adjTRL/RHWM 2026 | BE3: LDD adjTRL/RHWM 2027 | BF3: LDD adjTRL/RHWM 2028 | BG3: Applicable LDD 2026 | BH3: Applicable LDD 2027 | BI3: Applicable LDD 2028 | BJ3: Election 2026 | BK3: Election 2027 | BL3: Election 2028 | BM3: Amount 2026 | BN3: Amount 2027 | BO3: Amount 2028 | BP3: Tier 2 Amounts 2026 | BQ3: Tier 2 Amounts 2027 | BR3: Tier 2 Amounts 2028 | BS3: New Resource aMW 2026 | BT3: New Resource aMW 2027 | BU3: New Resource aMW 2028 | BV3: Remarketing 2026 | BW3: Remarketing 2027 | BX3: Remarketing 2028 | BY3: T2 Remarketing 2026 | BZ3: T2 Remarketing 2027 | CA3: T2 Remarketing 2028 | CB3: NR Remarketing 2026 | CC3: NR Remarketing 2027 | CD3: NR Remarketing 2028 | CE3: Forecast Net Requirement 2026 | CF3: Forecast Net Requirement 2027 | CG3: Forecast Net Requirement 2028 | CH3: Rounddown | CI3: NonSlice | CJ3: Slice | CK3: Load Following | CL3: Load Following | CM3: Slice | CN3: Slice | CO3: Block | CP3: Block | CQ3: T2 | CR3: T2
B4: 10015 | C4: Asotin County PUD #1 | D4: 1 | E4: 0 | F4: 0.582 | G4: 0.582 | H4: 0.761 | I4: 0.761 | J4: 0.76 | K4: 0 | L4: 0 | M4: 0 | N4: 0 | O4: 0 | P4: 0 | Q4: 0 | R4: 0 | S4: 0 | T4: 0.761 | U4: 0.761 | V4: 0.76 | W4: 6666.36 | X4: 6666.36 | Y4: 6675.84 | Z4: 0.577 | AA4: 5054.52 | AB4: 5054.52 | AC4: 5068.368 | AD4: 0.184 | AE4: 0.184 | AF4: 0.183 | AG4: 0 | AH4: 0 | AI4: 0 | AJ4: 0.184 | AK4: 0.184 | AL4: 0.183 | AM4: 0 | AN4: 0 | AO4: 0 | AP4: 0 | AQ4: 0 | AR4: 0 | AS4: 8.12e-05 | AT4: 8.12e-05 | AU4: 8.12e-05 | AV4: 0 | AW4: 8.12e-05 | AX4: 8.12e-05 | AY4: 8.12e-05 | AZ4: 8.12e-05 | BA4: 0.7586013435 | BB4: 0.7586013435 | BC4: 0.7595995032 | BD4: 1.318890815 | BE4: 1.318890815 | BF4: 1.317157712 | BG4: 0 | BH4: 0 | BI4: 0 | BJ4: 1 | BK4: 1 | BL4: 1 | BM4: 0 | BN4: 0 | BO4: 0 | BP4: 0 | BQ4: 0 | BR4: 0 | BS4: 0 | BT4: 0 | BU4: 0 | BV4: 0 | BW4: 0 | BX4: 0 | BY4: 0 | BZ4: 0 | CA4: 0 | CB4: 0 | CC4: 0 | CD4: 0 | CE4: 0.761 | CF4: 0.761 | CG4: 0.76 | CH4: 0 | CI4: 1 | CJ4: 0 | CK4: 0.63 | CL4: 0.634 | CM4: 0 | CN4: 0 | CO4: 0 | CP4: 0 | CQ4: 0 | CR4: 0
B5: 10024 | C5: Benton County PUD #1 | D5: 1 | E5: 0 | F5: 203.92 | G5: 203.92 | H5: 213.666 | I5: 214.564 | J5: 214.739 | K5: 0 | L5: 0 | M5: 0 | N5: 0.919 | O5: 0.919 | P5: 0.918 | Q5: 8050.44 | R5: 8050.44 | S5: 8063.712 | T5: 212.747 | U5: 213.645 | V5: 213.821 | W5: 1863663.72 | X5: 1871530.2 | Y5: 1878203.664 | Z5: 202.081 | AA5: 1770229.56 | AB5: 1770229.56 | AC5: 1775079.504 | AD5: 10.666 | AE5: 11.564 | AF5: 11.74 | AG5: 10.666 | AH5: 11.564 | AI5: 11.74 | AJ5: 0 | AK5: 0 | AL5: 0 | AM5: 0 | AN5: 0 | AO5: 0 | AP5: 10.666 | AQ5: 11.564 | AR5: 11.74 | AS5: 0.0284239 | AT5: 0.0284239 | AU5: 0.0284239 | AV5: 0 | AW5: 0.0284239 | AX5: 0.0284239 | AY5: 0.0284239 | AZ5: 0.0284239 | BA5: 0.9500818806 | BB5: 0.946105568 | BC5: 0.9453298893 | BD5: 1.052780816 | BE5: 1.057224578 | BF5: 1.058095516 | BG5: 0 | BH5: 0 | BI5: 0 | BJ5: 3 | BK5: 3 | BL5: 3 | BM5: 0 | BN5: 0 | BO5: 0 | BP5: 10.666 | BQ5: 11.564 | BR5: 11.74 | BS5: 0 | BT5: 0 | BU5: 0 | BV5: 0 | BW5: 0 | BX5: 0 | BY5: 0 | BZ5: 0 | CA5: 0 | CB5: 0 | CC5: 0 | CD5: 0 | CE5: 212.747 | CF5: 213.645 | CG5: 213.821 | CH5: 0 | CI5: 0 | CJ5: 1 | CK5: 0 | CL5: 0 | CM5: 192.001 | CN5: 192.001 | CO5: 0 | CP5: 0 | CQ5: 0 | CR5: 0
B6: 10025 | C6: Benton REA | D6: 1 | E6: 0 | F6: 60.549 | G6: 60.549 | H6: 74.805 | I6: 75.47 | J6: 75.931 | K6: 0 | L6: 0 | M6: 0 | N6: 0 | O6: 0 | P6: 0 | Q6: 0 | R6: 0 | S6: 0 | T6: 74.805 | U6: 75.47 | V6: 75.931 | W6: 655291.8 | X6: 661117.2 | Y6: 666977.904 | Z6: 60.003 | AA6: 525626.28 | AB6: 525626.28 | AC6: 527066.352 | AD6: 14.802 | AE6: 15.467 | AF6: 15.928 | AG6: 14.802 | AH6: 15.467 | AI6: 15.928 | AJ6: 0 | AK6: 0 | AL6: 0 | AM6: 0 | AN6: 0 | AO6: 0 | AP6: 14.802 | AQ6: 15.467 | AR6: 15.928 | AS6: 0.0084398 | AT6: 0.0084398 | AU6: 0.0084398 | AV6: 0 | AW6: 0.0084398 | AX6: 0.0084398 | AY6: 0.0084398 | AZ6: 0.0084398 | BA6: 0.8021281595 | BB6: 0.7950602487 | BC6: 0.7902331982 | BD6: 1.246687666 | BE6: 1.257770445 | BF6: 1.265453394 | BG6: 0.06856782161 | BH6: 0.06917737446 | BI6: 0.06959993667 | BJ6: 1 | BK6: 1 | BL6: 1 | BM6: 0 | BN6: 0 | BO6: 0 | BP6: 14.802 | BQ6: 15.467 | BR6: 15.928 | BS6: 0 | BT6: 0 | BU6: 0 | BV6: 0 | BW6: 0 | BX6: 0 | BY6: 0 | BZ6: 0 | CA6: 0 | CB6: 0 | CC6: 0 | CD6: 0 | CE6: 74.805 | CF6: 75.47 | CG6: 75.931 | CH6: 1 | CI6: 1 | CJ6: 0 | CK6: 56.909 | CL6: 56.909 | CM6: 0 | CN6: 0 | CO6: 0 | CP6: 0 | CQ6: 9.757 | CR6: 10.446
B7: 10027 | C7: Big Bend Elec Coop | D7: 1 | E7: 0 | F7: 62.107 | G7: 62.107 | H7: 72.558 | I7: 73.884 | J7: 75.005 | K7: 0 | L7: 0 | M7: 0 | N7: 0 | O7: 0 | P7: 0 | Q7: 0 | R7: 0 | S7: 0 | T7: 72.558 | U7: 73.884 | V7: 75.005 | W7: 635608.08 | X7: 647223.84 | Y7: 658843.92 | Z7: 61.547 | AA7: 539151.72 | AB7: 539151.72 | AC7: 540628.848 | AD7: 11.011 | AE7: 12.337 | AF7: 13.458 | AG7: 11.011 | AH7: 12.337 | AI7: 13.458 | AJ7: 0 | AK7: 0 | AL7: 0 | AM7: 0 | AN7: 0 | AO7: 0 | AP7: 11.011 | AQ7: 12.337 | AR7: 13.458 | AS7: 0.0086569 | AT7: 0.0086569 | AU7: 0.0086569 | AV7: 0 | AW7: 0.0086569 | AX7: 0.0086569 | AY7: 0.0086569 | AZ7: 0.0086569 | BA7: 0.848241141 | BB7: 0.833017713 | BC7: 0.8205677049 | BD7: 1.178903927 | BE7: 1.200448438 | BF7: 1.218662161 | BG7: 0.0825232749 | BH7: 0.08403139064 | BI7: 0.08530635124 | BJ7: 3 | BK7: 3 | BL7: 3 | BM7: 0 | BN7: 0 | BO7: 0 | BP7: 11.011 | BQ7: 12.337 | BR7: 13.458 | BS7: 0 | BT7: 0 | BU7: 0 | BV7: 0 | BW7: 0 | BX7: 0 | BY7: 0 | BZ7: 0 | CA7: 0 | CB7: 0 | CC7: 0 | CD7: 0 | CE7: 72.558 | CF7: 73.884 | CG7: 75.005 | CH7: 1 | CI7: 1 | CJ7: 0 | CK7: 58.373 | CL7: 58.373 | CM7: 0 | CN7: 0 | CO7: 0 | CP7: 0 | CQ7: 0.897 | CR7: 0.213
B8: 10029 | C8: Blachly Lane Elec Coop | D8: 0 | E8: 1 | F8: 17.879 | G8: 17.879 | H8: 23.213 | I8: 24.409 | J8: 24.669 | K8: 0 | L8: 0 | M8: 0 | N8: 0 | O8: 0 | P8: 0 | Q8: 0 | R8: 0 | S8: 0 | T8: 23.213 | U8: 24.409 | V8: 24.669 | W8: 203345.88 | X8: 213822.84 | Y8: 216692.496 | Z8: 17.718 | AA8: 155209.68 | AB8: 155209.68 | AC8: 155634.912 | AD8: 5.495 | AE8: 6.691 | AF8: 6.951 | AG8: 5.495 | AH8: 6.691 | AI8: 6.951 | AJ8: 0 | AK8: 0 | AL8: 0 | AM8: 0 | AN8: 0 | AO8: 0 | AP8: 5.495 | AQ8: 6.691 | AR8: 6.951 | AS8: 0.0024921 | AT8: 0.0024921 | AU8: 0.0024921 | AV8: 0 | AW8: 0.0024921 | AX8: 0.0024921 | AY8: 0.0024921 | AZ8: 0.0024921 | BA8: 0.7632668995 | BB8: 0.7258681035 | BC8: 0.718217785 | BD8: 1.310136584 | BE8: 1.37763856 | BF8: 1.392312902 | BG8: 0.08515887798 | BH8: 0.08954650638 | BI8: 0.09050033864 | BJ8: 6 | BK8: 6 | BL8: 6 | BM8: 0 | BN8: 0 | BO8: 0 | BP8: 0 | BQ8: 0 | BR8: 0 | BS8: 0 | BT8: 0 | BU8: 0 | BV8: 0 | BW8: 0 | BX8: 0 | BY8: 0 | BZ8: 0 | CA8: 0 | CB8: 0 | CC8: 0 | CD8: 0 | CE8: 17.718 | CF8: 17.718 | CG8: 17.718 | CH8: 1 | CI8: 1 | CJ8: 0 | CK8: 0 | CL8: 0 | CM8: 0 | CN8: 0 | CO8: 0 | CP8: 0 | CQ8: 0 | CR8: 0
B9: 10044 | C9: Canby, City of | D9: 1 | E9: 0 | F9: 20.612 | G9: 20.612 | H9: 22.338 | I9: 22.45 | J9: 22.556 | K9: 0 | L9: 0 | M9: 0 | N9: 0 | O9: 0 | P9: 0 | Q9: 0 | R9: 0 | S9: 0 | T9: 22.338 | U9: 22.45 | V9: 22.556 | W9: 195680.88 | X9: 196662 | Y9: 198131.904 | Z9: 20.426 | AA9: 178931.76 | AB9: 178931.76 | AC9: 179421.984 | AD9: 1.912 | AE9: 2.024 | AF9: 2.13 | AG9: 1.912 | AH9: 2.024 | AI9: 2.13 | AJ9: 0 | AK9: 0 | AL9: 0 | AM9: 0 | AN9: 0 | AO9: 0 | AP9: 1.912 | AQ9: 2.024 | AR9: 2.13 | AS9: 0.002873 | AT9: 0.002873 | AU9: 0.002873 | AV9: 0 | AW9: 0.002873 | AX9: 0.002873 | AY9: 0.002873 | AZ9: 0.002873 | BA9: 0.9143944353 | BB9: 0.9098326457 | BC9: 0.9055569647 | BD9: 1.093606188 | BE9: 1.099089396 | BF9: 1.10427886 | BG9: 0 | BH9: 0 | BI9: 0 | BJ9: 1 | BK9: 1 | BL9: 1 | BM9: 0 | BN9: 0 | BO9: 0 | BP9: 1.912 | BQ9: 2.024 | BR9: 2.13 | BS9: 0 | BT9: 0 | BU9: 0 | BV9: 0 | BW9: 0 | BX9: 0 | BY9: 0 | BZ9: 0 | CA9: 0 | CB9: 0 | CC9: 0 | CD9: 0 | CE9: 22.338 | CF9: 22.45 | CG9: 22.556 | CH9: 0 | CI9: 1 | CJ9: 0 | CK9: 19.373 | CL9: 19.373 | CM9: 0 | CN9: 0 | CO9: 0 | CP9: 0 | CQ9: 2.625 | CR9: 2.717
B10: 10046 | C10: Central Electric Coop | D10: 0 | E10: 1 | F10: 83.072 | G10: 83.072 | H10: 102.441 | I10: 103.89 | J10: 105.331 | K10: 0 | L10: 0 | M10: 0 | N10: 0 | O10: 0 | P10: 0 | Q10: 0 | R10: 0 | S10: 0 | T10: 102.441 | U10: 103.89 | V10: 105.331 | W10: 897383.16 | X10: 910076.4 | Y10: 925227.504 | Z10: 82.323 | AA10: 721149.48 | AB10: 721149.48 | AC10: 723125.232 | AD10: 20.118 | AE10: 21.567 | AF10: 23.008 | AG10: 20.118 | AH10: 21.567 | AI10: 23.008 | AJ10: 0 | AK10: 0 | AL10: 0 | AM10: 0 | AN10: 0 | AO10: 0 | AP10: 20.118 | AQ10: 21.567 | AR10: 23.008 | AS10: 0.0115792 | AT10: 0.0115792 | AU10: 0.0115792 | AV10: 0 | AW10: 0.0115792 | AX10: 0.0115792 | AY10: 0.0115792 | AZ10: 0.0115792 | BA10: 0.8036130506 | BB10: 0.7924047023 | BC10: 0.7815640649 | BD10: 1.244378849 | BE10: 1.261980249 | BF10: 1.27948447 | BG10: 0.0808846252 | BH10: 0.08202871615 | BI10: 0.08316649053 | BJ10: 6 | BK10: 6 | BL10: 6 | BM10: 0 | BN10: 0 | BO10: 0 | BP10: 0 | BQ10: 0 | BR10: 0 | BS10: 0 | BT10: 0 | BU10: 0 | BV10: 0 | BW10: 0 | BX10: 0 | BY10: 0 | BZ10: 0 | CA10: 0 | CB10: 0 | CC10: 0 | CD10: 0 | CE10: 82.323 | CF10: 82.323 | CG10: 82.323 | CH10: 1 | CI10: 1 | CJ10: 0 | CK10: 0 | CL10: 0 | CM10: 0 | CN10: 0 | CO10: 0 | CP10: 0 | CQ10: 0 | CR10: 0
B11: 10047 | C11: Central Lincoln PUD | D11: 1 | E11: 0 | F11: 159.01 | G11: 159.01 | H11: 151.52 | I11: 151.672 | J11: 151.976 | K11: 0 | L11: 0 | M11: 0 | N11: 0 | O11: 0 | P11: 0 | Q11: 0 | R11: 0 | S11: 0 | T11: 151.52 | U11: 151.672 | V11: 151.976 | W11: 1327315.2 | X11: 1328646.72 | Y11: 1334957.184 | Z11: 157.576 | AA11: 1380365.76 | AB11: 1380365.76 | AC11: 1384147.584 | AD11: 0 | AE11: 0 | AF11: 0 | AG11: 0 | AH11: 0 | AI11: 0 | AJ11: 0 | AK11: 0 | AL11: 0 | AM11: 0 | AN11: 0 | AO11: 0 | AP11: 0 | AQ11: 0 | AR11: 0 | AS11: 0.0213122 | AT11: 0.0213336 | AU11: 0.0213763 | AV11: 0 | AW11: 0.0213122 | AX11: 0.0213336 | AY11: 0.0213763 | AZ11: 0.0213407 | BA11: 1 | BB11: 1 | BC11: 0.99999945 | BD11: 1 | BE11: 1 | BF11: 1 | BG11: 0 | BH11: 0 | BI11: 0 | BJ11: 3 | BK11: 3 | BL11: 3 | BM11: 0 | BN11: 0 | BO11: 0 | BP11: 0 | BQ11: 0 | BR11: 0 | BS11: 0 | BT11: 0 | BU11: 0 | BV11: 0 | BW11: 0 | BX11: 0 | BY11: 0 | BZ11: 0 | CA11: 0 | CB11: 0 | CC11: 0 | CD11: 0 | CE11: 151.52 | CF11: 151.672 | CG11: 151.976 | CH11: 1 | CI11: 1 | CJ11: 0 | CK11: 149.45 | CL11: 149.45 | CM11: 0 | CN11: 0 | CO11: 0 | CP11: 0 | CQ11: 0.206 | CR11: 0.586
B12: 10055 | C12: Albion, City of | D12: 1 | E12: 0 | F12: 0.404 | G12: 0.404 | H12: 0.466 | I12: 0.469 | J12: 0.471 | K12: 0 | L12: 0 | M12: 0 | N12: 0 | O12: 0 | P12: 0 | Q12: 0 | R12: 0 | S12: 0 | T12: 0.466 | U12: 0.469 | V12: 0.471 | W12: 4082.16 | X12: 4108.44 | Y12: 4137.264 | Z12: 0.4 | AA12: 3504 | AB12: 3504 | AC12: 3513.6 | AD12: 0.066 | AE12: 0.069 | AF12: 0.071 | AG12: 0 | AH12: 0 | AI12: 0 | AJ12: 0.066 | AK12: 0.069 | AL12: 0.071 | AM12: 0 | AN12: 0 | AO12: 0 | AP12: 0 | AQ12: 0 | AR12: 0 | AS12: 5.63e-05 | AT12: 5.63e-05 | AU12: 5.63e-05 | AV12: 0 | AW12: 5.63e-05 | AX12: 5.63e-05 | AY12: 5.63e-05 | AZ12: 5.63e-05 | BA12: 0.8589437288 | BB12: 0.8534494192 | BC12: 0.8498254301 | BD12: 1.165 | BE12: 1.1725 | BF12: 1.1775 | BG12: 0 | BH12: 0 | BI12: 0 | BJ12: 1 | BK12: 1 | BL12: 1 | BM12: 0 | BN12: 0 | BO12: 0 | BP12: 0 | BQ12: 0 | BR12: 0 | BS12: 0 | BT12: 0 | BU12: 0 | BV12: 0 | BW12: 0 | BX12: 0 | BY12: 0 | BZ12: 0 | CA12: 0 | CB12: 0 | CC12: 0 | CD12: 0 | CE12: 0.466 | CF12: 0.469 | CG12: 0.471 | CH12: 0 | CI12: 1 | CJ12: 0 | CK12: 0.386 | CL12: 0.386 | CM12: 0 | CN12: 0 | CO12: 0 | CP12: 0 | CQ12: 0 | CR12: 0
B13: 10057 | C13: Ashland, City of | D13: 1 | E13: 0 | F13: 21.383 | G13: 21.383 | H13: 19.376 | I13: 19.376 | J13: 19.381 | K13: 0 | L13: 0 | M13: 0 | N13: 0.158 | O13: 0.158 | P13: 0.158 | Q13: 1384.08 | R13: 1384.08 | S13: 1387.872 | T13: 19.218 | U13: 19.218 | V13: 19.223 | W13: 168349.68 | X13: 168349.68 | Y13: 168854.832 | Z13: 21.19 | AA13: 185624.4 | AB13: 185624.4 | AC13: 186132.96 | AD13: 0 | AE13: 0 | AF13: 0 | AG13: 0 | AH13: 0 | AI13: 0 | AJ13: 0 | AK13: 0 | AL13: 0 | AM13: 0 | AN13: 0 | AO13: 0 | AP13: 0 | AQ13: 0 | AR13: 0 | AS13: 0.0027031 | AT13: 0.0027031 | AU13: 0.0027038 | AV13: 0 | AW13: 0.0027031 | AX13: 0.0027031 | AY13: 0.0027038 | AZ13: 0.002703333333 | BA13: 0.9999912268 | BB13: 0.9999912268 | BC13: 0.9999900262 | BD13: 1 | BE13: 1 | BF13: 1 | BG13: 0 | BH13: 0 | BI13: 0 | BJ13: 3 | BK13: 3 | BL13: 3 | BM13: 0 | BN13: 0 | BO13: 0 | BP13: 0 | BQ13: 0 | BR13: 0 | BS13: 0 | BT13: 0 | BU13: 0 | BV13: 0 | BW13: 0 | BX13: 0 | BY13: 0 | BZ13: 0 | CA13: 0 | CB13: 0 | CC13: 0 | CD13: 0 | CE13: 19.218 | CF13: 19.218 | CG13: 19.223 | CH13: 0 | CI13: 1 | CJ13: 0 | CK13: 19.976 | CL13: 19.976 | CM13: 0 | CN13: 0 | CO13: 0 | CP13: 0 | CQ13: 0 | CR13: 0
B14: 10059 | C14: Bandon, City of | D14: 1 | E14: 0 | F14: 7.753 | G14: 7.753 | H14: 7.735 | I14: 7.735 | J14: 7.735 | K14: 0 | L14: 0 | M14: 0 | N14: 0 | O14: 0 | P14: 0 | Q14: 0 | R14: 0 | S14: 0 | T14: 7.735 | U14: 7.735 | V14: 7.735 | W14: 67758.6 | X14: 67758.6 | Y14: 67944.24 | Z14: 7.683 | AA14: 67303.08 | AB14: 67303.08 | AC14: 67487.472 | AD14: 0.052 | AE14: 0.052 | AF14: 0.052 | AG14: 0 | AH14: 0 | AI14: 0 | AJ14: 0.052 | AK14: 0.052 | AL14: 0.052 | AM14: 0 | AN14: 0 | AO14: 0 | AP14: 0 | AQ14: 0 | AR14: 0 | AS14: 0.0010807 | AT14: 0.0010807 | AU14: 0.0010807 | AV14: 0 | AW14: 0.0010807 | AX14: 0.0010807 | AY14: 0.0010807 | AZ14: 0.0010807 | BA14: 0.9933151708 | BB14: 0.9933151708 | BC14: 0.9933151708 | BD14: 1.00676819 | BE14: 1.00676819 | BF14: 1.00676819 | BG14: 0 | BH14: 0 | BI14: 0 | BJ14: 1 | BK14: 1 | BL14: 1 | BM14: 0 | BN14: 0 | BO14: 0 | BP14: 0 | BQ14: 0 | BR14: 0 | BS14: 0 | BT14: 0 | BU14: 0 | BV14: 0 | BW14: 0 | BX14: 0 | BY14: 0 | BZ14: 0 | CA14: 0 | CB14: 0 | CC14: 0 | CD14: 0 | CE14: 7.735 | CF14: 7.735 | CG14: 7.735 | CH14: 0 | CI14: 1 | CJ14: 0 | CK14: 7.649 | CL14: 7.668 | CM14: 0 | CN14: 0 | CO14: 0 | CP14: 0 | CQ14: 0 | CR14: 0
B15: 10061 | C15: Blaine, City of | D15: 1 | E15: 0 | F15: 8.877 | G15: 8.877 | H15: 11.823 | I15: 12.473 | J15: 13.11 | K15: 0 | L15: 0 | M15: 0 | N15: 0 | O15: 0 | P15: 0 | Q15: 0 | R15: 0 | S15: 0 | T15: 11.823 | U15: 12.473 | V15: 13.11 | W15: 103569.48 | X15: 109263.48 | Y15: 115158.24 | Z15: 8.797 | AA15: 77061.72 | AB15: 77061.72 | AC15: 77272.848 | AD15: 3.026 | AE15: 3.676 | AF15: 4.313 | AG15: 3.026 | AH15: 3.676 | AI15: 4.313 | AJ15: 0 | AK15: 0 | AL15: 0 | AM15: 0 | AN15: 0 | AO15: 0 | AP15: 3.026 | AQ15: 3.676 | AR15: 4.313 | AS15: 0.0012373 | AT15: 0.0012373 | AU15: 0.0012373 | AV15: 0 | AW15: 0.0012373 | AX15: 0.0012373 | AY15: 0.0012373 | AZ15: 0.0012373 | BA15: 0.7440284775 | BB15: 0.7052552465 | BC15: 0.6709876956 | BD15: 1.343980903 | BE15: 1.417869728 | BF15: 1.490280778 | BG15: 0 | BH15: 0 | BI15: 0 | BJ15: 1 | BK15: 1 | BL15: 1 | BM15: 0 | BN15: 0 | BO15: 0 | BP15: 3.026 | BQ15: 3.676 | BR15: 4.313 | BS15: 0 | BT15: 0 | BU15: 0 | BV15: 0 | BW15: 0 | BX15: 0 | BY15: 0 | BZ15: 0 | CA15: 0 | CB15: 0 | CC15: 0 | CD15: 0 | CE15: 11.823 | CF15: 12.473 | CG15: 13.11 | CH15: 0 | CI15: 1 | CJ15: 0 | CK15: 8.343 | CL15: 8.343 | CM15: 0 | CN15: 0 | CO15: 0 | CP15: 0 | CQ15: 1.09 | CR15: 1.101
B16: 10062 | C16: Bonners Ferry, City of | D16: 1 | E16: 0 | F16: 5.399 | G16: 5.399 | H16: 9.161 | I16: 9.274 | J16: 9.385 | K16: 0 | L16: 0 | M16: 0 | N16: 1.881 | O16: 1.881 | P16: 1.878 | Q16: 16477.56 | R16: 16477.56 | S16: 16496.352 | T16: 7.28 | U16: 7.393 | V16: 7.507 | W16: 63772.8 | X16: 64762.68 | Y16: 65941.488 | Z16: 5.35 | AA16: 46866 | AB16: 46866 | AC16: 46994.4 | AD16: 1.93 | AE16: 2.043 | AF16: 2.157 | AG16: 1.93 | AH16: 2.043 | AI16: 2.157 | AJ16: 0 | AK16: 0 | AL16: 0 | AM16: 0 | AN16: 0 | AO16: 0 | AP16: 1.93 | AQ16: 2.043 | AR16: 2.157 | AS16: 0.0007525 | AT16: 0.0007525 | AU16: 0.0007525 | AV16: 0 | AW16: 0.0007525 | AX16: 0.0007525 | AY16: 0.0007525 | AZ16: 0.0007525 | BA16: 0.7893175287 | BB16: 0.7797000086 | BC16: 0.7701585381 | BD16: 1.360747664 | BE16: 1.381869159 | BF16: 1.40317757 | BG16: 0 | BH16: 0 | BI16: 0 | BJ16: 3 | BK16: 3 | BL16: 3 | BM16: 0 | BN16: 0 | BO16: 0 | BP16: 1.93 | BQ16: 2.043 | BR16: 2.157 | BS16: 0 | BT16: 0 | BU16: 0 | BV16: 0 | BW16: 0 | BX16: 0 | BY16: 0 | BZ16: 0 | CA16: 0 | CB16: 0 | CC16: 0 | CD16: 0 | CE16: 7.28 | CF16: 7.393 | CG16: 7.507 | CH16: 1 | CI16: 1 | CJ16: 0 | CK16: 5.074 | CL16: 5.074 | CM16: 0 | CN16: 0 | CO16: 0 | CP16: 0 | CQ16: 2.096 | CR16: 2.192
B17: 10064 | C17: Burley, City of | D17: 1 | E17: 0 | F17: 14.274 | G17: 14.274 | H17: 19.249 | I17: 19.276 | J17: 19.297 | K17: 0 | L17: 0 | M17: 0 | N17: 0 | O17: 0 | P17: 0 | Q17: 0 | R17: 0 | S17: 0 | T17: 19.249 | U17: 19.276 | V17: 19.297 | W17: 168621.24 | X17: 168857.76 | Y17: 169504.848 | Z17: 14.145 | AA17: 123910.2 | AB17: 123910.2 | AC17: 124249.68 | AD17: 5.104 | AE17: 5.131 | AF17: 5.152 | AG17: 5.104 | AH17: 5.131 | AI17: 5.152 | AJ17: 0 | AK17: 0 | AL17: 0 | AM17: 0 | AN17: 0 | AO17: 0 | AP17: 5.104 | AQ17: 5.131 | AR17: 5.152 | AS17: 0.0019896 | AT17: 0.0019896 | AU17: 0.0019896 | AV17: 0 | AW17: 0.0019896 | AX17: 0.0019896 | AY17: 0.0019896 | AZ17: 0.0019896 | BA17: 0.7348519227 | BB17: 0.7338226115 | BC17: 0.7330240275 | BD17: 1.360834217 | BE17: 1.362743019 | BF17: 1.364227642 | BG17: 0 | BH17: 0 | BI17: 0 | BJ17: 3 | BK17: 3 | BL17: 3 | BM17: 0 | BN17: 0 | BO17: 0 | BP17: 5.104 | BQ17: 5.131 | BR17: 5.152 | BS17: 0 | BT17: 0 | BU17: 0 | BV17: 0 | BW17: 0 | BX17: 0 | BY17: 0 | BZ17: 0 | CA17: 0 | CB17: 0 | CC17: 0 | CD17: 0 | CE17: 19.249 | CF17: 19.276 | CG17: 19.297 | CH17: 0 | CI17: 1 | CJ17: 0 | CK17: 13.851 | CL17: 13.878 | CM17: 0 | CN17: 0 | CO17: 0 | CP17: 0 | CQ17: 0 | CR17: 0
B18: 10065 | C18: Cascade Locks, City of | D18: 1 | E18: 0 | F18: 2.413 | G18: 2.413 | H18: 5.078 | I18: 5.313 | J18: 5.373 | K18: 0 | L18: 0 | M18: 0 | N18: 0 | O18: 0 | P18: 0 | Q18: 0 | R18: 0 | S18: 0 | T18: 5.078 | U18: 5.313 | V18: 5.373 | W18: 44483.28 | X18: 46541.88 | Y18: 47196.432 | Z18: 2.391 | AA18: 20945.16 | AB18: 20945.16 | AC18: 21002.544 | AD18: 2.687 | AE18: 2.922 | AF18: 2.982 | AG18: 2.687 | AH18: 2.922 | AI18: 2.982 | AJ18: 0 | AK18: 0 | AL18: 0 | AM18: 0 | AN18: 0 | AO18: 0 | AP18: 2.687 | AQ18: 2.922 | AR18: 2.982 | AS18: 0.0003363 | AT18: 0.0003363 | AU18: 0.0003363 | AV18: 0 | AW18: 0.0003363 | AX18: 0.0003363 | AY18: 0.0003363 | AZ18: 0.0003363 | BA18: 0.4708433119 | BB18: 0.4500173796 | BC18: 0.4449920599 | BD18: 2.123797574 | BE18: 2.222082811 | BF18: 2.247176913 | BG18: 0.08495190297 | BH18: 0.08888331242 | BI18: 0.08988707654 | BJ18: 1 | BK18: 1 | BL18: 1 | BM18: 0 | BN18: 0 | BO18: 0 | BP18: 2.687 | BQ18: 2.922 | BR18: 2.982 | BS18: 0 | BT18: 0 | BU18: 0 | BV18: 0 | BW18: 0 | BX18: 0 | BY18: 0 | BZ18: 0 | CA18: 0 | CB18: 0 | CC18: 0 | CD18: 0 | CE18: 5.078 | CF18: 5.313 | CG18: 5.373 | CH18: 0 | CI18: 1 | CJ18: 0 | CK18: 2.268 | CL18: 2.268 | CM18: 0 | CN18: 0 | CO18: 0 | CP18: 0 | CQ18: 2.096 | CR18: 2.12
B19: 10066 | C19: Centralia, City of | D19: 1 | E19: 0 | F19: 24.735 | G19: 24.735 | H19: 33.535 | I19: 33.614 | J19: 33.704 | K19: 0 | L19: 0 | M19: 0 | N19: 7.114 | O19: 7.114 | P19: 7.109 | Q19: 62318.64 | R19: 62318.64 | S19: 62445.456 | T19: 26.421 | U19: 26.5 | V19: 26.595 | W19: 231447.96 | X19: 232140 | Y19: 233610.48 | Z19: 24.512 | AA19: 214725.12 | AB19: 214725.12 | AC19: 215313.408 | AD19: 1.909 | AE19: 1.988 | AF19: 2.083 | AG19: 1.909 | AH19: 1.988 | AI19: 2.083 | AJ19: 0 | AK19: 0 | AL19: 0 | AM19: 0 | AN19: 0 | AO19: 0 | AP19: 1.909 | AQ19: 1.988 | AR19: 2.083 | AS19: 0.0034478 | AT19: 0.0034478 | AU19: 0.0034478 | AV19: 0 | AW19: 0.0034478 | AX19: 0.0034478 | AY19: 0.0034478 | AZ19: 0.0034478 | BA19: 0.9430837449 | BB19: 0.9408672989 | BC19: 0.9382065448 | BD19: 1.077880222 | BE19: 1.081103133 | BF19: 1.084978786 | BG19: 0 | BH19: 0 | BI19: 0 | BJ19: 3 | BK19: 3 | BL19: 3 | BM19: 0 | BN19: 0 | BO19: 0 | BP19: 1.909 | BQ19: 1.988 | BR19: 2.083 | BS19: 0 | BT19: 0 | BU19: 0 | BV19: 0 | BW19: 0 | BX19: 0 | BY19: 0 | BZ19: 0 | CA19: 0 | CB19: 0 | CC19: 0 | CD19: 0 | CE19: 26.421 | CF19: 26.5 | CG19: 26.595 | CH19: 1 | CI19: 1 | CJ19: 0 | CK19: 23.248 | CL19: 23.248 | CM19: 0 | CN19: 0 | CO19: 0 | CP19: 0 | CQ19: 0.377 | CR19: 0.377
B20: 10067 | C20: Cheney, City of | D20: 1 | E20: 0 | F20: 16.053 | G20: 16.053 | H20: 16.571 | I20: 16.703 | J20: 16.831 | K20: 0 | L20: 0 | M20: 0 | N20: 0 | O20: 0 | P20: 0 | Q20: 0 | R20: 0 | S20: 0 | T20: 16.571 | U20: 16.703 | V20: 16.831 | W20: 145161.96 | X20: 146318.28 | Y20: 147843.504 | Z20: 15.908 | AA20: 139354.08 | AB20: 139354.08 | AC20: 139735.872 | AD20: 0.663 | AE20: 0.795 | AF20: 0.923 | AG20: 0 | AH20: 0 | AI20: 0 | AJ20: 0.663 | AK20: 0.795 | AL20: 0.923 | AM20: 0 | AN20: 0 | AO20: 0 | AP20: 0 | AQ20: 0 | AR20: 0 | AS20: 0.0022376 | AT20: 0.0022376 | AU20: 0.0022376 | AV20: 0 | AW20: 0.0022376 | AX20: 0.0022376 | AY20: 0.0022376 | AZ20: 0.0022376 | BA20: 0.9600104734 | BB20: 0.9524237296 | BC20: 0.9451805333 | BD20: 1.041677144 | BE20: 1.049974855 | BF20: 1.058021121 | BG20: 0 | BH20: 0 | BI20: 0 | BJ20: 3 | BK20: 3 | BL20: 3 | BM20: 0 | BN20: 0 | BO20: 0 | BP20: 0 | BQ20: 0 | BR20: 0 | BS20: 0 | BT20: 0 | BU20: 0 | BV20: 0 | BW20: 0 | BX20: 0 | BY20: 0 | BZ20: 0 | CA20: 0 | CB20: 0 | CC20: 0 | CD20: 0 | CE20: 16.571 | CF20: 16.703 | CG20: 16.831 | CH20: 1 | CI20: 1 | CJ20: 0 | CK20: 15.088 | CL20: 15.088 | CM20: 0 | CN20: 0 | CO20: 0 | CP20: 0 | CQ20: 0.285 | CR20: 0.422
B21: 10068 | C21: Chewelah, City of | D21: 1 | E21: 0 | F21: 2.811 | G21: 2.811 | H21: 2.52 | I21: 2.52 | J21: 2.519 | K21: 0 | L21: 0 | M21: 0 | N21: 0 | O21: 0 | P21: 0 | Q21: 0 | R21: 0 | S21: 0 | T21: 2.52 | U21: 2.52 | V21: 2.519 | W21: 22075.2 | X21: 22075.2 | Y21: 22126.896 | Z21: 2.786 | AA21: 24405.36 | AB21: 24405.36 | AC21: 24472.224 | AD21: 0 | AE21: 0 | AF21: 0 | AG21: 0 | AH21: 0 | AI21: 0 | AJ21: 0 | AK21: 0 | AL21: 0 | AM21: 0 | AN21: 0 | AO21: 0 | AP21: 0 | AQ21: 0 | AR21: 0 | AS21: 0.0003545 | AT21: 0.0003545 | AU21: 0.0003543 | AV21: 0 | AW21: 0.0003545 | AX21: 0.0003545 | AY21: 0.0003543 | AZ21: 0.0003544333333 | BA21: 1 | BB21: 1 | BC21: 0.9999659681 | BD21: 1 | BE21: 1 | BF21: 1 | BG21: 0 | BH21: 0 | BI21: 0 | BJ21: 1 | BK21: 1 | BL21: 1 | BM21: 0 | BN21: 0 | BO21: 0 | BP21: 0 | BQ21: 0 | BR21: 0 | BS21: 0 | BT21: 0 | BU21: 0 | BV21: 0 | BW21: 0 | BX21: 0 | BY21: 0 | BZ21: 0 | CA21: 0 | CB21: 0 | CC21: 0 | CD21: 0 | CE21: 2.52 | CF21: 2.52 | CG21: 2.519 | CH21: 0 | CI21: 1 | CJ21: 0 | CK21: 2.589 | CL21: 2.594 | CM21: 0 | CN21: 0 | CO21: 0 | CP21: 0 | CQ21: 0 | CR21: 0
B22: 10070 | C22: Declo, City of | D22: 1 | E22: 0 | F22: 0.364 | G22: 0.364 | H22: 0.422 | I22: 0.423 | J22: 0.423 | K22: 0 | L22: 0 | M22: 0 | N22: 0 | O22: 0 | P22: 0 | Q22: 0 | R22: 0 | S22: 0 | T22: 0.422 | U22: 0.423 | V22: 0.423 | W22: 3696.72 | X22: 3705.48 | Y22: 3715.632 | Z22: 0.361 | AA22: 3162.36 | AB22: 3162.36 | AC22: 3171.024 | AD22: 0.061 | AE22: 0.062 | AF22: 0.062 | AG22: 0 | AH22: 0 | AI22: 0 | AJ22: 0.061 | AK22: 0.062 | AL22: 0.062 | AM22: 0 | AN22: 0 | AO22: 0 | AP22: 0 | AQ22: 0 | AR22: 0 | AS22: 5.08e-05 | AT22: 5.08e-05 | AU22: 5.08e-05 | AV22: 0 | AW22: 5.08e-05 | AX22: 5.08e-05 | AY22: 5.08e-05 | AZ22: 5.08e-05 | BA22: 0.8558418047 | BB22: 0.8538185381 | BC22: 0.8538185381 | BD22: 1.168975069 | BE22: 1.171745152 | BF22: 1.171745152 | BG22: 0 | BH22: 0 | BI22: 0 | BJ22: 1 | BK22: 1 | BL22: 1 | BM22: 0 | BN22: 0 | BO22: 0 | BP22: 0 | BQ22: 0 | BR22: 0 | BS22: 0 | BT22: 0 | BU22: 0 | BV22: 0 | BW22: 0 | BX22: 0 | BY22: 0 | BZ22: 0 | CA22: 0 | CB22: 0 | CC22: 0 | CD22: 0 | CE22: 0.422 | CF22: 0.423 | CG22: 0.423 | CH22: 0 | CI22: 1 | CJ22: 0 | CK22: 0.377 | CL22: 0.377 | CM22: 0 | CN22: 0 | CO22: 0 | CP22: 0 | CQ22: 0 | CR22: 0
B23: 10071 | C23: Drain, City of | D23: 1 | E23: 0 | F23: 1.943 | G23: 1.943 | H23: 1.899 | I23: 1.901 | J23: 1.901 | K23: 0 | L23: 0 | M23: 0 | N23: 0 | O23: 0 | P23: 0 | Q23: 0 | R23: 0 | S23: 0 | T23: 1.899 | U23: 1.901 | V23: 1.901 | W23: 16635.24 | X23: 16652.76 | Y23: 16698.384 | Z23: 1.925 | AA23: 16863 | AB23: 16863 | AC23: 16909.2 | AD23: 0 | AE23: 0 | AF23: 0 | AG23: 0 | AH23: 0 | AI23: 0 | AJ23: 0 | AK23: 0 | AL23: 0 | AM23: 0 | AN23: 0 | AO23: 0 | AP23: 0 | AQ23: 0 | AR23: 0 | AS23: 0.0002671 | AT23: 0.0002674 | AU23: 0.0002674 | AV23: 0 | AW23: 0.0002671 | AX23: 0.0002674 | AY23: 0.0002674 | AZ23: 0.0002673 | BA23: 0.9999796415 | BB23: 1 | BC23: 1 | BD23: 1 | BE23: 1 | BF23: 1 | BG23: 0 | BH23: 0 | BI23: 0 | BJ23: 1 | BK23: 1 | BL23: 1 | BM23: 0 | BN23: 0 | BO23: 0 | BP23: 0 | BQ23: 0 | BR23: 0 | BS23: 0 | BT23: 0 | BU23: 0 | BV23: 0 | BW23: 0 | BX23: 0 | BY23: 0 | BZ23: 0 | CA23: 0 | CB23: 0 | CC23: 0 | CD23: 0 | CE23: 1.899 | CF23: 1.901 | CG23: 1.901 | CH23: 0 | CI23: 1 | CJ23: 0 | CK23: 1.878 | CL23: 1.878 | CM23: 0 | CN23: 0 | CO23: 0 | CP23: 0 | CQ23: 0 | CR23: 0
B24: 10072 | C24: Ellensburg, City of | D24: 1 | E24: 0 | F24: 24.34 | G24: 24.34 | H24: 26.145 | I24: 27.155 | J24: 27.225 | K24: 0 | L24: 0 | M24: 0 | N24: 0 | O24: 0 | P24: 0 | Q24: 0 | R24: 0 | S24: 0 | T24: 26.145 | U24: 27.155 | V24: 27.225 | W24: 229030.2 | X24: 237877.8 | Y24: 239144.4 | Z24: 24.12 | AA24: 211291.2 | AB24: 211291.2 | AC24: 211870.08 | AD24: 2.025 | AE24: 3.035 | AF24: 3.105 | AG24: 2.025 | AH24: 3.035 | AI24: 3.105 | AJ24: 0 | AK24: 0 | AL24: 0 | AM24: 0 | AN24: 0 | AO24: 0 | AP24: 2.025 | AQ24: 3.035 | AR24: 3.105 | AS24: 0.0033926 | AT24: 0.0033926 | AU24: 0.0033926 | AV24: 0 | AW24: 0.0033926 | AX24: 0.0033926 | AY24: 0.0033926 | AZ24: 0.0033926 | BA24: 0.9225422113 | BB24: 0.8882292806 | BC24: 0.8859454955 | BD24: 1.083955224 | BE24: 1.125829187 | BF24: 1.128731343 | BG24: 0 | BH24: 0 | BI24: 0 | BJ24: 3 | BK24: 3 | BL24: 3 | BM24: 0 | BN24: 0 | BO24: 0 | BP24: 2.025 | BQ24: 3.035 | BR24: 3.105 | BS24: 0 | BT24: 0 | BU24: 0 | BV24: 0 | BW24: 0 | BX24: 0 | BY24: 0 | BZ24: 0 | CA24: 0 | CB24: 0 | CC24: 0 | CD24: 0 | CE24: 26.145 | CF24: 27.155 | CG24: 27.225 | CH24: 1 | CI24: 1 | CJ24: 0 | CK24: 22.877 | CL24: 22.877 | CM24: 0 | CN24: 0 | CO24: 0 | CP24: 0 | CQ24: 1.698 | CR24: 1.773
B25: 10074 | C25: Forest Grove, City of | D25: 1 | E25: 0 | F25: 27.08 | G25: 27.08 | H25: 34.412 | I25: 34.944 | J25: 35.364 | K25: 0 | L25: 0 | M25: 0 | N25: 2.933 | O25: 2.933 | P25: 2.929 | Q25: 25693.08 | R25: 25693.08 | S25: 25728.336 | T25: 31.479 | U25: 32.011 | V25: 32.435 | W25: 275756.04 | X25: 280416.36 | Y25: 284909.04 | Z25: 26.836 | AA25: 235083.36 | AB25: 235083.36 | AC25: 235727.424 | AD25: 4.643 | AE25: 5.175 | AF25: 5.599 | AG25: 4.643 | AH25: 5.175 | AI25: 5.599 | AJ25: 0 | AK25: 0 | AL25: 0 | AM25: 0 | AN25: 0 | AO25: 0 | AP25: 4.643 | AQ25: 5.175 | AR25: 5.599 | AS25: 0.0037746 | AT25: 0.0037746 | AU25: 0.0037746 | AV25: 0 | AW25: 0.0037746 | AX25: 0.0037746 | AY25: 0.0037746 | AZ25: 0.0037746 | BA25: 0.8650678536 | BB25: 0.8518977501 | BC25: 0.8416670902 | BD25: 1.173013862 | BE25: 1.192837979 | BF25: 1.208637651 | BG25: 0 | BH25: 0 | BI25: 0 | BJ25: 3 | BK25: 3 | BL25: 3 | BM25: 0 | BN25: 0 | BO25: 0 | BP25: 4.643 | BQ25: 5.175 | BR25: 5.599 | BS25: 0 | BT25: 0 | BU25: 0 | BV25: 0 | BW25: 0 | BX25: 0 | BY25: 0 | BZ25: 0 | CA25: 0 | CB25: 0 | CC25: 0 | CD25: 0 | CE25: 31.479 | CF25: 32.011 | CG25: 32.435 | CH25: 1 | CI25: 1 | CJ25: 0 | CK25: 25.452 | CL25: 25.452 | CM25: 0 | CN25: 0 | CO25: 0 | CP25: 0 | CQ25: 0.829 | CR25: 0.905
B26: 10076 | C26: Heyburn, City of | D26: 1 | E26: 0 | F26: 4.889 | G26: 4.889 | H26: 7.71 | I26: 7.758 | J26: 7.806 | K26: 0 | L26: 0 | M26: 0 | N26: 0 | O26: 0 | P26: 0 | Q26: 0 | R26: 0 | S26: 0 | T26: 7.71 | U26: 7.758 | V26: 7.806 | W26: 67539.6 | X26: 67960.08 | Y26: 68567.904 | Z26: 4.845 | AA26: 42442.2 | AB26: 42442.2 | AC26: 42558.48 | AD26: 2.865 | AE26: 2.913 | AF26: 2.961 | AG26: 2.865 | AH26: 2.913 | AI26: 2.961 | AJ26: 0 | AK26: 0 | AL26: 0 | AM26: 0 | AN26: 0 | AO26: 0 | AP26: 2.865 | AQ26: 2.913 | AR26: 2.961 | AS26: 0.0006815 | AT26: 0.0006815 | AU26: 0.0006815 | AV26: 0 | AW26: 0.0006815 | AX26: 0.0006815 | AY26: 0.0006815 | AZ26: 0.0006815 | BA26: 0.6284253811 | BB26: 0.6245372117 | BC26: 0.6206968599 | BD26: 1.591331269 | BE26: 1.60123839 | BF26: 1.611145511 | BG26: 0 | BH26: 0 | BI26: 0 | BJ26: 3 | BK26: 3 | BL26: 3 | BM26: 0 | BN26: 0 | BO26: 0 | BP26: 2.865 | BQ26: 2.913 | BR26: 2.961 | BS26: 0 | BT26: 0 | BU26: 0 | BV26: 0 | BW26: 0 | BX26: 0 | BY26: 0 | BZ26: 0 | CA26: 0 | CB26: 0 | CC26: 0 | CD26: 0 | CE26: 7.71 | CF26: 7.758 | CG26: 7.806 | CH26: 1 | CI26: 1 | CJ26: 0 | CK26: 4.595 | CL26: 4.595 | CM26: 0 | CN26: 0 | CO26: 0 | CP26: 0 | CQ26: 3.236 | CR26: 3.269
B27: 10078 | C27: McCleary, City of | D27: 1 | E27: 0 | F27: 3.773 | G27: 3.773 | H27: 3.72 | I27: 3.73 | J27: 3.74 | K27: 0 | L27: 0 | M27: 0 | N27: 0 | O27: 0 | P27: 0 | Q27: 0 | R27: 0 | S27: 0 | T27: 3.72 | U27: 3.73 | V27: 3.74 | W27: 32587.2 | X27: 32674.8 | Y27: 32852.16 | Z27: 3.739 | AA27: 32753.64 | AB27: 32753.64 | AC27: 32843.376 | AD27: 0 | AE27: 0 | AF27: 0.001 | AG27: 0 | AH27: 0 | AI27: 0 | AJ27: 0 | AK27: 0 | AL27: 0.001 | AM27: 0 | AN27: 0 | AO27: 0 | AP27: 0 | AQ27: 0 | AR27: 0 | AS27: 0.0005232 | AT27: 0.0005246 | AU27: 0.0005259 | AV27: 0 | AW27: 0.0005232 | AX27: 0.0005246 | AY27: 0.0005259 | AZ27: 0.0005245666667 | BA27: 0.9999240877 | BB27: 0.9999117907 | BC27: 0.9997094644 | BD27: 1 | BE27: 1 | BF27: 1.000267451 | BG27: 0 | BH27: 0 | BI27: 0 | BJ27: 3 | BK27: 3 | BL27: 3 | BM27: 0 | BN27: 0 | BO27: 0 | BP27: 0 | BQ27: 0 | BR27: 0 | BS27: 0 | BT27: 0 | BU27: 0 | BV27: 0 | BW27: 0 | BX27: 0 | BY27: 0 | BZ27: 0 | CA27: 0 | CB27: 0 | CC27: 0 | CD27: 0 | CE27: 3.72 | CF27: 3.73 | CG27: 3.74 | CH27: 1 | CI27: 1 | CJ27: 0 | CK27: 3.883 | CL27: 3.921 | CM27: 0 | CN27: 0 | CO27: 0 | CP27: 0 | CQ27: 0 | CR27: 0
B28: 10079 | C28: McMinnville, City of | D28: 1 | E28: 0 | F28: 89.494 | G28: 89.494 | H28: 87.28 | I28: 87.498 | J28: 87.485 | K28: 0 | L28: 0 | M28: 0 | N28: 2.933 | O28: 2.933 | P28: 2.929 | Q28: 25693.08 | R28: 25693.08 | S28: 25728.336 | T28: 84.347 | U28: 84.565 | V28: 84.556 | W28: 738879.72 | X28: 740789.4 | Y28: 742739.904 | Z28: 88.687 | AA28: 776898.12 | AB28: 776898.12 | AC28: 779026.608 | AD28: 0 | AE28: 0 | AF28: 0 | AG28: 0 | AH28: 0 | AI28: 0 | AJ28: 0 | AK28: 0 | AL28: 0 | AM28: 0 | AN28: 0 | AO28: 0 | AP28: 0 | AQ28: 0 | AR28: 0 | AS28: 0.0118639 | AT28: 0.0118946 | AU28: 0.0118933 | AV28: 0 | AW28: 0.0118639 | AX28: 0.0118946 | AY28: 0.0118933 | AZ28: 0.01188393333 | BA28: 1 | BB28: 1 | BC28: 1 | BD28: 1 | BE28: 1 | BF28: 1 | BG28: 0 | BH28: 0 | BI28: 0 | BJ28: 3 | BK28: 3 | BL28: 3 | BM28: 3.253 | BN28: 3.019 | BO28: 2.795 | BP28: 0 | BQ28: 0 | BR28: 0 | BS28: 3.253 | BT28: 3.019 | BU28: 2.795 | BV28: -3.253 | BW28: -3.019 | BX28: -2.795 | BY28: 0 | BZ28: 0 | CA28: 0 | CB28: -3.253 | CC28: -3.019 | CD28: -2.795 | CE28: 84.347 | CF28: 84.565 | CG28: 84.556 | CH28: 0 | CI28: 1 | CJ28: 0 | CK28: 81.204 | CL28: 81.414 | CM28: 0 | CN28: 0 | CO28: 0 | CP28: 0 | CQ28: 0 | CR28: 0
B29: 10080 | C29: Milton, Town of | D29: 1 | E29: 0 | F29: 7.548 | G29: 7.548 | H29: 6.665 | I29: 6.668 | J29: 6.67 | K29: 0 | L29: 0 | M29: 0 | N29: 0 | O29: 0 | P29: 0 | Q29: 0 | R29: 0 | S29: 0 | T29: 6.665 | U29: 6.668 | V29: 6.67 | W29: 58385.4 | X29: 58411.68 | Y29: 58589.28 | Z29: 7.48 | AA29: 65524.8 | AB29: 65524.8 | AC29: 65704.32 | AD29: 0 | AE29: 0 | AF29: 0 | AG29: 0 | AH29: 0 | AI29: 0 | AJ29: 0 | AK29: 0 | AL29: 0 | AM29: 0 | AN29: 0 | AO29: 0 | AP29: 0 | AQ29: 0 | AR29: 0 | AS29: 0.0009375 | AT29: 0.0009379 | AU29: 0.0009382 | AV29: 0 | AW29: 0.0009375 | AX29: 0.0009379 | AY29: 0.0009382 | AZ29: 0.0009378666667 | BA29: 1 | BB29: 1 | BC29: 1 | BD29: 1 | BE29: 1 | BF29: 1 | BG29: 0 | BH29: 0 | BI29: 0 | BJ29: 1 | BK29: 1 | BL29: 1 | BM29: 0 | BN29: 0 | BO29: 0 | BP29: 0 | BQ29: 0 | BR29: 0 | BS29: 0 | BT29: 0 | BU29: 0 | BV29: 0 | BW29: 0 | BX29: 0 | BY29: 0 | BZ29: 0 | CA29: 0 | CB29: 0 | CC29: 0 | CD29: 0 | CE29: 6.665 | CF29: 6.668 | CG29: 6.67 | CH29: 0 | CI29: 1 | CJ29: 0 | CK29: 6.86 | CL29: 6.863 | CM29: 0 | CN29: 0 | CO29: 0 | CP29: 0 | CQ29: 0 | CR29: 0
B30: 10081 | C30: Milton-Freewater, City of | D30: 1 | E30: 0 | F30: 10.611 | G30: 10.611 | H30: 12.277 | I30: 12.277 | J30: 12.272 | K30: 0 | L30: 0 | M30: 0 | N30: 2.933 | O30: 2.933 | P30: 2.929 | Q30: 25693.08 | R30: 25693.08 | S30: 25728.336 | T30: 9.344 | U30: 9.344 | V30: 9.343 | W30: 81853.44 | X30: 81853.44 | Y30: 82068.912 | Z30: 10.515 | AA30: 92111.4 | AB30: 92111.4 | AC30: 92363.76 | AD30: 0 | AE30: 0 | AF30: 0 | AG30: 0 | AH30: 0 | AI30: 0 | AJ30: 0 | AK30: 0 | AL30: 0 | AM30: 0 | AN30: 0 | AO30: 0 | AP30: 0 | AQ30: 0 | AR30: 0 | AS30: 0.0013143 | AT30: 0.0013143 | AU30: 0.0013141 | AV30: 0 | AW30: 0.0013143 | AX30: 0.0013143 | AY30: 0.0013141 | AZ30: 0.001314233333 | BA30: 1 | BB30: 1 | BC30: 0.9999724807 | BD30: 1 | BE30: 1 | BF30: 1 | BG30: 0 | BH30: 0 | BI30: 0 | BJ30: 3 | BK30: 3 | BL30: 3 | BM30: 0 | BN30: 0 | BO30: 0 | BP30: 0 | BQ30: 0 | BR30: 0 | BS30: 0 | BT30: 0 | BU30: 0 | BV30: 0 | BW30: 0 | BX30: 0 | BY30: 0 | BZ30: 0 | CA30: 0 | CB30: 0 | CC30: 0 | CD30: 0 | CE30: 9.344 | CF30: 9.344 | CG30: 9.343 | CH30: 1 | CI30: 1 | CJ30: 0 | CK30: 9.223 | CL30: 9.224 | CM30: 0 | CN30: 0 | CO30: 0 | CP30: 0 | CQ30: 0 | CR30: 0
B31: 10082 | C31: Minidoka, City of | D31: 1 | E31: 0 | F31: 0.12 | G31: 0.12 | H31: 0.116 | I31: 0.116 | J31: 0.115 | K31: 0 | L31: 0 | M31: 0 | N31: 0 | O31: 0 | P31: 0 | Q31: 0 | R31: 0 | S31: 0 | T31: 0.116 | U31: 0.116 | V31: 0.115 | W31: 1016.16 | X31: 1016.16 | Y31: 1010.16 | Z31: 0.119 | AA31: 1042.44 | AB31: 1042.44 | AC31: 1045.296 | AD31: 0 | AE31: 0 | AF31: 0 | AG31: 0 | AH31: 0 | AI31: 0 | AJ31: 0 | AK31: 0 | AL31: 0 | AM31: 0 | AN31: 0 | AO31: 0 | AP31: 0 | AQ31: 0 | AR31: 0 | AS31: 1.63e-05 | AT31: 1.63e-05 | AU31: 1.62e-05 | AV31: 0 | AW31: 1.63e-05 | AX31: 1.63e-05 | AY31: 1.62e-05 | AZ31: 1.626666667e-05 | BA31: 0.9990146345 | BB31: 0.9990146345 | BC31: 1 | BD31: 1 | BE31: 1 | BF31: 1 | BG31: 0 | BH31: 0 | BI31: 0 | BJ31: 1 | BK31: 1 | BL31: 1 | BM31: 0 | BN31: 0 | BO31: 0 | BP31: 0 | BQ31: 0 | BR31: 0 | BS31: 0 | BT31: 0 | BU31: 0 | BV31: 0 | BW31: 0 | BX31: 0 | BY31: 0 | BZ31: 0 | CA31: 0 | CB31: 0 | CC31: 0 | CD31: 0 | CE31: 0.116 | CF31: 0.116 | CG31: 0.115 | CH31: 0 | CI31: 1 | CJ31: 0 | CK31: 0.095 | CL31: 0.095 | CM31: 0 | CN31: 0 | CO31: 0 | CP31: 0 | CQ31: 0 | CR31: 0
... 37 more rows

Sheet TRL
B1: Total Retail Load (MWh)
D2: 2021-10-01 | E2: 2021-10-01 | F2: 2021-11-01 | G2: 2021-11-01 | H2: 2021-12-01 | I2: 2021-12-01 | J2: 2022-01-01 | K2: 2022-01-01 | L2: 2022-02-01 | M2: 2022-02-01 | N2: 2022-03-01 | O2: 2022-03-01 | P2: 2022-04-01 | Q2: 2022-04-01 | R2: 2022-05-01 | S2: 2022-05-01 | T2: 2022-06-01 | U2: 2022-06-01 | V2: 2022-07-01 | W2: 2022-07-01 | X2: 2022-08-01 | Y2: 2022-08-01 | Z2: 2022-09-01 | AA2: 2022-09-01 | AB2: 2022-10-01 | AC2: 2022-10-01 | AD2: 2022-11-01 | AE2: 2022-11-01 | AF2: 2022-12-01 | AG2: 2022-12-01 | AH2: 2023-01-01 | AI2: 2023-01-01 | AJ2: 2023-02-01 | AK2: 2023-02-01 | AL2: 2023-03-01 | AM2: 2023-03-01 | AN2: 2023-04-01 | AO2: 2023-04-01 | AP2: 2023-05-01 | AQ2: 2023-05-01 | AR2: 2023-06-01 | AS2: 2023-06-01 | AT2: 2023-07-01 | AU2: 2023-07-01 | AV2: 2023-08-01 | AW2: 2023-08-01 | AX2: 2023-09-01 | AY2: 2023-09-01 | AZ2: 2023-10-01 | BA2: 2023-10-01 | BB2: 2023-11-01 | BC2: 2023-11-01 | BD2: 2023-12-01 | BE2: 2023-12-01 | BF2: 2024-01-01 | BG2: 2024-01-01 | BH2: 2024-02-01 | BI2: 2024-02-01 | BJ2: 2024-03-01 | BK2: 2024-03-01 | BL2: 2024-04-01 | BM2: 2024-04-01 | BN2: 2024-05-01 | BO2: 2024-05-01 | BP2: 2024-06-01 | BQ2: 2024-06-01 | BR2: 2024-07-01 | BS2: 2024-07-01 | BT2: 2024-08-01 | BU2: 2024-08-01 | BV2: 2024-09-01 | BW2: 2024-09-01 | BX2: 2024-10-01 | BY2: 2024-10-01 | BZ2: 2024-11-01 | CA2: 2024-11-01 | CB2: 2024-12-01 | CC2: 2024-12-01 | CD2: 2025-01-01 | CE2: 2025-01-01 | CF2: 2025-02-01 | CG2: 2025-02-01 | CH2: 2025-03-01 | CI2: 2025-03-01 | CJ2: 2025-04-01 | CK2: 2025-04-01 | CL2: 2025-05-01 | CM2: 2025-05-01 | CN2: 2025-06-01 | CO2: 2025-06-01 | CP2: 2025-07-01 | CQ2: 2025-07-01 | CR2: 2025-08-01 | CS2: 2025-08-01 | CT2: 2025-09-01 | CU2: 2025-09-01 | CV2: =+EOMONTH(CT2,0)+1 -> 2025-10-01 | CW2: =+EOMONTH(CU2,0)+1 -> 2025-10-01 | CX2: =+EOMONTH(CV2,0)+1 -> 2025-11-01 | CY2: 2025-11-01 | CZ2: 2025-12-01 | DA2: 2025-12-01 | DB2: 2026-01-01 | DC2: 2026-01-01 | DD2: 2026-02-01 | DE2: 2026-02-01 | DF2: 2026-03-01 | DG2: 2026-03-01 | DH2: 2026-04-01 | DI2: 2026-04-01 | DJ2: 2026-05-01 | DK2: 2026-05-01 | DL2: 2026-06-01 | DM2: 2026-06-01 | DN2: 2026-07-01 | DO2: 2026-07-01 | DP2: 2026-08-01 | DQ2: 2026-08-01 | DR2: 2026-09-01 | DS2: 2026-09-01 | DT2: 2026-10-01 | DU2: 2026-10-01 | DV2: 2026-11-01 | DW2: 2026-11-01 | DX2: 2026-12-01 | DY2: 2026-12-01 | DZ2: 2027-01-01 | EA2: 2027-01-01 | EB2: 2027-02-01 | EC2: 2027-02-01 | ED2: 2027-03-01 | EE2: 2027-03-01 | EF2: 2027-04-01 | EG2: 2027-04-01 | EH2: 2027-05-01 | EI2: 2027-05-01 | EJ2: 2027-06-01 | EK2: 2027-06-01 | EL2: 2027-07-01 | EM2: 2027-07-01 | EN2: 2027-08-01 | EO2: 2027-08-01 | EP2: =+EOMONTH(EN2,0)+1 -> 2027-09-01 | EQ2: =+EOMONTH(EO2,0)+1 -> 2027-09-01 | ER2: =+EOMONTH(EP2,0)+1 -> 2027-10-01 | ES2: =+EOMONTH(EQ2,0)+1 -> 2027-10-01 | ET2: =+EOMONTH(ER2,0)+1 -> 2027-11-01 | EU2: =+EOMONTH(ES2,0)+1 -> 2027-11-01 | EV2: =+EOMONTH(ET2,0)+1 -> 2027-12-01 | EW2: =+EOMONTH(EU2,0)+1 -> 2027-12-01 | EX2: =+EOMONTH(EV2,0)+1 -> 2028-01-01 | EY2: =+EOMONTH(EW2,0)+1 -> 2028-01-01 | EZ2: =+EOMONTH(EX2,0)+1 -> 2028-02-01 | FA2: =+EOMONTH(EY2,0)+1 -> 2028-02-01 | FB2: =+EOMONTH(EZ2,0)+1 -> 2028-03-01 | FC2: =+EOMONTH(FA2,0)+1 -> 2028-03-01 | FD2: =+EOMONTH(FB2,0)+1 -> 2028-04-01 | FE2: =+EOMONTH(FC2,0)+1 -> 2028-04-01 | FF2: =+EOMONTH(FD2,0)+1 -> 2028-05-01 | FG2: =+EOMONTH(FE2,0)+1 -> 2028-05-01 | FH2: =+EOMONTH(FF2,0)+1 -> 2028-06-01 | FI2: =+EOMONTH(FG2,0)+1 -> 2028-06-01 | FJ2: =+EOMONTH(FH2,0)+1 -> 2028-07-01 | FK2: =+EOMONTH(FI2,0)+1 -> 2028-07-01 | FL2: =+EOMONTH(FJ2,0)+1 -> 2028-08-01 | FM2: =+EOMONTH(FK2,0)+1 -> 2028-08-01 | FN2: =+EOMONTH(FL2,0)+1 -> 2028-09-01 | FO2: =+EOMONTH(FM2,0)+1 -> 2028-09-01
B3: BESID | C3: AccountName | D3: HLH | E3: LLH | F3: HLH | G3: LLH | H3: HLH | I3: LLH | J3: HLH | K3: LLH | L3: HLH | M3: LLH | N3: HLH | O3: LLH | P3: HLH | Q3: LLH | R3: HLH | S3: LLH | T3: HLH | U3: LLH | V3: HLH | W3: LLH | X3: HLH | Y3: LLH | Z3: HLH | AA3: LLH | AB3: HLH | AC3: LLH | AD3: HLH | AE3: LLH | AF3: HLH | AG3: LLH | AH3: HLH | AI3: LLH | AJ3: HLH | AK3: LLH | AL3: HLH | AM3: LLH | AN3: HLH | AO3: LLH | AP3: HLH | AQ3: LLH | AR3: HLH | AS3: LLH | AT3: HLH | AU3: LLH | AV3: HLH | AW3: LLH | AX3: HLH | AY3: LLH | AZ3: HLH | BA3: LLH | BB3: HLH | BC3: LLH | BD3: HLH | BE3: LLH | BF3: HLH | BG3: LLH | BH3: HLH | BI3: LLH | BJ3: HLH | BK3: LLH | BL3: HLH | BM3: LLH | BN3: HLH | BO3: LLH | BP3: HLH | BQ3: LLH | BR3: HLH | BS3: LLH | BT3: HLH | BU3: LLH | BV3: HLH | BW3: LLH | BX3: HLH | BY3: LLH | BZ3: HLH | CA3: LLH | CB3: HLH | CC3: LLH | CD3: HLH | CE3: LLH | CF3: HLH | CG3: LLH | CH3: HLH | CI3: LLH | CJ3: HLH | CK3: LLH | CL3: HLH | CM3: LLH | CN3: HLH | CO3: LLH | CP3: HLH | CQ3: LLH | CR3: HLH | CS3: LLH | CT3: HLH | CU3: LLH | CV3: =+CT3 -> HLH | CW3: =+CU3 -> LLH | CX3: =+CV3 -> HLH | CY3: LLH | CZ3: HLH | DA3: LLH | DB3: HLH | DC3: LLH | DD3: HLH | DE3: LLH | DF3: HLH | DG3: LLH | DH3: HLH | DI3: LLH | DJ3: HLH | DK3: LLH | DL3: HLH | DM3: LLH | DN3: HLH | DO3: LLH | DP3: HLH | DQ3: LLH | DR3: HLH | DS3: LLH | DT3: HLH | DU3: LLH | DV3: HLH | DW3: LLH | DX3: HLH | DY3: LLH | DZ3: HLH | EA3: LLH | EB3: HLH | EC3: LLH | ED3: HLH | EE3: LLH | EF3: HLH | EG3: LLH | EH3: HLH | EI3: LLH | EJ3: HLH | EK3: LLH | EL3: HLH | EM3: LLH | EN3: HLH | EO3: LLH | EP3: =+EN3 -> HLH | EQ3: =+EO3 -> LLH | ER3: =+EP3 -> HLH | ES3: =+EQ3 -> LLH | ET3: =+ER3 -> HLH | EU3: =+ES3 -> LLH | EV3: =+ET3 -> HLH | EW3: =+EU3 -> LLH | EX3: =+EV3 -> HLH | EY3: =+EW3 -> LLH | EZ3: =+EX3 -> HLH | FA3: =+EY3 -> LLH | FB3: =+EZ3 -> HLH | FC3: =+FA3 -> LLH | FD3: =+FB3 -> HLH | FE3: =+FC3 -> LLH | FF3: =+FD3 -> HLH | FG3: =+FE3 -> LLH | FH3: =+FF3 -> HLH | FI3: =+FG3 -> LLH | FJ3: =+FH3 -> HLH | FK3: =+FI3 -> LLH | FL3: =+FJ3 -> HLH | FM3: =+FK3 -> LLH | FN3: =+FL3 -> HLH | FO3: =+FM3 -> LLH
B4: 10015 | C4: Asotin County PUD #1 | D4: 153.537 | E4: 126.395 | F4: 88.894 | G4: 64.995 | H4: 91.014 | I4: 70.412 | J4: 102.65 | K4: 63.261 | L4: 79.611 | M4: 60.773 | N4: 105.019 | O4: 62.116 | P4: 159.479 | Q4: 101.58 | R4: 262.877 | S4: 247.764 | T4: 388.938 | U4: 337.909 | V4: 533.1 | W4: 479.193 | X4: 510.388 | Y4: 430.571 | Z4: 283.02 | AA4: 306.63 | AB4: 153.537 | AC4: 126.395 | AD4: 88.894 | AE4: 64.995 | AF4: 91.014 | AG4: 70.412 | AH4: 102.65 | AI4: 63.261 | AJ4: 79.611 | AK4: 60.773 | AL4: 105.019 | AM4: 62.116 | AN4: 159.479 | AO4: 101.58 | AP4: 262.877 | AQ4: 247.764 | AR4: 388.938 | AS4: 337.909 | AT4: 533.1 | AU4: 479.193 | AV4: 510.388 | AW4: 430.571 | AX4: 283.02 | AY4: 306.63 | AZ4: 153.537 | BA4: 126.395 | BB4: 88.894 | BC4: 64.995 | BD4: 91.014 | BE4: 70.412 | BF4: 102.65 | BG4: 63.261 | BH4: 82.455 | BI4: 62.944 | BJ4: 105.019 | BK4: 62.116 | BL4: 159.479 | BM4: 101.58 | BN4: 262.877 | BO4: 247.764 | BP4: 388.938 | BQ4: 337.909 | BR4: 533.1 | BS4: 479.193 | BT4: 510.388 | BU4: 430.571 | BV4: 283.02 | BW4: 306.63 | BX4: 153.537 | BY4: 126.395 | BZ4: 88.894 | CA4: 64.995 | CB4: 91.014 | CC4: 70.412 | CD4: 102.65 | CE4: 63.261 | CF4: 79.611 | CG4: 60.773 | CH4: 105.019 | CI4: 62.116 | CJ4: 159.479 | CK4: 101.58 | CL4: 262.877 | CM4: 247.764 | CN4: 388.938 | CO4: 337.909 | CP4: 533.1 | CQ4: 479.193 | CR4: 510.388 | CS4: 430.571 | CT4: 283.02 | CU4: 306.63 | CV4: 232.205 | CW4: 191.156 | CX4: 169.419 | CY4: 123.872 | CZ4: 171.945 | DA4: 133.024 | DB4: 191.46 | DC4: 117.994 | DD4: 153.704 | DE4: 117.335 | DF4: 195.078 | DG4: 115.383 | DH4: 240.922 | DI4: 153.456 | DJ4: 330.666 | DK4: 311.655 | DL4: 437.57 | DM4: 380.162 | DN4: 596.157 | DO4: 535.873 | DP4: 573.687 | DQ4: 483.972 | DR4: 342.67 | DS4: 371.256 | DT4: 232.205 | DU4: 191.156 | DV4: 169.419 | DW4: 123.872 | DX4: 171.945 | DY4: 133.024 | DZ4: 191.46 | EA4: 117.994 | EB4: 153.704 | EC4: 117.335 | ED4: 195.078 | EE4: 115.383 | EF4: 240.922 | EG4: 153.456 | EH4: 330.666 | EI4: 311.655 | EJ4: 437.57 | EK4: 380.162 | EL4: 596.157 | EM4: 535.873 | EN4: 573.687 | EO4: 483.972 | EP4: 342.67 | EQ4: 371.256 | ER4: 232.205 | ES4: 191.156 | ET4: 169.419 | EU4: 123.872 | EV4: 171.945 | EW4: 133.024 | EX4: 191.46 | EY4: 117.994 | EZ4: 158.984 | FA4: 121.365 | FB4: 195.078 | FC4: 115.383 | FD4: 240.922 | FE4: 153.456 | FF4: 330.666 | FG4: 311.655 | FH4: 437.57 | FI4: 380.162 | FJ4: 596.157 | FK4: 535.873 | FL4: 573.687 | FM4: 483.972 | FN4: 342.67 | FO4: 371.256
B5: 10024 | C5: Benton County PUD #1 | D5: 76456.023 | E5: 46327.875 | F5: 73041.203 | G5: 51991.094 | H5: 92563.891 | I5: 66672.313 | J5: 90704.43 | K5: 65718.07 | L5: 73646.703 | M5: 49739.898 | N5: 71650.414 | O5: 46642.883 | P5: 80391.141 | Q5: 49137.656 | R5: 97044.297 | S5: 66520 | T5: 118688.492 | U5: 75627.414 | V5: 135120.375 | W5: 91125.422 | X5: 121308.047 | Y5: 73594.953 | Z5: 76343.367 | AA5: 49256.93 | AB5: 76542.578 | AC5: 46380.32 | AD5: 72993.422 | AE5: 51957.078 | AF5: 92151.289 | AG5: 66375.117 | AH5: 90368.977 | AI5: 65475.023 | AJ5: 73547.195 | AK5: 49672.703 | AL5: 71760.719 | AM5: 46714.68 | AN5: 80558.344 | AO5: 49239.859 | AP5: 97199.391 | AQ5: 66626.313 | AR5: 118827.008 | AS5: 75715.695 | AT5: 135205.422 | AU5: 91182.781 | AV5: 121400.539 | AW5: 73651.055 | AX5: 76522.258 | AY5: 49372.344 | AZ5: 74943.727 | BA5: 45411.516 | BB5: 69721.969 | BC5: 49628.445 | BD5: 92794.141 | BE5: 66838.156 | BF5: 90293.898 | BG5: 65420.617 | BH5: 71104.703 | BI5: 48023.07 | BJ5: 74919.906 | BK5: 48771.242 | BL5: 74999.695 | BM5: 45842.227 | BN5: 93557.938 | BO5: 64130.25 | BP5: 116436.969 | BQ5: 74192.781 | BR5: 133922.875 | BS5: 90317.828 | BT5: 119949.648 | BU5: 72770.836 | BV5: 76564.281 | BW5: 49399.461 | BX5: 75176.258 | BY5: 45552.414 | BZ5: 69881.367 | CA5: 49741.914 | CB5: 92673.508 | CC5: 66751.273 | CD5: 90255.469 | CE5: 65392.781 | CF5: 71046.922 | CG5: 47984.047 | CH5: 75093.992 | CI5: 48884.578 | CJ5: 75208.242 | CK5: 45969.695 | CL5: 93754.453 | CM5: 64264.938 | CN5: 116630.523 | CO5: 74316.102 | CP5: 134122.391 | CQ5: 90452.391 | CR5: 120108.977 | CS5: 72867.492 | CT5: 76703.234 | CU5: 49489.117 | CV5: 77412 | CW5: 48583.539 | CX5: 72480.281 | CY5: 52729.055 | CZ5: 87229.523 | DA5: 64196.477 | DB5: 83873.383 | DC5: 61166.82 | DD5: 78116.125 | DE5: 54118.234 | DF5: 76919.172 | DG5: 51343.398 | DH5: 79113.641 | DI5: 49568.945 | DJ5: 95408.758 | DK5: 67318.68 | DL5: 123931.438 | DM5: 76298.219 | DN5: 138940.5 | DO5: 93862.563 | DP5: 126417.711 | DQ5: 76250.648 | DR5: 81797.727 | DS5: 54633.852 | DT5: 77872.188 | DU5: 48872.352 | DV5: 72842.969 | DW5: 52992.906 | DX5: 87285.031 | DY5: 64237.328 | DZ5: 83983.57 | EA5: 61247.18 | EB5: 78451.898 | EC5: 54350.852 | ED5: 77332.883 | EE5: 51619.563 | EF5: 79582.82 | EG5: 49862.914 | EH5: 95889.148 | EI5: 67657.648 | EJ5: 124459.898 | EK5: 76623.555 | EL5: 139494.266 | EM5: 94236.656 | EN5: 126946.539 | EO5: 76569.617 | EP5: 82241.602 | EQ5: 54930.32 | ER5: 78337.594 | ES5: 49164.438 | ET5: 73203.758 | EU5: 53255.383 | EV5: 87329.242 | EW5: 64269.867 | EX5: 83791.711 | EY5: 61107.258 | EZ5: 80575.688 | FA5: 55822.203 | FB5: 77405.961 | FC5: 51668.336 | FD5: 79709.453 | FE5: 49942.25 | FF5: 96047.406 | FG5: 67769.313 | FH5: 124675.203 | FI5: 76756.094 | FJ5: 139772.547 | FK5: 94424.641 | FL5: 127172.672 | FM5: 76706 | FN5: 82356.383 | FO5: 55006.977
B6: 10025 | C6: Benton REA | D6: 27591.42 | E6: 17806.939 | F6: 23445.393 | G6: 17632.041 | H6: 27469.689 | I6: 22358.666 | J6: 28434.082 | K6: 20706.141 | L6: 22175.17 | M6: 15258.787 | N6: 22737.133 | O6: 16559.074 | P6: 23259.805 | Q6: 15290.281 | R6: 30025.232 | S6: 20529.295 | T6: 33954.594 | U6: 23935.639 | V6: 39573.855 | W6: 26682.043 | X6: 37355.801 | Y6: 23970.895 | Z6: 28390.693 | AA6: 21913.799 | AB6: 28061.531 | AC6: 18088.965 | AD6: 23832.1 | AE6: 17919.908 | AF6: 27781.33 | AG6: 22608.826 | AH6: 28659.814 | AI6: 20870.557 | AJ6: 22447.623 | AK6: 15446.217 | AL6: 23039.689 | AM6: 16779.393 | AN6: 23602.096 | AO6: 15515.893 | AP6: 30431.785 | AQ6: 20807.547 | AR6: 34393.523 | AS6: 24245.764 | AT6: 40052.801 | AU6: 27005.191 | AV6: 37814.371 | AW6: 24265.43 | AX6: 28783.879 | AY6: 22218.211 | AZ6: 26497.182 | BA6: 17704.635 | BB6: 22645.314 | BC6: 17271.979 | BD6: 27037.705 | BE6: 20911.033 | BF6: 26669.256 | BG6: 20289.479 | BH6: 20754.172 | BI6: 15202.773 | BJ6: 22229.912 | BK6: 15552.838 | BL6: 22101.455 | BM6: 15022.721 | BN6: 28303.74 | BO6: 20343.244 | BP6: 33856.871 | BQ6: 21814.664 | BR6: 37238.117 | BS6: 26393.172 | BT6: 36332.266 | BU6: 22518.68 | BV6: 27914.09 | BW6: 20416.305 | BX6: 26580.818 | BY6: 17760.518 | BZ6: 22715.324 | CA6: 17325.375 | CB6: 27001.578 | CC6: 20883.094 | CD6: 26557.75 | CE6: 20204.648 | CF6: 20742.229 | CG6: 15194.025 | CH6: 22238.461 | CI6: 15558.82 | CJ6: 22137.662 | CK6: 15047.334 | CL6: 28342.25 | CM6: 20370.926 | CN6: 33900.68 | CO6: 21842.887 | CP6: 37264.836 | CQ6: 26412.109 | CR6: 36352.742 | CS6: 22531.371 | CT6: 27942.398 | CU6: 20437.008 | CV6: 31190.311 | CW6: 20301.811 | CX6: 25604.018 | CY6: 21630.268 | CZ6: 34155.219 | DA6: 24747.113 | DB6: 32682.537 | DC6: 24098.33 | DD6: 25017.492 | DE6: 17862.773 | DF6: 25572.168 | DG6: 19287.316 | DH6: 28407.383 | DI6: 19051.344 | DJ6: 31364.74 | DK6: 24077.65 | DL6: 37743.141 | DM6: 23680.727 | DN6: 41328.426 | DO6: 27942.355 | DP6: 39055.016 | DQ6: 26382.629 | DR6: 31775.127 | DS6: 22336.682 | DT6: 31555.865 | DU6: 20539.752 | DV6: 25878.082 | DW6: 21861.801 | DX6: 34322.582 | DY6: 24868.375 | DZ6: 31432.352 | EA6: 25588.477 | EB6: 25221.262 | EC6: 18008.266 | ED6: 26925.463 | EE6: 18370.771 | EF6: 28707.582 | EG6: 19252.676 | EH6: 31689.814 | EI6: 24327.201 | EJ6: 38122.07 | EK6: 23918.477 | EL6: 41723.398 | EM6: 28209.398 | EN6: 39405.984 | EO6: 26619.719 | EP6: 32042.453 | EQ6: 22524.598 | ER6: 30521.582 | ES6: 21976.703 | ET6: 27229.367 | EU6: 20778.27 | EV6: 34326.609 | EW6: 24871.293 | EX6: 31602.023 | EY6: 25726.598 | EZ6: 26333.881 | FA6: 18516.865 | FB6: 27158.785 | FC6: 18529.961 | FD6: 27736.855 | FE6: 20634.801 | FF6: 33312.309 | FG6: 23143.016 | FH6: 38394.469 | FI6: 24089.387 | FJ6: 40338.809 | FK6: 30149.816 | FL6: 41352.926 | FM6: 25219.145 | FN6: 32319.422 | FO6: 22719.301
B7: 10027 | C7: Big Bend Elec Coop | D7: 23616.064 | E7: 16018.583 | F7: 15556.135 | G7: 11521.268 | H7: 18588.633 | I7: 13756.594 | J7: 18472.557 | K7: 13597.803 | L7: 15475.735 | M7: 10807.876 | N7: 14530.353 | O7: 9735.968 | P7: 19890.738 | Q7: 13263.612 | R7: 37430.484 | S7: 28198.912 | T7: 49519.953 | U7: 34259.688 | V7: 48666.66 | W7: 36655.766 | X7: 44233.012 | Y7: 29921.9 | Z7: 32366.777 | AA7: 24443.57 | AB7: 23753.238 | AC7: 16111.62 | AD7: 15688.392 | AE7: 11619.22 | AF7: 18720.936 | AG7: 13854.504 | AH7: 18605.158 | AI7: 13695.412 | AJ7: 15611.282 | AK7: 10902.538 | AL7: 14668.199 | AM7: 9828.33 | AN7: 20028.867 | AO7: 13355.694 | AP7: 37561.746 | AQ7: 28297.854 | AR7: 49656.047 | AS7: 34353.805 | AT7: 48797.945 | AU7: 36754.691 | AV7: 44370.348 | AW7: 30014.768 | AX7: 32497.98 | AY7: 24542.578 | AZ7: 24282.41 | BA7: 16542.656 | BB7: 16261.106 | BC7: 12006.714 | BD7: 19270.881 | BE7: 14264.768 | BF7: 19144.5 | BG7: 14116.281 | BH7: 16574.203 | BI7: 11566.521 | BJ7: 15247.51 | BK7: 10209.229 | BL7: 20616.037 | BM7: 13728.731 | BN7: 38086.125 | BO7: 28733.686 | BP7: 50258.262 | BQ7: 34711.801 | BR7: 49376.004 | BS7: 37136.844 | BT7: 44928.625 | BU7: 30416.701 | BV7: 33068.781 | BW7: 24931.984 | BX7: 24419.34 | BY7: 16635.938 | BZ7: 16393.533 | CA7: 12104.496 | CB7: 19403.168 | CC7: 14362.688 | CD7: 19277.006 | CE7: 14213.982 | CF7: 16317.124 | CG7: 11387.114 | CH7: 15385.395 | CI7: 10301.553 | CJ7: 20754.238 | CK7: 13820.741 | CL7: 38217.313 | CM7: 28832.709 | CN7: 50394.453 | CO7: 34805.813 | CP7: 49507.363 | CQ7: 37235.688 | CR7: 45065.918 | CS7: 30509.619 | CT7: 33200.078 | CU7: 25030.898 | CV7: 26980.105 | CW7: 18841.563 | CX7: 18639.848 | CY7: 14201.43 | CZ7: 20641.404 | DA7: 15769.187 | DB7: 20433.041 | DC7: 15645.315 | DD7: 16439.758 | DE7: 11923.08 | DF7: 17846.639 | DG7: 12421.387 | DH7: 26945.975 | DI7: 18452.26 | DJ7: 40455.031 | DK7: 30910 | DL7: 51130.242 | DM7: 35693.945 | DN7: 52239.949 | DO7: 39803.605 | DP7: 44310.625 | DQ7: 30351.383 | DR7: 31244.938 | DS7: 24287.375 | DT7: 27478.604 | DU7: 19180.455 | DV7: 18985.5 | DW7: 14455.957 | DX7: 21023.777 | DY7: 16052.22 | DZ7: 20811.598 | EA7: 15926.091 | EB7: 16745.025 | EC7: 12136.144 | ED7: 18178.275 | EE7: 12642.898 | EF7: 27443.734 | EG7: 18784.148 | EH7: 41199.449 | EI7: 31469.785 | EJ7: 52069.867 | EK7: 36341.039 | EL7: 53199.73 | EM7: 40525.926 | EN7: 45125.871 | EO7: 30900.59 | EP7: 31820.824 | EQ7: 24726.34 | ER7: 27938.098 | ES7: 19492.832 | ET7: 19286.43 | EU7: 14677.551 | EV7: 21361.801 | EW7: 16302.427 | EX7: 21145.607 | EY7: 16173.827 | EZ7: 17383.869 | FA7: 12598.058 | FB7: 18459.084 | FC7: 12830.461 | FD7: 27904.24 | FE7: 19091.193 | FF7: 41924.508 | FG7: 32015.023 | FH7: 53003.094 | FI7: 36983.711 | FJ7: 54154.77 | FK7: 41244.684 | FL7: 45923.301 | FM7: 31437.793 | FN7: 32368.588 | FO7: 25143.869
B8: 10029 | C8: Blachly Lane Elec Coop | D8: 9364.296 | E8: 5360.448 | F8: 8900.123 | G8: 5364.712 | H8: 10530.587 | I8: 6422.161 | J8: 10911.128 | K8: 6948.458 | L8: 9710.449 | M8: 5578.943 | N8: 10638.438 | O8: 5824.798 | P8: 9677.58 | Q8: 5251.539 | R8: 8315.484 | S8: 5128.628 | T8: 8813.744 | U8: 4704.797 | V8: 8614.854 | W8: 5156.623 | X8: 9207.836 | Y8: 4873.14 | Z8: 8297.97 | AA8: 4670.208 | AB8: 9364.296 | AC8: 5360.448 | AD8: 8900.123 | AE8: 5364.712 | AF8: 10530.587 | AG8: 6422.161 | AH8: 10911.128 | AI8: 6948.458 | AJ8: 9710.449 | AK8: 5578.943 | AL8: 10638.438 | AM8: 5824.798 | AN8: 9396.667 | AO8: 5532.452 | AP8: 8560.294 | AQ8: 4883.818 | AR8: 8813.744 | AS8: 4704.797 | AT8: 8614.854 | AU8: 5156.623 | AV8: 9207.836 | AW8: 4873.14 | AX8: 8297.97 | AY8: 4670.208 | AZ8: 9991.521 | BA8: 5695.811 | BB8: 9507.558 | BC8: 5719.516 | BD8: 10837.093 | BE8: 7077.411 | BF8: 11866.858 | BG8: 6970.827 | BH8: 10751.012 | BI8: 6063.164 | BJ8: 11036.403 | BK8: 6473.219 | BL8: 10314.747 | BM8: 5584.672 | BN8: 9153.612 | BO8: 5219.337 | BP8: 9229.433 | BQ8: 5302.847 | BR8: 9464.484 | BS8: 5231.133 | BT8: 9831.97 | BU8: 5197.569 | BV8: 8664.693 | BW8: 5240.533 | BX8: 10259.65 | BY8: 5427.681 | BZ8: 9507.558 | CA8: 5719.516 | CB8: 10837.093 | CC8: 7077.411 | CD8: 11866.858 | CE8: 6970.827 | CF8: 10349.106 | CG8: 5903.039 | CH8: 11036.403 | CI8: 6473.219 | CJ8: 10314.747 | CK8: 5584.672 | CL8: 9153.612 | CM8: 5219.337 | CN8: 9229.433 | CO8: 5302.847 | CP8: 9464.484 | CQ8: 5231.133 | CR8: 9575.562 | CS8: 5453.977 | CT8: 8908.709 | CU8: 4996.518 | CV8: 10379.005 | CW8: 5554.045 | CX8: 9301.77 | CY8: 6087.869 | CZ8: 11511.356 | DA8: 7045.605 | DB8: 12926.451 | DC8: 7633.938 | DD8: 11091.502 | DE8: 6392.307 | DF8: 11779.136 | DG8: 7002.936 | DH8: 10990.496 | DI8: 6106.488 | DJ8: 9827.087 | DK8: 6035.609 | DL8: 10354.154 | DM8: 5569.043 | DN8: 10315.478 | DO8: 5800.649 | DP8: 10501.102 | DQ8: 5926.267 | DR8: 9720.76 | DS8: 5496.692 | DT8: 11193.243 | DU8: 5982.838 | DV8: 10077.052 | DW8: 6519.176 | DX8: 12301.987 | DY8: 7500.202 | DZ8: 13085.048 | EA8: 8245.433 | EB8: 11541.322 | EC8: 6638.277 | ED8: 12574.796 | EE8: 6976.563 | EF8: 11468.622 | EG8: 6373.814 | EH8: 10329.063 | EI8: 6303.952 | EJ8: 10844.189 | EK8: 5824.539 | EL8: 10809.023 | EM8: 6077.526 | EN8: 11011.285 | EO8: 6186.42 | EP8: 10206.247 | EQ8: 5756.252 | ER8: 11430.251 | ES8: 6516.014 | ET8: 10821.91 | EU8: 6518.754 | EV8: 12789.756 | EW8: 7780.71 | EX8: 13086.374 | EY8: 8246.274 | EZ8: 11945.681 | FA8: 6802.589 | FB8: 12576.188 | FC8: 6977.337 | FD8: 11194.217 | FE8: 6650.318 | FF8: 10575.868 | FG8: 6059.314 | FH8: 10845.553 | FI8: 5825.274 | FJ8: 10560.692 | FK8: 6328.027 | FL8: 11267.613 | FM8: 5932.261 | FN8: 10207.585 | FO8: 5757.012
B9: 10044 | C9: Canby, City of | D9: 9632.176 | E9: 5640.131 | F9: 10354.18 | G9: 6341.374 | H9: 11913.128 | I9: 7174.902 | J9: 11523.938 | K9: 7579.709 | L9: 9915.72 | M9: 5615.697 | N9: 10530.874 | O9: 5692.655 | P9: 9658.257 | Q9: 5218.625 | R9: 8460.366 | S9: 5258.597 | T9: 9385.653 | U9: 5031.239 | V9: 9961.146 | W9: 6178.536 | X9: 10717.621 | Y9: 5609.156 | Z9: 8907.49 | AA9: 5170.499 | AB9: 9665.138 | AC9: 5659.441 | AD9: 10416.269 | AE9: 6379.401 | AF9: 11984.6 | AG9: 7217.947 | AH9: 11593.067 | AI9: 7625.182 | AJ9: 9975.184 | AK9: 5649.369 | AL9: 10594.032 | AM9: 5726.793 | AN9: 9380.252 | AO9: 5585.838 | AP9: 8810.891 | AQ9: 4990.316 | AR9: 9441.929 | AS9: 5061.407 | AT9: 10020.884 | AU9: 6215.587 | AV9: 10781.903 | AW9: 5642.795 | AX9: 8960.898 | AY9: 5201.498 | AZ9: 10456.862 | BA9: 6124.291 | BB9: 10676.819 | BC9: 6537.007 | BD9: 12462.782 | BE9: 8190.686 | BF9: 12867.27 | BG9: 7794.74 | BH9: 11238.717 | BI9: 6305.138 | BJ9: 11115.585 | BK9: 6650.214 | BL9: 10603.74 | BM9: 5757.387 | BN9: 9795.228 | BO9: 5624.52 | BP9: 10039.406 | BQ9: 5931.132 | BR9: 11367.804 | BS9: 6456.271 | BT9: 11750.44 | BU9: 6222.325 | BV9: 9478.985 | BW9: 6057.799 | BX9: 10980.617 | BY9: 5892.934 | BZ9: 10862.372 | CA9: 6643.03 | CB9: 12547.826 | CC9: 8247.128 | CD9: 12955.532 | CE9: 7848.018 | CF9: 10871.764 | CG9: 6181.635 | CH9: 11191.073 | CI9: 6695.507 | CJ9: 10675.629 | CK9: 5796.408 | CL9: 9861.448 | CM9: 5662.25 | CN9: 10107.224 | CO9: 5971.42 | CP9: 11445.131 | CQ9: 6500.14 | CR9: 11464.938 | CS9: 6630.078 | CT9: 9867.418 | CU9: 5774.363 | CV9: 10021.91 | CW9: 5388.103 | CX9: 9681.948 | CY9: 6613.334 | CZ9: 12099.163 | DA9: 7386.225 | DB9: 11893.08 | DC9: 7251.205 | DD9: 10041.679 | DE9: 5781.721 | DF9: 10410.158 | DG9: 6373.322 | DH9: 9719.846 | DI9: 5361.098 | DJ9: 8841.209 | DK9: 5570.987 | DL9: 9682.232 | DM9: 5296.435 | DN9: 10629.362 | DO9: 6137.497 | DP9: 10775.351 | DQ9: 6339.674 | DR9: 9042.009 | DS9: 5344.506 | DT9: 10076.269 | DU9: 5417.327 | DV9: 9730.01 | DW9: 6646.163 | DX9: 12151.062 | DY9: 7417.908 | DZ9: 11525.84 | EA9: 7702.022 | EB9: 10089.585 | EC9: 5809.305 | ED9: 10830.188 | EE9: 6036.87 | EF9: 9771.973 | EG9: 5389.851 | EH9: 8892.481 | EI9: 5603.296 | EJ9: 9734.515 | EK9: 5325.036 | EL9: 10682.351 | EM9: 6168.094 | EN9: 10827.976 | EO9: 6370.635 | EP9: 9092.849 | EQ9: 5374.556 | ER9: 9791.049 | ES9: 5786.127 | ET9: 10148.274 | EU9: 6308.79 | EV9: 12202.958 | EW9: 7449.589 | EX9: 11575.938 | EY9: 7735.5 | EZ9: 10498.301 | FA9: 5958.305 | FB9: 10883.852 | FC9: 6066.783 | FD9: 9480.741 | FE9: 5761.962 | FF9: 9261.58 | FG9: 5317.78 | FH9: 9786.797 | FI9: 5353.636 | FJ9: 10366.184 | FK9: 6567.844 | FL9: 11257.348 | FM9: 6024.853 | FN9: 9143.688 | FO9: 5404.605
B10: 10046 | C10: Central Electric Coop | D10: 35607.613 | E10: 21638.387 | F10: 43213.512 | G10: 29837.953 | H10: 54220.992 | I10: 37304.852 | J10: 49551.91 | K10: 34406.488 | L10: 43278.914 | M10: 28222.156 | N10: 40921.766 | O10: 26258.006 | P10: 38136.313 | Q10: 24134.484 | R10: 38569.375 | S10: 26583.084 | T10: 40375.039 | U10: 24835.592 | V10: 42681.855 | W10: 28119.615 | X10: 43556.707 | Y10: 25967.201 | Z10: 37223.574 | AA10: 24847.096 | AB10: 36330.09 | AC10: 22077.434 | AD10: 43900.66 | AE10: 30312.412 | AF10: 54909.141 | AG10: 37778.313 | AH10: 50237.484 | AI10: 34882.523 | AJ10: 43981.957 | AK10: 28680.609 | AL10: 41629.277 | AM10: 26711.99 | AN10: 38847.648 | AO10: 24584.656 | AP10: 39256.98 | AQ10: 27056.998 | AR10: 41094.207 | AS10: 25277.971 | AT10: 43382.098 | AU10: 28580.938 | AV10: 44284.414 | AW10: 26401.037 | AX10: 37920.152 | AY10: 25312.066 | AZ10: 37895.941 | BA10: 23028.98 | BB10: 39219.129 | BC10: 27079.92 | BD10: 57053.949 | BE10: 39253.977 | BF10: 54134.895 | BG10: 37588.691 | BH10: 42988.406 | BI10: 28032.715 | BJ10: 45353.672 | BK10: 29101.801 | BL10: 41723.813 | BM10: 26404.832 | BN10: 37227.453 | BO10: 25658.191 | BP10: 38316.02 | BQ10: 23569.045 | BR10: 42603.445 | BS10: 28067.951 | BT10: 43471.363 | BU10: 25916.32 | BV10: 34327.273 | BW10: 22913.781 | BX10: 38450.824 | BY10: 23366.176 | BZ10: 39746.875 | CA10: 27444.32 | CB10: 57582.461 | CC10: 39617.602 | CD10: 54661.434 | CE10: 37954.297 | CF10: 42573.727 | CG10: 27762.309 | CH10: 45897.063 | CI10: 29450.473 | CJ10: 42270.141 | CK10: 26750.564 | CL10: 37755.551 | CM10: 26022.17 | CN10: 38868.355 | CO10: 23908.799 | CP10: 43141.25 | CQ10: 28422.266 | CR10: 44030.262 | CS10: 26249.52 | CT10: 34862.258 | CU10: 23270.893 | CV10: 41432.762 | CW10: 25050.047 | CX10: 40512.941 | CY10: 32037.113 | CZ10: 62257.723 | DA10: 42585.086 | DB10: 58600.129 | DC10: 41316.109 | DD10: 45361.391 | DE10: 30595.258 | DF10: 47436.777 | DG10: 34188.109 | DH10: 44421.063 | DI10: 28432.131 | DJ10: 36602.656 | DK10: 27397.656 | DL10: 39075.051 | DM10: 23579.836 | DN10: 42798.805 | DO10: 26968.264 | DP10: 41973.059 | DQ10: 26780.439 | DR10: 34743.301 | DS10: 23236.328 | DT10: 42113.035 | DU10: 25461.338 | DV10: 41101.559 | DW10: 32502.586 | DX10: 62903.078 | DY10: 43026.512 | DZ10: 56696.641 | EA10: 44303.961 | EB10: 45944.957 | EC10: 30988.861 | ED10: 50146.344 | EE10: 32558.02 | EF10: 45056.625 | EG10: 28838.926 | EH10: 37217.316 | EI10: 27857.736 | EJ10: 39722.285 | EK10: 23970.404 | EL10: 43455.23 | EM10: 27381.891 | EN10: 42624.875 | EO10: 27196.322 | EP10: 35361.121 | EQ10: 23649.527 | ER10: 41049.785 | ES10: 27587.629 | ET10: 43611.113 | EU10: 31019.607 | EV10: 63531.637 | EW10: 43456.453 | EX10: 57289.547 | EY10: 44767.266 | EZ10: 48484.305 | FA10: 32182.979 | FB10: 50783.949 | FC10: 32971.98 | FD10: 43729.512 | FE10: 31181.494 | FF10: 39478.66 | FG10: 26643.465 | FH10: 40352.891 | FI10: 24350.947 | FJ10: 42287.559 | FK10: 29592.186 | FL10: 45041.695 | FM10: 25819.893 | FN10: 35963.156 | FO10: 24052.17
B11: 10047 | C11: Central Lincoln PUD | D11: 64525.313 | E11: 45569.957 | F11: 65538.305 | G11: 47388.289 | H11: 81221.016 | I11: 57153.258 | J11: 73935.281 | K11: 57516.68 | L11: 64989.105 | M11: 43667.758 | N11: 72686.648 | O11: 47009.176 | P11: 67098.141 | Q11: 44533.004 | R11: 53650.715 | S11: 41884.594 | T11: 56417.73 | U11: 37281.777 | V11: 55050.125 | W11: 43118.41 | X11: 60581.262 | Y11: 39203.25 | Z11: 54512.363 | AA11: 39490.27 | AB11: 64629.445 | AC11: 45643.496 | AD11: 65644.102 | AE11: 47464.777 | AF11: 81352.148 | AG11: 57245.52 | AH11: 74054.617 | AI11: 57609.508 | AJ11: 65094.012 | AK11: 43738.246 | AL11: 72803.977 | AM11: 47085.063 | AN11: 64629.789 | AO11: 47181.609 | AP11: 55871.355 | AQ11: 39818.184 | AR11: 56508.773 | AS11: 37341.941 | AT11: 55138.957 | AU11: 43187.988 | AV11: 60679.016 | AW11: 39266.508 | AX11: 54600.34 | AY11: 39554 | AZ11: 65346.301 | BA11: 46127.539 | BB11: 66185.555 | BC11: 48099.211 | BD11: 78777.031 | BE11: 60727.375 | BF11: 77755.07 | BG11: 55157.695 | BH11: 69574.039 | BI11: 46218.434 | BJ11: 71821.664 | BK11: 51208.547 | BL11: 67100.258 | BM11: 44832.91 | BN11: 57031.367 | BO11: 40734.07 | BP11: 54272.586 | BQ11: 39515.922 | BR11: 58016.711 | BS11: 41565.656 | BT11: 61222.109 | BU11: 39726.738 | BV11: 53948.281 | BW11: 42948.027 | BX11: 67885.453 | BY11: 43728.277 | BZ11: 66268.617 | CA11: 48159.586 | CB11: 78875.945 | CC11: 60803.621 | CD11: 77852.672 | CE11: 55226.949 | CF11: 66891.367 | CG11: 45048.676 | CH11: 71911.828 | CI11: 51272.832 | CJ11: 67184.477 | CK11: 44889.18 | CL11: 57102.941 | CM11: 40785.191 | CN11: 54340.695 | CO11: 39565.504 | CP11: 58089.504 | CQ11: 41617.805 | CR11: 59073.773 | CS11: 42001.738 | CT11: 56222.988 | CU11: 40794.895 | CV11: 66956.336 | CW11: 43146.27 | CX11: 65361.246 | CY11: 52166.113 | CZ11: 78849.398 | DA11: 55591.156 | DB11: 77116.891 | DC11: 54889.469 | DD11: 67441.883 | DE11: 45495.527 | DF11: 71492.297 | DG11: 51093.613 | DH11: 65577.234 | DI11: 43862.992 | DJ11: 57515.074 | DK11: 45088.371 | DL11: 55840.273 | DM11: 37019.078 | DN11: 56591.012 | DO11: 40545.141 | DP11: 57871.859 | DQ11: 41212.977 | DR11: 56041.723 | DS11: 40547.023 | DT11: 67023.977 | DU11: 43189.852 | DV11: 65426.613 | DW11: 52218.289 | DX11: 78928.414 | DY11: 55646.867 | DZ11: 74247.859 | EA11: 57890.73 | EB11: 67509.367 | EC11: 45541.051 | ED11: 74303.594 | EE11: 48405.074 | EF11: 65642.93 | EG11: 43906.922 | EH11: 57572.633 | EI11: 45133.48 | EJ11: 55896.18 | EK11: 37056.137 | EL11: 56647.664 | EM11: 40585.734 | EN11: 57929.797 | EO11: 41254.242 | EP11: 56097.781 | EQ11: 40587.586 | ER11: 64677.801 | ES11: 45725.926 | ET11: 68249.641 | EU11: 49595.965 | EV11: 79063.336 | EW11: 55741.988 | EX11: 74374.711 | EY11: 57989.637 | EZ11: 70433.914 | FA11: 46853.875 | FB11: 74430.508 | FC11: 48487.766 | FD11: 63226.719 | FE11: 46510.305 | FF11: 59964.844 | FG11: 42916.59 | FH11: 55991.633 | FI11: 37119.422 | FJ11: 54572.699 | FK11: 42826.758 | FL11: 60244.016 | FM11: 39109.426 | FN11: 56193.504 | FO11: 40656.844
B12: 10055 | C12: Albion, City of | D12: 150.502 | E12: 106.838 | F12: 164.839 | G12: 127.281 | H12: 258.32 | I12: 195.017 | J12: 236.124 | K12: 201.777 | L12: 195.049 | M12: 143.282 | N12: 183.611 | O12: 128.798 | P12: 150.476 | Q12: 103.59 | R12: 118.421 | S12: 90.916 | T12: 123.561 | U12: 70.846 | V12: 134.754 | W12: 87.22 | X12: 134.981 | Y12: 71.929 | Z12: 113.804 | AA12: 73.567 | AB12: 150.502 | AC12: 106.838 | AD12: 164.839 | AE12: 127.281 | AF12: 258.32 | AG12: 195.017 | AH12: 236.124 | AI12: 201.777 | AJ12: 195.049 | AK12: 143.282 | AL12: 183.611 | AM12: 128.798 | AN12: 144.623 | AO12: 109.443 | AP12: 123.088 | AQ12: 86.249 | AR12: 123.561 | AS12: 70.846 | AT12: 134.754 | AU12: 87.22 | AV12: 134.981 | AW12: 71.929 | AX12: 113.804 | AY12: 73.567 | AZ12: 152.294 | BA12: 108.109 | BB12: 167.835 | BC12: 129.594 | BD12: 250.248 | BE12: 206.806 | BF12: 248.468 | BG12: 194.031 | BH12: 206.45 | BI12: 149.555 | BJ12: 178.899 | BK12: 137.512 | BL12: 153.177 | BM12: 105.449 | BN12: 125.215 | BO12: 87.739 | BP12: 122.481 | BQ12: 77.474 | BR12: 143.281 | BS12: 84.379 | BT12: 137.838 | BU12: 73.452 | BV12: 111.376 | BW12: 79.226 | BX12: 158.099 | BY12: 102.304 | BZ12: 167.835 | CA12: 129.594 | CB12: 250.248 | CC12: 206.806 | CD12: 248.468 | CE12: 194.031 | CF12: 198.224 | CG12: 145.614 | CH12: 178.899 | CI12: 137.512 | CJ12: 153.177 | CK12: 105.449 | CL12: 125.215 | CM12: 87.739 | CN12: 122.481 | CO12: 77.474 | CP12: 143.281 | CQ12: 84.379 | CR12: 133.127 | CS12: 78.162 | CT12: 115.767 | CU12: 74.835 | CV12: 190.852 | CW12: 123.597 | CX12: 191.869 | CY12: 162.345 | CZ12: 290.92 | DA12: 219.843 | DB12: 276.188 | DC12: 215.887 | DD12: 225.017 | DE12: 165.282 | DF12: 210.816 | DG12: 161.838 | DH12: 185.881 | DI12: 128.042 | DJ12: 152.887 | DK12: 117.172 | DL12: 160.907 | DM12: 94.488 | DN12: 180.335 | DO12: 106.309 | DP12: 169.388 | DQ12: 99.309 | DR12: 152.397 | DS12: 98.596 | DT12: 192.132 | DU12: 124.426 | DV12: 192.975 | DW12: 163.281 | DX12: 292.121 | DY12: 220.751 | DZ12: 266.638 | EA12: 227.546 | EB12: 226.115 | EC12: 166.089 | ED12: 220.16 | EE12: 154.603 | EF12: 187.09 | EG12: 128.875 | EH12: 154.081 | EI12: 118.087 | EJ12: 162.193 | EK12: 95.243 | EL12: 181.662 | EM12: 107.091 | EN12: 170.717 | EO12: 100.088 | EP12: 153.636 | EQ12: 99.398 | ER12: 186.491 | ES12: 132.177 | ET12: 202.111 | EU12: 156.186 | EV12: 293.322 | EW12: 221.659 | EX12: 267.776 | EY12: 228.517 | EZ12: 233.662 | FA12: 169.314 | FB12: 221.399 | FC12: 155.474 | FD12: 181.161 | FE12: 136.845 | FF12: 161.232 | FG12: 113.045 | FH12: 163.479 | FI12: 95.998 | FJ12: 176.672 | FK12: 114.191 | FL12: 177.974 | FM12: 94.94 | FN12: 154.875 | FO12: 100.2
B13: 10057 | C13: Ashland, City of | D13: 8440.66 | E13: 4876.266 | F13: 10098.481 | G13: 6134.316 | H13: 11175.98 | I13: 6730.607 | J13: 10940.983 | K13: 7292.169 | L13: 9534.637 | M13: 5471.63 | N13: 9586.534 | O13: 5226.854 | P13: 8847.056 | Q13: 4787.606 | R13: 7734.449 | S13: 4922.917 | T13: 8028.38 | U13: 4174.793 | V13: 9562.445 | W13: 5715.648 | X13: 10112.3 | Y13: 5002.225 | Z13: 7650.12 | AA13: 4325.148 | AB13: 8440.66 | AC13: 4876.266 | AD13: 10098.481 | AE13: 6134.316 | AF13: 11175.98 | AG13: 6730.607 | AH13: 10940.983 | AI13: 7292.169 | AJ13: 9534.637 | AK13: 5471.63 | AL13: 9586.534 | AM13: 5226.854 | AN13: 8512.226 | AO13: 5122.437 | AP13: 8035.252 | AQ13: 4622.113 | AR13: 8028.38 | AS13: 4174.793 | AT13: 9562.445 | AU13: 5715.648 | AV13: 10112.3 | AW13: 5002.225 | AX13: 7650.12 | AY13: 4325.148 | AZ13: 8271.977 | BA13: 4778.813 | BB13: 9248.331 | BC13: 5617.894 | BD13: 11240.218 | BE13: 7482.194 | BF13: 11215.081 | BG13: 6762.845 | BH13: 9793.14 | BI13: 5532.442 | BJ13: 9476.292 | BK13: 5725.754 | BL13: 8518.747 | BM13: 4609.942 | BN13: 7865.33 | BO13: 4524.368 | BP13: 8034.873 | BQ13: 4651.723 | BR13: 10127.19 | BS13: 5461.312 | BT13: 10294.019 | BU13: 5092.114 | BV13: 7795.926 | BW13: 4895.455 | BX13: 8582.129 | BY13: 4468.661 | BZ13: 9248.331 | CA13: 5617.894 | CB13: 11240.218 | CC13: 7482.194 | CD13: 11215.081 | CE13: 6762.845 | CF13: 9408.318 | CG13: 5399.142 | CH13: 9476.292 | CI13: 5725.754 | CJ13: 8518.747 | CK13: 4609.942 | CL13: 7865.33 | CM13: 4524.368 | CN13: 8034.873 | CO13: 4651.723 | CP13: 10127.19 | CQ13: 5461.312 | CR13: 9928.365 | CS13: 5457.768 | CT13: 8107.592 | CU13: 4583.789 | CV13: 8191.637 | CW13: 4452.819 | CX13: 8422.648 | CY13: 5912.07 | CZ13: 11360.995 | DA13: 7004.601 | DB13: 10937.567 | DC13: 6831.333 | DD13: 8981.153 | DE13: 5395.69 | DF13: 8887.946 | DG13: 5712.924 | DH13: 7807.56 | DI13: 4478.49 | DJ13: 6939.446 | DK13: 4659.89 | DL13: 7998.534 | DM13: 4304.21 | DN13: 9608.695 | DO13: 5334.429 | DP13: 9267.242 | DQ13: 5282.927 | DR13: 7502.168 | DS13: 4460.337 | DT13: 8191.637 | DU13: 4452.819 | DV13: 8422.648 | DW13: 5912.07 | DX13: 11360.995 | DY13: 7004.601 | DZ13: 10510.287 | EA13: 7258.613 | EB13: 8981.153 | EC13: 5395.69 | ED13: 9239.519 | EE13: 5361.352 | EF13: 7807.56 | EG13: 4478.49 | EH13: 6939.446 | EI13: 4659.89 | EJ13: 7998.534 | EK13: 4304.21 | EL13: 9608.695 | EM13: 5334.429 | EN13: 9267.242 | EO13: 5282.927 | EP13: 7502.168 | EQ13: 4460.337 | ER13: 7887.583 | ES13: 4756.874 | ET13: 8778.345 | EU13: 5556.374 | EV13: 11360.995 | EW13: 7004.601 | EX13: 10510.287 | EY13: 7258.613 | EZ13: 9353.222 | FA13: 5531.724 | FB13: 9239.519 | FC13: 5361.352 | FD13: 7502.275 | FE13: 4783.774 | FF13: 7218.37 | FG13: 4380.966 | FH13: 7998.534 | FI13: 4304.21 | FJ13: 9249.365 | FK13: 5693.759 | FL13: 9617.123 | FM13: 4933.046 | FN13: 7502.168 | FO13: 4460.337
B14: 10059 | C14: Bandon, City of | D14: 3253.465 | E14: 1950.085 | F14: 3543.9 | G14: 2280.144 | H14: 4390.303 | I14: 2793.559 | J14: 4357.65 | K14: 3122.98 | L14: 4068.082 | M14: 2460.926 | N14: 3942.326 | O14: 2295.873 | P14: 3578.705 | Q14: 2136.085 | R14: 2846.426 | S14: 1977.297 | T14: 2823.997 | U14: 1598.497 | V14: 2641.081 | W14: 1778.34 | X14: 2851.256 | Y14: 1547.292 | Z14: 2693.605 | AA14: 1631.57 | AB14: 3253.465 | AC14: 1950.085 | AD14: 3543.9 | AE14: 2280.144 | AF14: 4390.303 | AG14: 2793.559 | AH14: 4357.65 | AI14: 3122.98 | AJ14: 4068.082 | AK14: 2460.926 | AL14: 3942.326 | AM14: 2295.873 | AN14: 3434.121 | AO14: 2280.669 | AP14: 2964.529 | AQ14: 1859.194 | AR14: 2823.997 | AS14: 1598.497 | AT14: 2641.081 | AU14: 1778.34 | AV14: 2851.256 | AW14: 1547.292 | AX14: 2693.605 | AY14: 1631.57 | AZ14: 3253.465 | BA14: 1950.085 | BB14: 3543.9 | BC14: 2280.144 | BD14: 4214.415 | BE14: 2969.447 | BF14: 4540.804 | BG14: 2939.826 | BH14: 4238.654 | BI14: 2523.533 | BJ14: 3789.386 | BK14: 2448.812 | BL14: 3578.705 | BM14: 2136.085 | BN14: 2964.529 | BO14: 1859.194 | BP14: 2712.108 | BQ14: 1710.385 | BR14: 2749.285 | BS14: 1670.136 | BT14: 2851.256 | BU14: 1547.292 | BV14: 2584.178 | BW14: 1740.997 | BX14: 3380.868 | BY14: 1822.683 | BZ14: 3543.9 | CA14: 2280.144 | CB14: 4214.415 | CC14: 2969.447 | CD14: 4540.804 | CE14: 2939.826 | CF14: 4068.082 | CG14: 2460.926 | CH14: 3789.386 | CI14: 2448.812 | CJ14: 3578.705 | CK14: 2136.085 | CL14: 2964.529 | CM14: 1859.194 | CN14: 2712.108 | CO14: 1710.385 | CP14: 2749.285 | CQ14: 1670.136 | CR14: 2743.563 | CS14: 1654.986 | CT14: 2693.605 | CU14: 1631.57 | CV14: 3357.648 | CW14: 1834.806 | CX14: 3394.973 | CY14: 2462.906 | CZ14: 4563.637 | DA14: 2838.201 | DB14: 4806.939 | DC14: 3048.482 | DD14: 4120.72 | DE14: 2539.201 | DF14: 3745.002 | DG14: 2495.833 | DH14: 3644.272 | DI14: 2220.516 | DJ14: 2888.977 | DK14: 2026.711 | DL14: 2893.604 | DM14: 1648.287 | DN14: 2779.942 | DO14: 1670.964 | DP14: 2745.287 | DQ14: 1643.508 | DR14: 2735.723 | DS14: 1651.318 | DT14: 3357.648 | DU14: 1834.806 | DV14: 3394.973 | DW14: 2462.906 | DX14: 4563.637 | DY14: 2838.201 | DZ14: 4605.752 | EA14: 3249.669 | EB14: 4120.72 | EC14: 2539.201 | ED14: 3905.052 | EE14: 2335.782 | EF14: 3644.272 | EG14: 2220.516 | EH14: 2888.977 | EI14: 2026.711 | EJ14: 2893.604 | EK14: 1648.287 | EL14: 2779.942 | EM14: 1670.964 | EN14: 2745.287 | EO14: 1643.508 | EP14: 2735.723 | EQ14: 1651.318 | ER14: 3225.587 | ES14: 1968.354 | ET14: 3550.661 | EU14: 2308.661 | EV14: 4564.554 | EW14: 2838.771 | EX14: 4606.625 | EY14: 3250.284 | EZ14: 4251.379 | FA14: 2576.553 | FB14: 3905.982 | FC14: 2336.339 | FD14: 3489.918 | FE14: 2376.311 | FF14: 3015.786 | FG14: 1901.39 | FH14: 2894.521 | FI14: 1648.809 | FJ14: 2666.84 | FK14: 1785.553 | FL14: 2858.658 | FM14: 1531.625 | FN14: 2736.621 | FO14: 1651.861
B15: 10061 | C15: Blaine, City of | D15: 4008.553 | E15: 2544.013 | F15: 4427.014 | G15: 2893.037 | H15: 4864.771 | I15: 3099.952 | J15: 4946.232 | K15: 3533.296 | L15: 4436.139 | M15: 2807.552 | N15: 4530.157 | O15: 2727.24 | P15: 4052.991 | Q15: 2436.275 | R15: 3566.048 | S15: 2511.227 | T15: 3629.909 | U15: 2138.563 | V15: 3690.683 | W15: 2589.176 | X15: 3899.299 | Y15: 2234.461 | Z15: 3575.791 | AA15: 2279.125 | AB15: 4049.957 | AC15: 2570.29 | AD15: 4468.695 | AE15: 2920.275 | AF15: 4903.4 | AG15: 3124.567 | AH15: 4982.399 | AI15: 3559.132 | AJ15: 4471.032 | AK15: 2829.635 | AL15: 4561.662 | AM15: 2746.206 | AN15: 3922.196 | AO15: 2613.443 | AP15: 3732.982 | AQ15: 2382.254 | AR15: 3649.544 | AS15: 2150.13 | AT15: 3707.654 | AU15: 2601.081 | AV15: 3914.245 | AW15: 2243.026 | AX15: 3591.756 | AY15: 2289.3 | AZ15: 4206.947 | BA15: 2674.715 | BB15: 4631.631 | BC15: 3032.583 | BD15: 4913.778 | BE15: 3483.093 | BF15: 5396.434 | BG15: 3518.903 | BH15: 4708.99 | BI15: 2926.078 | BJ15: 4535.987 | BK15: 3023.31 | BL15: 4200.511 | BM15: 2550.129 | BN15: 3848.74 | BO15: 2463.666 | BP15: 3661.292 | BQ15: 2405.395 | BR15: 4031.412 | BS15: 2588.535 | BT15: 4014.531 | BU15: 2326.383 | BV15: 3628.715 | BW15: 2557.959 | BX15: 4417.728 | BY15: 2545.405 | BZ15: 4681.21 | CA15: 3065.044 | CB15: 4961.029 | CC15: 3516.587 | CD15: 5422.436 | CE15: 3535.858 | CF15: 4697.597 | CG15: 2962.847 | CH15: 4559.771 | CI15: 3039.163 | CJ15: 4224.026 | CK15: 2564.405 | CL15: 3869.836 | CM15: 2477.17 | CN15: 3679.48 | CO15: 2417.345 | CP15: 4050.604 | CQ15: 2600.857 | CR15: 3885.104 | CS15: 2483.947 | CT15: 3791.251 | CU15: 2419.575 | CV15: 5076.68 | CW15: 2955.753 | CX15: 5356.712 | CY15: 3835.081 | CZ15: 6009.492 | DA15: 3878.467 | DB15: 6383.337 | DC15: 4226.983 | DD15: 5490.077 | DE15: 3453.775 | DF15: 5547.809 | DG15: 3632.569 | DH15: 5193.991 | DI15: 3158.984 | DJ15: 4669.126 | DK15: 3300.562 | DL15: 4758.245 | DM15: 2829.971 | DN15: 4945.269 | DO15: 3212.235 | DP15: 4914.194 | DQ15: 3073.992 | DR15: 4674.969 | DS15: 2990.754 | DT15: 5328.812 | DU15: 3112.112 | DV15: 5658.665 | DW15: 4034.653 | DX15: 6289.429 | DY15: 4062.377 | DZ15: 6454.942 | EA15: 4659.552 | EB15: 5771.388 | EC15: 3628.213 | ED15: 6052.157 | EE15: 3643.45 | EF15: 5501.61 | EG15: 3348.486 | EH15: 4966.357 | EI15: 3513.654 | EJ15: 5052.961 | EK15: 3006.177 | EL15: 5219.105 | EM15: 3399.942 | EN15: 5218.767 | EO15: 3247.35 | EP15: 4932.781 | EQ15: 3157.962 | ER15: 5415.225 | ES15: 3435.91 | ET15: 6154.688 | EU15: 4039.882 | EV15: 6568.615 | EW15: 4245.767 | EX15: 6743.288 | EY15: 4874.044 | EZ15: 6263.883 | FA15: 3888.484 | FB15: 6369.652 | FC15: 3833.515 | FD15: 5632.438 | FE15: 3704.394 | FF15: 5410.111 | FG15: 3566.566 | FH15: 5338.013 | FI15: 3176.637 | FJ15: 5323.35 | FK15: 3742.023 | FL15: 5666.939 | FM15: 3260.619 | FN15: 5181.759 | FO15: 3319.25
B16: 10062 | C16: Bonners Ferry, City of | D16: 4120.041 | E16: 2205.866 | F16: 4466.375 | G16: 2736.142 | H16: 5076.75 | I16: 3197.272 | J16: 4968.316 | K16: 3124.696 | L16: 4505.432 | M16: 2646.969 | N16: 4576.446 | O16: 2614.943 | P16: 3962.379 | Q16: 2210.454 | R16: 3684.27 | S16: 2082.828 | T16: 3728.673 | U16: 1897.582 | V16: 3822.051 | W16: 2088.708 | X16: 4007.056 | Y16: 1971.124 | Z16: 3592.186 | AA16: 2004.462 | AB16: 4168.818 | AC16: 2231.981 | AD16: 4506.889 | AE16: 2760.961 | AF16: 5106.756 | AG16: 3216.17 | AH16: 5001.129 | AI16: 3145.333 | AJ16: 4544.013 | AK16: 2669.635 | AL16: 4619.049 | AM16: 2639.287 | AN16: 4008.262 | AO16: 2236.05 | AP16: 3733.475 | AQ16: 2110.645 | AR16: 3780.563 | AS16: 1923.99 | AT16: 3872.768 | AU16: 2116.424 | AV16: 4060.159 | AW16: 1997.246 | AX16: 3642.223 | AY16: 2032.384 | AZ16: 4216.154 | BA16: 2257.325 | BB16: 4323.094 | BC16: 2648.367 | BD16: 5136.163 | BE16: 3234.69 | BF16: 5261.741 | BG16: 3309.237 | BH16: 4744.235 | BI16: 2787.268 | BJ16: 4660.696 | BK16: 2663.083 | BL16: 4053.073 | BM16: 2261.048 | BN16: 3501.582 | BO16: 1979.548 | BP16: 3592.458 | BQ16: 1828.26 | BR16: 3681.562 | BS16: 2011.932 | BT16: 3862.422 | BU16: 1899.977 | BV16: 3321.199 | BW16: 1853.25 | BX16: 4262.312 | BY16: 2282.038 | BZ16: 4361.702 | CA16: 2672.018 | CB16: 5165.181 | CC16: 3252.965 | CD16: 5293.917 | CE16: 3329.474 | CF16: 4619.215 | CG16: 2713.818 | CH16: 4701.678 | CI16: 2686.5 | CJ16: 4097.02 | CK16: 2285.564 | CL16: 3548.366 | CM16: 2005.997 | CN16: 3641.677 | CO16: 1853.309 | CP16: 3729.672 | CQ16: 2038.224 | CR16: 3912.701 | CS16: 1924.71 | CT16: 3368.674 | CU16: 1879.742 | CV16: 4161.692 | CW16: 2292.82 | CX16: 4266.214 | CY16: 2654.214 | CZ16: 5139.218 | DA16: 3267.044 | DB16: 5158.917 | DC16: 3316.251 | DD16: 4479.475 | DE16: 2710.837 | DF16: 4667.965 | DG16: 2710.885 | DH16: 3985.649 | DI16: 2272.733 | DJ16: 3634.324 | DK16: 2115.383 | DL16: 3750.007 | DM16: 1922.813 | DN16: 3878.114 | DO16: 2151.554 | DP16: 4045.031 | DQ16: 2037.245 | DR16: 3602.924 | DS16: 2027.932 | DT16: 4215.887 | DU16: 2322.677 | DV16: 4316.358 | DW16: 2685.411 | DX16: 5190.604 | DY16: 3299.711 | DZ16: 5210.08 | EA16: 3349.14 | EB16: 4526.771 | EC16: 2739.459 | ED16: 4721.138 | EE16: 2741.764 | EF16: 4037.451 | EG16: 2302.272 | EH16: 3687.452 | EI16: 2146.307 | EJ16: 3803.777 | EK16: 1950.383 | EL16: 3932.174 | EM16: 2181.546 | EN16: 4100.93 | EO16: 2065.398 | EP16: 3654.97 | EQ16: 2057.226 | ER16: 4270.081 | ES16: 2352.535 | ET16: 4366.502 | EU16: 2716.608 | EV16: 5241.989 | EW16: 3332.377 | EX16: 5261.243 | EY16: 3382.028 | EZ16: 4705.964 | FA16: 2847.901 | FB16: 4774.31 | FC16: 2772.644 | FD16: 4089.252 | FE16: 2331.811 | FF16: 3740.581 | FG16: 2177.23 | FH16: 3857.547 | FI16: 1977.954 | FJ16: 3986.234 | FK16: 2211.538 | FL16: 4156.829 | FM16: 2093.551 | FN16: 3707.016 | FO16: 2086.521
B17: 10064 | C17: Burley, City of | D17: 5754.828 | E17: 3497.94 | F17: 5933.41 | G17: 3864.791 | H17: 7730.735 | I17: 5026.277 | J17: 7419.108 | K17: 5337.676 | L17: 6440.621 | M17: 3991.325 | N17: 6468.647 | O17: 3792.706 | P17: 5724.499 | Q17: 3271.358 | R17: 5170.726 | S17: 3366.477 | T17: 5807.323 | U17: 3061.432 | V17: 6373.875 | W17: 3943.657 | X17: 6669.541 | Y17: 3472.698 | Z17: 5227.073 | AA17: 3071.543 | AB17: 5766.182 | AC17: 3504.849 | AD17: 5945.123 | AE17: 3872.42 | AF17: 7746.11 | AG17: 5036.266 | AH17: 7433.849 | AI17: 5348.29 | AJ17: 6453.362 | AK17: 3999.225 | AL17: 6481.427 | AM17: 3800.188 | AN17: 5532.355 | AO17: 3481.317 | AP17: 5367.688 | AQ17: 3186.406 | AR17: 5818.844 | AS17: 3067.5 | AT17: 6386.462 | AU17: 3951.45 | AV17: 6682.764 | AW17: 3479.464 | AX17: 5237.426 | AY17: 3077.622 | AZ17: 6983.661 | BA17: 4266.46 | BB17: 7128.85 | BC17: 4649.029 | BD17: 8761.779 | BE17: 6160.27 | BF17: 8975.454 | BG17: 6008.452 | BH17: 8002.038 | BI17: 4943.146 | BJ17: 7515.828 | BK17: 4789.962 | BL17: 7023.277 | BM17: 4045.11 | BN17: 6645.41 | BO17: 4078.031 | BP17: 6818.042 | BQ17: 3902.589 | BR17: 7927.894 | BS17: 4542.513 | BT17: 8006.186 | BU17: 4196.791 | BV17: 6354.729 | BW17: 4039.884 | BX17: 7551.759 | BY17: 4290.587 | BZ17: 7491.254 | CA17: 4891.041 | CB17: 9179.725 | CC17: 6436.255 | CD17: 9383.358 | CE17: 6312.356 | CF17: 8096.983 | CG17: 5073.984 | CH17: 7930.205 | CI17: 5046.433 | CJ17: 7456.468 | CK17: 4303.058 | CL17: 7098.221 | CM17: 4393.061 | CN17: 7221.802 | CO17: 4119.267 | CP17: 8372.579 | CQ17: 4810.943 | CR17: 8208.705 | CS17: 4666.496 | CT17: 6962.73 | CU17: 4101.728 | CV17: 8496.438 | CW17: 4833.835 | CX17: 7964.286 | CY17: 5623.545 | CZ17: 10103 | DA17: 6615.263 | DB17: 9999.388 | DC17: 6676.789 | DD17: 8854.176 | DE17: 5528.114 | DF17: 8824.588 | DG17: 5654.691 | DH17: 8333.37 | DI17: 4818.818 | DJ17: 7678.772 | DK17: 5039.816 | DL17: 8359.624 | DM17: 4455.98 | DN17: 9141.748 | DO17: 5225.754 | DP17: 9045.589 | DQ17: 5107.333 | DR17: 7696.969 | DS17: 4541.431 | DT17: 8508.328 | DU17: 4840.42 | DV17: 7975.678 | DW17: 5631.712 | DX17: 10118.45 | DY17: 6625.307 | DZ17: 9710.963 | EA17: 6990.7 | EB17: 8867.132 | EC17: 5536.146 | ED17: 9085.58 | EE17: 5414.245 | EF17: 8344.777 | EG17: 4825.343 | EH17: 7689.039 | EI17: 5046.509 | EJ17: 8371.199 | EK17: 4462.073 | EL17: 9154.93 | EM17: 5233.192 | EN17: 9058.502 | EO17: 5114.629 | EP17: 7707.36 | EQ17: 4547.534 | ER17: 8293.6 | ES17: 5073.624 | ET17: 8233.349 | EU17: 5393.601 | EV17: 10133.89 | EW17: 6635.352 | EX17: 9725.785 | EY17: 7001.363 | EZ17: 9166.987 | FA17: 5659.107 | FB17: 9098.468 | FC17: 5421.801 | FD17: 8128.062 | FE17: 5060.08 | FF17: 7909.439 | FG17: 4843.153 | FH17: 8382.832 | FI17: 4468.198 | FJ17: 8917.472 | FK17: 5491.371 | FL17: 9317.684 | FM17: 4875.758 | FN17: 7717.801 | FO17: 4553.668
B18: 10065 | C18: Cascade Locks, City of | D18: 1823.174 | E18: 1282.021 | F18: 1920.631 | G18: 1374.396 | H18: 2492.323 | I18: 1740.72 | J18: 2521.665 | K18: 1911.79 | L18: 2484.123 | M18: 1685.111 | N18: 2460.139 | O18: 1635.112 | P18: 2044.11 | Q18: 1385.144 | R18: 1908.74 | S18: 1422.873 | T18: 1892.156 | U18: 1268.716 | V18: 1850.244 | W18: 1356.031 | X18: 2006.119 | Y18: 1304.96 | Z18: 1664.818 | AA18: 1179.251 | AB18: 1910.976 | AC18: 1340.602 | AD18: 2012.814 | AE18: 1437.433 | AF18: 2612.086 | AG18: 1820.74 | AH18: 2641.709 | AI18: 2001.143 | AJ18: 2603.763 | AK18: 1762.51 | AL18: 2579.063 | AM18: 1709.343 | AN18: 2085.393 | AO18: 1505.149 | AP18: 2052.049 | AQ18: 1436.05 | AR18: 1984.007 | AS18: 1325.261 | AT18: 1938.751 | AU18: 1417.981 | AV18: 2103.921 | AW18: 1362.642 | AX18: 1745.093 | AY18: 1232.15 | AZ18: 1865.21 | BA18: 1242.439 | BB18: 2050.994 | BC18: 1424.278 | BD18: 2451.343 | BE18: 1848.245 | BF18: 2370.597 | BG18: 1619.079 | BH18: 2326.59 | BI18: 1518.606 | BJ18: 2321.064 | BK18: 1660.654 | BL18: 2016.666 | BM18: 1305.643 | BN18: 1822.059 | BO18: 1248.858 | BP18: 1733.247 | BQ18: 1212.407 | BR18: 1868.45 | BS18: 1238.535 | BT18: 1796.185 | BU18: 1090.434 | BV18: 1603.169 | BW18: 1186.179 | BX18: 2010.219 | BY18: 1210.422 | BZ18: 2257.913 | CA18: 1568.684 | CB18: 2580.763 | CC18: 1939.338 | CD18: 2499.845 | CE18: 1709.709 | CF18: 2352.753 | CG18: 1557.694 | CH18: 2449.639 | CI18: 1747.309 | CJ18: 2135.413 | CK18: 1381.424 | CL18: 1918.671 | CM18: 1332.077 | CN18: 1790.583 | CO18: 1256.295 | CP18: 1929.146 | CQ18: 1285.007 | CR18: 1787.972 | CS18: 1200.184 | CT18: 1731.263 | CU18: 1162.05 | CV18: 2072.234 | CW18: 1247.658 | CX18: 2226.563 | CY18: 1704.217 | CZ18: 2755.674 | DA18: 1882.001 | DB18: 2567.65 | DC18: 1756.935 | DD18: 2415.919 | DE18: 1598.936 | DF18: 2516.811 | DG18: 1793.292 | DH18: 2196.51 | DI18: 1420.552 | DJ18: 1893.704 | DK18: 1449.705 | DL18: 1973.044 | DM18: 1274.894 | DN18: 2043.599 | DO18: 1384.113 | DP18: 1900.629 | DQ18: 1293.289 | DR18: 1863.927 | DS18: 1250.014 | DT18: 2219.864 | DU18: 1336.163 | DV18: 2360.394 | DW18: 1800.455 | DX18: 2905.791 | DY18: 1983.431 | DZ18: 2616.762 | EA18: 1962.418 | EB18: 2554.083 | EC18: 1688.286 | ED18: 2766.001 | EE18: 1792.356 | EF18: 2335.769 | EG18: 1509.185 | EH18: 2003.586 | EI18: 1550.516 | EJ18: 1999.573 | EK18: 1291.484 | EL18: 2071.098 | EM18: 1402.083 | EN18: 1926.014 | EO18: 1310.064 | EP18: 1888.145 | EQ18: 1266.286 | ER18: 2166.544 | ES18: 1427.162 | ET18: 2481.115 | EU18: 1724.954 | EV18: 2937.632 | EW18: 2005.19 | EX18: 2645.122 | EY18: 1983.789 | EZ18: 2689.055 | FA18: 1752.764 | FB18: 2796.12 | FC18: 1811.867 | FD18: 2273.644 | FE18: 1612.72 | FF18: 2103.439 | FG18: 1488.942 | FH18: 2021.292 | FI18: 1305.066 | FJ18: 2017.711 | FK18: 1492.69 | FL18: 2017.171 | FM18: 1253.417 | FN18: 1907.979 | FO18: 1279.612
B19: 10066 | C19: Centralia, City of | D19: 13915.797 | E19: 8405.622 | F19: 15355.209 | G19: 9686.48 | H19: 17982.162 | I19: 11525.781 | J19: 18426.498 | K19: 12846.397 | L19: 16070.325 | M19: 9751.474 | N19: 15834.159 | O19: 9134.053 | P19: 14487.063 | Q19: 8491.587 | R19: 11783.457 | S19: 7533.631 | T19: 12161.82 | U19: 6678.516 | V19: 12020.587 | W19: 7523.869 | X19: 13273.47 | Y19: 6970.934 | Z19: 11675.225 | AA19: 6937.436 | AB19: 14149.004 | AC19: 8539.223 | AD19: 15564.592 | AE19: 9834.444 | AF19: 18201.324 | AG19: 11658.698 | AH19: 18631.467 | AI19: 12981.934 | AJ19: 16257.933 | AK19: 9866.926 | AL19: 16032.073 | AM19: 9258.175 | AN19: 14203.344 | AO19: 9083.276 | AP19: 12357.01 | AQ19: 7270.133 | AR19: 12356.118 | AS19: 6781.381 | AT19: 12156.485 | AU19: 7602.762 | AV19: 13352.213 | AW19: 7016.369 | AX19: 11698.132 | AY19: 6950.891 | AZ19: 14041.157 | BA19: 8464.489 | BB19: 15464.054 | BC19: 9715.197 | BD19: 17937.453 | BE19: 12346.161 | BF19: 19276.051 | BG19: 12101.498 | BH19: 17047.773 | BI19: 10193.14 | BJ19: 15581.939 | BK19: 9923.44 | BL19: 14846.845 | BM19: 8505.664 | BN19: 12522.885 | BO19: 7314.45 | BP19: 12057.876 | BQ19: 7177.486 | BR19: 12630.515 | BS19: 7231.327 | BT19: 13333.241 | BU19: 6917.647 | BV19: 11539.132 | BW19: 7418.868 | BX19: 14922.075 | BY19: 8198.25 | BZ19: 15728.835 | CA19: 9894.81 | CB19: 18113.201 | CC19: 12471.983 | CD19: 19363.344 | CE19: 12161.257 | CF19: 16362.545 | CG19: 9922.269 | CH19: 15576.992 | CI19: 9920.287 | CJ19: 14841.693 | CK19: 8502.719 | CL19: 12517.765 | CM19: 7311.469 | CN19: 12052.788 | CO19: 7174.458 | CP19: 12625.345 | CQ19: 7228.38 | CR19: 12899.297 | CS19: 7343.471 | CT19: 11949.197 | CU19: 7000.673 | CV19: 15176.086 | CW19: 8362.614 | CX19: 16333.492 | CY19: 11504.071 | CZ19: 19311.529 | DA19: 12220.118 | DB19: 19738.586 | DC19: 12575.279 | DD19: 17217.637 | DE19: 10499.101 | DF19: 17126.443 | DG19: 11066.633 | DH19: 14818.254 | DI19: 8587.943 | DJ19: 11881.801 | DK19: 7737.052 | DL19: 12303.843 | DM19: 6699.382 | DN19: 13626.417 | DO19: 7800.16 | DP19: 12874.447 | DQ19: 7447.019 | DR19: 11875.855 | DS19: 6979.779 | DT19: 15212.194 | DU19: 8382.51 | DV19: 16372.36 | DW19: 11531.446 | DX19: 19357.275 | DY19: 12249.066 | DZ19: 19034.139 | EA19: 13356.282 | EB19: 17258.418 | EC19: 10523.97 | ED19: 17823.33 | EE19: 10436.568 | EF19: 14853.329 | EG19: 8608.271 | EH19: 11909.948 | EI19: 7755.38 | EJ19: 12333.04 | EK19: 6715.279 | EL19: 13658.755 | EM19: 7818.671 | EN19: 12905.012 | EO19: 7464.698 | EP19: 11904.076 | EQ19: 6996.365 | ER19: 14694.913 | ES19: 8947.953 | ET19: 17074.945 | EU19: 10885.827 | EV19: 19396.617 | EW19: 12273.962 | EX19: 19072.824 | EY19: 13383.428 | EZ19: 18012.053 | FA19: 10819.152 | FB19: 17859.574 | FC19: 10457.794 | FD19: 14320.083 | FE19: 9189.162 | FF19: 12391.168 | FG19: 7314.131 | FH19: 12358.147 | FI19: 6728.95 | FJ19: 13187.448 | FK19: 8333.724 | FL19: 13404.679 | FM19: 7006.518 | FN19: 11928.35 | FO19: 7010.63
B20: 10067 | C20: Cheney, City of | D20: 7411.422 | E20: 4308.072 | F20: 7193.274 | G20: 4886 | H20: 8660.886 | I20: 6165.081 | J20: 9039.22 | K20: 6267.598 | L20: 8084.187 | M20: 5216.636 | N20: 7931.512 | O20: 4966.109 | P20: 7239.127 | Q20: 4426.511 | R20: 6264.097 | S20: 3858.175 | T20: 6757.212 | U20: 3886.355 | V20: 6593.875 | W20: 4176.86 | X20: 7373.842 | Y20: 4128.645 | Z20: 6111.009 | AA20: 3872.864 | AB20: 7472.285 | AC20: 4343.45 | AD20: 7258.023 | AE20: 4929.98 | AF20: 8735.057 | AG20: 6217.88 | AH20: 9112.211 | AI20: 6318.208 | AJ20: 8149.595 | AK20: 5258.843 | AL20: 7993.995 | AM20: 5005.231 | AN20: 7294.803 | AO20: 4460.556 | AP20: 6320.862 | AQ20: 3893.137 | AR20: 6812.574 | AS20: 3918.196 | AT20: 6648.127 | AU20: 4211.225 | AV20: 7435.574 | AW20: 4163.208 | AX20: 6164.113 | AY20: 3906.518 | AZ20: 7513.995 | BA20: 4382.962 | BB20: 7800.816 | BC20: 5283.19 | BD20: 9242.05 | BE20: 6553.202 | BF20: 9649.163 | BG20: 6726.484 | BH20: 8555.717 | BI20: 5521.188 | BJ20: 8305.338 | BK20: 5190.064 | BL20: 7449.837 | BM20: 4547.611 | BN20: 6984.55 | BO20: 4343.55 | BP20: 6938.279 | BQ20: 3973.557 | BR20: 7201.447 | BS20: 4688.706 | BT20: 7508.148 | BU20: 4222.602 | BV20: 6548.671 | BW20: 4129.03 | BX20: 7740.566 | BY20: 4520.174 | BZ20: 8011.114 | CA20: 5420.78 | CB20: 9448.293 | CC20: 6691.858 | CD20: 9856.1 | CE20: 6880.76 | CF20: 8504.346 | CG20: 5488.108 | CH20: 8512.914 | CI20: 5317.145 | CJ20: 7658.514 | CK20: 4673.051 | CL20: 7201.003 | CM20: 4488.223 | CN20: 7139.84 | CO20: 4084.966 | CP20: 7387.329 | CQ20: 4839.577 | CR20: 7701.699 | CS20: 4335.76 | CT20: 6748.047 | CU20: 4250.085 | CV20: 7261.809 | CW20: 4102.818 | CX20: 7239.548 | CY20: 5274.247 | CZ20: 9102.376 | DA20: 6135.95 | DB20: 9433.245 | DC20: 6278.126 | DD20: 7986.776 | DE20: 5043.857 | DF20: 7745.795 | DG20: 5125.732 | DH20: 7145.912 | DI20: 4183.25 | DJ20: 6364.501 | DK20: 4200.953 | DL20: 6595.561 | DM20: 3683.26 | DN20: 6992.384 | DO20: 4188.86 | DP20: 6945.396 | DQ20: 4174.177 | DR20: 6196.718 | DS20: 3761.202 | DT20: 7324.593 | DU20: 4138.291 | DV20: 7294.574 | DW20: 5314.334 | DX20: 9161.088 | DY20: 6175.528 | DZ20: 9128.046 | EA20: 6681.615 | EB20: 8041.191 | EC20: 5078.221 | ED20: 8104.138 | EE20: 4865.68 | EF20: 7206.12 | EG20: 4218.497 | EH20: 6423.904 | EI20: 4240.162 | EJ20: 6656.792 | EK20: 3717.454 | EL20: 7054.041 | EM20: 4225.796 | EN20: 7006.981 | EO20: 4211.19 | EP20: 6256.038 | EQ20: 3797.207 | ER20: 7121.038 | ES20: 4440.102 | ET20: 7651.603 | EU20: 5052.418 | EV20: 9219.8 | EW20: 6215.107 | EX20: 9184.797 | EY20: 6723.156 | EZ20: 8367.032 | FA20: 5206.092 | FB20: 8165.555 | FC20: 4902.555 | FD20: 6992.089 | FE20: 4527.982 | FF20: 6731.251 | FG20: 4031.428 | FH20: 6718.021 | FI20: 3751.647 | FJ20: 6853.568 | FK20: 4524.861 | FL20: 7329.275 | FM20: 3987.493 | FN20: 6315.357 | FO20: 3833.213
B21: 10068 | C21: Chewelah, City of | D21: 1076.69 | E21: 627.871 | F21: 1174.507 | G21: 789.236 | H21: 1467.56 | I21: 1011.71 | J21: 1476.411 | K21: 1002.098 | L21: 1244.092 | M21: 778.634 | N21: 1224.019 | O21: 772.242 | P21: 1035.634 | Q21: 634.255 | R21: 895.152 | S21: 562.921 | T21: 935.125 | U21: 539.007 | V21: 1037.737 | W21: 637.598 | X21: 1047.431 | Y21: 580.418 | Z21: 865.686 | AA21: 551.296 | AB21: 1076.69 | AC21: 627.871 | AD21: 1174.507 | AE21: 789.236 | AF21: 1467.56 | AG21: 1011.71 | AH21: 1476.411 | AI21: 1002.098 | AJ21: 1244.092 | AK21: 778.634 | AL21: 1224.019 | AM21: 772.242 | AN21: 1035.634 | AO21: 634.255 | AP21: 895.152 | AQ21: 562.921 | AR21: 935.125 | AS21: 539.007 | AT21: 1037.737 | AU21: 637.598 | AV21: 1047.431 | AW21: 580.418 | AX21: 865.686 | AY21: 551.296 | AZ21: 1078.968 | BA21: 631.002 | BB21: 1182.785 | BC21: 792.568 | BD21: 1477.601 | BE21: 1016.841 | BF21: 1481.766 | BG21: 1006.886 | BH21: 1292.796 | BI21: 809.104 | BJ21: 1230.592 | BK21: 775.476 | BL21: 1038.307 | BM21: 635.22 | BN21: 896.589 | BO21: 565.717 | BP21: 944.836 | BQ21: 543.102 | BR21: 1055.046 | BS21: 646.638 | BT21: 1044.846 | BU21: 580.447 | BV21: 871.647 | BW21: 553.965 | BX21: 1078.968 | BY21: 631.002 | BZ21: 1182.785 | CA21: 792.568 | CB21: 1477.601 | CC21: 1016.841 | CD21: 1481.766 | CE21: 1006.886 | CF21: 1247.156 | CG21: 780.541 | CH21: 1230.592 | CI21: 775.476 | CJ21: 1038.307 | CK21: 635.22 | CL21: 896.589 | CM21: 565.717 | CN21: 944.836 | CO21: 543.102 | CP21: 1055.046 | CQ21: 646.638 | CR21: 1044.846 | CS21: 580.447 | CT21: 871.647 | CU21: 553.965 | CV21: 1078.991 | CW21: 631.016 | CX21: 1182.864 | CY21: 792.621 | CZ21: 1477.403 | DA21: 1016.704 | DB21: 1481.612 | DC21: 1006.781 | DD21: 1247.362 | DE21: 780.669 | DF21: 1230.602 | DG21: 775.483 | DH21: 1038.214 | DI21: 635.163 | DJ21: 896.672 | DK21: 565.769 | DL21: 944.806 | DM21: 543.084 | DN21: 1055.048 | DO21: 646.639 | DP21: 1044.849 | DQ21: 580.448 | DR21: 871.697 | DS21: 553.997 | DT21: 1078.991 | DU21: 631.016 | DV21: 1182.864 | DW21: 792.621 | DX21: 1477.403 | DY21: 1016.704 | DZ21: 1481.612 | EA21: 1006.781 | EB21: 1247.362 | EC21: 780.669 | ED21: 1230.602 | EE21: 775.483 | EF21: 1038.214 | EG21: 635.163 | EH21: 896.672 | EI21: 565.769 | EJ21: 944.806 | EK21: 543.084 | EL21: 1055.048 | EM21: 646.639 | EN21: 1044.849 | EO21: 580.448 | EP21: 871.697 | EQ21: 553.997 | ER21: 1078.991 | ES21: 631.016 | ET21: 1182.864 | EU21: 792.621 | EV21: 1477.403 | EW21: 1016.704 | EX21: 1481.612 | EY21: 1006.781 | EZ21: 1278.936 | FA21: 800.43 | FB21: 1230.602 | FC21: 775.483 | FD21: 1038.214 | FE21: 635.163 | FF21: 896.672 | FG21: 565.769 | FH21: 944.806 | FI21: 543.084 | FJ21: 1055.048 | FK21: 646.639 | FL21: 1044.849 | FM21: 580.448 | FN21: 871.697 | FO21: 553.997
B22: 10070 | C22: Declo, City of | D22: 155.569 | E22: 97.819 | F22: 168.75 | G22: 114.041 | H22: 217.846 | I22: 152.773 | J22: 213.653 | K22: 161.906 | L22: 181.907 | M22: 118.827 | N22: 175.131 | O22: 111.399 | P22: 156.612 | Q22: 95.653 | R22: 138.434 | S22: 96.705 | T22: 139.261 | U22: 84.162 | V22: 148.803 | W22: 100.73 | X22: 161.066 | Y22: 88.731 | Z22: 142.294 | AA22: 85.989 | AB22: 155.724 | AC22: 97.917 | AD22: 168.919 | AE22: 114.155 | AF22: 218.064 | AG22: 152.926 | AH22: 213.866 | AI22: 162.068 | AJ22: 182.088 | AK22: 118.946 | AL22: 175.306 | AM22: 111.511 | AN22: 151.085 | AO22: 101.432 | AP22: 143.699 | AQ22: 91.674 | AR22: 139.4 | AS22: 84.246 | AT22: 148.952 | AU22: 100.831 | AV22: 161.227 | AW22: 88.82 | AX22: 142.436 | AY22: 86.075 | AZ22: 159.873 | BA22: 101.009 | BB22: 173.934 | BC22: 117.965 | BD22: 214.075 | BE22: 164.496 | BF22: 225.583 | BG22: 156.516 | BH22: 194.197 | BI22: 125.431 | BJ22: 173.658 | BK22: 121.143 | BL22: 161.609 | BM22: 98.935 | BN22: 148.785 | BO22: 94.804 | BP22: 141.24 | BQ22: 93.119 | BR22: 159.482 | BS22: 98.295 | BT22: 165.031 | BU22: 90.725 | BV22: 140.744 | BW22: 93.37 | BX22: 165.821 | BY22: 95.316 | BZ22: 174.105 | CA22: 118.081 | CB22: 214.286 | CC22: 164.658 | CD22: 225.805 | CE22: 156.671 | CF22: 186.876 | CG22: 122.217 | CH22: 173.828 | CI22: 121.262 | CJ22: 161.767 | CK22: 99.032 | CL22: 148.93 | CM22: 94.897 | CN22: 141.378 | CO22: 93.21 | CP22: 159.638 | CQ22: 98.392 | CR22: 159.514 | CS22: 96.492 | CT22: 146.253 | CU22: 88.091 | CV22: 180.689 | CW22: 103.923 | CX22: 179.536 | CY22: 133.593 | CZ22: 237.86 | DA22: 167.027 | DB22: 240.555 | DC22: 167.035 | DD22: 201.352 | DE22: 131.703 | DF22: 188.616 | DG22: 131.448 | DH22: 176.136 | DI22: 107.874 | DJ22: 156.445 | DK22: 109.177 | DL22: 160.169 | DM22: 97.578 | DN22: 177.88 | DO22: 109.717 | DP22: 177.068 | DQ22: 106.997 | DR22: 161.163 | DS22: 97.131 | DT22: 180.853 | DU22: 104.018 | DV22: 179.7 | DW22: 133.715 | DX22: 238.083 | DY22: 167.183 | DZ22: 231.934 | EA22: 176.036 | EB22: 201.538 | EC22: 131.824 | ED22: 195.744 | EE22: 124.613 | EF22: 176.296 | EG22: 107.972 | EH22: 156.586 | EI22: 109.275 | EJ22: 160.312 | EK22: 97.666 | EL22: 178.041 | EM22: 109.817 | EN22: 177.228 | EO22: 107.094 | EP22: 161.307 | EQ22: 97.219 | ER22: 174.835 | ES22: 110.294 | ET22: 186.883 | EU22: 126.819 | EV22: 238.305 | EW22: 167.339 | EX22: 232.151 | EY22: 176.201 | EZ22: 208.269 | FA22: 134.108 | FB22: 195.924 | FC22: 124.728 | FD22: 170.081 | FE22: 114.444 | FF22: 162.496 | FG22: 103.604 | FH22: 160.456 | FI22: 97.753 | FJ22: 171.956 | FK22: 116.163 | FL22: 183.559 | FM22: 101.021 | FN22: 161.452 | FO22: 97.306
B23: 10071 | C23: Drain, City of | D23: 814.005 | E23: 492.217 | F23: 835.426 | G23: 534.801 | H23: 1148.015 | I23: 729.896 | J23: 1112.128 | K23: 777.755 | L23: 928.422 | M23: 566.112 | N23: 988.289 | O23: 577.753 | P23: 847.064 | Q23: 492.86 | R23: 689.515 | S23: 451.233 | T23: 690.573 | U23: 378.163 | V23: 668.723 | W23: 416.802 | X23: 736.226 | Y23: 385.845 | Z23: 664.918 | AA23: 387.676 | AB23: 814.005 | AC23: 492.217 | AD23: 835.426 | AE23: 534.801 | AF23: 1148.015 | AG23: 729.896 | AH23: 1112.128 | AI23: 777.755 | AJ23: 928.422 | AK23: 566.112 | AL23: 988.289 | AM23: 577.753 | AN23: 818.117 | AO23: 521.808 | AP23: 713.365 | AQ23: 427.383 | AR23: 690.573 | AS23: 378.163 | AT23: 668.723 | AU23: 416.802 | AV23: 736.226 | AW23: 385.845 | AX23: 664.918 | AY23: 387.676 | AZ23: 808.421 | BA23: 489.443 | BB23: 836.312 | BC23: 536.965 | BD23: 1112.966 | BE23: 770.606 | BF23: 1153.118 | BG23: 737.503 | BH23: 970.294 | BI23: 583.71 | BJ23: 955.407 | BK23: 612.661 | BL23: 847.015 | BM23: 494.519 | BN23: 712.561 | BO23: 427.489 | BP23: 669.448 | BQ23: 401.734 | BR23: 693.302 | BS23: 395.751 | BT23: 732.761 | BU23: 384.807 | BV23: 641.729 | BW23: 411.214 | BX23: 835.421 | BY23: 462.443 | BZ23: 836.312 | CA23: 536.965 | CB23: 1112.966 | CC23: 770.606 | CD23: 1153.118 | CE23: 737.503 | CF23: 932.069 | CG23: 568.349 | CH23: 955.407 | CI23: 612.661 | CJ23: 847.015 | CK23: 494.519 | CL23: 712.561 | CM23: 427.489 | CN23: 669.448 | CO23: 401.734 | CP23: 693.302 | CQ23: 395.751 | CR23: 709.512 | CS23: 408.057 | CT23: 664.364 | CU23: 388.579 | CV23: 821.764 | CW23: 464.063 | CX23: 801.793 | CY23: 575.137 | CZ23: 1188.126 | DA23: 750.096 | DB23: 1196.957 | DC23: 765.298 | DD23: 941.017 | DE23: 589.914 | DF23: 976.864 | DG23: 648.487 | DH23: 866.7 | DI23: 517.106 | DJ23: 701.857 | DK23: 464.283 | DL23: 710.476 | DM23: 384.564 | DN23: 709.44 | DO23: 407.035 | DP23: 710.266 | DQ23: 415.433 | DR23: 648.281 | DS23: 382.763 | DT23: 825.407 | DU23: 466.12 | DV23: 805.112 | DW23: 577.518 | DX23: 1188.126 | DY23: 750.096 | DZ23: 1155.76 | EA23: 806.495 | EB23: 941.017 | EC23: 589.914 | ED23: 1011.034 | EE23: 614.317 | EF23: 866.7 | EG23: 517.106 | EH23: 701.857 | EI23: 464.283 | EJ23: 710.476 | EK23: 384.564 | EL23: 709.44 | EM23: 407.035 | EN23: 710.266 | EO23: 415.433 | EP23: 648.281 | EQ23: 382.763 | ER23: 798.292 | ES23: 493.236 | ET23: 835.066 | EU23: 547.563 | EV23: 1188.126 | EW23: 750.096 | EX23: 1155.76 | EY23: 806.495 | EZ23: 974.391 | FA23: 602.61 | FB23: 1011.034 | FC23: 614.317 | FD23: 836.679 | FE23: 547.127 | FF23: 726.339 | FG23: 439.8 | FH23: 710.476 | FI23: 384.564 | FJ23: 686 | FK23: 430.475 | FL23: 733.9 | FM23: 391.799 | FN23: 648.281 | FO23: 382.763
B24: 10072 | C24: Ellensburg, City of | D24: 11133.478 | E24: 6545.284 | F24: 10730.363 | G24: 7153.051 | H24: 13128.228 | I24: 9258.423 | J24: 13895.46 | K24: 9562.06 | L24: 11123.265 | M24: 6787.809 | N24: 11174.154 | O24: 7009.458 | P24: 10188.111 | Q24: 6205.07 | R24: 9092.857 | S24: 5786.936 | T24: 9381.103 | U24: 5492.554 | V24: 10097.988 | W24: 6324.575 | X24: 10476.2 | Y24: 5905.943 | Z24: 8358.688 | AA24: 5447.568 | AB24: 11167.117 | AC24: 6565.059 | AD24: 10762.793 | AE24: 7174.669 | AF24: 13167.853 | AG24: 9286.365 | AH24: 13937.376 | AI24: 9590.904 | AJ24: 11156.878 | AK24: 6808.322 | AL24: 11207.909 | AM24: 7030.634 | AN24: 10218.924 | AO24: 6223.838 | AP24: 9120.375 | AQ24: 5804.448 | AR24: 9409.494 | AS24: 5509.177 | AT24: 10128.526 | AU24: 6343.703 | AV24: 10507.885 | AW24: 5923.804 | AX24: 8384.001 | AY24: 5464.064 | AZ24: 11766.073 | BA24: 6927.667 | BB24: 11752.452 | BC24: 7837.389 | BD24: 13609.256 | BE24: 9592.16 | BF24: 14370.806 | BG24: 9892.321 | BH24: 12461.82 | BI24: 7617.285 | BJ24: 11991.183 | BK24: 7519.662 | BL24: 10757.236 | BM24: 6549.424 | BN24: 9697.316 | BO24: 6179.478 | BP24: 9741.42 | BQ24: 5700.235 | BR24: 10600.604 | BS24: 6632.188 | BT24: 10741.078 | BU24: 6059.5 | BV24: 9738.465 | BW24: 6340.308 | BX24: 11810.326 | BY24: 6953.683 | BZ24: 11795.188 | CA24: 7865.879 | CB24: 13653.636 | CC24: 9623.459 | CD24: 14459.444 | CE24: 9953.317 | CF24: 12483.791 | CG24: 7620.861 | CH24: 12059.455 | CI24: 7562.488 | CJ24: 10815.252 | CK24: 6584.758 | CL24: 9747.309 | CM24: 6211.295 | CN24: 9790.458 | CO24: 5728.947 | CP24: 10669.144 | CQ24: 6675.115 | CR24: 10803.739 | CS24: 6094.825 | CT24: 9778.06 | CU24: 6366.113 | CV24: 11865.343 | CW24: 6986.815 | CX24: 11657.88 | CY24: 7769.563 | CZ24: 14413.706 | DA24: 10151.804 | DB24: 15038.008 | DC24: 10356.601 | DD24: 11924.395 | DE24: 7282.486 | DF24: 12217.57 | DG24: 7664.609 | DH24: 11089.441 | DI24: 6781.539 | DJ24: 9987.754 | DK24: 6341.123 | DL24: 10060.996 | DM24: 5861.252 | DN24: 10750.813 | DO24: 6748.478 | DP24: 11128.943 | DQ24: 6223.607 | DR24: 10146.714 | DS24: 6578.85 | DT24: 12429.73 | DU24: 7338.577 | DV24: 12357.674 | DW24: 8259.089 | DX24: 15070.002 | DY24: 10603.62 | DZ24: 15705.605 | EA24: 10859.22 | EB24: 12552.587 | EC24: 7683.955 | ED24: 12762.448 | EE24: 8006.472 | EF24: 11545.905 | EG24: 7085.699 | EH24: 10373.939 | EI24: 6576.968 | EJ24: 10375.159 | EK24: 6030.195 | EL24: 11003.112 | EM24: 6911.379 | EN24: 11269.186 | EO24: 6296.743 | EP24: 10181.393 | EQ24: 6601.454 | ER24: 12466.238 | ES24: 7360.043 | ET24: 12390.831 | EU24: 8281.197 | EV24: 15095.673 | EW24: 10621.709 | EX24: 15737.152 | EY24: 10880.908 | EZ24: 12947.652 | FA24: 7916.354 | FB24: 12800.249 | FC24: 8030.186 | FD24: 11581.834 | FE24: 7107.574 | FF24: 10410.399 | FG24: 6600.171 | FH24: 10410.62 | FI24: 6050.961 | FJ24: 11048.622 | FK24: 6939.877 | FL24: 11310.621 | FM24: 6320.096 | FN24: 10211.522 | FO24: 6621.094
B25: 10074 | C25: Forest Grove, City of | D25: 13323.764 | E25: 8131.125 | F25: 13453.968 | G25: 8567.148 | H25: 17212.564 | I25: 10989.159 | J25: 16420.059 | K25: 11548.09 | L25: 14212.301 | M25: 8544.268 | N25: 15015.898 | O25: 8720.354 | P25: 13279.684 | Q25: 7675.07 | R25: 11335.217 | S25: 7400.65 | T25: 12124.261 | U25: 6730.031 | V25: 12464.556 | W25: 8015.707 | X25: 13870.917 | Y25: 7402.089 | Z25: 11784.412 | AA25: 7053.448 | AB25: 13396.696 | AC25: 8175.633 | AD25: 13524.793 | AE25: 8612.247 | AF25: 17274.072 | AG25: 11028.429 | AH25: 16480.914 | AI25: 11590.889 | AJ25: 14283.023 | AK25: 8586.785 | AL25: 15084.554 | AM25: 8760.227 | AN25: 12865.743 | AO25: 8204.861 | AP25: 11829.684 | AQ25: 7025.869 | AR25: 12200.807 | AS25: 6772.52 | AT25: 12534.854 | AU25: 8060.915 | AV25: 13943.566 | AW25: 7440.859 | AX25: 11856.937 | AY25: 7096.857 | AZ25: 14061.697 | BA25: 8569.244 | BB25: 14697.24 | BC25: 9329.131 | BD25: 16573.57 | BE25: 11609.377 | BF25: 17332.23 | BG25: 11060.401 | BH25: 16391.33 | BI25: 9721.029 | BJ25: 15498.565 | BK25: 9886.106 | BL25: 14065.422 | BM25: 8111.102 | BN25: 12477.356 | BO25: 7404.937 | BP25: 13091.594 | BQ25: 7997.688 | BR25: 14106.916 | BS25: 8223.001 | BT25: 15122.763 | BU25: 8034.919 | BV25: 12132.41 | BW25: 7984.793 | BX25: 14675.369 | BY25: 8138.101 | BZ25: 14816.352 | CA25: 9404.736 | CB25: 16707.885 | CC25: 11703.458 | CD25: 17472.527 | CE25: 11149.929 | CF25: 15878.126 | CG25: 9538.267 | CH25: 15623.986 | CI25: 9966.109 | CJ25: 14179.222 | CK25: 8176.728 | CL25: 12578.328 | CM25: 7464.86 | CN25: 13197.494 | CO25: 8062.383 | CP25: 14221.09 | CQ25: 8289.553 | CR25: 14733.239 | CS25: 8611.867 | CT25: 12690.127 | CU25: 7589.885 | CV25: 15859.067 | CW25: 8728.518 | CX25: 15026.714 | CY25: 10486.978 | CZ25: 18400.689 | DA25: 11674.225 | DB25: 17969.434 | DC25: 11451.286 | DD25: 16995.607 | DE25: 10146.586 | DF25: 16704.383 | DG25: 10625.012 | DH25: 15333.602 | DI25: 8771.438 | DJ25: 13053.442 | DK25: 8462.245 | DL25: 13829.072 | DM25: 7616.963 | DN25: 15127.968 | DO25: 8752.055 | DP25: 15558.917 | DQ25: 9053.34 | DR25: 13676.797 | DS25: 8149.004 | DT25: 16103.778 | DU25: 8863.202 | DV25: 15258.631 | DW25: 10648.829 | DX25: 18684.893 | DY25: 11854.533 | DZ25: 17570.582 | EA25: 12304.573 | EB25: 17257.951 | EC25: 10303.21 | ED25: 17591.391 | EE25: 10159.846 | EF25: 15570.221 | EG25: 8906.793 | EH25: 13254.759 | EI25: 8592.754 | EJ25: 14042.375 | EK25: 7734.45 | EL25: 15361.366 | EM25: 8887.083 | EN25: 15798.982 | EO25: 9193.028 | EP25: 13887.77 | EQ25: 8274.707 | ER25: 15717.959 | ES25: 9537.383 | ET25: 16047.204 | EU25: 10159.576 | EV25: 18900.955 | EW25: 11991.614 | EX25: 17773.76 | EY25: 12446.858 | EZ25: 18190.012 | FA25: 10686.335 | FB25: 17794.664 | FC25: 10277.246 | FD25: 15170.783 | FE25: 9588.948 | FF25: 13908.132 | FG25: 8191.578 | FH25: 14204.491 | FI25: 7823.742 | FJ25: 14983.409 | FK25: 9545.068 | FL25: 16553.848 | FM25: 8726.819 | FN25: 14048.109 | FO25: 8370.243
B26: 10076 | C26: Heyburn, City of | D26: 3170.931 | E26: 2286.133 | F26: 3224.791 | G26: 2429.908 | H26: 3916.775 | I26: 2857.724 | J26: 3761.288 | K26: 3070.998 | L26: 3386.21 | M26: 2413.568 | N26: 3473.765 | O26: 2371.782 | P26: 3158.559 | Q26: 2135.217 | R26: 2982.205 | S26: 2309.386 | T26: 3273.419 | U26: 2097.582 | V26: 3297.591 | W26: 2468.389 | X26: 3339.654 | Y26: 2075.318 | Z26: 2903.565 | AA26: 2056.657 | AB26: 3184.127 | AC26: 2295.653 | AD26: 3238.249 | AE26: 2440.044 | AF26: 3933.602 | AG26: 2870.003 | AH26: 3777.388 | AI26: 3084.159 | AJ26: 3400.408 | AK26: 2423.688 | AL26: 3488.348 | AM26: 2381.734 | AN26: 3050.591 | AO26: 2264.992 | AP26: 3111.74 | AQ26: 2201.695 | AR26: 3286.964 | AS26: 2106.263 | AT26: 3311.402 | AU26: 2478.735 | AV26: 3353.474 | AW26: 2083.898 | AX26: 2915.364 | AY26: 2065.015 | AZ26: 3276.753 | BA26: 2366.315 | BB26: 3300.384 | BC26: 2493.162 | BD26: 3826.937 | BE26: 3052.666 | BF26: 3982.971 | BG26: 2986.378 | BH26: 3609.383 | BI26: 2540.275 | BJ26: 3483.059 | BK26: 2598.465 | BL26: 3296.668 | BM26: 2231.908 | BN26: 3209.147 | BO26: 2283.934 | BP26: 3211.64 | BQ26: 2256.332 | BR26: 3477.272 | BS26: 2377.608 | BT26: 3405.083 | BU26: 2124.955 | BV26: 2928.034 | BW26: 2270.351 | BX26: 3436.24 | BY26: 2271.918 | BZ26: 3337.51 | CA26: 2521.125 | CB26: 3863.121 | CC26: 3081.568 | CD26: 4020.226 | CE26: 3014.209 | CF26: 3546.966 | CG26: 2530.135 | CH26: 3520.3 | CI26: 2626.312 | CJ26: 3335.502 | CK26: 2258.165 | CL26: 3247.267 | CM26: 2310.893 | CN26: 3249.808 | CO26: 2283.243 | CP26: 3515.922 | CQ26: 2404.034 | CR26: 3325.627 | CS26: 2269.492 | CT26: 3080.341 | CU26: 2183.125 | CV26: 3290.733 | CW26: 2177.194 | CX26: 3063.344 | CY26: 2527.052 | CZ26: 3845.182 | DA26: 2814.206 | DB26: 3851.523 | DC26: 2889.977 | DD26: 3338.904 | DE26: 2381.601 | DF26: 3341.443 | DG26: 2490.5 | DH26: 3138.472 | DI26: 2126.331 | DJ26: 2947.115 | DK26: 2284.44 | DL26: 3182.431 | DM26: 2067.737 | DN26: 3341.001 | DO26: 2286.358 | DP26: 3121.826 | DQ26: 2127.937 | DR26: 2868.464 | DS26: 2034.774 | DT26: 3312.314 | DU26: 2191.403 | DV26: 3082.319 | DW26: 2542.712 | DX26: 3865.862 | DY26: 2829.314 | DZ26: 3729.838 | EA26: 3047.45 | EB26: 3357.777 | EC26: 2395.053 | ED26: 3484.813 | EE26: 2382.919 | EF26: 3159.131 | EG26: 2140.308 | EH26: 2967.296 | EI26: 2300.042 | EJ26: 3203.418 | EK26: 2081.379 | EL26: 3362.245 | EM26: 2300.895 | EN26: 3143.12 | EO26: 2142.427 | EP26: 2888.727 | EQ26: 2049.141 | ER26: 3218.484 | ES26: 2321.023 | ET26: 3223.353 | EU26: 2436.313 | EV26: 3886.541 | EW26: 2844.422 | EX26: 3749.541 | EY26: 3063.535 | EZ26: 3507.207 | FA26: 2468.927 | FB26: 3506.076 | FC26: 2397.445 | FD26: 3064.888 | FE26: 2269.187 | FF26: 3097.557 | FG26: 2205.565 | FH26: 3224.406 | FI26: 2095.021 | FJ26: 3264.43 | FK26: 2434.492 | FL26: 3275.517 | FM26: 2045.815 | FN26: 2908.991 | FO26: 2063.509
B27: 10078 | C27: McCleary, City of | D27: 1768.009 | E27: 898.174 | F27: 1937.743 | G27: 1083.397 | H27: 2257.933 | I27: 1314.55 | J27: 2386.526 | K27: 1456.943 | L27: 2056.439 | M27: 1112.956 | N27: 2016.381 | O27: 1028.847 | P27: 1813.077 | Q27: 905.034 | R27: 1359.815 | S27: 739.515 | T27: 1390.355 | U27: 622.945 | V27: 1287.097 | W27: 673.266 | X27: 1401.611 | Y27: 605.198 | Z27: 1338.542 | AA27: 638.686 | AB27: 1791.959 | AC27: 910.341 | AD27: 1964.528 | AE27: 1098.373 | AF27: 2287.845 | AG27: 1331.965 | AH27: 2418.54 | AI27: 1476.487 | AJ27: 2086.903 | AK27: 1129.443 | AL27: 2044.574 | AM27: 1043.232 | AN27: 1782.182 | AO27: 975.542 | AP27: 1420.476 | AQ27: 706.458 | AR27: 1408.188 | AS27: 630.935 | AT27: 1301.021 | AU27: 680.55 | AV27: 1415.864 | AW27: 611.353 | AX27: 1353.939 | AY27: 646.033 | AZ27: 1961.178 | BA27: 999.701 | BB27: 2158.571 | BC27: 1188.848 | BD27: 2453.354 | BE27: 1447.304 | BF27: 2728.876 | BG27: 1498.656 | BH27: 2372.487 | BI27: 1262.241 | BJ27: 2281.777 | BK27: 1262.385 | BL27: 2099.546 | BM27: 1029.692 | BN27: 1845.372 | BO27: 899.615 | BP27: 1779.884 | BQ27: 855 | BR27: 1825.787 | BS27: 847.861 | BT27: 1905.748 | BU27: 824.28 | BV27: 1777.908 | BW27: 901.024 | BX27: 2228.915 | BY27: 1052.6 | BZ27: 2360.771 | CA27: 1299.052 | CB27: 2695.071 | CC27: 1526.841 | CD27: 2943.627 | CE27: 1620.34 | CF27: 2535.502 | CG27: 1361.355 | CH27: 2500.912 | CI27: 1376.579 | CJ27: 2299.566 | CK27: 1127.811 | CL27: 2072.286 | CM27: 1019.888 | CN27: 2015.288 | CO27: 963.042 | CP27: 2078.759 | CQ27: 965.104 | CR27: 2097.048 | CS27: 979.563 | CT27: 2045.095 | CU27: 959.641 | CV27: 1830.825 | CW27: 847.734 | CX27: 1897.837 | CY27: 1147.064 | CZ27: 2319.587 | DA27: 1313.882 | DB27: 2210.127 | DC27: 1218.504 | DD27: 2021.355 | DE27: 1099.093 | DF27: 2061.638 | DG27: 1157.699 | DH27: 1814.432 | DI27: 909.731 | DJ27: 1480.568 | DK27: 792.239 | DL27: 1460.002 | DM27: 649.172 | DN27: 1415.141 | DO27: 666.544 | DP27: 1471.18 | DQ27: 695.525 | DR27: 1426.685 | DS27: 679.859 | DT27: 1835.748 | DU27: 850.014 | DV27: 1902.907 | DW27: 1150.128 | DX27: 2325.71 | DY27: 1317.35 | DZ27: 2147.189 | EA27: 1290.494 | EB27: 2026.736 | EC27: 1102.019 | ED27: 2131.829 | EE27: 1096.14 | EF27: 1819.308 | EG27: 912.176 | EH27: 1484.582 | EI27: 794.387 | EJ27: 1463.959 | EK27: 650.932 | EL27: 1418.981 | EM27: 668.353 | EN27: 1475.161 | EO27: 697.408 | EP27: 1430.549 | EQ27: 681.701 | ER27: 1785.607 | ES27: 905.563 | ET27: 1969.854 | EU27: 1089.271 | EV27: 2330.271 | EW27: 1319.934 | EX27: 2151.415 | EY27: 1293.033 | EZ27: 2112.987 | FA27: 1133.606 | FB27: 2136.104 | FC27: 1098.338 | FD27: 1766.392 | FE27: 970.592 | FF27: 1533.285 | FG27: 750.319 | FH27: 1466.932 | FI27: 652.253 | FJ27: 1380.021 | FK27: 711.554 | FL27: 1521.713 | FM27: 655.275 | FN27: 1433.457 | FO27: 683.086
B28: 10079 | C28: McMinnville, City of | D28: 35685.527 | E28: 21071.525 | F28: 39507.473 | G28: 24542.855 | H28: 43392.711 | I28: 26797.355 | J28: 43392.602 | K28: 29268.119 | L28: 40510.328 | M28: 24092.822 | N28: 41228.645 | O28: 23645.018 | P28: 37733.992 | Q28: 21395.693 | R28: 35144.398 | S28: 21951.771 | T28: 36114.648 | U28: 19989.883 | V28: 35771.031 | W28: 22072.449 | X28: 37806.551 | Y28: 20367.51 | Z28: 34820.559 | AA28: 20813.561 | AB28: 35774.43 | AC28: 21124.02 | AD28: 39605.922 | AE28: 24604.014 | AF28: 43500.891 | AG28: 26864.156 | AH28: 43500.781 | AI28: 29341.088 | AJ28: 40611.285 | AK28: 24152.865 | AL28: 41331.398 | AM28: 23703.947 | AN28: 36846.063 | AO28: 22430.943 | AP28: 36149.531 | AQ28: 21088.869 | AR28: 36204.609 | AS28: 20039.682 | AT28: 35860.152 | AU28: 22127.439 | AV28: 37900.746 | AW28: 20418.254 | AX28: 34907.297 | AY28: 20865.4 | AZ28: 38688.48 | BA28: 23527.385 | BB28: 38187.055 | BC28: 23238.105 | BD28: 42210.984 | BE28: 27913.67 | BF28: 45694.094 | BG28: 28057.098 | BH28: 40775.301 | BI28: 23930.52 | BJ28: 40793.875 | BK28: 25224.729 | BL28: 37473.176 | BM28: 21192.051 | BN28: 35691.523 | BO28: 20826.426 | BP28: 34966.098 | BQ28: 20943.9 | BR28: 36874.609 | BS28: 21199.912 | BT28: 39024.793 | BU28: 21455.127 | BV28: 34352.59 | BW28: 21904.578 | BX28: 40095.191 | BY28: 22615.623 | BZ28: 38436.133 | CA28: 23389.678 | CB28: 42474.207 | CC28: 28087.74 | CD28: 45996.27 | CE28: 28242.637 | CF28: 40813.578 | CG28: 24229.191 | CH28: 41064.281 | CI28: 25391.936 | CJ28: 37729.688 | CK28: 21337.115 | CL28: 35940.473 | CM28: 20971.695 | CN28: 35209.438 | CO28: 21089.658 | CP28: 37124.004 | CQ28: 21343.295 | CR28: 38224.961 | CS28: 22669.15 | CT28: 35617.527 | CU28: 21031.279 | CV28: 40817.188 | CW28: 22475.77 | CX28: 38527.051 | CY28: 25307.057 | CZ28: 44857.352 | DA28: 27811.969 | DB28: 43924.992 | DC28: 27084.039 | DD28: 42061.605 | DE28: 25025.773 | DF28: 42093.996 | DG28: 26342.922 | DH28: 38663.418 | DI28: 22016.23 | DJ28: 35075.145 | DK28: 22123.244 | DL28: 37619.855 | DM28: 20815.332 | DN28: 37762.016 | DO28: 21535.744 | DP28: 41128.531 | DQ28: 24199.695 | DR28: 35846.48 | DS28: 21457.723 | DT28: 40906.852 | DU28: 22525.143 | DV28: 38627.383 | DW28: 25372.969 | DX28: 44987.66 | DY28: 27892.768 | DZ28: 42814.832 | EA28: 28390.016 | EB28: 42180.516 | EC28: 25096.527 | ED28: 43392.648 | EE28: 25223.959 | EF28: 38757.527 | EG28: 22069.822 | EH28: 35155.871 | EI28: 22174.154 | EJ28: 37700.953 | EK28: 20860.203 | EL28: 37853.957 | EM28: 21588.178 | EN28: 41224.297 | EO28: 24256.039 | EP28: 35925.742 | EQ28: 21505.17 | ER28: 39897.656 | ES28: 23674.047 | ET28: 39873.211 | EU28: 24294.211 | EV28: 45118.629 | EW28: 27973.973 | EX28: 42933.168 | EY28: 28468.48 | EZ28: 42521.098 | FA28: 25014.713 | FB28: 43506.855 | FC28: 25290.342 | FD28: 37762.563 | FE28: 23213.232 | FF28: 36230.633 | FG28: 21231.678 | FH28: 37782.449 | FI28: 20905.299 | FJ28: 36915.961 | FK28: 22671.26 | FL28: 42455.461 | FM28: 23177.723 | FN28: 36005.383 | FO28: 21552.844
B29: 10080 | C29: Milton, Town of | D29: 2950.859 | E29: 1867.687 | F29: 3345.154 | G29: 2209.601 | H29: 3801.215 | I29: 2469.659 | J29: 3742.527 | K29: 2694.963 | L29: 3359.655 | M29: 2101.544 | N29: 3340.948 | O29: 2013.489 | P29: 2898.146 | Q29: 1749.581 | R29: 2306.122 | S29: 1615.092 | T29: 2270.05 | U29: 1335.099 | V29: 2360.774 | W29: 1646.97 | X29: 2547.059 | Y29: 1471.613 | Z29: 2279.681 | AA29: 1442.455 | AB29: 2955.336 | AC29: 1870.521 | AD29: 3349.765 | AE29: 2212.647 | AF29: 3805.403 | AG29: 2472.381 | AH29: 3746.534 | AI29: 2697.849 | AJ29: 3364.107 | AK29: 2104.33 | AL29: 3345.452 | AM29: 2016.204 | AN29: 2796.991 | AO29: 1857.937 | AP29: 2389.498 | AQ29: 1527.214 | AR29: 2267.364 | AS29: 1333.519 | AT29: 2358.135 | AU29: 1645.129 | AV29: 2544.227 | AW29: 1469.976 | AX29: 2277.005 | AY29: 1440.762 | AZ29: 2959.682 | BA29: 1873.271 | BB29: 3354.241 | BC29: 2215.604 | BD29: 3671.442 | BE29: 2613.051 | BF29: 3892.113 | BG29: 2558.964 | BH29: 3493.518 | BI29: 2154.486 | BJ29: 3231.755 | BK29: 2136.913 | BL29: 2906.998 | BM29: 1754.925 | BN29: 2386.831 | BO29: 1525.509 | BP29: 2183.125 | BQ29: 1413.613 | BR29: 2443.401 | BS29: 1555.511 | BT29: 2541.475 | BU29: 1468.386 | BV29: 2190.126 | BW29: 1523.398 | BX29: 3070.204 | BY29: 1769.645 | BZ29: 3358.591 | CA29: 2218.477 | CB29: 3675.251 | CC29: 2615.762 | CD29: 3896.037 | CE29: 2561.544 | CF29: 3372.634 | CG29: 2109.663 | CH29: 3235.857 | CI29: 2139.625 | CJ29: 2911.237 | CK29: 1757.484 | CL29: 2384.238 | CM29: 1523.851 | CN29: 2180.68 | CO29: 1412.03 | CP29: 2440.816 | CQ29: 1553.865 | CR29: 2450.823 | CS29: 1554.818 | CT29: 2271.878 | CU29: 1437.518 | CV29: 3099.15 | CW29: 1786.329 | CX29: 3262.804 | CY29: 2367.083 | CZ29: 3847.791 | DA29: 2499.92 | DB29: 3930.667 | DC29: 2584.312 | DD29: 3401.27 | DE29: 2127.575 | DF29: 3266.044 | DG29: 2159.586 | DH29: 2939.383 | DI29: 1774.475 | DJ29: 2312.36 | DK29: 1619.46 | DL29: 2279.898 | DM29: 1340.89 | DN29: 2455.575 | DO29: 1563.261 | DP29: 2465.656 | DQ29: 1564.228 | DR29: 2289.62 | DS29: 1448.745 | DT29: 3103.527 | DU29: 1788.852 | DV29: 3266.859 | DW29: 2370.025 | DX29: 3851.746 | DY29: 2502.49 | DZ29: 3791.362 | EA29: 2730.129 | EB29: 3405.069 | EC29: 2129.952 | ED29: 3389.627 | EE29: 2042.827 | EF29: 2943.491 | EG29: 1776.955 | EH29: 2310.021 | EI29: 1617.822 | EJ29: 2277.601 | EK29: 1339.539 | EL29: 2453.156 | EM29: 1561.721 | EN29: 2463.238 | EO29: 1562.694 | EP29: 2287.33 | EQ29: 1447.296 | ER29: 3000.19 | ES29: 1898.91 | ET29: 3398.717 | EU29: 2244.981 | EV29: 3855.599 | EW29: 2504.993 | EX29: 3795.05 | EY29: 2732.784 | EZ29: 3520.064 | FA29: 2170.858 | FB29: 3393.775 | FC29: 2045.327 | FD29: 2840.216 | FE29: 1886.65 | FF29: 2393.926 | FG29: 1530.043 | FH29: 2275.363 | FI29: 1338.223 | FJ29: 2362.703 | FK29: 1648.316 | FL29: 2549.221 | FM29: 1472.862 | FN29: 2285.099 | FO29: 1445.884
B30: 10081 | C30: Milton-Freewater, City of | D30: 4548.75 | E30: 2966.619 | F30: 5354.096 | G30: 3702.051 | H30: 7481.989 | I30: 5195.01 | J30: 6808.475 | K30: 5258.997 | L30: 5374.044 | M30: 3616.718 | N30: 5249.837 | O30: 3353.255 | P30: 4454.865 | Q30: 2705.428 | R30: 4184.274 | S30: 2856.099 | T30: 4672.712 | U30: 2548.069 | V30: 5388.006 | W30: 3458.465 | X30: 5890.159 | Y30: 3110.897 | Z30: 4543.439 | AA30: 2847.559 | AB30: 4548.75 | AC30: 2966.619 | AD30: 5354.096 | AE30: 3702.051 | AF30: 7481.989 | AG30: 5195.01 | AH30: 6808.475 | AI30: 5258.997 | AJ30: 5374.044 | AK30: 3616.718 | AL30: 5249.837 | AM30: 3353.255 | AN30: 4263.105 | AO30: 2897.188 | AP30: 4366.741 | AQ30: 2673.633 | AR30: 4672.712 | AS30: 2548.069 | AT30: 5388.006 | AU30: 3458.465 | AV30: 5890.159 | AW30: 3110.897 | AX30: 4543.439 | AY30: 2847.559 | AZ30: 4548.75 | BA30: 2966.619 | BB30: 5354.096 | BC30: 3702.051 | BD30: 7153.438 | BE30: 5523.561 | BF30: 7121.229 | BG30: 4946.243 | BH30: 5610.198 | BI30: 3713.911 | BJ30: 5026.57 | BK30: 3576.522 | BL30: 4454.865 | BM30: 2705.428 | BN30: 4366.741 | BO30: 2673.633 | BP30: 4479.332 | BQ30: 2741.448 | BR30: 5617.281 | BS30: 3229.19 | BT30: 5890.159 | BU30: 3110.897 | BV30: 4345.501 | BW30: 3045.497 | BX30: 4743.527 | BY30: 2771.843 | BZ30: 5354.096 | CA30: 3702.051 | CB30: 7153.438 | CC30: 5523.561 | CD30: 7121.229 | CE30: 4946.243 | CF30: 5374.044 | CG30: 3616.718 | CH30: 5026.57 | CI30: 3576.522 | CJ30: 4454.865 | CK30: 2705.428 | CL30: 4366.741 | CM30: 2673.633 | CN30: 4479.332 | CO30: 2741.448 | CP30: 5617.281 | CQ30: 3229.19 | CR30: 5656.877 | CS30: 3344.18 | CT30: 4543.439 | CU30: 2847.559 | CV30: 4900.07 | CW30: 2863.317 | CX30: 5237.701 | CY30: 4041.313 | CZ30: 7399.696 | DA30: 5137.871 | DB30: 7146.596 | DC30: 4963.862 | DD30: 5580.782 | DE30: 3755.851 | DF30: 5064.608 | DG30: 3603.588 | DH30: 4786.608 | DI30: 2906.895 | DJ30: 4138.638 | DK30: 2824.948 | DL30: 4764.426 | DM30: 2598.081 | DN30: 5953.858 | DO30: 3422.677 | DP30: 5781.468 | DQ30: 3417.834 | DR30: 4462.787 | DS30: 2797.011 | DT30: 4900.07 | DU30: 2863.317 | DV30: 5237.701 | DW30: 4041.313 | DX30: 7399.696 | DY30: 5137.871 | DZ30: 6832.728 | EA30: 5277.73 | EB30: 5580.782 | EC30: 3755.851 | ED30: 5289.565 | EE30: 3378.631 | EF30: 4786.608 | EG30: 2906.895 | EH30: 4138.638 | EI30: 2824.948 | EJ30: 4764.426 | EK30: 2598.081 | EL30: 5953.858 | EM30: 3422.677 | EN30: 5781.468 | EO30: 3417.834 | EP30: 4462.787 | EQ30: 2797.011 | ER30: 4698.866 | ES30: 3064.522 | ET30: 5485.857 | EU30: 3793.156 | EV30: 7399.696 | EW30: 5137.871 | EX30: 6832.728 | EY30: 5277.73 | EZ30: 5764.092 | FA30: 3815.787 | FB30: 5289.565 | FC30: 3378.631 | FD30: 4580.569 | FE30: 3112.935 | FF30: 4319.114 | FG30: 2644.472 | FH30: 4764.426 | FI30: 2598.081 | FJ30: 5710.846 | FK30: 3665.69 | FL30: 6019.888 | FM30: 3179.414 | FN30: 4462.787 | FO30: 2797.011
B31: 10082 | C31: Minidoka, City of | D31: 35.303 | E31: 26.435 | F31: 43.593 | G31: 33.118 | H31: 64.402 | I31: 47.558 | J31: 61.127 | K31: 50.567 | L31: 52.163 | M31: 37.222 | N31: 46.806 | O31: 32.748 | P31: 36.802 | Q31: 26.356 | R31: 27.519 | S31: 22.317 | T31: 28.083 | U31: 18.438 | V31: 28.419 | W31: 21.998 | X31: 29.225 | Y31: 18.763 | Z31: 24.951 | AA31: 18.427 | AB31: 35.303 | AC31: 26.435 | AD31: 43.593 | AE31: 33.118 | AF31: 64.402 | AG31: 47.558 | AH31: 61.127 | AI31: 50.567 | AJ31: 52.163 | AK31: 37.222 | AL31: 46.806 | AM31: 32.748 | AN31: 35.4 | AO31: 27.759 | AP31: 28.59 | AQ31: 21.246 | AR31: 28.083 | AS31: 18.438 | AT31: 28.419 | AU31: 21.998 | AV31: 29.225 | AW31: 18.763 | AX31: 24.951 | AY31: 18.427 | AZ31: 37.658 | BA31: 28.271 | BB31: 48.335 | BC31: 37.115 | BD31: 57.797 | BE31: 46.861 | BF31: 58.514 | BG31: 44.516 | BH31: 53.736 | BI31: 38.092 | BJ31: 46.692 | BK31: 35.849 | BL31: 39.037 | BM31: 28.059 | BN31: 33.393 | BO31: 24.863 | BP31: 30.779 | BQ31: 22.121 | BR31: 33.09 | BS31: 23.517 | BT31: 33.287 | BU31: 21.3 | BV31: 28.273 | BW31: 22.838 | BX31: 39.087 | BY31: 26.842 | BZ31: 48.335 | CA31: 37.115 | CB31: 57.797 | CC31: 46.861 | CD31: 58.514 | CE31: 44.516 | CF31: 51.613 | CG31: 37.048 | CH31: 46.692 | CI31: 35.849 | CJ31: 39.037 | CK31: 28.059 | CL31: 33.393 | CM31: 24.863 | CN31: 30.779 | CO31: 22.121 | CP31: 33.09 | CQ31: 23.517 | CR31: 32.104 | CS31: 22.483 | CT31: 29.418 | CU31: 21.693 | CV31: 44.807 | CW31: 31.344 | CX31: 48.448 | CY31: 38.644 | CZ31: 75.964 | DA31: 58.915 | DB31: 76.218 | DC31: 59.321 | DD31: 60.147 | DE31: 44.094 | DF31: 54.268 | DG31: 39.825 | DH31: 44.182 | DI31: 32.638 | DJ31: 34.009 | DK31: 26.246 | DL31: 34.836 | DM31: 23.511 | DN31: 37.472 | DO31: 27.597 | DP31: 38.052 | DQ31: 25.248 | DR31: 31.765 | DS31: 24.311 | DT31: 44.807 | DU31: 31.344 | DV31: 48.448 | DW31: 38.644 | DX31: 75.964 | DY31: 58.915 | DZ31: 76.218 | EA31: 59.321 | EB31: 60.147 | EC31: 44.094 | ED31: 54.268 | EE31: 39.825 | EF31: 44.182 | EG31: 32.638 | EH31: 34.009 | EI31: 26.246 | EJ31: 34.836 | EK31: 23.511 | EL31: 37.472 | EM31: 27.597 | EN31: 38.052 | EO31: 25.248 | EP31: 31.765 | EQ31: 24.311 | ER31: 44.807 | ES31: 31.344 | ET31: 48.448 | EU31: 38.644 | EV31: 75.964 | EW31: 58.915 | EX31: 76.218 | EY31: 59.321 | EZ31: 61.145 | FA31: 44.826 | FB31: 54.268 | FC31: 39.825 | FD31: 44.182 | FE31: 32.638 | FF31: 34.009 | FG31: 26.246 | FH31: 34.836 | FI31: 23.511 | FJ31: 37.472 | FK31: 27.597 | FL31: 38.052 | FM31: 25.248 | FN31: 31.765 | FO31: 24.311
... 38 more rows

Sheet NLSL
B1: New Large Single Loads (MWh)
A2: TOC | D2: 2021-10-01 | E2: 2021-10-01 | F2: 2021-11-01 | G2: 2021-11-01 | H2: 2021-12-01 | I2: 2021-12-01 | J2: 2022-01-01 | K2: 2022-01-01 | L2: 2022-02-01 | M2: 2022-02-01 | N2: 2022-03-01 | O2: 2022-03-01 | P2: 2022-04-01 | Q2: 2022-04-01 | R2: 2022-05-01 | S2: 2022-05-01 | T2: 2022-06-01 | U2: 2022-06-01 | V2: 2022-07-01 | W2: 2022-07-01 | X2: 2022-08-01 | Y2: 2022-08-01 | Z2: 2022-09-01 | AA2: 2022-09-01 | AB2: 2022-10-01 | AC2: 2022-10-01 | AD2: 2022-11-01 | AE2: 2022-11-01 | AF2: 2022-12-01 | AG2: 2022-12-01 | AH2: 2023-01-01 | AI2: 2023-01-01 | AJ2: 2023-02-01 | AK2: 2023-02-01 | AL2: 2023-03-01 | AM2: 2023-03-01 | AN2: 2023-04-01 | AO2: 2023-04-01 | AP2: 2023-05-01 | AQ2: 2023-05-01 | AR2: 2023-06-01 | AS2: 2023-06-01 | AT2: 2023-07-01 | AU2: 2023-07-01 | AV2: 2023-08-01 | AW2: 2023-08-01 | AX2: 2023-09-01 | AY2: 2023-09-01 | AZ2: 2023-10-01 | BA2: 2023-10-01 | BB2: 2023-11-01 | BC2: 2023-11-01 | BD2: 2023-12-01 | BE2: 2023-12-01 | BF2: 2024-01-01 | BG2: 2024-01-01 | BH2: 2024-02-01 | BI2: 2024-02-01 | BJ2: 2024-03-01 | BK2: 2024-03-01 | BL2: 2024-04-01 | BM2: 2024-04-01 | BN2: 2024-05-01 | BO2: 2024-05-01 | BP2: 2024-06-01 | BQ2: 2024-06-01 | BR2: 2024-07-01 | BS2: 2024-07-01 | BT2: 2024-08-01 | BU2: 2024-08-01 | BV2: 2024-09-01 | BW2: 2024-09-01 | BX2: 2024-10-01 | BY2: 2024-10-01 | BZ2: 2024-11-01 | CA2: 2024-11-01 | CB2: 2024-12-01 | CC2: 2024-12-01 | CD2: 2025-01-01 | CE2: 2025-01-01 | CF2: 2025-02-01 | CG2: 2025-02-01 | CH2: 2025-03-01 | CI2: 2025-03-01 | CJ2: 2025-04-01 | CK2: 2025-04-01 | CL2: 2025-05-01 | CM2: 2025-05-01 | CN2: 2025-06-01 | CO2: 2025-06-01 | CP2: 2025-07-01 | CQ2: 2025-07-01 | CR2: 2025-08-01 | CS2: 2025-08-01 | CT2: =+EOMONTH(CR2,0)+1 -> 2025-09-01 | CU2: =+CT2 -> 2025-09-01 | CV2: =+EOMONTH(CT2,0)+1 -> 2025-10-01 | CW2: =+CV2 -> 2025-10-01 | CX2: =+EOMONTH(CV2,0)+1 -> 2025-11-01 | CY2: =+CX2 -> 2025-11-01 | CZ2: =+EOMONTH(CX2,0)+1 -> 2025-12-01 | DA2: =+CZ2 -> 2025-12-01 | DB2: =+EOMONTH(CZ2,0)+1 -> 2026-01-01 | DC2: =+DB2 -> 2026-01-01 | DD2: =+EOMONTH(DB2,0)+1 -> 2026-02-01 | DE2: =+DD2 -> 2026-02-01 | DF2: =+EOMONTH(DD2,0)+1 -> 2026-03-01 | DG2: =+DF2 -> 2026-03-01 | DH2: =+EOMONTH(DF2,0)+1 -> 2026-04-01 | DI2: =+DH2 -> 2026-04-01 | DJ2: =+EOMONTH(DH2,0)+1 -> 2026-05-01 | DK2: =+DJ2 -> 2026-05-01 | DL2: =+EOMONTH(DJ2,0)+1 -> 2026-06-01 | DM2: =+DL2 -> 2026-06-01 | DN2: =+EOMONTH(DL2,0)+1 -> 2026-07-01 | DO2: =+DN2 -> 2026-07-01 | DP2: =+EOMONTH(DN2,0)+1 -> 2026-08-01 | DQ2: =+DP2 -> 2026-08-01 | DR2: =+EOMONTH(DP2,0)+1 -> 2026-09-01 | DS2: 2026-09-01 | DT2: =+EOMONTH(DR2,0)+1 -> 2026-10-01 | DU2: 2026-10-01 | DV2: =+EOMONTH(DT2,0)+1 -> 2026-11-01 | DW2: 2026-11-01 | DX2: =+EOMONTH(DV2,0)+1 -> 2026-12-01 | DY2: 2026-12-01 | DZ2: =+EOMONTH(DX2,0)+1 -> 2027-01-01 | EA2: 2027-01-01 | EB2: =+EOMONTH(DZ2,0)+1 -> 2027-02-01 | EC2: 2027-02-01 | ED2: =+EOMONTH(EB2,0)+1 -> 2027-03-01 | EE2: 2027-03-01 | EF2: =+EOMONTH(ED2,0)+1 -> 2027-04-01 | EG2: 2027-04-01 | EH2: =+EOMONTH(EF2,0)+1 -> 2027-05-01 | EI2: 2027-05-01 | EJ2: =+EOMONTH(EH2,0)+1 -> 2027-06-01 | EK2: 2027-06-01 | EL2: =+EOMONTH(EJ2,0)+1 -> 2027-07-01 | EM2: 2027-07-01 | EN2: =+EOMONTH(EL2,0)+1 -> 2027-08-01 | EO2: 2027-08-01 | EP2: =+EOMONTH(EN2,0)+1 -> 2027-09-01 | EQ2: =+EP2 -> 2027-09-01 | ER2: =+EOMONTH(EP2,0)+1 -> 2027-10-01 | ES2: =+ER2 -> 2027-10-01 | ET2: =+EOMONTH(ER2,0)+1 -> 2027-11-01 | EU2: =+ET2 -> 2027-11-01 | EV2: =+EOMONTH(ET2,0)+1 -> 2027-12-01 | EW2: =+EV2 -> 2027-12-01 | EX2: =+EOMONTH(EV2,0)+1 -> 2028-01-01 | EY2: =+EX2 -> 2028-01-01 | EZ2: =+EOMONTH(EX2,0)+1 -> 2028-02-01 | FA2: =+EZ2 -> 2028-02-01 | FB2: =+EOMONTH(EZ2,0)+1 -> 2028-03-01 | FC2: =+FB2 -> 2028-03-01 | FD2: =+EOMONTH(FB2,0)+1 -> 2028-04-01 | FE2: =+FD2 -> 2028-04-01 | FF2: =+EOMONTH(FD2,0)+1 -> 2028-05-01 | FG2: =+FF2 -> 2028-05-01 | FH2: =+EOMONTH(FF2,0)+1 -> 2028-06-01 | FI2: =+FH2 -> 2028-06-01 | FJ2: =+EOMONTH(FH2,0)+1 -> 2028-07-01 | FK2: =+FJ2 -> 2028-07-01 | FL2: =+EOMONTH(FJ2,0)+1 -> 2028-08-01 | FM2: =+FL2 -> 2028-08-01 | FN2: =+EOMONTH(FL2,0)+1 -> 2028-09-01 | FO2: =+FN2 -> 2028-09-01
B3: BESID | C3: AccountName | D3: HLH | E3: LLH | F3: HLH | G3: LLH | H3: HLH | I3: LLH | J3: HLH | K3: LLH | L3: HLH | M3: LLH | N3: HLH | O3: LLH | P3: HLH | Q3: LLH | R3: HLH | S3: LLH | T3: HLH | U3: LLH | V3: HLH | W3: LLH | X3: HLH | Y3: LLH | Z3: HLH | AA3: LLH | AB3: HLH | AC3: LLH | AD3: HLH | AE3: LLH | AF3: HLH | AG3: LLH | AH3: HLH | AI3: LLH | AJ3: HLH | AK3: LLH | AL3: HLH | AM3: LLH | AN3: HLH | AO3: LLH | AP3: HLH | AQ3: LLH | AR3: HLH | AS3: LLH | AT3: HLH | AU3: LLH | AV3: HLH | AW3: LLH | AX3: HLH | AY3: LLH | AZ3: HLH | BA3: LLH | BB3: HLH | BC3: LLH | BD3: HLH | BE3: LLH | BF3: HLH | BG3: LLH | BH3: HLH | BI3: LLH | BJ3: HLH | BK3: LLH | BL3: HLH | BM3: LLH | BN3: HLH | BO3: LLH | BP3: HLH | BQ3: LLH | BR3: HLH | BS3: LLH | BT3: HLH | BU3: LLH | BV3: HLH | BW3: LLH | BX3: HLH | BY3: LLH | BZ3: HLH | CA3: LLH | CB3: HLH | CC3: LLH | CD3: HLH | CE3: LLH | CF3: HLH | CG3: LLH | CH3: HLH | CI3: LLH | CJ3: HLH | CK3: LLH | CL3: HLH | CM3: LLH | CN3: HLH | CO3: LLH | CP3: HLH | CQ3: LLH | CR3: HLH | CS3: LLH | CT3: =+CR3 -> HLH | CU3: =+CS3 -> LLH | CV3: =+CT3 -> HLH | CW3: LLH | CX3: HLH | CY3: LLH | CZ3: HLH | DA3: LLH | DB3: HLH | DC3: LLH | DD3: HLH | DE3: LLH | DF3: HLH | DG3: LLH | DH3: HLH | DI3: LLH | DJ3: HLH | DK3: LLH | DL3: HLH | DM3: LLH | DN3: HLH | DO3: LLH | DP3: HLH | DQ3: LLH | DR3: =+DP3 -> HLH | DS3: =+DQ3 -> LLH | DT3: =+DR3 -> HLH | DU3: =+DS3 -> LLH | DV3: =+DT3 -> HLH | DW3: =+DU3 -> LLH | DX3: =+DV3 -> HLH | DY3: =+DW3 -> LLH | DZ3: =+DX3 -> HLH | EA3: =+DY3 -> LLH | EB3: =+DZ3 -> HLH | EC3: =+EA3 -> LLH | ED3: =+EB3 -> HLH | EE3: =+EC3 -> LLH | EF3: =+ED3 -> HLH | EG3: =+EE3 -> LLH | EH3: =+EF3 -> HLH | EI3: =+EG3 -> LLH | EJ3: =+EH3 -> HLH | EK3: =+EI3 -> LLH | EL3: =+EJ3 -> HLH | EM3: =+EK3 -> LLH | EN3: =+EL3 -> HLH | EO3: =+EM3 -> LLH | EP3: =+EN3 -> HLH | EQ3: =+EO3 -> LLH | ER3: =+EP3 -> HLH | ES3: =+EQ3 -> LLH | ET3: =+ER3 -> HLH | EU3: =+ES3 -> LLH | EV3: =+ET3 -> HLH | EW3: =+EU3 -> LLH | EX3: =+EV3 -> HLH | EY3: =+EW3 -> LLH | EZ3: =+EX3 -> HLH | FA3: =+EY3 -> LLH | FB3: =+EZ3 -> HLH | FC3: =+FA3 -> LLH | FD3: =+FB3 -> HLH | FE3: =+FC3 -> LLH | FF3: =+FD3 -> HLH | FG3: =+FE3 -> LLH | FH3: =+FF3 -> HLH | FI3: =+FG3 -> LLH | FJ3: =+FH3 -> HLH | FK3: =+FI3 -> LLH | FL3: =+FJ3 -> HLH | FM3: =+FK3 -> LLH | FN3: =+FL3 -> HLH | FO3: =+FM3 -> LLH
B4: 10015 | C4: Asotin County PUD #1 | D4: 0 | E4: 0 | F4: 0 | G4: 0 | H4: 0 | I4: 0 | J4: 0 | K4: 0 | L4: 0 | M4: 0 | N4: 0 | O4: 0 | P4: 0 | Q4: 0 | R4: 0 | S4: 0 | T4: 0 | U4: 0 | V4: 0 | W4: 0 | X4: 0 | Y4: 0 | Z4: 0 | AA4: 0 | AB4: 0 | AC4: 0 | AD4: 0 | AE4: 0 | AF4: 0 | AG4: 0 | AH4: 0 | AI4: 0 | AJ4: 0 | AK4: 0 | AL4: 0 | AM4: 0 | AN4: 0 | AO4: 0 | AP4: 0 | AQ4: 0 | AR4: 0 | AS4: 0 | AT4: 0 | AU4: 0 | AV4: 0 | AW4: 0 | AX4: 0 | AY4: 0 | AZ4: 0 | BA4: 0 | BB4: 0 | BC4: 0 | BD4: 0 | BE4: 0 | BF4: 0 | BG4: 0 | BH4: 0 | BI4: 0 | BJ4: 0 | BK4: 0 | BL4: 0 | BM4: 0 | BN4: 0 | BO4: 0 | BP4: 0 | BQ4: 0 | BR4: 0 | BS4: 0 | BT4: 0 | BU4: 0 | BV4: 0 | BW4: 0 | BX4: 0 | BY4: 0 | BZ4: 0 | CA4: 0 | CB4: 0 | CC4: 0 | CD4: 0 | CE4: 0 | CF4: 0 | CG4: 0 | CH4: 0 | CI4: 0 | CJ4: 0 | CK4: 0 | CL4: 0 | CM4: 0 | CN4: 0 | CO4: 0 | CP4: 0 | CQ4: 0 | CR4: 0 | CS4: 0 | CT4: 0 | CU4: 0 | CV4: 0 | CW4: 0 | CX4: 0 | CY4: 0 | CZ4: 0 | DA4: 0 | DB4: 0 | DC4: 0 | DD4: 0 | DE4: 0 | DF4: 0 | DG4: 0 | DH4: 0 | DI4: 0 | DJ4: 0 | DK4: 0 | DL4: 0 | DM4: 0 | DN4: 0 | DO4: 0 | DP4: 0 | DQ4: 0 | DR4: 0 | DS4: 0 | DT4: 0 | DU4: 0 | DV4: 0 | DW4: 0 | DX4: 0 | DY4: 0 | DZ4: 0 | EA4: 0 | EB4: 0 | EC4: 0 | ED4: 0 | EE4: 0 | EF4: 0 | EG4: 0 | EH4: 0 | EI4: 0 | EJ4: 0 | EK4: 0 | EL4: 0 | EM4: 0 | EN4: 0 | EO4: 0 | EP4: 0 | EQ4: 0 | ER4: 0 | ES4: 0 | ET4: 0 | EU4: 0 | EV4: 0 | EW4: 0 | EX4: 0 | EY4: 0 | EZ4: 0 | FA4: 0 | FB4: 0 | FC4: 0 | FD4: 0 | FE4: 0 | FF4: 0 | FG4: 0 | FH4: 0 | FI4: 0 | FJ4: 0 | FK4: 0 | FL4: 0 | FM4: 0 | FN4: 0 | FO4: 0
B5: 10024 | C5: Benton County PUD #1 | D5: 0 | E5: 0 | F5: 0 | G5: 0 | H5: 0 | I5: 0 | J5: 0 | K5: 0 | L5: 0 | M5: 0 | N5: 0 | O5: 0 | P5: 0 | Q5: 0 | R5: 0 | S5: 0 | T5: 0 | U5: 0 | V5: 0 | W5: 0 | X5: 0 | Y5: 0 | Z5: 0 | AA5: 0 | AB5: 0 | AC5: 0 | AD5: 0 | AE5: 0 | AF5: 0 | AG5: 0 | AH5: 0 | AI5: 0 | AJ5: 0 | AK5: 0 | AL5: 0 | AM5: 0 | AN5: 0 | AO5: 0 | AP5: 0 | AQ5: 0 | AR5: 0 | AS5: 0 | AT5: 0 | AU5: 0 | AV5: 0 | AW5: 0 | AX5: 0 | AY5: 0 | AZ5: 0 | BA5: 0 | BB5: 0 | BC5: 0 | BD5: 0 | BE5: 0 | BF5: 0 | BG5: 0 | BH5: 0 | BI5: 0 | BJ5: 0 | BK5: 0 | BL5: 0 | BM5: 0 | BN5: 0 | BO5: 0 | BP5: 0 | BQ5: 0 | BR5: 0 | BS5: 0 | BT5: 0 | BU5: 0 | BV5: 0 | BW5: 0 | BX5: 0 | BY5: 0 | BZ5: 0 | CA5: 0 | CB5: 0 | CC5: 0 | CD5: 0 | CE5: 0 | CF5: 0 | CG5: 0 | CH5: 0 | CI5: 0 | CJ5: 0 | CK5: 0 | CL5: 0 | CM5: 0 | CN5: 0 | CO5: 0 | CP5: 0 | CQ5: 0 | CR5: 0 | CS5: 0 | CT5: 0 | CU5: 0 | CV5: 0 | CW5: 0 | CX5: 0 | CY5: 0 | CZ5: 0 | DA5: 0 | DB5: 0 | DC5: 0 | DD5: 0 | DE5: 0 | DF5: 0 | DG5: 0 | DH5: 0 | DI5: 0 | DJ5: 0 | DK5: 0 | DL5: 0 | DM5: 0 | DN5: 0 | DO5: 0 | DP5: 0 | DQ5: 0 | DR5: 0 | DS5: 0 | DT5: 0 | DU5: 0 | DV5: 0 | DW5: 0 | DX5: 0 | DY5: 0 | DZ5: 0 | EA5: 0 | EB5: 0 | EC5: 0 | ED5: 0 | EE5: 0 | EF5: 0 | EG5: 0 | EH5: 0 | EI5: 0 | EJ5: 0 | EK5: 0 | EL5: 0 | EM5: 0 | EN5: 0 | EO5: 0 | EP5: 0 | EQ5: 0 | ER5: 0 | ES5: 0 | ET5: 0 | EU5: 0 | EV5: 0 | EW5: 0 | EX5: 0 | EY5: 0 | EZ5: 0 | FA5: 0 | FB5: 0 | FC5: 0 | FD5: 0 | FE5: 0 | FF5: 0 | FG5: 0 | FH5: 0 | FI5: 0 | FJ5: 0 | FK5: 0 | FL5: 0 | FM5: 0 | FN5: 0 | FO5: 0
B6: 10025 | C6: Benton REA | D6: 0 | E6: 0 | F6: 0 | G6: 0 | H6: 0 | I6: 0 | J6: 0 | K6: 0 | L6: 0 | M6: 0 | N6: 0 | O6: 0 | P6: 0 | Q6: 0 | R6: 0 | S6: 0 | T6: 0 | U6: 0 | V6: 0 | W6: 0 | X6: 0 | Y6: 0 | Z6: 0 | AA6: 0 | AB6: 0 | AC6: 0 | AD6: 0 | AE6: 0 | AF6: 0 | AG6: 0 | AH6: 0 | AI6: 0 | AJ6: 0 | AK6: 0 | AL6: 0 | AM6: 0 | AN6: 0 | AO6: 0 | AP6: 0 | AQ6: 0 | AR6: 0 | AS6: 0 | AT6: 0 | AU6: 0 | AV6: 0 | AW6: 0 | AX6: 0 | AY6: 0 | AZ6: 0 | BA6: 0 | BB6: 0 | BC6: 0 | BD6: 0 | BE6: 0 | BF6: 0 | BG6: 0 | BH6: 0 | BI6: 0 | BJ6: 0 | BK6: 0 | BL6: 0 | BM6: 0 | BN6: 0 | BO6: 0 | BP6: 0 | BQ6: 0 | BR6: 0 | BS6: 0 | BT6: 0 | BU6: 0 | BV6: 0 | BW6: 0 | BX6: 0 | BY6: 0 | BZ6: 0 | CA6: 0 | CB6: 0 | CC6: 0 | CD6: 0 | CE6: 0 | CF6: 0 | CG6: 0 | CH6: 0 | CI6: 0 | CJ6: 0 | CK6: 0 | CL6: 0 | CM6: 0 | CN6: 0 | CO6: 0 | CP6: 0 | CQ6: 0 | CR6: 0 | CS6: 0 | CT6: 0 | CU6: 0 | CV6: 0 | CW6: 0 | CX6: 0 | CY6: 0 | CZ6: 0 | DA6: 0 | DB6: 0 | DC6: 0 | DD6: 0 | DE6: 0 | DF6: 0 | DG6: 0 | DH6: 0 | DI6: 0 | DJ6: 0 | DK6: 0 | DL6: 0 | DM6: 0 | DN6: 0 | DO6: 0 | DP6: 0 | DQ6: 0 | DR6: 0 | DS6: 0 | DT6: 0 | DU6: 0 | DV6: 0 | DW6: 0 | DX6: 0 | DY6: 0 | DZ6: 0 | EA6: 0 | EB6: 0 | EC6: 0 | ED6: 0 | EE6: 0 | EF6: 0 | EG6: 0 | EH6: 0 | EI6: 0 | EJ6: 0 | EK6: 0 | EL6: 0 | EM6: 0 | EN6: 0 | EO6: 0 | EP6: 0 | EQ6: 0 | ER6: 0 | ES6: 0 | ET6: 0 | EU6: 0 | EV6: 0 | EW6: 0 | EX6: 0 | EY6: 0 | EZ6: 0 | FA6: 0 | FB6: 0 | FC6: 0 | FD6: 0 | FE6: 0 | FF6: 0 | FG6: 0 | FH6: 0 | FI6: 0 | FJ6: 0 | FK6: 0 | FL6: 0 | FM6: 0 | FN6: 0 | FO6: 0
B7: 10027 | C7: Big Bend Elec Coop | D7: 0 | E7: 0 | F7: 0 | G7: 0 | H7: 0 | I7: 0 | J7: 0 | K7: 0 | L7: 0 | M7: 0 | N7: 0 | O7: 0 | P7: 0 | Q7: 0 | R7: 0 | S7: 0 | T7: 0 | U7: 0 | V7: 0 | W7: 0 | X7: 0 | Y7: 0 | Z7: 0 | AA7: 0 | AB7: 0 | AC7: 0 | AD7: 0 | AE7: 0 | AF7: 0 | AG7: 0 | AH7: 0 | AI7: 0 | AJ7: 0 | AK7: 0 | AL7: 0 | AM7: 0 | AN7: 0 | AO7: 0 | AP7: 0 | AQ7: 0 | AR7: 0 | AS7: 0 | AT7: 0 | AU7: 0 | AV7: 0 | AW7: 0 | AX7: 0 | AY7: 0 | AZ7: 0 | BA7: 0 | BB7: 0 | BC7: 0 | BD7: 0 | BE7: 0 | BF7: 0 | BG7: 0 | BH7: 0 | BI7: 0 | BJ7: 0 | BK7: 0 | BL7: 0 | BM7: 0 | BN7: 0 | BO7: 0 | BP7: 0 | BQ7: 0 | BR7: 0 | BS7: 0 | BT7: 0 | BU7: 0 | BV7: 0 | BW7: 0 | BX7: 0 | BY7: 0 | BZ7: 0 | CA7: 0 | CB7: 0 | CC7: 0 | CD7: 0 | CE7: 0 | CF7: 0 | CG7: 0 | CH7: 0 | CI7: 0 | CJ7: 0 | CK7: 0 | CL7: 0 | CM7: 0 | CN7: 0 | CO7: 0 | CP7: 0 | CQ7: 0 | CR7: 0 | CS7: 0 | CT7: 0 | CU7: 0 | CV7: 0 | CW7: 0 | CX7: 0 | CY7: 0 | CZ7: 0 | DA7: 0 | DB7: 0 | DC7: 0 | DD7: 0 | DE7: 0 | DF7: 0 | DG7: 0 | DH7: 0 | DI7: 0 | DJ7: 0 | DK7: 0 | DL7: 0 | DM7: 0 | DN7: 0 | DO7: 0 | DP7: 0 | DQ7: 0 | DR7: 0 | DS7: 0 | DT7: 0 | DU7: 0 | DV7: 0 | DW7: 0 | DX7: 0 | DY7: 0 | DZ7: 0 | EA7: 0 | EB7: 0 | EC7: 0 | ED7: 0 | EE7: 0 | EF7: 0 | EG7: 0 | EH7: 0 | EI7: 0 | EJ7: 0 | EK7: 0 | EL7: 0 | EM7: 0 | EN7: 0 | EO7: 0 | EP7: 0 | EQ7: 0 | ER7: 0 | ES7: 0 | ET7: 0 | EU7: 0 | EV7: 0 | EW7: 0 | EX7: 0 | EY7: 0 | EZ7: 0 | FA7: 0 | FB7: 0 | FC7: 0 | FD7: 0 | FE7: 0 | FF7: 0 | FG7: 0 | FH7: 0 | FI7: 0 | FJ7: 0 | FK7: 0 | FL7: 0 | FM7: 0 | FN7: 0 | FO7: 0
B8: 10029 | C8: Blachly Lane Elec Coop | D8: 0 | E8: 0 | F8: 0 | G8: 0 | H8: 0 | I8: 0 | J8: 0 | K8: 0 | L8: 0 | M8: 0 | N8: 0 | O8: 0 | P8: 0 | Q8: 0 | R8: 0 | S8: 0 | T8: 0 | U8: 0 | V8: 0 | W8: 0 | X8: 0 | Y8: 0 | Z8: 0 | AA8: 0 | AB8: 0 | AC8: 0 | AD8: 0 | AE8: 0 | AF8: 0 | AG8: 0 | AH8: 0 | AI8: 0 | AJ8: 0 | AK8: 0 | AL8: 0 | AM8: 0 | AN8: 0 | AO8: 0 | AP8: 0 | AQ8: 0 | AR8: 0 | AS8: 0 | AT8: 0 | AU8: 0 | AV8: 0 | AW8: 0 | AX8: 0 | AY8: 0 | AZ8: 0 | BA8: 0 | BB8: 0 | BC8: 0 | BD8: 0 | BE8: 0 | BF8: 0 | BG8: 0 | BH8: 0 | BI8: 0 | BJ8: 0 | BK8: 0 | BL8: 0 | BM8: 0 | BN8: 0 | BO8: 0 | BP8: 0 | BQ8: 0 | BR8: 0 | BS8: 0 | BT8: 0 | BU8: 0 | BV8: 0 | BW8: 0 | BX8: 0 | BY8: 0 | BZ8: 0 | CA8: 0 | CB8: 0 | CC8: 0 | CD8: 0 | CE8: 0 | CF8: 0 | CG8: 0 | CH8: 0 | CI8: 0 | CJ8: 0 | CK8: 0 | CL8: 0 | CM8: 0 | CN8: 0 | CO8: 0 | CP8: 0 | CQ8: 0 | CR8: 0 | CS8: 0 | CT8: 0 | CU8: 0 | CV8: 0 | CW8: 0 | CX8: 0 | CY8: 0 | CZ8: 0 | DA8: 0 | DB8: 0 | DC8: 0 | DD8: 0 | DE8: 0 | DF8: 0 | DG8: 0 | DH8: 0 | DI8: 0 | DJ8: 0 | DK8: 0 | DL8: 0 | DM8: 0 | DN8: 0 | DO8: 0 | DP8: 0 | DQ8: 0 | DR8: 0 | DS8: 0 | DT8: 0 | DU8: 0 | DV8: 0 | DW8: 0 | DX8: 0 | DY8: 0 | DZ8: 0 | EA8: 0 | EB8: 0 | EC8: 0 | ED8: 0 | EE8: 0 | EF8: 0 | EG8: 0 | EH8: 0 | EI8: 0 | EJ8: 0 | EK8: 0 | EL8: 0 | EM8: 0 | EN8: 0 | EO8: 0 | EP8: 0 | EQ8: 0 | ER8: 0 | ES8: 0 | ET8: 0 | EU8: 0 | EV8: 0 | EW8: 0 | EX8: 0 | EY8: 0 | EZ8: 0 | FA8: 0 | FB8: 0 | FC8: 0 | FD8: 0 | FE8: 0 | FF8: 0 | FG8: 0 | FH8: 0 | FI8: 0 | FJ8: 0 | FK8: 0 | FL8: 0 | FM8: 0 | FN8: 0 | FO8: 0
B9: 10044 | C9: Canby, City of | D9: 0 | E9: 0 | F9: 0 | G9: 0 | H9: 0 | I9: 0 | J9: 0 | K9: 0 | L9: 0 | M9: 0 | N9: 0 | O9: 0 | P9: 0 | Q9: 0 | R9: 0 | S9: 0 | T9: 0 | U9: 0 | V9: 0 | W9: 0 | X9: 0 | Y9: 0 | Z9: 0 | AA9: 0 | AB9: 0 | AC9: 0 | AD9: 0 | AE9: 0 | AF9: 0 | AG9: 0 | AH9: 0 | AI9: 0 | AJ9: 0 | AK9: 0 | AL9: 0 | AM9: 0 | AN9: 0 | AO9: 0 | AP9: 0 | AQ9: 0 | AR9: 0 | AS9: 0 | AT9: 0 | AU9: 0 | AV9: 0 | AW9: 0 | AX9: 0 | AY9: 0 | AZ9: 0 | BA9: 0 | BB9: 0 | BC9: 0 | BD9: 0 | BE9: 0 | BF9: 0 | BG9: 0 | BH9: 0 | BI9: 0 | BJ9: 0 | BK9: 0 | BL9: 0 | BM9: 0 | BN9: 0 | BO9: 0 | BP9: 0 | BQ9: 0 | BR9: 0 | BS9: 0 | BT9: 0 | BU9: 0 | BV9: 0 | BW9: 0 | BX9: 0 | BY9: 0 | BZ9: 0 | CA9: 0 | CB9: 0 | CC9: 0 | CD9: 0 | CE9: 0 | CF9: 0 | CG9: 0 | CH9: 0 | CI9: 0 | CJ9: 0 | CK9: 0 | CL9: 0 | CM9: 0 | CN9: 0 | CO9: 0 | CP9: 0 | CQ9: 0 | CR9: 0 | CS9: 0 | CT9: 0 | CU9: 0 | CV9: 0 | CW9: 0 | CX9: 0 | CY9: 0 | CZ9: 0 | DA9: 0 | DB9: 0 | DC9: 0 | DD9: 0 | DE9: 0 | DF9: 0 | DG9: 0 | DH9: 0 | DI9: 0 | DJ9: 0 | DK9: 0 | DL9: 0 | DM9: 0 | DN9: 0 | DO9: 0 | DP9: 0 | DQ9: 0 | DR9: 0 | DS9: 0 | DT9: 0 | DU9: 0 | DV9: 0 | DW9: 0 | DX9: 0 | DY9: 0 | DZ9: 0 | EA9: 0 | EB9: 0 | EC9: 0 | ED9: 0 | EE9: 0 | EF9: 0 | EG9: 0 | EH9: 0 | EI9: 0 | EJ9: 0 | EK9: 0 | EL9: 0 | EM9: 0 | EN9: 0 | EO9: 0 | EP9: 0 | EQ9: 0 | ER9: 0 | ES9: 0 | ET9: 0 | EU9: 0 | EV9: 0 | EW9: 0 | EX9: 0 | EY9: 0 | EZ9: 0 | FA9: 0 | FB9: 0 | FC9: 0 | FD9: 0 | FE9: 0 | FF9: 0 | FG9: 0 | FH9: 0 | FI9: 0 | FJ9: 0 | FK9: 0 | FL9: 0 | FM9: 0 | FN9: 0 | FO9: 0
B10: 10046 | C10: Central Electric Coop | D10: 0 | E10: 0 | F10: 0 | G10: 0 | H10: 0 | I10: 0 | J10: 0 | K10: 0 | L10: 0 | M10: 0 | N10: 0 | O10: 0 | P10: 0 | Q10: 0 | R10: 0 | S10: 0 | T10: 0 | U10: 0 | V10: 0 | W10: 0 | X10: 0 | Y10: 0 | Z10: 0 | AA10: 0 | AB10: 0 | AC10: 0 | AD10: 0 | AE10: 0 | AF10: 0 | AG10: 0 | AH10: 0 | AI10: 0 | AJ10: 0 | AK10: 0 | AL10: 0 | AM10: 0 | AN10: 0 | AO10: 0 | AP10: 0 | AQ10: 0 | AR10: 0 | AS10: 0 | AT10: 0 | AU10: 0 | AV10: 0 | AW10: 0 | AX10: 0 | AY10: 0 | AZ10: 0 | BA10: 0 | BB10: 0 | BC10: 0 | BD10: 0 | BE10: 0 | BF10: 0 | BG10: 0 | BH10: 0 | BI10: 0 | BJ10: 0 | BK10: 0 | BL10: 0 | BM10: 0 | BN10: 0 | BO10: 0 | BP10: 0 | BQ10: 0 | BR10: 0 | BS10: 0 | BT10: 0 | BU10: 0 | BV10: 0 | BW10: 0 | BX10: 0 | BY10: 0 | BZ10: 0 | CA10: 0 | CB10: 0 | CC10: 0 | CD10: 0 | CE10: 0 | CF10: 0 | CG10: 0 | CH10: 0 | CI10: 0 | CJ10: 0 | CK10: 0 | CL10: 0 | CM10: 0 | CN10: 0 | CO10: 0 | CP10: 0 | CQ10: 0 | CR10: 0 | CS10: 0 | CT10: 0 | CU10: 0 | CV10: 0 | CW10: 0 | CX10: 0 | CY10: 0 | CZ10: 0 | DA10: 0 | DB10: 0 | DC10: 0 | DD10: 0 | DE10: 0 | DF10: 0 | DG10: 0 | DH10: 0 | DI10: 0 | DJ10: 0 | DK10: 0 | DL10: 0 | DM10: 0 | DN10: 0 | DO10: 0 | DP10: 0 | DQ10: 0 | DR10: 0 | DS10: 0 | DT10: 0 | DU10: 0 | DV10: 0 | DW10: 0 | DX10: 0 | DY10: 0 | DZ10: 0 | EA10: 0 | EB10: 0 | EC10: 0 | ED10: 0 | EE10: 0 | EF10: 0 | EG10: 0 | EH10: 0 | EI10: 0 | EJ10: 0 | EK10: 0 | EL10: 0 | EM10: 0 | EN10: 0 | EO10: 0 | EP10: 0 | EQ10: 0 | ER10: 0 | ES10: 0 | ET10: 0 | EU10: 0 | EV10: 0 | EW10: 0 | EX10: 0 | EY10: 0 | EZ10: 0 | FA10: 0 | FB10: 0 | FC10: 0 | FD10: 0 | FE10: 0 | FF10: 0 | FG10: 0 | FH10: 0 | FI10: 0 | FJ10: 0 | FK10: 0 | FL10: 0 | FM10: 0 | FN10: 0 | FO10: 0
B11: 10047 | C11: Central Lincoln PUD | D11: 0 | E11: 0 | F11: 0 | G11: 0 | H11: 0 | I11: 0 | J11: 0 | K11: 0 | L11: 0 | M11: 0 | N11: 0 | O11: 0 | P11: 0 | Q11: 0 | R11: 0 | S11: 0 | T11: 0 | U11: 0 | V11: 0 | W11: 0 | X11: 0 | Y11: 0 | Z11: 0 | AA11: 0 | AB11: 0 | AC11: 0 | AD11: 0 | AE11: 0 | AF11: 0 | AG11: 0 | AH11: 0 | AI11: 0 | AJ11: 0 | AK11: 0 | AL11: 0 | AM11: 0 | AN11: 0 | AO11: 0 | AP11: 0 | AQ11: 0 | AR11: 0 | AS11: 0 | AT11: 0 | AU11: 0 | AV11: 0 | AW11: 0 | AX11: 0 | AY11: 0 | AZ11: 0 | BA11: 0 | BB11: 0 | BC11: 0 | BD11: 0 | BE11: 0 | BF11: 0 | BG11: 0 | BH11: 0 | BI11: 0 | BJ11: 0 | BK11: 0 | BL11: 0 | BM11: 0 | BN11: 0 | BO11: 0 | BP11: 0 | BQ11: 0 | BR11: 0 | BS11: 0 | BT11: 0 | BU11: 0 | BV11: 0 | BW11: 0 | BX11: 0 | BY11: 0 | BZ11: 0 | CA11: 0 | CB11: 0 | CC11: 0 | CD11: 0 | CE11: 0 | CF11: 0 | CG11: 0 | CH11: 0 | CI11: 0 | CJ11: 0 | CK11: 0 | CL11: 0 | CM11: 0 | CN11: 0 | CO11: 0 | CP11: 0 | CQ11: 0 | CR11: 0 | CS11: 0 | CT11: 0 | CU11: 0 | CV11: 0 | CW11: 0 | CX11: 0 | CY11: 0 | CZ11: 0 | DA11: 0 | DB11: 0 | DC11: 0 | DD11: 0 | DE11: 0 | DF11: 0 | DG11: 0 | DH11: 0 | DI11: 0 | DJ11: 0 | DK11: 0 | DL11: 0 | DM11: 0 | DN11: 0 | DO11: 0 | DP11: 0 | DQ11: 0 | DR11: 0 | DS11: 0 | DT11: 0 | DU11: 0 | DV11: 0 | DW11: 0 | DX11: 0 | DY11: 0 | DZ11: 0 | EA11: 0 | EB11: 0 | EC11: 0 | ED11: 0 | EE11: 0 | EF11: 0 | EG11: 0 | EH11: 0 | EI11: 0 | EJ11: 0 | EK11: 0 | EL11: 0 | EM11: 0 | EN11: 0 | EO11: 0 | EP11: 0 | EQ11: 0 | ER11: 0 | ES11: 0 | ET11: 0 | EU11: 0 | EV11: 0 | EW11: 0 | EX11: 0 | EY11: 0 | EZ11: 0 | FA11: 0 | FB11: 0 | FC11: 0 | FD11: 0 | FE11: 0 | FF11: 0 | FG11: 0 | FH11: 0 | FI11: 0 | FJ11: 0 | FK11: 0 | FL11: 0 | FM11: 0 | FN11: 0 | FO11: 0
B12: 10055 | C12: Albion, City of | D12: 0 | E12: 0 | F12: 0 | G12: 0 | H12: 0 | I12: 0 | J12: 0 | K12: 0 | L12: 0 | M12: 0 | N12: 0 | O12: 0 | P12: 0 | Q12: 0 | R12: 0 | S12: 0 | T12: 0 | U12: 0 | V12: 0 | W12: 0 | X12: 0 | Y12: 0 | Z12: 0 | AA12: 0 | AB12: 0 | AC12: 0 | AD12: 0 | AE12: 0 | AF12: 0 | AG12: 0 | AH12: 0 | AI12: 0 | AJ12: 0 | AK12: 0 | AL12: 0 | AM12: 0 | AN12: 0 | AO12: 0 | AP12: 0 | AQ12: 0 | AR12: 0 | AS12: 0 | AT12: 0 | AU12: 0 | AV12: 0 | AW12: 0 | AX12: 0 | AY12: 0 | AZ12: 0 | BA12: 0 | BB12: 0 | BC12: 0 | BD12: 0 | BE12: 0 | BF12: 0 | BG12: 0 | BH12: 0 | BI12: 0 | BJ12: 0 | BK12: 0 | BL12: 0 | BM12: 0 | BN12: 0 | BO12: 0 | BP12: 0 | BQ12: 0 | BR12: 0 | BS12: 0 | BT12: 0 | BU12: 0 | BV12: 0 | BW12: 0 | BX12: 0 | BY12: 0 | BZ12: 0 | CA12: 0 | CB12: 0 | CC12: 0 | CD12: 0 | CE12: 0 | CF12: 0 | CG12: 0 | CH12: 0 | CI12: 0 | CJ12: 0 | CK12: 0 | CL12: 0 | CM12: 0 | CN12: 0 | CO12: 0 | CP12: 0 | CQ12: 0 | CR12: 0 | CS12: 0 | CT12: 0 | CU12: 0 | CV12: 0 | CW12: 0 | CX12: 0 | CY12: 0 | CZ12: 0 | DA12: 0 | DB12: 0 | DC12: 0 | DD12: 0 | DE12: 0 | DF12: 0 | DG12: 0 | DH12: 0 | DI12: 0 | DJ12: 0 | DK12: 0 | DL12: 0 | DM12: 0 | DN12: 0 | DO12: 0 | DP12: 0 | DQ12: 0 | DR12: 0 | DS12: 0 | DT12: 0 | DU12: 0 | DV12: 0 | DW12: 0 | DX12: 0 | DY12: 0 | DZ12: 0 | EA12: 0 | EB12: 0 | EC12: 0 | ED12: 0 | EE12: 0 | EF12: 0 | EG12: 0 | EH12: 0 | EI12: 0 | EJ12: 0 | EK12: 0 | EL12: 0 | EM12: 0 | EN12: 0 | EO12: 0 | EP12: 0 | EQ12: 0 | ER12: 0 | ES12: 0 | ET12: 0 | EU12: 0 | EV12: 0 | EW12: 0 | EX12: 0 | EY12: 0 | EZ12: 0 | FA12: 0 | FB12: 0 | FC12: 0 | FD12: 0 | FE12: 0 | FF12: 0 | FG12: 0 | FH12: 0 | FI12: 0 | FJ12: 0 | FK12: 0 | FL12: 0 | FM12: 0 | FN12: 0 | FO12: 0
B13: 10057 | C13: Ashland, City of | D13: 0 | E13: 0 | F13: 0 | G13: 0 | H13: 0 | I13: 0 | J13: 0 | K13: 0 | L13: 0 | M13: 0 | N13: 0 | O13: 0 | P13: 0 | Q13: 0 | R13: 0 | S13: 0 | T13: 0 | U13: 0 | V13: 0 | W13: 0 | X13: 0 | Y13: 0 | Z13: 0 | AA13: 0 | AB13: 0 | AC13: 0 | AD13: 0 | AE13: 0 | AF13: 0 | AG13: 0 | AH13: 0 | AI13: 0 | AJ13: 0 | AK13: 0 | AL13: 0 | AM13: 0 | AN13: 0 | AO13: 0 | AP13: 0 | AQ13: 0 | AR13: 0 | AS13: 0 | AT13: 0 | AU13: 0 | AV13: 0 | AW13: 0 | AX13: 0 | AY13: 0 | AZ13: 0 | BA13: 0 | BB13: 0 | BC13: 0 | BD13: 0 | BE13: 0 | BF13: 0 | BG13: 0 | BH13: 0 | BI13: 0 | BJ13: 0 | BK13: 0 | BL13: 0 | BM13: 0 | BN13: 0 | BO13: 0 | BP13: 0 | BQ13: 0 | BR13: 0 | BS13: 0 | BT13: 0 | BU13: 0 | BV13: 0 | BW13: 0 | BX13: 0 | BY13: 0 | BZ13: 0 | CA13: 0 | CB13: 0 | CC13: 0 | CD13: 0 | CE13: 0 | CF13: 0 | CG13: 0 | CH13: 0 | CI13: 0 | CJ13: 0 | CK13: 0 | CL13: 0 | CM13: 0 | CN13: 0 | CO13: 0 | CP13: 0 | CQ13: 0 | CR13: 0 | CS13: 0 | CT13: 0 | CU13: 0 | CV13: 0 | CW13: 0 | CX13: 0 | CY13: 0 | CZ13: 0 | DA13: 0 | DB13: 0 | DC13: 0 | DD13: 0 | DE13: 0 | DF13: 0 | DG13: 0 | DH13: 0 | DI13: 0 | DJ13: 0 | DK13: 0 | DL13: 0 | DM13: 0 | DN13: 0 | DO13: 0 | DP13: 0 | DQ13: 0 | DR13: 0 | DS13: 0 | DT13: 0 | DU13: 0 | DV13: 0 | DW13: 0 | DX13: 0 | DY13: 0 | DZ13: 0 | EA13: 0 | EB13: 0 | EC13: 0 | ED13: 0 | EE13: 0 | EF13: 0 | EG13: 0 | EH13: 0 | EI13: 0 | EJ13: 0 | EK13: 0 | EL13: 0 | EM13: 0 | EN13: 0 | EO13: 0 | EP13: 0 | EQ13: 0 | ER13: 0 | ES13: 0 | ET13: 0 | EU13: 0 | EV13: 0 | EW13: 0 | EX13: 0 | EY13: 0 | EZ13: 0 | FA13: 0 | FB13: 0 | FC13: 0 | FD13: 0 | FE13: 0 | FF13: 0 | FG13: 0 | FH13: 0 | FI13: 0 | FJ13: 0 | FK13: 0 | FL13: 0 | FM13: 0 | FN13: 0 | FO13: 0
B14: 10059 | C14: Bandon, City of | D14: 0 | E14: 0 | F14: 0 | G14: 0 | H14: 0 | I14: 0 | J14: 0 | K14: 0 | L14: 0 | M14: 0 | N14: 0 | O14: 0 | P14: 0 | Q14: 0 | R14: 0 | S14: 0 | T14: 0 | U14: 0 | V14: 0 | W14: 0 | X14: 0 | Y14: 0 | Z14: 0 | AA14: 0 | AB14: 0 | AC14: 0 | AD14: 0 | AE14: 0 | AF14: 0 | AG14: 0 | AH14: 0 | AI14: 0 | AJ14: 0 | AK14: 0 | AL14: 0 | AM14: 0 | AN14: 0 | AO14: 0 | AP14: 0 | AQ14: 0 | AR14: 0 | AS14: 0 | AT14: 0 | AU14: 0 | AV14: 0 | AW14: 0 | AX14: 0 | AY14: 0 | AZ14: 0 | BA14: 0 | BB14: 0 | BC14: 0 | BD14: 0 | BE14: 0 | BF14: 0 | BG14: 0 | BH14: 0 | BI14: 0 | BJ14: 0 | BK14: 0 | BL14: 0 | BM14: 0 | BN14: 0 | BO14: 0 | BP14: 0 | BQ14: 0 | BR14: 0 | BS14: 0 | BT14: 0 | BU14: 0 | BV14: 0 | BW14: 0 | BX14: 0 | BY14: 0 | BZ14: 0 | CA14: 0 | CB14: 0 | CC14: 0 | CD14: 0 | CE14: 0 | CF14: 0 | CG14: 0 | CH14: 0 | CI14: 0 | CJ14: 0 | CK14: 0 | CL14: 0 | CM14: 0 | CN14: 0 | CO14: 0 | CP14: 0 | CQ14: 0 | CR14: 0 | CS14: 0 | CT14: 0 | CU14: 0 | CV14: 0 | CW14: 0 | CX14: 0 | CY14: 0 | CZ14: 0 | DA14: 0 | DB14: 0 | DC14: 0 | DD14: 0 | DE14: 0 | DF14: 0 | DG14: 0 | DH14: 0 | DI14: 0 | DJ14: 0 | DK14: 0 | DL14: 0 | DM14: 0 | DN14: 0 | DO14: 0 | DP14: 0 | DQ14: 0 | DR14: 0 | DS14: 0 | DT14: 0 | DU14: 0 | DV14: 0 | DW14: 0 | DX14: 0 | DY14: 0 | DZ14: 0 | EA14: 0 | EB14: 0 | EC14: 0 | ED14: 0 | EE14: 0 | EF14: 0 | EG14: 0 | EH14: 0 | EI14: 0 | EJ14: 0 | EK14: 0 | EL14: 0 | EM14: 0 | EN14: 0 | EO14: 0 | EP14: 0 | EQ14: 0 | ER14: 0 | ES14: 0 | ET14: 0 | EU14: 0 | EV14: 0 | EW14: 0 | EX14: 0 | EY14: 0 | EZ14: 0 | FA14: 0 | FB14: 0 | FC14: 0 | FD14: 0 | FE14: 0 | FF14: 0 | FG14: 0 | FH14: 0 | FI14: 0 | FJ14: 0 | FK14: 0 | FL14: 0 | FM14: 0 | FN14: 0 | FO14: 0
B15: 10061 | C15: Blaine, City of | D15: 0 | E15: 0 | F15: 0 | G15: 0 | H15: 0 | I15: 0 | J15: 0 | K15: 0 | L15: 0 | M15: 0 | N15: 0 | O15: 0 | P15: 0 | Q15: 0 | R15: 0 | S15: 0 | T15: 0 | U15: 0 | V15: 0 | W15: 0 | X15: 0 | Y15: 0 | Z15: 0 | AA15: 0 | AB15: 0 | AC15: 0 | AD15: 0 | AE15: 0 | AF15: 0 | AG15: 0 | AH15: 0 | AI15: 0 | AJ15: 0 | AK15: 0 | AL15: 0 | AM15: 0 | AN15: 0 | AO15: 0 | AP15: 0 | AQ15: 0 | AR15: 0 | AS15: 0 | AT15: 0 | AU15: 0 | AV15: 0 | AW15: 0 | AX15: 0 | AY15: 0 | AZ15: 0 | BA15: 0 | BB15: 0 | BC15: 0 | BD15: 0 | BE15: 0 | BF15: 0 | BG15: 0 | BH15: 0 | BI15: 0 | BJ15: 0 | BK15: 0 | BL15: 0 | BM15: 0 | BN15: 0 | BO15: 0 | BP15: 0 | BQ15: 0 | BR15: 0 | BS15: 0 | BT15: 0 | BU15: 0 | BV15: 0 | BW15: 0 | BX15: 0 | BY15: 0 | BZ15: 0 | CA15: 0 | CB15: 0 | CC15: 0 | CD15: 0 | CE15: 0 | CF15: 0 | CG15: 0 | CH15: 0 | CI15: 0 | CJ15: 0 | CK15: 0 | CL15: 0 | CM15: 0 | CN15: 0 | CO15: 0 | CP15: 0 | CQ15: 0 | CR15: 0 | CS15: 0 | CT15: 0 | CU15: 0 | CV15: 0 | CW15: 0 | CX15: 0 | CY15: 0 | CZ15: 0 | DA15: 0 | DB15: 0 | DC15: 0 | DD15: 0 | DE15: 0 | DF15: 0 | DG15: 0 | DH15: 0 | DI15: 0 | DJ15: 0 | DK15: 0 | DL15: 0 | DM15: 0 | DN15: 0 | DO15: 0 | DP15: 0 | DQ15: 0 | DR15: 0 | DS15: 0 | DT15: 0 | DU15: 0 | DV15: 0 | DW15: 0 | DX15: 0 | DY15: 0 | DZ15: 0 | EA15: 0 | EB15: 0 | EC15: 0 | ED15: 0 | EE15: 0 | EF15: 0 | EG15: 0 | EH15: 0 | EI15: 0 | EJ15: 0 | EK15: 0 | EL15: 0 | EM15: 0 | EN15: 0 | EO15: 0 | EP15: 0 | EQ15: 0 | ER15: 0 | ES15: 0 | ET15: 0 | EU15: 0 | EV15: 0 | EW15: 0 | EX15: 0 | EY15: 0 | EZ15: 0 | FA15: 0 | FB15: 0 | FC15: 0 | FD15: 0 | FE15: 0 | FF15: 0 | FG15: 0 | FH15: 0 | FI15: 0 | FJ15: 0 | FK15: 0 | FL15: 0 | FM15: 0 | FN15: 0 | FO15: 0
B16: 10062 | C16: Bonners Ferry, City of | D16: 0 | E16: 0 | F16: 0 | G16: 0 | H16: 0 | I16: 0 | J16: 0 | K16: 0 | L16: 0 | M16: 0 | N16: 0 | O16: 0 | P16: 0 | Q16: 0 | R16: 0 | S16: 0 | T16: 0 | U16: 0 | V16: 0 | W16: 0 | X16: 0 | Y16: 0 | Z16: 0 | AA16: 0 | AB16: 0 | AC16: 0 | AD16: 0 | AE16: 0 | AF16: 0 | AG16: 0 | AH16: 0 | AI16: 0 | AJ16: 0 | AK16: 0 | AL16: 0 | AM16: 0 | AN16: 0 | AO16: 0 | AP16: 0 | AQ16: 0 | AR16: 0 | AS16: 0 | AT16: 0 | AU16: 0 | AV16: 0 | AW16: 0 | AX16: 0 | AY16: 0 | AZ16: 0 | BA16: 0 | BB16: 0 | BC16: 0 | BD16: 0 | BE16: 0 | BF16: 0 | BG16: 0 | BH16: 0 | BI16: 0 | BJ16: 0 | BK16: 0 | BL16: 0 | BM16: 0 | BN16: 0 | BO16: 0 | BP16: 0 | BQ16: 0 | BR16: 0 | BS16: 0 | BT16: 0 | BU16: 0 | BV16: 0 | BW16: 0 | BX16: 0 | BY16: 0 | BZ16: 0 | CA16: 0 | CB16: 0 | CC16: 0 | CD16: 0 | CE16: 0 | CF16: 0 | CG16: 0 | CH16: 0 | CI16: 0 | CJ16: 0 | CK16: 0 | CL16: 0 | CM16: 0 | CN16: 0 | CO16: 0 | CP16: 0 | CQ16: 0 | CR16: 0 | CS16: 0 | CT16: 0 | CU16: 0 | CV16: 0 | CW16: 0 | CX16: 0 | CY16: 0 | CZ16: 0 | DA16: 0 | DB16: 0 | DC16: 0 | DD16: 0 | DE16: 0 | DF16: 0 | DG16: 0 | DH16: 0 | DI16: 0 | DJ16: 0 | DK16: 0 | DL16: 0 | DM16: 0 | DN16: 0 | DO16: 0 | DP16: 0 | DQ16: 0 | DR16: 0 | DS16: 0 | DT16: 0 | DU16: 0 | DV16: 0 | DW16: 0 | DX16: 0 | DY16: 0 | DZ16: 0 | EA16: 0 | EB16: 0 | EC16: 0 | ED16: 0 | EE16: 0 | EF16: 0 | EG16: 0 | EH16: 0 | EI16: 0 | EJ16: 0 | EK16: 0 | EL16: 0 | EM16: 0 | EN16: 0 | EO16: 0 | EP16: 0 | EQ16: 0 | ER16: 0 | ES16: 0 | ET16: 0 | EU16: 0 | EV16: 0 | EW16: 0 | EX16: 0 | EY16: 0 | EZ16: 0 | FA16: 0 | FB16: 0 | FC16: 0 | FD16: 0 | FE16: 0 | FF16: 0 | FG16: 0 | FH16: 0 | FI16: 0 | FJ16: 0 | FK16: 0 | FL16: 0 | FM16: 0 | FN16: 0 | FO16: 0
B17: 10064 | C17: Burley, City of | D17: 0 | E17: 0 | F17: 0 | G17: 0 | H17: 0 | I17: 0 | J17: 0 | K17: 0 | L17: 0 | M17: 0 | N17: 0 | O17: 0 | P17: 0 | Q17: 0 | R17: 0 | S17: 0 | T17: 0 | U17: 0 | V17: 0 | W17: 0 | X17: 0 | Y17: 0 | Z17: 0 | AA17: 0 | AB17: 0 | AC17: 0 | AD17: 0 | AE17: 0 | AF17: 0 | AG17: 0 | AH17: 0 | AI17: 0 | AJ17: 0 | AK17: 0 | AL17: 0 | AM17: 0 | AN17: 0 | AO17: 0 | AP17: 0 | AQ17: 0 | AR17: 0 | AS17: 0 | AT17: 0 | AU17: 0 | AV17: 0 | AW17: 0 | AX17: 0 | AY17: 0 | AZ17: 0 | BA17: 0 | BB17: 0 | BC17: 0 | BD17: 0 | BE17: 0 | BF17: 0 | BG17: 0 | BH17: 0 | BI17: 0 | BJ17: 0 | BK17: 0 | BL17: 0 | BM17: 0 | BN17: 0 | BO17: 0 | BP17: 0 | BQ17: 0 | BR17: 0 | BS17: 0 | BT17: 0 | BU17: 0 | BV17: 0 | BW17: 0 | BX17: 0 | BY17: 0 | BZ17: 0 | CA17: 0 | CB17: 0 | CC17: 0 | CD17: 0 | CE17: 0 | CF17: 0 | CG17: 0 | CH17: 0 | CI17: 0 | CJ17: 0 | CK17: 0 | CL17: 0 | CM17: 0 | CN17: 0 | CO17: 0 | CP17: 0 | CQ17: 0 | CR17: 0 | CS17: 0 | CT17: 0 | CU17: 0 | CV17: 0 | CW17: 0 | CX17: 0 | CY17: 0 | CZ17: 0 | DA17: 0 | DB17: 0 | DC17: 0 | DD17: 0 | DE17: 0 | DF17: 0 | DG17: 0 | DH17: 0 | DI17: 0 | DJ17: 0 | DK17: 0 | DL17: 0 | DM17: 0 | DN17: 0 | DO17: 0 | DP17: 0 | DQ17: 0 | DR17: 0 | DS17: 0 | DT17: 0 | DU17: 0 | DV17: 0 | DW17: 0 | DX17: 0 | DY17: 0 | DZ17: 0 | EA17: 0 | EB17: 0 | EC17: 0 | ED17: 0 | EE17: 0 | EF17: 0 | EG17: 0 | EH17: 0 | EI17: 0 | EJ17: 0 | EK17: 0 | EL17: 0 | EM17: 0 | EN17: 0 | EO17: 0 | EP17: 0 | EQ17: 0 | ER17: 0 | ES17: 0 | ET17: 0 | EU17: 0 | EV17: 0 | EW17: 0 | EX17: 0 | EY17: 0 | EZ17: 0 | FA17: 0 | FB17: 0 | FC17: 0 | FD17: 0 | FE17: 0 | FF17: 0 | FG17: 0 | FH17: 0 | FI17: 0 | FJ17: 0 | FK17: 0 | FL17: 0 | FM17: 0 | FN17: 0 | FO17: 0
B18: 10065 | C18: Cascade Locks, City of | D18: 0 | E18: 0 | F18: 0 | G18: 0 | H18: 0 | I18: 0 | J18: 0 | K18: 0 | L18: 0 | M18: 0 | N18: 0 | O18: 0 | P18: 0 | Q18: 0 | R18: 0 | S18: 0 | T18: 0 | U18: 0 | V18: 0 | W18: 0 | X18: 0 | Y18: 0 | Z18: 0 | AA18: 0 | AB18: 0 | AC18: 0 | AD18: 0 | AE18: 0 | AF18: 0 | AG18: 0 | AH18: 0 | AI18: 0 | AJ18: 0 | AK18: 0 | AL18: 0 | AM18: 0 | AN18: 0 | AO18: 0 | AP18: 0 | AQ18: 0 | AR18: 0 | AS18: 0 | AT18: 0 | AU18: 0 | AV18: 0 | AW18: 0 | AX18: 0 | AY18: 0 | AZ18: 0 | BA18: 0 | BB18: 0 | BC18: 0 | BD18: 0 | BE18: 0 | BF18: 0 | BG18: 0 | BH18: 0 | BI18: 0 | BJ18: 0 | BK18: 0 | BL18: 0 | BM18: 0 | BN18: 0 | BO18: 0 | BP18: 0 | BQ18: 0 | BR18: 0 | BS18: 0 | BT18: 0 | BU18: 0 | BV18: 0 | BW18: 0 | BX18: 0 | BY18: 0 | BZ18: 0 | CA18: 0 | CB18: 0 | CC18: 0 | CD18: 0 | CE18: 0 | CF18: 0 | CG18: 0 | CH18: 0 | CI18: 0 | CJ18: 0 | CK18: 0 | CL18: 0 | CM18: 0 | CN18: 0 | CO18: 0 | CP18: 0 | CQ18: 0 | CR18: 0 | CS18: 0 | CT18: 0 | CU18: 0 | CV18: 0 | CW18: 0 | CX18: 0 | CY18: 0 | CZ18: 0 | DA18: 0 | DB18: 0 | DC18: 0 | DD18: 0 | DE18: 0 | DF18: 0 | DG18: 0 | DH18: 0 | DI18: 0 | DJ18: 0 | DK18: 0 | DL18: 0 | DM18: 0 | DN18: 0 | DO18: 0 | DP18: 0 | DQ18: 0 | DR18: 0 | DS18: 0 | DT18: 0 | DU18: 0 | DV18: 0 | DW18: 0 | DX18: 0 | DY18: 0 | DZ18: 0 | EA18: 0 | EB18: 0 | EC18: 0 | ED18: 0 | EE18: 0 | EF18: 0 | EG18: 0 | EH18: 0 | EI18: 0 | EJ18: 0 | EK18: 0 | EL18: 0 | EM18: 0 | EN18: 0 | EO18: 0 | EP18: 0 | EQ18: 0 | ER18: 0 | ES18: 0 | ET18: 0 | EU18: 0 | EV18: 0 | EW18: 0 | EX18: 0 | EY18: 0 | EZ18: 0 | FA18: 0 | FB18: 0 | FC18: 0 | FD18: 0 | FE18: 0 | FF18: 0 | FG18: 0 | FH18: 0 | FI18: 0 | FJ18: 0 | FK18: 0 | FL18: 0 | FM18: 0 | FN18: 0 | FO18: 0
B19: 10066 | C19: Centralia, City of | D19: 0 | E19: 0 | F19: 0 | G19: 0 | H19: 0 | I19: 0 | J19: 0 | K19: 0 | L19: 0 | M19: 0 | N19: 0 | O19: 0 | P19: 0 | Q19: 0 | R19: 0 | S19: 0 | T19: 0 | U19: 0 | V19: 0 | W19: 0 | X19: 0 | Y19: 0 | Z19: 0 | AA19: 0 | AB19: 0 | AC19: 0 | AD19: 0 | AE19: 0 | AF19: 0 | AG19: 0 | AH19: 0 | AI19: 0 | AJ19: 0 | AK19: 0 | AL19: 0 | AM19: 0 | AN19: 0 | AO19: 0 | AP19: 0 | AQ19: 0 | AR19: 0 | AS19: 0 | AT19: 0 | AU19: 0 | AV19: 0 | AW19: 0 | AX19: 0 | AY19: 0 | AZ19: 0 | BA19: 0 | BB19: 0 | BC19: 0 | BD19: 0 | BE19: 0 | BF19: 0 | BG19: 0 | BH19: 0 | BI19: 0 | BJ19: 0 | BK19: 0 | BL19: 0 | BM19: 0 | BN19: 0 | BO19: 0 | BP19: 0 | BQ19: 0 | BR19: 0 | BS19: 0 | BT19: 0 | BU19: 0 | BV19: 0 | BW19: 0 | BX19: 0 | BY19: 0 | BZ19: 0 | CA19: 0 | CB19: 0 | CC19: 0 | CD19: 0 | CE19: 0 | CF19: 0 | CG19: 0 | CH19: 0 | CI19: 0 | CJ19: 0 | CK19: 0 | CL19: 0 | CM19: 0 | CN19: 0 | CO19: 0 | CP19: 0 | CQ19: 0 | CR19: 0 | CS19: 0 | CT19: 0 | CU19: 0 | CV19: 0 | CW19: 0 | CX19: 0 | CY19: 0 | CZ19: 0 | DA19: 0 | DB19: 0 | DC19: 0 | DD19: 0 | DE19: 0 | DF19: 0 | DG19: 0 | DH19: 0 | DI19: 0 | DJ19: 0 | DK19: 0 | DL19: 0 | DM19: 0 | DN19: 0 | DO19: 0 | DP19: 0 | DQ19: 0 | DR19: 0 | DS19: 0 | DT19: 0 | DU19: 0 | DV19: 0 | DW19: 0 | DX19: 0 | DY19: 0 | DZ19: 0 | EA19: 0 | EB19: 0 | EC19: 0 | ED19: 0 | EE19: 0 | EF19: 0 | EG19: 0 | EH19: 0 | EI19: 0 | EJ19: 0 | EK19: 0 | EL19: 0 | EM19: 0 | EN19: 0 | EO19: 0 | EP19: 0 | EQ19: 0 | ER19: 0 | ES19: 0 | ET19: 0 | EU19: 0 | EV19: 0 | EW19: 0 | EX19: 0 | EY19: 0 | EZ19: 0 | FA19: 0 | FB19: 0 | FC19: 0 | FD19: 0 | FE19: 0 | FF19: 0 | FG19: 0 | FH19: 0 | FI19: 0 | FJ19: 0 | FK19: 0 | FL19: 0 | FM19: 0 | FN19: 0 | FO19: 0
B20: 10067 | C20: Cheney, City of | D20: 0 | E20: 0 | F20: 0 | G20: 0 | H20: 0 | I20: 0 | J20: 0 | K20: 0 | L20: 0 | M20: 0 | N20: 0 | O20: 0 | P20: 0 | Q20: 0 | R20: 0 | S20: 0 | T20: 0 | U20: 0 | V20: 0 | W20: 0 | X20: 0 | Y20: 0 | Z20: 0 | AA20: 0 | AB20: 0 | AC20: 0 | AD20: 0 | AE20: 0 | AF20: 0 | AG20: 0 | AH20: 0 | AI20: 0 | AJ20: 0 | AK20: 0 | AL20: 0 | AM20: 0 | AN20: 0 | AO20: 0 | AP20: 0 | AQ20: 0 | AR20: 0 | AS20: 0 | AT20: 0 | AU20: 0 | AV20: 0 | AW20: 0 | AX20: 0 | AY20: 0 | AZ20: 0 | BA20: 0 | BB20: 0 | BC20: 0 | BD20: 0 | BE20: 0 | BF20: 0 | BG20: 0 | BH20: 0 | BI20: 0 | BJ20: 0 | BK20: 0 | BL20: 0 | BM20: 0 | BN20: 0 | BO20: 0 | BP20: 0 | BQ20: 0 | BR20: 0 | BS20: 0 | BT20: 0 | BU20: 0 | BV20: 0 | BW20: 0 | BX20: 0 | BY20: 0 | BZ20: 0 | CA20: 0 | CB20: 0 | CC20: 0 | CD20: 0 | CE20: 0 | CF20: 0 | CG20: 0 | CH20: 0 | CI20: 0 | CJ20: 0 | CK20: 0 | CL20: 0 | CM20: 0 | CN20: 0 | CO20: 0 | CP20: 0 | CQ20: 0 | CR20: 0 | CS20: 0 | CT20: 0 | CU20: 0 | CV20: 0 | CW20: 0 | CX20: 0 | CY20: 0 | CZ20: 0 | DA20: 0 | DB20: 0 | DC20: 0 | DD20: 0 | DE20: 0 | DF20: 0 | DG20: 0 | DH20: 0 | DI20: 0 | DJ20: 0 | DK20: 0 | DL20: 0 | DM20: 0 | DN20: 0 | DO20: 0 | DP20: 0 | DQ20: 0 | DR20: 0 | DS20: 0 | DT20: 0 | DU20: 0 | DV20: 0 | DW20: 0 | DX20: 0 | DY20: 0 | DZ20: 0 | EA20: 0 | EB20: 0 | EC20: 0 | ED20: 0 | EE20: 0 | EF20: 0 | EG20: 0 | EH20: 0 | EI20: 0 | EJ20: 0 | EK20: 0 | EL20: 0 | EM20: 0 | EN20: 0 | EO20: 0 | EP20: 0 | EQ20: 0 | ER20: 0 | ES20: 0 | ET20: 0 | EU20: 0 | EV20: 0 | EW20: 0 | EX20: 0 | EY20: 0 | EZ20: 0 | FA20: 0 | FB20: 0 | FC20: 0 | FD20: 0 | FE20: 0 | FF20: 0 | FG20: 0 | FH20: 0 | FI20: 0 | FJ20: 0 | FK20: 0 | FL20: 0 | FM20: 0 | FN20: 0 | FO20: 0
B21: 10068 | C21: Chewelah, City of | D21: 0 | E21: 0 | F21: 0 | G21: 0 | H21: 0 | I21: 0 | J21: 0 | K21: 0 | L21: 0 | M21: 0 | N21: 0 | O21: 0 | P21: 0 | Q21: 0 | R21: 0 | S21: 0 | T21: 0 | U21: 0 | V21: 0 | W21: 0 | X21: 0 | Y21: 0 | Z21: 0 | AA21: 0 | AB21: 0 | AC21: 0 | AD21: 0 | AE21: 0 | AF21: 0 | AG21: 0 | AH21: 0 | AI21: 0 | AJ21: 0 | AK21: 0 | AL21: 0 | AM21: 0 | AN21: 0 | AO21: 0 | AP21: 0 | AQ21: 0 | AR21: 0 | AS21: 0 | AT21: 0 | AU21: 0 | AV21: 0 | AW21: 0 | AX21: 0 | AY21: 0 | AZ21: 0 | BA21: 0 | BB21: 0 | BC21: 0 | BD21: 0 | BE21: 0 | BF21: 0 | BG21: 0 | BH21: 0 | BI21: 0 | BJ21: 0 | BK21: 0 | BL21: 0 | BM21: 0 | BN21: 0 | BO21: 0 | BP21: 0 | BQ21: 0 | BR21: 0 | BS21: 0 | BT21: 0 | BU21: 0 | BV21: 0 | BW21: 0 | BX21: 0 | BY21: 0 | BZ21: 0 | CA21: 0 | CB21: 0 | CC21: 0 | CD21: 0 | CE21: 0 | CF21: 0 | CG21: 0 | CH21: 0 | CI21: 0 | CJ21: 0 | CK21: 0 | CL21: 0 | CM21: 0 | CN21: 0 | CO21: 0 | CP21: 0 | CQ21: 0 | CR21: 0 | CS21: 0 | CT21: 0 | CU21: 0 | CV21: 0 | CW21: 0 | CX21: 0 | CY21: 0 | CZ21: 0 | DA21: 0 | DB21: 0 | DC21: 0 | DD21: 0 | DE21: 0 | DF21: 0 | DG21: 0 | DH21: 0 | DI21: 0 | DJ21: 0 | DK21: 0 | DL21: 0 | DM21: 0 | DN21: 0 | DO21: 0 | DP21: 0 | DQ21: 0 | DR21: 0 | DS21: 0 | DT21: 0 | DU21: 0 | DV21: 0 | DW21: 0 | DX21: 0 | DY21: 0 | DZ21: 0 | EA21: 0 | EB21: 0 | EC21: 0 | ED21: 0 | EE21: 0 | EF21: 0 | EG21: 0 | EH21: 0 | EI21: 0 | EJ21: 0 | EK21: 0 | EL21: 0 | EM21: 0 | EN21: 0 | EO21: 0 | EP21: 0 | EQ21: 0 | ER21: 0 | ES21: 0 | ET21: 0 | EU21: 0 | EV21: 0 | EW21: 0 | EX21: 0 | EY21: 0 | EZ21: 0 | FA21: 0 | FB21: 0 | FC21: 0 | FD21: 0 | FE21: 0 | FF21: 0 | FG21: 0 | FH21: 0 | FI21: 0 | FJ21: 0 | FK21: 0 | FL21: 0 | FM21: 0 | FN21: 0 | FO21: 0
B22: 10070 | C22: Declo, City of | D22: 0 | E22: 0 | F22: 0 | G22: 0 | H22: 0 | I22: 0 | J22: 0 | K22: 0 | L22: 0 | M22: 0 | N22: 0 | O22: 0 | P22: 0 | Q22: 0 | R22: 0 | S22: 0 | T22: 0 | U22: 0 | V22: 0 | W22: 0 | X22: 0 | Y22: 0 | Z22: 0 | AA22: 0 | AB22: 0 | AC22: 0 | AD22: 0 | AE22: 0 | AF22: 0 | AG22: 0 | AH22: 0 | AI22: 0 | AJ22: 0 | AK22: 0 | AL22: 0 | AM22: 0 | AN22: 0 | AO22: 0 | AP22: 0 | AQ22: 0 | AR22: 0 | AS22: 0 | AT22: 0 | AU22: 0 | AV22: 0 | AW22: 0 | AX22: 0 | AY22: 0 | AZ22: 0 | BA22: 0 | BB22: 0 | BC22: 0 | BD22: 0 | BE22: 0 | BF22: 0 | BG22: 0 | BH22: 0 | BI22: 0 | BJ22: 0 | BK22: 0 | BL22: 0 | BM22: 0 | BN22: 0 | BO22: 0 | BP22: 0 | BQ22: 0 | BR22: 0 | BS22: 0 | BT22: 0 | BU22: 0 | BV22: 0 | BW22: 0 | BX22: 0 | BY22: 0 | BZ22: 0 | CA22: 0 | CB22: 0 | CC22: 0 | CD22: 0 | CE22: 0 | CF22: 0 | CG22: 0 | CH22: 0 | CI22: 0 | CJ22: 0 | CK22: 0 | CL22: 0 | CM22: 0 | CN22: 0 | CO22: 0 | CP22: 0 | CQ22: 0 | CR22: 0 | CS22: 0 | CT22: 0 | CU22: 0 | CV22: 0 | CW22: 0 | CX22: 0 | CY22: 0 | CZ22: 0 | DA22: 0 | DB22: 0 | DC22: 0 | DD22: 0 | DE22: 0 | DF22: 0 | DG22: 0 | DH22: 0 | DI22: 0 | DJ22: 0 | DK22: 0 | DL22: 0 | DM22: 0 | DN22: 0 | DO22: 0 | DP22: 0 | DQ22: 0 | DR22: 0 | DS22: 0 | DT22: 0 | DU22: 0 | DV22: 0 | DW22: 0 | DX22: 0 | DY22: 0 | DZ22: 0 | EA22: 0 | EB22: 0 | EC22: 0 | ED22: 0 | EE22: 0 | EF22: 0 | EG22: 0 | EH22: 0 | EI22: 0 | EJ22: 0 | EK22: 0 | EL22: 0 | EM22: 0 | EN22: 0 | EO22: 0 | EP22: 0 | EQ22: 0 | ER22: 0 | ES22: 0 | ET22: 0 | EU22: 0 | EV22: 0 | EW22: 0 | EX22: 0 | EY22: 0 | EZ22: 0 | FA22: 0 | FB22: 0 | FC22: 0 | FD22: 0 | FE22: 0 | FF22: 0 | FG22: 0 | FH22: 0 | FI22: 0 | FJ22: 0 | FK22: 0 | FL22: 0 | FM22: 0 | FN22: 0 | FO22: 0
B23: 10071 | C23: Drain, City of | D23: 0 | E23: 0 | F23: 0 | G23: 0 | H23: 0 | I23: 0 | J23: 0 | K23: 0 | L23: 0 | M23: 0 | N23: 0 | O23: 0 | P23: 0 | Q23: 0 | R23: 0 | S23: 0 | T23: 0 | U23: 0 | V23: 0 | W23: 0 | X23: 0 | Y23: 0 | Z23: 0 | AA23: 0 | AB23: 0 | AC23: 0 | AD23: 0 | AE23: 0 | AF23: 0 | AG23: 0 | AH23: 0 | AI23: 0 | AJ23: 0 | AK23: 0 | AL23: 0 | AM23: 0 | AN23: 0 | AO23: 0 | AP23: 0 | AQ23: 0 | AR23: 0 | AS23: 0 | AT23: 0 | AU23: 0 | AV23: 0 | AW23: 0 | AX23: 0 | AY23: 0 | AZ23: 0 | BA23: 0 | BB23: 0 | BC23: 0 | BD23: 0 | BE23: 0 | BF23: 0 | BG23: 0 | BH23: 0 | BI23: 0 | BJ23: 0 | BK23: 0 | BL23: 0 | BM23: 0 | BN23: 0 | BO23: 0 | BP23: 0 | BQ23: 0 | BR23: 0 | BS23: 0 | BT23: 0 | BU23: 0 | BV23: 0 | BW23: 0 | BX23: 0 | BY23: 0 | BZ23: 0 | CA23: 0 | CB23: 0 | CC23: 0 | CD23: 0 | CE23: 0 | CF23: 0 | CG23: 0 | CH23: 0 | CI23: 0 | CJ23: 0 | CK23: 0 | CL23: 0 | CM23: 0 | CN23: 0 | CO23: 0 | CP23: 0 | CQ23: 0 | CR23: 0 | CS23: 0 | CT23: 0 | CU23: 0 | CV23: 0 | CW23: 0 | CX23: 0 | CY23: 0 | CZ23: 0 | DA23: 0 | DB23: 0 | DC23: 0 | DD23: 0 | DE23: 0 | DF23: 0 | DG23: 0 | DH23: 0 | DI23: 0 | DJ23: 0 | DK23: 0 | DL23: 0 | DM23: 0 | DN23: 0 | DO23: 0 | DP23: 0 | DQ23: 0 | DR23: 0 | DS23: 0 | DT23: 0 | DU23: 0 | DV23: 0 | DW23: 0 | DX23: 0 | DY23: 0 | DZ23: 0 | EA23: 0 | EB23: 0 | EC23: 0 | ED23: 0 | EE23: 0 | EF23: 0 | EG23: 0 | EH23: 0 | EI23: 0 | EJ23: 0 | EK23: 0 | EL23: 0 | EM23: 0 | EN23: 0 | EO23: 0 | EP23: 0 | EQ23: 0 | ER23: 0 | ES23: 0 | ET23: 0 | EU23: 0 | EV23: 0 | EW23: 0 | EX23: 0 | EY23: 0 | EZ23: 0 | FA23: 0 | FB23: 0 | FC23: 0 | FD23: 0 | FE23: 0 | FF23: 0 | FG23: 0 | FH23: 0 | FI23: 0 | FJ23: 0 | FK23: 0 | FL23: 0 | FM23: 0 | FN23: 0 | FO23: 0
B24: 10072 | C24: Ellensburg, City of | D24: 0 | E24: 0 | F24: 0 | G24: 0 | H24: 0 | I24: 0 | J24: 0 | K24: 0 | L24: 0 | M24: 0 | N24: 0 | O24: 0 | P24: 0 | Q24: 0 | R24: 0 | S24: 0 | T24: 0 | U24: 0 | V24: 0 | W24: 0 | X24: 0 | Y24: 0 | Z24: 0 | AA24: 0 | AB24: 0 | AC24: 0 | AD24: 0 | AE24: 0 | AF24: 0 | AG24: 0 | AH24: 0 | AI24: 0 | AJ24: 0 | AK24: 0 | AL24: 0 | AM24: 0 | AN24: 0 | AO24: 0 | AP24: 0 | AQ24: 0 | AR24: 0 | AS24: 0 | AT24: 0 | AU24: 0 | AV24: 0 | AW24: 0 | AX24: 0 | AY24: 0 | AZ24: 0 | BA24: 0 | BB24: 0 | BC24: 0 | BD24: 0 | BE24: 0 | BF24: 0 | BG24: 0 | BH24: 0 | BI24: 0 | BJ24: 0 | BK24: 0 | BL24: 0 | BM24: 0 | BN24: 0 | BO24: 0 | BP24: 0 | BQ24: 0 | BR24: 0 | BS24: 0 | BT24: 0 | BU24: 0 | BV24: 0 | BW24: 0 | BX24: 0 | BY24: 0 | BZ24: 0 | CA24: 0 | CB24: 0 | CC24: 0 | CD24: 0 | CE24: 0 | CF24: 0 | CG24: 0 | CH24: 0 | CI24: 0 | CJ24: 0 | CK24: 0 | CL24: 0 | CM24: 0 | CN24: 0 | CO24: 0 | CP24: 0 | CQ24: 0 | CR24: 0 | CS24: 0 | CT24: 0 | CU24: 0 | CV24: 0 | CW24: 0 | CX24: 0 | CY24: 0 | CZ24: 0 | DA24: 0 | DB24: 0 | DC24: 0 | DD24: 0 | DE24: 0 | DF24: 0 | DG24: 0 | DH24: 0 | DI24: 0 | DJ24: 0 | DK24: 0 | DL24: 0 | DM24: 0 | DN24: 0 | DO24: 0 | DP24: 0 | DQ24: 0 | DR24: 0 | DS24: 0 | DT24: 0 | DU24: 0 | DV24: 0 | DW24: 0 | DX24: 0 | DY24: 0 | DZ24: 0 | EA24: 0 | EB24: 0 | EC24: 0 | ED24: 0 | EE24: 0 | EF24: 0 | EG24: 0 | EH24: 0 | EI24: 0 | EJ24: 0 | EK24: 0 | EL24: 0 | EM24: 0 | EN24: 0 | EO24: 0 | EP24: 0 | EQ24: 0 | ER24: 0 | ES24: 0 | ET24: 0 | EU24: 0 | EV24: 0 | EW24: 0 | EX24: 0 | EY24: 0 | EZ24: 0 | FA24: 0 | FB24: 0 | FC24: 0 | FD24: 0 | FE24: 0 | FF24: 0 | FG24: 0 | FH24: 0 | FI24: 0 | FJ24: 0 | FK24: 0 | FL24: 0 | FM24: 0 | FN24: 0 | FO24: 0
B25: 10074 | C25: Forest Grove, City of | D25: 0 | E25: 0 | F25: 0 | G25: 0 | H25: 0 | I25: 0 | J25: 0 | K25: 0 | L25: 0 | M25: 0 | N25: 0 | O25: 0 | P25: 0 | Q25: 0 | R25: 0 | S25: 0 | T25: 0 | U25: 0 | V25: 0 | W25: 0 | X25: 0 | Y25: 0 | Z25: 0 | AA25: 0 | AB25: 0 | AC25: 0 | AD25: 0 | AE25: 0 | AF25: 0 | AG25: 0 | AH25: 0 | AI25: 0 | AJ25: 0 | AK25: 0 | AL25: 0 | AM25: 0 | AN25: 0 | AO25: 0 | AP25: 0 | AQ25: 0 | AR25: 0 | AS25: 0 | AT25: 0 | AU25: 0 | AV25: 0 | AW25: 0 | AX25: 0 | AY25: 0 | AZ25: 0 | BA25: 0 | BB25: 0 | BC25: 0 | BD25: 0 | BE25: 0 | BF25: 0 | BG25: 0 | BH25: 0 | BI25: 0 | BJ25: 0 | BK25: 0 | BL25: 0 | BM25: 0 | BN25: 0 | BO25: 0 | BP25: 0 | BQ25: 0 | BR25: 0 | BS25: 0 | BT25: 0 | BU25: 0 | BV25: 0 | BW25: 0 | BX25: 0 | BY25: 0 | BZ25: 0 | CA25: 0 | CB25: 0 | CC25: 0 | CD25: 0 | CE25: 0 | CF25: 0 | CG25: 0 | CH25: 0 | CI25: 0 | CJ25: 0 | CK25: 0 | CL25: 0 | CM25: 0 | CN25: 0 | CO25: 0 | CP25: 0 | CQ25: 0 | CR25: 0 | CS25: 0 | CT25: 0 | CU25: 0 | CV25: 0 | CW25: 0 | CX25: 0 | CY25: 0 | CZ25: 0 | DA25: 0 | DB25: 0 | DC25: 0 | DD25: 0 | DE25: 0 | DF25: 0 | DG25: 0 | DH25: 0 | DI25: 0 | DJ25: 0 | DK25: 0 | DL25: 0 | DM25: 0 | DN25: 0 | DO25: 0 | DP25: 0 | DQ25: 0 | DR25: 0 | DS25: 0 | DT25: 0 | DU25: 0 | DV25: 0 | DW25: 0 | DX25: 0 | DY25: 0 | DZ25: 0 | EA25: 0 | EB25: 0 | EC25: 0 | ED25: 0 | EE25: 0 | EF25: 0 | EG25: 0 | EH25: 0 | EI25: 0 | EJ25: 0 | EK25: 0 | EL25: 0 | EM25: 0 | EN25: 0 | EO25: 0 | EP25: 0 | EQ25: 0 | ER25: 0 | ES25: 0 | ET25: 0 | EU25: 0 | EV25: 0 | EW25: 0 | EX25: 0 | EY25: 0 | EZ25: 0 | FA25: 0 | FB25: 0 | FC25: 0 | FD25: 0 | FE25: 0 | FF25: 0 | FG25: 0 | FH25: 0 | FI25: 0 | FJ25: 0 | FK25: 0 | FL25: 0 | FM25: 0 | FN25: 0 | FO25: 0
B26: 10076 | C26: Heyburn, City of | D26: 0 | E26: 0 | F26: 0 | G26: 0 | H26: 0 | I26: 0 | J26: 0 | K26: 0 | L26: 0 | M26: 0 | N26: 0 | O26: 0 | P26: 0 | Q26: 0 | R26: 0 | S26: 0 | T26: 0 | U26: 0 | V26: 0 | W26: 0 | X26: 0 | Y26: 0 | Z26: 0 | AA26: 0 | AB26: 0 | AC26: 0 | AD26: 0 | AE26: 0 | AF26: 0 | AG26: 0 | AH26: 0 | AI26: 0 | AJ26: 0 | AK26: 0 | AL26: 0 | AM26: 0 | AN26: 0 | AO26: 0 | AP26: 0 | AQ26: 0 | AR26: 0 | AS26: 0 | AT26: 0 | AU26: 0 | AV26: 0 | AW26: 0 | AX26: 0 | AY26: 0 | AZ26: 0 | BA26: 0 | BB26: 0 | BC26: 0 | BD26: 0 | BE26: 0 | BF26: 0 | BG26: 0 | BH26: 0 | BI26: 0 | BJ26: 0 | BK26: 0 | BL26: 0 | BM26: 0 | BN26: 0 | BO26: 0 | BP26: 0 | BQ26: 0 | BR26: 0 | BS26: 0 | BT26: 0 | BU26: 0 | BV26: 0 | BW26: 0 | BX26: 0 | BY26: 0 | BZ26: 0 | CA26: 0 | CB26: 0 | CC26: 0 | CD26: 0 | CE26: 0 | CF26: 0 | CG26: 0 | CH26: 0 | CI26: 0 | CJ26: 0 | CK26: 0 | CL26: 0 | CM26: 0 | CN26: 0 | CO26: 0 | CP26: 0 | CQ26: 0 | CR26: 0 | CS26: 0 | CT26: 0 | CU26: 0 | CV26: 0 | CW26: 0 | CX26: 0 | CY26: 0 | CZ26: 0 | DA26: 0 | DB26: 0 | DC26: 0 | DD26: 0 | DE26: 0 | DF26: 0 | DG26: 0 | DH26: 0 | DI26: 0 | DJ26: 0 | DK26: 0 | DL26: 0 | DM26: 0 | DN26: 0 | DO26: 0 | DP26: 0 | DQ26: 0 | DR26: 0 | DS26: 0 | DT26: 0 | DU26: 0 | DV26: 0 | DW26: 0 | DX26: 0 | DY26: 0 | DZ26: 0 | EA26: 0 | EB26: 0 | EC26: 0 | ED26: 0 | EE26: 0 | EF26: 0 | EG26: 0 | EH26: 0 | EI26: 0 | EJ26: 0 | EK26: 0 | EL26: 0 | EM26: 0 | EN26: 0 | EO26: 0 | EP26: 0 | EQ26: 0 | ER26: 0 | ES26: 0 | ET26: 0 | EU26: 0 | EV26: 0 | EW26: 0 | EX26: 0 | EY26: 0 | EZ26: 0 | FA26: 0 | FB26: 0 | FC26: 0 | FD26: 0 | FE26: 0 | FF26: 0 | FG26: 0 | FH26: 0 | FI26: 0 | FJ26: 0 | FK26: 0 | FL26: 0 | FM26: 0 | FN26: 0 | FO26: 0
B27: 10078 | C27: McCleary, City of | D27: 0 | E27: 0 | F27: 0 | G27: 0 | H27: 0 | I27: 0 | J27: 0 | K27: 0 | L27: 0 | M27: 0 | N27: 0 | O27: 0 | P27: 0 | Q27: 0 | R27: 0 | S27: 0 | T27: 0 | U27: 0 | V27: 0 | W27: 0 | X27: 0 | Y27: 0 | Z27: 0 | AA27: 0 | AB27: 0 | AC27: 0 | AD27: 0 | AE27: 0 | AF27: 0 | AG27: 0 | AH27: 0 | AI27: 0 | AJ27: 0 | AK27: 0 | AL27: 0 | AM27: 0 | AN27: 0 | AO27: 0 | AP27: 0 | AQ27: 0 | AR27: 0 | AS27: 0 | AT27: 0 | AU27: 0 | AV27: 0 | AW27: 0 | AX27: 0 | AY27: 0 | AZ27: 0 | BA27: 0 | BB27: 0 | BC27: 0 | BD27: 0 | BE27: 0 | BF27: 0 | BG27: 0 | BH27: 0 | BI27: 0 | BJ27: 0 | BK27: 0 | BL27: 0 | BM27: 0 | BN27: 0 | BO27: 0 | BP27: 0 | BQ27: 0 | BR27: 0 | BS27: 0 | BT27: 0 | BU27: 0 | BV27: 0 | BW27: 0 | BX27: 0 | BY27: 0 | BZ27: 0 | CA27: 0 | CB27: 0 | CC27: 0 | CD27: 0 | CE27: 0 | CF27: 0 | CG27: 0 | CH27: 0 | CI27: 0 | CJ27: 0 | CK27: 0 | CL27: 0 | CM27: 0 | CN27: 0 | CO27: 0 | CP27: 0 | CQ27: 0 | CR27: 0 | CS27: 0 | CT27: 0 | CU27: 0 | CV27: 0 | CW27: 0 | CX27: 0 | CY27: 0 | CZ27: 0 | DA27: 0 | DB27: 0 | DC27: 0 | DD27: 0 | DE27: 0 | DF27: 0 | DG27: 0 | DH27: 0 | DI27: 0 | DJ27: 0 | DK27: 0 | DL27: 0 | DM27: 0 | DN27: 0 | DO27: 0 | DP27: 0 | DQ27: 0 | DR27: 0 | DS27: 0 | DT27: 0 | DU27: 0 | DV27: 0 | DW27: 0 | DX27: 0 | DY27: 0 | DZ27: 0 | EA27: 0 | EB27: 0 | EC27: 0 | ED27: 0 | EE27: 0 | EF27: 0 | EG27: 0 | EH27: 0 | EI27: 0 | EJ27: 0 | EK27: 0 | EL27: 0 | EM27: 0 | EN27: 0 | EO27: 0 | EP27: 0 | EQ27: 0 | ER27: 0 | ES27: 0 | ET27: 0 | EU27: 0 | EV27: 0 | EW27: 0 | EX27: 0 | EY27: 0 | EZ27: 0 | FA27: 0 | FB27: 0 | FC27: 0 | FD27: 0 | FE27: 0 | FF27: 0 | FG27: 0 | FH27: 0 | FI27: 0 | FJ27: 0 | FK27: 0 | FL27: 0 | FM27: 0 | FN27: 0 | FO27: 0
B28: 10079 | C28: McMinnville, City of | D28: 0 | E28: 0 | F28: 0 | G28: 0 | H28: 0 | I28: 0 | J28: 0 | K28: 0 | L28: 0 | M28: 0 | N28: 0 | O28: 0 | P28: 0 | Q28: 0 | R28: 0 | S28: 0 | T28: 0 | U28: 0 | V28: 0 | W28: 0 | X28: 0 | Y28: 0 | Z28: 0 | AA28: 0 | AB28: 0 | AC28: 0 | AD28: 0 | AE28: 0 | AF28: 0 | AG28: 0 | AH28: 0 | AI28: 0 | AJ28: 0 | AK28: 0 | AL28: 0 | AM28: 0 | AN28: 0 | AO28: 0 | AP28: 0 | AQ28: 0 | AR28: 0 | AS28: 0 | AT28: 0 | AU28: 0 | AV28: 0 | AW28: 0 | AX28: 0 | AY28: 0 | AZ28: 0 | BA28: 0 | BB28: 0 | BC28: 0 | BD28: 0 | BE28: 0 | BF28: 0 | BG28: 0 | BH28: 0 | BI28: 0 | BJ28: 0 | BK28: 0 | BL28: 0 | BM28: 0 | BN28: 0 | BO28: 0 | BP28: 0 | BQ28: 0 | BR28: 0 | BS28: 0 | BT28: 0 | BU28: 0 | BV28: 0 | BW28: 0 | BX28: 0 | BY28: 0 | BZ28: 0 | CA28: 0 | CB28: 0 | CC28: 0 | CD28: 0 | CE28: 0 | CF28: 0 | CG28: 0 | CH28: 0 | CI28: 0 | CJ28: 0 | CK28: 0 | CL28: 0 | CM28: 0 | CN28: 0 | CO28: 0 | CP28: 0 | CQ28: 0 | CR28: 0 | CS28: 0 | CT28: 0 | CU28: 0 | CV28: 0 | CW28: 0 | CX28: 0 | CY28: 0 | CZ28: 0 | DA28: 0 | DB28: 0 | DC28: 0 | DD28: 0 | DE28: 0 | DF28: 0 | DG28: 0 | DH28: 0 | DI28: 0 | DJ28: 0 | DK28: 0 | DL28: 0 | DM28: 0 | DN28: 0 | DO28: 0 | DP28: 0 | DQ28: 0 | DR28: 0 | DS28: 0 | DT28: 0 | DU28: 0 | DV28: 0 | DW28: 0 | DX28: 0 | DY28: 0 | DZ28: 0 | EA28: 0 | EB28: 0 | EC28: 0 | ED28: 0 | EE28: 0 | EF28: 0 | EG28: 0 | EH28: 0 | EI28: 0 | EJ28: 0 | EK28: 0 | EL28: 0 | EM28: 0 | EN28: 0 | EO28: 0 | EP28: 0 | EQ28: 0 | ER28: 0 | ES28: 0 | ET28: 0 | EU28: 0 | EV28: 0 | EW28: 0 | EX28: 0 | EY28: 0 | EZ28: 0 | FA28: 0 | FB28: 0 | FC28: 0 | FD28: 0 | FE28: 0 | FF28: 0 | FG28: 0 | FH28: 0 | FI28: 0 | FJ28: 0 | FK28: 0 | FL28: 0 | FM28: 0 | FN28: 0 | FO28: 0
B29: 10080 | C29: Milton, Town of | D29: 0 | E29: 0 | F29: 0 | G29: 0 | H29: 0 | I29: 0 | J29: 0 | K29: 0 | L29: 0 | M29: 0 | N29: 0 | O29: 0 | P29: 0 | Q29: 0 | R29: 0 | S29: 0 | T29: 0 | U29: 0 | V29: 0 | W29: 0 | X29: 0 | Y29: 0 | Z29: 0 | AA29: 0 | AB29: 0 | AC29: 0 | AD29: 0 | AE29: 0 | AF29: 0 | AG29: 0 | AH29: 0 | AI29: 0 | AJ29: 0 | AK29: 0 | AL29: 0 | AM29: 0 | AN29: 0 | AO29: 0 | AP29: 0 | AQ29: 0 | AR29: 0 | AS29: 0 | AT29: 0 | AU29: 0 | AV29: 0 | AW29: 0 | AX29: 0 | AY29: 0 | AZ29: 0 | BA29: 0 | BB29: 0 | BC29: 0 | BD29: 0 | BE29: 0 | BF29: 0 | BG29: 0 | BH29: 0 | BI29: 0 | BJ29: 0 | BK29: 0 | BL29: 0 | BM29: 0 | BN29: 0 | BO29: 0 | BP29: 0 | BQ29: 0 | BR29: 0 | BS29: 0 | BT29: 0 | BU29: 0 | BV29: 0 | BW29: 0 | BX29: 0 | BY29: 0 | BZ29: 0 | CA29: 0 | CB29: 0 | CC29: 0 | CD29: 0 | CE29: 0 | CF29: 0 | CG29: 0 | CH29: 0 | CI29: 0 | CJ29: 0 | CK29: 0 | CL29: 0 | CM29: 0 | CN29: 0 | CO29: 0 | CP29: 0 | CQ29: 0 | CR29: 0 | CS29: 0 | CT29: 0 | CU29: 0 | CV29: 0 | CW29: 0 | CX29: 0 | CY29: 0 | CZ29: 0 | DA29: 0 | DB29: 0 | DC29: 0 | DD29: 0 | DE29: 0 | DF29: 0 | DG29: 0 | DH29: 0 | DI29: 0 | DJ29: 0 | DK29: 0 | DL29: 0 | DM29: 0 | DN29: 0 | DO29: 0 | DP29: 0 | DQ29: 0 | DR29: 0 | DS29: 0 | DT29: 0 | DU29: 0 | DV29: 0 | DW29: 0 | DX29: 0 | DY29: 0 | DZ29: 0 | EA29: 0 | EB29: 0 | EC29: 0 | ED29: 0 | EE29: 0 | EF29: 0 | EG29: 0 | EH29: 0 | EI29: 0 | EJ29: 0 | EK29: 0 | EL29: 0 | EM29: 0 | EN29: 0 | EO29: 0 | EP29: 0 | EQ29: 0 | ER29: 0 | ES29: 0 | ET29: 0 | EU29: 0 | EV29: 0 | EW29: 0 | EX29: 0 | EY29: 0 | EZ29: 0 | FA29: 0 | FB29: 0 | FC29: 0 | FD29: 0 | FE29: 0 | FF29: 0 | FG29: 0 | FH29: 0 | FI29: 0 | FJ29: 0 | FK29: 0 | FL29: 0 | FM29: 0 | FN29: 0 | FO29: 0
B30: 10081 | C30: Milton-Freewater, City of | D30: 0 | E30: 0 | F30: 0 | G30: 0 | H30: 0 | I30: 0 | J30: 0 | K30: 0 | L30: 0 | M30: 0 | N30: 0 | O30: 0 | P30: 0 | Q30: 0 | R30: 0 | S30: 0 | T30: 0 | U30: 0 | V30: 0 | W30: 0 | X30: 0 | Y30: 0 | Z30: 0 | AA30: 0 | AB30: 0 | AC30: 0 | AD30: 0 | AE30: 0 | AF30: 0 | AG30: 0 | AH30: 0 | AI30: 0 | AJ30: 0 | AK30: 0 | AL30: 0 | AM30: 0 | AN30: 0 | AO30: 0 | AP30: 0 | AQ30: 0 | AR30: 0 | AS30: 0 | AT30: 0 | AU30: 0 | AV30: 0 | AW30: 0 | AX30: 0 | AY30: 0 | AZ30: 0 | BA30: 0 | BB30: 0 | BC30: 0 | BD30: 0 | BE30: 0 | BF30: 0 | BG30: 0 | BH30: 0 | BI30: 0 | BJ30: 0 | BK30: 0 | BL30: 0 | BM30: 0 | BN30: 0 | BO30: 0 | BP30: 0 | BQ30: 0 | BR30: 0 | BS30: 0 | BT30: 0 | BU30: 0 | BV30: 0 | BW30: 0 | BX30: 0 | BY30: 0 | BZ30: 0 | CA30: 0 | CB30: 0 | CC30: 0 | CD30: 0 | CE30: 0 | CF30: 0 | CG30: 0 | CH30: 0 | CI30: 0 | CJ30: 0 | CK30: 0 | CL30: 0 | CM30: 0 | CN30: 0 | CO30: 0 | CP30: 0 | CQ30: 0 | CR30: 0 | CS30: 0 | CT30: 0 | CU30: 0 | CV30: 0 | CW30: 0 | CX30: 0 | CY30: 0 | CZ30: 0 | DA30: 0 | DB30: 0 | DC30: 0 | DD30: 0 | DE30: 0 | DF30: 0 | DG30: 0 | DH30: 0 | DI30: 0 | DJ30: 0 | DK30: 0 | DL30: 0 | DM30: 0 | DN30: 0 | DO30: 0 | DP30: 0 | DQ30: 0 | DR30: 0 | DS30: 0 | DT30: 0 | DU30: 0 | DV30: 0 | DW30: 0 | DX30: 0 | DY30: 0 | DZ30: 0 | EA30: 0 | EB30: 0 | EC30: 0 | ED30: 0 | EE30: 0 | EF30: 0 | EG30: 0 | EH30: 0 | EI30: 0 | EJ30: 0 | EK30: 0 | EL30: 0 | EM30: 0 | EN30: 0 | EO30: 0 | EP30: 0 | EQ30: 0 | ER30: 0 | ES30: 0 | ET30: 0 | EU30: 0 | EV30: 0 | EW30: 0 | EX30: 0 | EY30: 0 | EZ30: 0 | FA30: 0 | FB30: 0 | FC30: 0 | FD30: 0 | FE30: 0 | FF30: 0 | FG30: 0 | FH30: 0 | FI30: 0 | FJ30: 0 | FK30: 0 | FL30: 0 | FM30: 0 | FN30: 0 | FO30: 0
B31: 10082 | C31: Minidoka, City of | D31: 0 | E31: 0 | F31: 0 | G31: 0 | H31: 0 | I31: 0 | J31: 0 | K31: 0 | L31: 0 | M31: 0 | N31: 0 | O31: 0 | P31: 0 | Q31: 0 | R31: 0 | S31: 0 | T31: 0 | U31: 0 | V31: 0 | W31: 0 | X31: 0 | Y31: 0 | Z31: 0 | AA31: 0 | AB31: 0 | AC31: 0 | AD31: 0 | AE31: 0 | AF31: 0 | AG31: 0 | AH31: 0 | AI31: 0 | AJ31: 0 | AK31: 0 | AL31: 0 | AM31: 0 | AN31: 0 | AO31: 0 | AP31: 0 | AQ31: 0 | AR31: 0 | AS31: 0 | AT31: 0 | AU31: 0 | AV31: 0 | AW31: 0 | AX31: 0 | AY31: 0 | AZ31: 0 | BA31: 0 | BB31: 0 | BC31: 0 | BD31: 0 | BE31: 0 | BF31: 0 | BG31: 0 | BH31: 0 | BI31: 0 | BJ31: 0 | BK31: 0 | BL31: 0 | BM31: 0 | BN31: 0 | BO31: 0 | BP31: 0 | BQ31: 0 | BR31: 0 | BS31: 0 | BT31: 0 | BU31: 0 | BV31: 0 | BW31: 0 | BX31: 0 | BY31: 0 | BZ31: 0 | CA31: 0 | CB31: 0 | CC31: 0 | CD31: 0 | CE31: 0 | CF31: 0 | CG31: 0 | CH31: 0 | CI31: 0 | CJ31: 0 | CK31: 0 | CL31: 0 | CM31: 0 | CN31: 0 | CO31: 0 | CP31: 0 | CQ31: 0 | CR31: 0 | CS31: 0 | CT31: 0 | CU31: 0 | CV31: 0 | CW31: 0 | CX31: 0 | CY31: 0 | CZ31: 0 | DA31: 0 | DB31: 0 | DC31: 0 | DD31: 0 | DE31: 0 | DF31: 0 | DG31: 0 | DH31: 0 | DI31: 0 | DJ31: 0 | DK31: 0 | DL31: 0 | DM31: 0 | DN31: 0 | DO31: 0 | DP31: 0 | DQ31: 0 | DR31: 0 | DS31: 0 | DT31: 0 | DU31: 0 | DV31: 0 | DW31: 0 | DX31: 0 | DY31: 0 | DZ31: 0 | EA31: 0 | EB31: 0 | EC31: 0 | ED31: 0 | EE31: 0 | EF31: 0 | EG31: 0 | EH31: 0 | EI31: 0 | EJ31: 0 | EK31: 0 | EL31: 0 | EM31: 0 | EN31: 0 | EO31: 0 | EP31: 0 | EQ31: 0 | ER31: 0 | ES31: 0 | ET31: 0 | EU31: 0 | EV31: 0 | EW31: 0 | EX31: 0 | EY31: 0 | EZ31: 0 | FA31: 0 | FB31: 0 | FC31: 0 | FD31: 0 | FE31: 0 | FF31: 0 | FG31: 0 | FH31: 0 | FI31: 0 | FJ31: 0 | FK31: 0 | FL31: 0 | FM31: 0 | FN31: 0 | FO31: 0
... 38 more rows

Sheet Tier1
B1: Tier 1 Load Calculation (MWh) for Load Following, Block, and Slice (Block Only)
D2: 2023-10-01 | E2: 2023-10-01 | F2: 2023-11-01 | G2: 2023-11-01 | H2: 2023-12-01 | I2: 2023-12-01 | J2: 2024-01-01 | K2: 2024-01-01 | L2: 2024-02-01 | M2: 2024-02-01 | N2: 2024-03-01 | O2: 2024-03-01 | P2: 2024-04-01 | Q2: 2024-04-01 | R2: 2024-05-01 | S2: 2024-05-01 | T2: 2024-06-01 | U2: 2024-06-01 | V2: 2024-07-01 | W2: 2024-07-01 | X2: 2024-08-01 | Y2: 2024-08-01 | Z2: 2024-09-01 | AA2: 2024-09-01 | AB2: 2024-10-01 | AC2: 2024-10-01 | AD2: 2024-11-01 | AE2: 2024-11-01 | AF2: 2024-12-01 | AG2: 2024-12-01 | AH2: 2025-01-01 | AI2: 2025-01-01 | AJ2: 2025-02-01 | AK2: 2025-02-01 | AL2: 2025-03-01 | AM2: 2025-03-01 | AN2: 2025-04-01 | AO2: 2025-04-01 | AP2: 2025-05-01 | AQ2: 2025-05-01 | AR2: 2025-06-01 | AS2: 2025-06-01 | AT2: 2025-07-01 | AU2: 2025-07-01 | AV2: 2025-08-01 | AW2: 2025-08-01 | AX2: =+EOMONTH(AV2,0)+1 -> 2025-09-01 | AY2: =+EOMONTH(AW2,0)+1 -> 2025-09-01 | AZ2: =+EOMONTH(AX2,0)+1 -> 2025-10-01 | BA2: 2025-10-01 | BB2: 2025-11-01 | BC2: 2025-11-01 | BD2: 2025-12-01 | BE2: 2025-12-01 | BF2: 2026-01-01 | BG2: 2026-01-01 | BH2: 2026-02-01 | BI2: 2026-02-01 | BJ2: 2026-03-01 | BK2: 2026-03-01 | BL2: 2026-04-01 | BM2: 2026-04-01 | BN2: 2026-05-01 | BO2: 2026-05-01 | BP2: 2026-06-01 | BQ2: 2026-06-01 | BR2: 2026-07-01 | BS2: 2026-07-01 | BT2: 2026-08-01 | BU2: 2026-08-01 | BV2: =+EOMONTH(BT2,0)+1 -> 2026-09-01 | BW2: =+EOMONTH(BU2,0)+1 -> 2026-09-01 | BX2: =+EOMONTH(BV2,0)+1 -> 2026-10-01 | BY2: =+EOMONTH(BW2,0)+1 -> 2026-10-01 | BZ2: =+EOMONTH(BX2,0)+1 -> 2026-11-01 | CA2: =+EOMONTH(BY2,0)+1 -> 2026-11-01 | CB2: =+EOMONTH(BZ2,0)+1 -> 2026-12-01 | CC2: =+EOMONTH(CA2,0)+1 -> 2026-12-01 | CD2: =+EOMONTH(CB2,0)+1 -> 2027-01-01 | CE2: =+EOMONTH(CC2,0)+1 -> 2027-01-01 | CF2: =+EOMONTH(CD2,0)+1 -> 2027-02-01 | CG2: =+EOMONTH(CE2,0)+1 -> 2027-02-01 | CH2: =+EOMONTH(CF2,0)+1 -> 2027-03-01 | CI2: =+EOMONTH(CG2,0)+1 -> 2027-03-01 | CJ2: =+EOMONTH(CH2,0)+1 -> 2027-04-01 | CK2: =+EOMONTH(CI2,0)+1 -> 2027-04-01 | CL2: =+EOMONTH(CJ2,0)+1 -> 2027-05-01 | CM2: =+EOMONTH(CK2,0)+1 -> 2027-05-01 | CN2: =+EOMONTH(CL2,0)+1 -> 2027-06-01 | CO2: =+EOMONTH(CM2,0)+1 -> 2027-06-01 | CP2: =+EOMONTH(CN2,0)+1 -> 2027-07-01 | CQ2: =+EOMONTH(CO2,0)+1 -> 2027-07-01 | CR2: =+EOMONTH(CP2,0)+1 -> 2027-08-01 | CS2: =+EOMONTH(CQ2,0)+1 -> 2027-08-01 | CT2: =+EOMONTH(CR2,0)+1 -> 2027-09-01 | CU2: =+EOMONTH(CS2,0)+1 -> 2027-09-01 | CV2: =+EOMONTH(CT2,0)+1 -> 2027-10-01 | CW2: =+EOMONTH(CU2,0)+1 -> 2027-10-01 | CX2: =+EOMONTH(CV2,0)+1 -> 2027-11-01 | CY2: =+EOMONTH(CW2,0)+1 -> 2027-11-01 | CZ2: =+EOMONTH(CX2,0)+1 -> 2027-12-01 | DA2: =+EOMONTH(CY2,0)+1 -> 2027-12-01 | DB2: =+EOMONTH(CZ2,0)+1 -> 2028-01-01 | DC2: =+EOMONTH(DA2,0)+1 -> 2028-01-01 | DD2: =+EOMONTH(DB2,0)+1 -> 2028-02-01 | DE2: =+EOMONTH(DC2,0)+1 -> 2028-02-01 | DF2: =+EOMONTH(DD2,0)+1 -> 2028-03-01 | DG2: =+EOMONTH(DE2,0)+1 -> 2028-03-01 | DH2: =+EOMONTH(DF2,0)+1 -> 2028-04-01 | DI2: =+EOMONTH(DG2,0)+1 -> 2028-04-01 | DJ2: =+EOMONTH(DH2,0)+1 -> 2028-05-01 | DK2: =+EOMONTH(DI2,0)+1 -> 2028-05-01 | DL2: =+EOMONTH(DJ2,0)+1 -> 2028-06-01 | DM2: =+EOMONTH(DK2,0)+1 -> 2028-06-01 | DN2: =+EOMONTH(DL2,0)+1 -> 2028-07-01 | DO2: =+EOMONTH(DM2,0)+1 -> 2028-07-01 | DP2: =+EOMONTH(DN2,0)+1 -> 2028-08-01 | DQ2: =+EOMONTH(DO2,0)+1 -> 2028-08-01 | DR2: =+EOMONTH(DP2,0)+1 -> 2028-09-01 | DS2: =+EOMONTH(DQ2,0)+1 -> 2028-09-01 | DT2: LF | DU2: Block
B3: BESID | C3: AccountName | D3: HLH | E3: LLH | F3: HLH | G3: LLH | H3: HLH | I3: LLH | J3: HLH | K3: LLH | L3: HLH | M3: LLH | N3: HLH | O3: LLH | P3: HLH | Q3: LLH | R3: HLH | S3: LLH | T3: HLH | U3: LLH | V3: HLH | W3: LLH | X3: HLH | Y3: LLH | Z3: HLH | AA3: LLH | AB3: HLH | AC3: LLH | AD3: HLH | AE3: LLH | AF3: HLH | AG3: LLH | AH3: HLH | AI3: LLH | AJ3: HLH | AK3: LLH | AL3: HLH | AM3: LLH | AN3: HLH | AO3: LLH | AP3: HLH | AQ3: LLH | AR3: HLH | AS3: LLH | AT3: HLH | AU3: LLH | AV3: HLH | AW3: LLH | AX3: =+AV3 -> HLH | AY3: =+AW3 -> LLH | AZ3: =+AX3 -> HLH | BA3: LLH | BB3: HLH | BC3: LLH | BD3: HLH | BE3: LLH | BF3: HLH | BG3: LLH | BH3: HLH | BI3: LLH | BJ3: HLH | BK3: LLH | BL3: HLH | BM3: LLH | BN3: HLH | BO3: LLH | BP3: HLH | BQ3: LLH | BR3: HLH | BS3: LLH | BT3: HLH | BU3: LLH | BV3: =+BT3 -> HLH | BW3: =+BU3 -> LLH | BX3: =+BV3 -> HLH | BY3: =+BW3 -> LLH | BZ3: =+BX3 -> HLH | CA3: =+BY3 -> LLH | CB3: =+BZ3 -> HLH | CC3: =+CA3 -> LLH | CD3: =+CB3 -> HLH | CE3: =+CC3 -> LLH | CF3: =+CD3 -> HLH | CG3: =+CE3 -> LLH | CH3: =+CF3 -> HLH | CI3: =+CG3 -> LLH | CJ3: =+CH3 -> HLH | CK3: =+CI3 -> LLH | CL3: =+CJ3 -> HLH | CM3: =+CK3 -> LLH | CN3: =+CL3 -> HLH | CO3: =+CM3 -> LLH | CP3: =+CN3 -> HLH | CQ3: =+CO3 -> LLH | CR3: =+CP3 -> HLH | CS3: =+CQ3 -> LLH | CT3: =+CR3 -> HLH | CU3: =+CS3 -> LLH | CV3: =+CT3 -> HLH | CW3: =+CU3 -> LLH | CX3: =+CV3 -> HLH | CY3: =+CW3 -> LLH | CZ3: =+CX3 -> HLH | DA3: =+CY3 -> LLH | DB3: =+CZ3 -> HLH | DC3: =+DA3 -> LLH | DD3: =+DB3 -> HLH | DE3: =+DC3 -> LLH | DF3: =+DD3 -> HLH | DG3: =+DE3 -> LLH | DH3: =+DF3 -> HLH | DI3: =+DG3 -> LLH | DJ3: =+DH3 -> HLH | DK3: =+DI3 -> LLH | DL3: =+DJ3 -> HLH | DM3: =+DK3 -> LLH | DN3: =+DL3 -> HLH | DO3: =+DM3 -> LLH | DP3: =+DN3 -> HLH | DQ3: =+DO3 -> LLH | DR3: =+DP3 -> HLH | DS3: =+DQ3 -> LLH
B4: 10015 | C4: Asotin County PUD #1 | D4: 153.537 | E4: 126.395 | F4: 88.894 | G4: 64.995 | H4: 91.014 | I4: 70.412 | J4: 102.65 | K4: 63.261 | L4: 82.455 | M4: 62.944 | N4: 105.019 | O4: 62.116 | P4: 159.479 | Q4: 101.58 | R4: 262.877 | S4: 247.764 | T4: 388.938 | U4: 337.909 | V4: 533.1 | W4: 479.193 | X4: 510.388 | Y4: 430.571 | Z4: 283.02 | AA4: 306.63 | AB4: 153.537 | AC4: 126.395 | AD4: 88.894 | AE4: 64.995 | AF4: 91.014 | AG4: 70.412 | AH4: 102.65 | AI4: 63.261 | AJ4: 79.611 | AK4: 60.773 | AL4: 105.019 | AM4: 62.116 | AN4: 159.479 | AO4: 101.58 | AP4: 262.877 | AQ4: 247.764 | AR4: 388.938 | AS4: 337.909 | AT4: 533.1 | AU4: 479.193 | AV4: 510.388 | AW4: 430.571 | AX4: 283.02 | AY4: 306.63 | AZ4: 232.205 | BA4: 191.156 | BB4: 169.419 | BC4: 123.872 | BD4: 171.945 | BE4: 133.024 | BF4: 191.46 | BG4: 117.994 | BH4: 153.704 | BI4: 117.335 | BJ4: 195.078 | BK4: 115.383 | BL4: 240.922 | BM4: 153.456 | BN4: 330.666 | BO4: 311.655 | BP4: 437.57 | BQ4: 380.162 | BR4: 596.157 | BS4: 535.873 | BT4: 573.687 | BU4: 483.972 | BV4: 342.67 | BW4: 371.256 | BX4: 232.205 | BY4: 191.156 | BZ4: 169.419 | CA4: 123.872 | CB4: 171.945 | CC4: 133.024 | CD4: 191.46 | CE4: 117.994 | CF4: 153.704 | CG4: 117.335 | CH4: 195.078 | CI4: 115.383 | CJ4: 240.922 | CK4: 153.456 | CL4: 330.666 | CM4: 311.655 | CN4: 437.57 | CO4: 380.162 | CP4: 596.157 | CQ4: 535.873 | CR4: 573.687 | CS4: 483.972 | CT4: 342.67 | CU4: 371.256 | CV4: 232.205 | CW4: 191.156 | CX4: 169.419 | CY4: 123.872 | CZ4: 171.945 | DA4: 133.024 | DB4: 191.46 | DC4: 117.994 | DD4: 158.984 | DE4: 121.365 | DF4: 195.078 | DG4: 115.383 | DH4: 240.922 | DI4: 153.456 | DJ4: 330.666 | DK4: 311.655 | DL4: 437.57 | DM4: 380.162 | DN4: 596.157 | DO4: 535.873 | DP4: 573.687 | DQ4: 483.972 | DR4: 342.67 | DS4: 371.256 | DT4: 1 | DU4: 0
B5: 10024 | C5: Benton County PUD #1 | D5: 70437.223 | E5: 41859.484 | F5: 65361.369 | G5: 46129.121 | H5: 88220.541 | I5: 62905.22 | J5: 85671.394 | K5: 61775.585 | L5: 66733.103 | M5: 44787.846 | N5: 70408.402 | O5: 45224.454 | P5: 70400.191 | Q5: 42481.051 | R5: 88609.434 | S5: 60228.218 | T5: 111701.369 | U5: 70403.701 | V5: 129230.371 | W5: 86617.796 | X5: 115203.24 | Y5: 69343.708 | Z5: 72410.585 | AA5: 45764.477 | AB5: 69969.81 | AC5: 41792.646 | AD5: 65032.767 | AE5: 45850.97 | AF5: 87611.908 | AG5: 62398.657 | AH5: 85125.445 | AI5: 61347.589 | AJ5: 66381.746 | AK5: 44484.415 | AL5: 70074.968 | AM5: 44938.85 | AN5: 70101.218 | AO5: 42237.639 | AP5: 88298.429 | AQ5: 59962.746 | AR5: 111406.923 | AS5: 70136.622 | AT5: 128922.367 | AU5: 86352.199 | AV5: 115030.953 | AW5: 68864.3 | AX5: 71887.634 | AY5: 45637.637 | AZ5: 72550.288 | BA5: 45072.747 | BB5: 68131.537 | BC5: 48913.613 | BD5: 82297.467 | BE5: 60308.029 | BF5: 79075.327 | BG5: 57383.372 | BH5: 73757.381 | BI5: 50848.426 | BJ5: 72232.116 | BK5: 47658.616 | BL5: 74338.585 | BM5: 46079.481 | BN5: 90481.358 | BO5: 63081.576 | BP5: 118830.382 | BQ5: 72570.755 | BR5: 134072.444 | BS5: 90024.115 | BT5: 121671.655 | BU5: 72509.2 | BV5: 77301.327 | BW5: 51037.732 | BX5: 72622.54 | BY5: 45081.384 | BZ5: 68149.393 | CA5: 48874.838 | CB5: 81979.407 | CC5: 60054.336 | CD5: 79010.97 | CE5: 56970.164 | CF5: 73748.322 | CG5: 50822.42 | CH5: 72077.235 | CI5: 47836.159 | CJ5: 74434.196 | CK5: 46100.458 | CL5: 90602.548 | CM5: 63111.632 | CN5: 118985.274 | CO5: 72623.099 | CP5: 134252.642 | CQ5: 90103.664 | CR5: 121826.915 | CS5: 72533.625 | CT5: 77386.002 | CU5: 51046.84 | CV5: 73208.754 | CW5: 45121.718 | CX5: 68244.758 | CY5: 49275.843 | CZ5: 81950.402 | DA5: 60029.147 | DB5: 78748.711 | DC5: 56769.698 | DD5: 75605.688 | DE5: 52144.163 | DF5: 72074.281 | DG5: 47830.196 | DH5: 74688.453 | DI5: 45925.45 | DJ5: 90476.566 | DK5: 63376.593 | DL5: 119127.363 | DM5: 72702.134 | DN5: 134662.547 | DO5: 90029.081 | DP5: 121779.992 | DQ5: 72812.12 | DR5: 77430.383 | DS5: 51067.177 | DT5: 1 | DU5: 0
B6: 10025 | C6: Benton REA | D6: 24348.542 | E6: 16010.515 | F6: 20579.314 | G6: 15614.014 | H6: 24971.705 | I6: 19134.273 | J6: 24520.616 | K6: 18595.359 | L6: 18688.172 | M6: 13673.933 | N6: 20081.272 | O6: 13863.883 | P6: 19952.815 | Q6: 13452.561 | R6: 26155.1 | S6: 18649.124 | T6: 31790.871 | U6: 20161.864 | V6: 35089.477 | W6: 24699.052 | X6: 34100.986 | Y6: 20907.2 | Z6: 25930.73 | AA6: 18680.865 | AB6: 24257.522 | AC6: 16082.582 | AD6: 20564.124 | AE6: 15599.037 | AF6: 24850.378 | AG6: 19033.062 | AH6: 24320.502 | AI6: 18440.664 | AJ6: 18677.077 | AK6: 13645.161 | AL6: 20001.213 | AM6: 13800.214 | AN6: 19900.414 | AO6: 13412.422 | AP6: 26105.002 | AQ6: 18606.942 | AR6: 31749.48 | AS6: 20121.927 | AT6: 35027.588 | AU6: 24648.125 | AV6: 34115.494 | AW6: 20767.387 | AX6: 25791.198 | AY6: 18716.048 | AZ6: 24795.847 | BA6: 15683.587 | BB6: 19920.05 | BC6: 16641.994 | BD6: 27997.587 | BE6: 19892.057 | BF6: 26524.905 | BG6: 19243.274 | BH6: 19333.524 | BI6: 13599.797 | BJ6: 19414.536 | BK6: 14447.062 | BL6: 22249.751 | BM6: 14551.536 | BN6: 25443.94 | BO6: 18985.762 | BP6: 31585.509 | BQ6: 19180.919 | BR6: 35170.794 | BS6: 23087.299 | BT6: 32897.384 | BU6: 21527.573 | BV6: 25854.327 | BW6: 17600.042 | BX6: 24874.121 | BY6: 15714.048 | BZ6: 19938.754 | CA6: 16649.422 | CB6: 27888.31 | CC6: 19795.199 | CD6: 25245.552 | CE6: 20267.829 | CF6: 19281.934 | CG6: 13553.77 | CH6: 20243.719 | CI6: 13560.534 | CJ6: 22273.31 | CK6: 14550.708 | CL6: 25503.014 | CM6: 19006.553 | CN6: 31687.798 | CO6: 19216.509 | CP6: 35289.126 | CQ6: 23136.222 | CR6: 32971.712 | CS6: 21546.543 | CT6: 25855.653 | CU6: 17575.158 | CV6: 23895.534 | CW6: 16752.319 | CX6: 20858.167 | CY6: 15665.382 | CZ6: 27700.561 | DA6: 19646.909 | DB6: 25230.823 | DC6: 20247.366 | DD6: 19962.681 | DE6: 13802.177 | DF6: 20277.889 | DG6: 13576.353 | DH6: 21365.655 | DI6: 15537.841 | DJ6: 26686.261 | DK6: 17918.632 | DL6: 31768.421 | DM6: 19247.275 | DN6: 33967.609 | DO6: 24670.584 | DP6: 34472.03 | DQ6: 20249.609 | DR6: 25948.222 | DS6: 17622.341 | DT6: 1 | DU6: 0
